Workbook

Sheet Forsíða
B2: TR eftirlaun | C2: 227883 | J2: Áætlun á árlegum lífeyrisréttindum við lífeyristöku | AB2: Hlutur almannatrygginga | AH2: Heildarfjöldi í árgangi við töku á lífeyri
B3: TR uppbót ef býr einn | C3: 52117 | AI3: Já
B4: Einstæð/ur | C4: nei | L4: Karlar | O4: Árslaun við: | P4: Hlutfall af | R4: Áætlaður séreignar- | T4: Konur | W4: Árslaun við: | X4: Hlutfall af | Z4: Áætlaður séreignar- | AB4: Karlar | AE4: Konur | AH4: Karlar | AI4: Konur
J5: Árgangur | M5: Lífeyrir á mann | O5: =+C21 -> 55 ára aldur | P5: Launum | R5: sparnaður v. töku lífeyris | U5: Lífeyrir á mann | W5: =+C21 -> 55 ára aldur | X5: Launum | Z5: sparnaður v. töku lífeyris | AB5: Alm.tr. á mann | AE5: Alm.tr. á mann
B6: Viðb. launahækkanir á ári: | J6: =+Niðurstaða!T4 -> 1945 | M6: =(Niðurstaða!Y4)*(1+(Ealdur!$M$6*Ealdur!$M$5)) -> 1004743.615 | O6: =+IF($C$21="Töku lífeyris",Niðurstaða!Z4,IF($C$21="55 ára aldur",Niðurstaða!AA4,"")) -> 4047515.999 | P6: =+M6/O6 -> 0.2482370954 | U6: =(Niðurstaða!AG4)*(1+(Ealdur!$M$6*Ealdur!$M$5)) -> 412542.4709 | W6: =+IF($C$21="Töku lífeyris",Niðurstaða!AH4,IF($C$21="55 ára aldur",Niðurstaða!AI4,"")) -> 2385309.388 | X6: =+U6/W6 -> 0.1729513467 | AH6: =+Fjöldatölur!O3 -> 76.89364324 | AI6: =+Fjöldatölur!P3 -> 51.52154117
B7: Karla | C7: 0.01 | J7: =+Niðurstaða!T5 -> 1946 | M7: =(Niðurstaða!Y5)*(1+(Ealdur!$M$6*Ealdur!$M$5)) -> 1411353.186 | O7: =+IF($C$21="Töku lífeyris",Niðurstaða!Z5,IF($C$21="55 ára aldur",Niðurstaða!AA5,"")) -> 4532439.943 | P7: 0.3113892747 | U7: =(Niðurstaða!AG5)*(1+(Ealdur!$M$6*Ealdur!$M$5)) -> 799184.4631 | W7: =+IF($C$21="Töku lífeyris",Niðurstaða!AH5,IF($C$21="55 ára aldur",Niðurstaða!AI5,"")) -> 2746153.996 | X7: 0.2910195365 | AH7: =+Fjöldatölur!O4 -> 228.7553222 | AI7: =+Fjöldatölur!P4 -> 136.2160817
B8: Kvenna | C8: 0.015 | J8: =+Niðurstaða!T6 -> 1947 | M8: =(Niðurstaða!Y6)*(1+(Ealdur!$M$6*Ealdur!$M$5)) -> 1786895.818 | O8: =+IF($C$21="Töku lífeyris",Niðurstaða!Z6,IF($C$21="55 ára aldur",Niðurstaða!AA6,"")) -> 5381072.847 | P8: 0.3320705496 | U8: =(Niðurstaða!AG6)*(1+(Ealdur!$M$6*Ealdur!$M$5)) -> 908984.8549 | W8: =+IF($C$21="Töku lífeyris",Niðurstaða!AH6,IF($C$21="55 ára aldur",Niðurstaða!AI6,"")) -> 3369545.747 | X8: 0.2697648061 | AH8: =+Fjöldatölur!O5 -> 328.3567613 | AI8: =+Fjöldatölur!P5 -> 213.1771399
J9: =+Niðurstaða!T7 -> 1948 | M9: =(Niðurstaða!Y7)*(1+(Ealdur!$M$6*Ealdur!$M$5)) -> 2006277.992 | O9: =+IF($C$21="Töku lífeyris",Niðurstaða!Z7,IF($C$21="55 ára aldur",Niðurstaða!AA7,"")) -> 5413784.967 | P9: 0.3705869376 | U9: =(Niðurstaða!AG7)*(1+(Ealdur!$M$6*Ealdur!$M$5)) -> 1037042.028 | W9: =+IF($C$21="Töku lífeyris",Niðurstaða!AH7,IF($C$21="55 ára aldur",Niðurstaða!AI7,"")) -> 3510090.728 | X9: 0.2954459324 | AH9: =+Fjöldatölur!O6 -> 398.2577105 | AI9: =+Fjöldatölur!P6 -> 347.1955497
B10: Hækkun á mótframlagi | J10: =+Niðurstaða!T8 -> 1949 | M10: =(Niðurstaða!Y8)*(1+(Ealdur!$M$6*Ealdur!$M$5)) -> 2467595.052 | O10: =+IF($C$21="Töku lífeyris",Niðurstaða!Z8,IF($C$21="55 ára aldur",Niðurstaða!AA8,"")) -> 5417717.248 | P10: 0.45546767 | U10: =(Niðurstaða!AG8)*(1+(Ealdur!$M$6*Ealdur!$M$5)) -> 1497601.336 | W10: =+IF($C$21="Töku lífeyris",Niðurstaða!AH8,IF($C$21="55 ára aldur",Niðurstaða!AI8,"")) -> 3639650.879 | X10: 0.4114684034 | AH10: =+Fjöldatölur!O7 -> 611.8496186 | AI10: =+Fjöldatölur!P7 -> 614.6739727
B11: Hækkun1 | C11: 0.005 | J11: =+Niðurstaða!T9 -> 1950 | M11: =(Niðurstaða!Y9)*(1+(Ealdur!$M$6*Ealdur!$M$5)) -> 2722180.348 | O11: =+IF($C$21="Töku lífeyris",Niðurstaða!Z9,IF($C$21="55 ára aldur",Niðurstaða!AA9,"")) -> 5441494.575 | P11: 0.5002633579 | R11: =+'Séreignarsparnaður samantekt'!AA11/AH11 -> 11705071.57 | U11: =(Niðurstaða!AG9)*(1+(Ealdur!$M$6*Ealdur!$M$5)) -> 1760397.079 | W11: =+IF($C$21="Töku lífeyris",Niðurstaða!AH9,IF($C$21="55 ára aldur",Niðurstaða!AI9,"")) -> 3905687.776 | X11: 0.4507265251 | Z11: =+'Séreignarsparnaður samantekt'!AC11/AI11 -> 2883291.721 | AB11: =MAX(Tr_eftirl*(1+5.5%*$C$19)*12-(M11-25000*12)*45%,0)+IF($C$4="já",1,0)*MAX(TR_uppbót*(1+5.5%*$C$19)*12-(M11-25000*12)*11.9%,0) -> 2095823.183 | AE11: =MAX(Tr_eftirl*(1+5.5%*$C$19)*12-(U11-25000*12)*45%,0)+IF($C$4="já",1,0)*MAX(TR_uppbót*(1+5.5%*$C$19)*12-(U11-25000*12)*11.9%,0) -> 2528625.654 | AH11: =+Fjöldatölur!O8 -> 726.1583367 | AI11: =+Fjöldatölur!P8 -> 729.0003049
B12: Hækkun2 | C12: 0.015 | J12: =+Niðurstaða!T10 -> 1951 | M12: =(Niðurstaða!Y10)*(1+(Ealdur!$M$6*Ealdur!$M$5)) -> 2850095.949 | O12: =+IF($C$21="Töku lífeyris",Niðurstaða!Z10,IF($C$21="55 ára aldur",Niðurstaða!AA10,"")) -> 5424949.853 | P12: 0.525368165 | R12: =+'Séreignarsparnaður samantekt'!AA12/AH12 -> 11694944.62 | U12: =(Niðurstaða!AG10)*(1+(Ealdur!$M$6*Ealdur!$M$5)) -> 2172403.707 | W12: =+IF($C$21="Töku lífeyris",Niðurstaða!AH10,IF($C$21="55 ára aldur",Niðurstaða!AI10,"")) -> 4088986.531 | X12: 0.5312816979 | Z12: =+'Séreignarsparnaður samantekt'!AC12/AI12 -> 1777185.146 | AB12: 2038261.163 | AE12: 2343222.672 | AH12: =+Fjöldatölur!O9 -> 804.8967466 | AI12: =+Fjöldatölur!P9 -> 1035.938032
B13: Hækkun3 | C13: 0.015 | J13: =+Niðurstaða!T11 -> 1952 | M13: =(Niðurstaða!Y11)*(1+(Ealdur!$M$6*Ealdur!$M$5)) -> 3154426.56 | O13: =+IF($C$21="Töku lífeyris",Niðurstaða!Z11,IF($C$21="55 ára aldur",Niðurstaða!AA11,"")) -> 5472058.22 | P13: 0.5764607088 | R13: =+'Séreignarsparnaður samantekt'!AA13/AH13 -> 11869913.85 | U13: =(Niðurstaða!AG11)*(1+(Ealdur!$M$6*Ealdur!$M$5)) -> 2135402.765 | W13: =+IF($C$21="Töku lífeyris",Niðurstaða!AH11,IF($C$21="55 ára aldur",Niðurstaða!AI11,"")) -> 4177953.364 | X13: 0.5111121591 | Z13: =+'Séreignarsparnaður samantekt'!AC13/AI13 -> 2180324.64 | AB13: 1901312.388 | AE13: 2359873.096 | AH13: =+Fjöldatölur!O10 -> 910.4479247 | AI13: =+Fjöldatölur!P10 -> 1059.553559
J14: =+Niðurstaða!T12 -> 1953 | M14: =(Niðurstaða!Y12)*(1+(Ealdur!$M$6*Ealdur!$M$5)) -> 3433205.042 | O14: =+IF($C$21="Töku lífeyris",Niðurstaða!Z12,IF($C$21="55 ára aldur",Niðurstaða!AA12,"")) -> 5644411.303 | P14: 0.608248559 | R14: =+'Séreignarsparnaður samantekt'!AA14/AH14 -> 9222427.278 | U14: =(Niðurstaða!AG12)*(1+(Ealdur!$M$6*Ealdur!$M$5)) -> 2477334.377 | W14: =+IF($C$21="Töku lífeyris",Niðurstaða!AH12,IF($C$21="55 ára aldur",Niðurstaða!AI12,"")) -> 4299161.844 | X14: 0.5762365937 | Z14: =+'Séreignarsparnaður samantekt'!AC14/AI14 -> 3638630.879 | AB14: 1775862.071 | AE14: 2206003.87 | AH14: =+Fjöldatölur!O11 -> 911.0451286 | AI14: =+Fjöldatölur!P11 -> 1157.037916
B15: Viðbótarlífeyrissparnaður | J15: =+Niðurstaða!T13 -> 1954 | M15: =(Niðurstaða!Y13)*(1+(Ealdur!$M$6*Ealdur!$M$5)) -> 3710347.262 | O15: =+IF($C$21="Töku lífeyris",Niðurstaða!Z13,IF($C$21="55 ára aldur",Niðurstaða!AA13,"")) -> 5767129.393 | P15: 0.6433611957 | R15: =+'Séreignarsparnaður samantekt'!AA15/AH15 -> 11645451.84 | U15: =(Niðurstaða!AG13)*(1+(Ealdur!$M$6*Ealdur!$M$5)) -> 2352994.527 | W15: =+IF($C$21="Töku lífeyris",Niðurstaða!AH13,IF($C$21="55 ára aldur",Niðurstaða!AI13,"")) -> 4339340.283 | X15: 0.5422470638 | Z15: =+'Séreignarsparnaður samantekt'!AC15/AI15 -> 2967440.846 | AB15: 1651148.072 | AE15: 2261956.803 | AH15: =+Fjöldatölur!O12 -> 976.1066434 | AI15: =+Fjöldatölur!P12 -> 1191.786351
B16: af launum | C16: 0.04 | J16: =+Niðurstaða!T14 -> 1955 | M16: =(Niðurstaða!Y14)*(1+(Ealdur!$M$6*Ealdur!$M$5)) -> 3811473.222 | O16: =+IF($C$21="Töku lífeyris",Niðurstaða!Z14,IF($C$21="55 ára aldur",Niðurstaða!AA14,"")) -> 5714341.62 | P16: 0.6670012883 | R16: =+'Séreignarsparnaður samantekt'!AA16/AH16 -> 12239800.07 | U16: =(Niðurstaða!AG14)*(1+(Ealdur!$M$6*Ealdur!$M$5)) -> 2574654.47 | W16: =+IF($C$21="Töku lífeyris",Niðurstaða!AH14,IF($C$21="55 ára aldur",Niðurstaða!AI14,"")) -> 4453508.674 | X16: 0.5781182117 | Z16: =+'Séreignarsparnaður samantekt'!AC16/AI16 -> 3430101.767 | AB16: 1605641.39 | AE16: 2162209.828 | AH16: =+Fjöldatölur!O13 -> 1014.205883 | AI16: =+Fjöldatölur!P13 -> 1363.666279
B17: Raunávxt. séreignarsparnaðar | C17: 0.03 | J17: =+Niðurstaða!T15 -> 1956 | M17: =(Niðurstaða!Y15)*(1+(Ealdur!$M$6*Ealdur!$M$5)) -> 3828140.422 | O17: =+IF($C$21="Töku lífeyris",Niðurstaða!Z15,IF($C$21="55 ára aldur",Niðurstaða!AA15,"")) -> 5762769.695 | P17: 0.6642882892 | R17: =+'Séreignarsparnaður samantekt'!AA17/AH17 -> 10880310.52 | U17: =(Niðurstaða!AG15)*(1+(Ealdur!$M$6*Ealdur!$M$5)) -> 2554587.266 | W17: =+IF($C$21="Töku lífeyris",Niðurstaða!AH15,IF($C$21="55 ára aldur",Niðurstaða!AI15,"")) -> 4633570.593 | X17: 0.5513215381 | Z17: =+'Séreignarsparnaður samantekt'!AC17/AI17 -> 3820051.011 | AB17: 1598141.15 | AE17: 2171240.07 | AH17: =+Fjöldatölur!O14 -> 1114.311839 | AI17: =+Fjöldatölur!P14 -> 1400.3086
J18: =+Niðurstaða!T16 -> 1957 | M18: =(Niðurstaða!Y16)*(1+(Ealdur!$M$6*Ealdur!$M$5)) -> 3885314.117 | O18: =+IF($C$21="Töku lífeyris",Niðurstaða!Z16,IF($C$21="55 ára aldur",Niðurstaða!AA16,"")) -> 5867559.171 | P18: 0.6621687151 | R18: =+'Séreignarsparnaður samantekt'!AA18/AH18 -> 13233495.31 | U18: =(Niðurstaða!AG16)*(1+(Ealdur!$M$6*Ealdur!$M$5)) -> 2752978.05 | W18: =+IF($C$21="Töku lífeyris",Niðurstaða!AH16,IF($C$21="55 ára aldur",Niðurstaða!AI16,"")) -> 4740175.256 | X18: 0.5807755835 | Z18: =+'Séreignarsparnaður samantekt'!AC18/AI18 -> 3875182.541 | AB18: 1572412.987 | AE18: 2081964.217 | AH18: =+Fjöldatölur!O15 -> 1181.77923 | AI18: =+Fjöldatölur!P15 -> 1467.718071
B19: Frestun/snemmtaka lífeyris í árum | C19: 3 | J19: =+Niðurstaða!T17 -> 1958 | M19: =(Niðurstaða!Y17)*(1+(Ealdur!$M$6*Ealdur!$M$5)) -> 3920132.681 | O19: =+IF($C$21="Töku lífeyris",Niðurstaða!Z17,IF($C$21="55 ára aldur",Niðurstaða!AA17,"")) -> 6047287.524 | P19: 0.6482464519 | R19: =+'Séreignarsparnaður samantekt'!AA19/AH19 -> 12210868.3 | U19: =(Niðurstaða!AG17)*(1+(Ealdur!$M$6*Ealdur!$M$5)) -> 2784159.7 | W19: =+IF($C$21="Töku lífeyris",Niðurstaða!AH17,IF($C$21="55 ára aldur",Niðurstaða!AI17,"")) -> 4868741.433 | X19: 0.5718438202 | Z19: =+'Séreignarsparnaður samantekt'!AC19/AI19 -> 4099316.701 | AB19: 1556744.634 | AE19: 2067932.475 | AH19: =+Fjöldatölur!O16 -> 1199.7723 | AI19: =+Fjöldatölur!P16 -> 1579.339557
J20: =+Niðurstaða!T18 -> 1959 | M20: =(Niðurstaða!Y18)*(1+(Ealdur!$M$6*Ealdur!$M$5)) -> 3993073.01 | O20: =+IF($C$21="Töku lífeyris",Niðurstaða!Z18,IF($C$21="55 ára aldur",Niðurstaða!AA18,"")) -> 6072213.881 | P20: 0.6575975564 | R20: =+'Séreignarsparnaður samantekt'!AA20/AH20 -> 14470016.24 | U20: =(Niðurstaða!AG18)*(1+(Ealdur!$M$6*Ealdur!$M$5)) -> 2899906.87 | W20: =+IF($C$21="Töku lífeyris",Niðurstaða!AH18,IF($C$21="55 ára aldur",Niðurstaða!AI18,"")) -> 4869677.856 | X20: 0.5955028146 | Z20: =+'Séreignarsparnaður samantekt'!AC20/AI20 -> 4450674.838 | AB20: 1523921.486 | AE20: 2015846.249 | AH20: =+Fjöldatölur!O17 -> 1293.181788 | AI20: =+Fjöldatölur!P17 -> 1655.463839
B21: Viðmiðunarlaun á mynd, við: | C21: 55 ára aldur | J21: =+Niðurstaða!T19 -> 1960 | M21: =(Niðurstaða!Y19)*(1+(Ealdur!$M$6*Ealdur!$M$5)) -> 4168865.923 | O21: =+IF($C$21="Töku lífeyris",Niðurstaða!Z19,IF($C$21="55 ára aldur",Niðurstaða!AA19,"")) -> 5979065.175 | P21: 0.6972437666 | R21: =+'Séreignarsparnaður samantekt'!AA21/AH21 -> 14389764.16 | U21: =(Niðurstaða!AG19)*(1+(Ealdur!$M$6*Ealdur!$M$5)) -> 2962026.618 | W21: =+IF($C$21="Töku lífeyris",Niðurstaða!AH19,IF($C$21="55 ára aldur",Niðurstaða!AI19,"")) -> 4956128.612 | X21: 0.5976492641 | Z21: =+'Séreignarsparnaður samantekt'!AC21/AI21 -> 4453243.08 | AB21: 1444814.674 | AE21: 1987892.362 | AH21: =+Fjöldatölur!O18 -> 1285.91461 | AI21: =+Fjöldatölur!P18 -> 1706.529175
J22: =+Niðurstaða!T20 -> 1961 | M22: =(Niðurstaða!Y20)*(1+(Ealdur!$M$6*Ealdur!$M$5)) -> 4392109.394 | O22: =+IF($C$21="Töku lífeyris",Niðurstaða!Z20,IF($C$21="55 ára aldur",Niðurstaða!AA20,"")) -> 6097209.175 | P22: 0.7203475014 | R22: =+'Séreignarsparnaður samantekt'!AA22/AH22 -> 12398698.58 | U22: =(Niðurstaða!AG20)*(1+(Ealdur!$M$6*Ealdur!$M$5)) -> 3004919.924 | W22: =+IF($C$21="Töku lífeyris",Niðurstaða!AH20,IF($C$21="55 ára aldur",Niðurstaða!AI20,"")) -> 5002409.147 | X22: 0.6006945526 | Z22: =+'Séreignarsparnaður samantekt'!AC22/AI22 -> 4889476.565 | AB22: 1344355.113 | AE22: 1968590.374 | AH22: =+Fjöldatölur!O19 -> 1138.265872 | AI22: =+Fjöldatölur!P19 -> 1646.98847
B23: Örorkulíkur yfir starfsævi | C23: Með | J23: =+Niðurstaða!T21 -> 1962 | M23: =(Niðurstaða!Y21)*(1+(Ealdur!$M$6*Ealdur!$M$5)) -> 4712125.687 | O23: =+IF($C$21="Töku lífeyris",Niðurstaða!Z21,IF($C$21="55 ára aldur",Niðurstaða!AA21,"")) -> 6281545.911 | P23: 0.7501538242 | R23: =+'Séreignarsparnaður samantekt'!AA23/AH23 -> 12487443.14 | U23: =(Niðurstaða!AG21)*(1+(Ealdur!$M$6*Ealdur!$M$5)) -> 3103951.555 | W23: =+IF($C$21="Töku lífeyris",Niðurstaða!AH21,IF($C$21="55 ára aldur",Niðurstaða!AI21,"")) -> 5065069.007 | X23: 0.6128152549 | Z23: =+'Séreignarsparnaður samantekt'!AC23/AI23 -> 5493587.868 | AB23: 1200347.781 | AE23: 1924026.14 | AH23: =+Fjöldatölur!O20 -> 1211.831666 | AI23: =+Fjöldatölur!P20 -> 1735.2653
J24: =+Niðurstaða!T22 -> 1963 | M24: =(Niðurstaða!Y22)*(1+(Ealdur!$M$6*Ealdur!$M$5)) -> 4813427.36 | O24: =+IF($C$21="Töku lífeyris",Niðurstaða!Z22,IF($C$21="55 ára aldur",Niðurstaða!AA22,"")) -> 6464594.769 | P24: 0.7445829988 | R24: =+'Séreignarsparnaður samantekt'!AA24/AH24 -> 12481849.29 | U24: =(Niðurstaða!AG22)*(1+(Ealdur!$M$6*Ealdur!$M$5)) -> 3155406.269 | W24: =+IF($C$21="Töku lífeyris",Niðurstaða!AH22,IF($C$21="55 ára aldur",Niðurstaða!AI22,"")) -> 5103580.494 | X24: 0.6182730482 | Z24: =+'Séreignarsparnaður samantekt'!AC24/AI24 -> 5436432.768 | AB24: 1154762.028 | AE24: 1900871.519 | AH24: =+Fjöldatölur!O21 -> 1219.15142 | AI24: =+Fjöldatölur!P21 -> 1875.645139
B25: Tekjur, meðaltal/fjórðungsmörk | C25: Q2. Miðgildi | J25: =+Niðurstaða!T23 -> 1964 | M25: =(Niðurstaða!Y23)*(1+(Ealdur!$M$6*Ealdur!$M$5)) -> 4749558.027 | O25: =+IF($C$21="Töku lífeyris",Niðurstaða!Z23,IF($C$21="55 ára aldur",Niðurstaða!AA23,"")) -> 6478832.911 | P25: 0.7330885195 | R25: =+'Séreignarsparnaður samantekt'!AA25/AH25 -> 12771184.93 | U25: =(Niðurstaða!AG23)*(1+(Ealdur!$M$6*Ealdur!$M$5)) -> 3270362.872 | W25: =+IF($C$21="Töku lífeyris",Niðurstaða!AH23,IF($C$21="55 ára aldur",Niðurstaða!AI23,"")) -> 5125441.095 | X25: 0.6380646682 | Z25: =+'Séreignarsparnaður samantekt'!AC25/AI25 -> 5194376.078 | AB25: 1183503.228 | AE25: 1849141.048 | AH25: =+Fjöldatölur!O22 -> 1264.47961 | AI25: =+Fjöldatölur!P22 -> 1917.374978
J26: =+Niðurstaða!T24 -> 1965 | M26: =(Niðurstaða!Y24)*(1+(Ealdur!$M$6*Ealdur!$M$5)) -> 4760034.181 | O26: =+IF($C$21="Töku lífeyris",Niðurstaða!Z24,IF($C$21="55 ára aldur",Niðurstaða!AA24,"")) -> 6531236.626 | P26: 0.7288105536 | R26: =+'Séreignarsparnaður samantekt'!AA26/AH26 -> 12474089.85 | U26: =(Niðurstaða!AG24)*(1+(Ealdur!$M$6*Ealdur!$M$5)) -> 3380971.453 | W26: =+IF($C$21="Töku lífeyris",Niðurstaða!AH24,IF($C$21="55 ára aldur",Niðurstaða!AI24,"")) -> 5204427.823 | X26: 0.6496336519 | Z26: =+'Séreignarsparnaður samantekt'!AC26/AI26 -> 5284166.094 | AB26: 1178788.959 | AE26: 1799367.186 | AH26: =+Fjöldatölur!O23 -> 1247.964302 | AI26: =+Fjöldatölur!P23 -> 1883.183066
J27: =+Niðurstaða!T25 -> 1966 | M27: =(Niðurstaða!Y25)*(1+(Ealdur!$M$6*Ealdur!$M$5)) -> 4875434.224 | O27: =+IF($C$21="Töku lífeyris",Niðurstaða!Z25,IF($C$21="55 ára aldur",Niðurstaða!AA25,"")) -> 6575209.428 | P27: 0.7414872906 | R27: =+'Séreignarsparnaður samantekt'!AA27/AH27 -> 12882202.03 | U27: =(Niðurstaða!AG25)*(1+(Ealdur!$M$6*Ealdur!$M$5)) -> 3510801.397 | W27: =+IF($C$21="Töku lífeyris",Niðurstaða!AH25,IF($C$21="55 ára aldur",Niðurstaða!AI25,"")) -> 5339361.949 | X27: 0.6575320105 | Z27: =+'Séreignarsparnaður samantekt'!AC27/AI27 -> 6118049.182 | AB27: 1126858.939 | AE27: 1740943.711 | AH27: =+Fjöldatölur!O24 -> 1270.792275 | AI27: =+Fjöldatölur!P24 -> 1934.755984
J28: =+Niðurstaða!T26 -> 1967 | M28: =(Niðurstaða!Y26)*(1+(Ealdur!$M$6*Ealdur!$M$5)) -> 5011764.555 | O28: =+IF($C$21="Töku lífeyris",Niðurstaða!Z26,IF($C$21="55 ára aldur",Niðurstaða!AA26,"")) -> 6678525.325 | P28: 0.7504298197 | R28: =+'Séreignarsparnaður samantekt'!AA28/AH28 -> 10772709.18 | U28: =(Niðurstaða!AG26)*(1+(Ealdur!$M$6*Ealdur!$M$5)) -> 3593748.95 | W28: =+IF($C$21="Töku lífeyris",Niðurstaða!AH26,IF($C$21="55 ára aldur",Niðurstaða!AI26,"")) -> 5610223.307 | X28: 0.6405714628 | Z28: =+'Séreignarsparnaður samantekt'!AC28/AI28 -> 6848538.851 | AB28: 1065510.29 | AE28: 1703617.312 | AH28: =+Fjöldatölur!O25 -> 1159.395743 | AI28: =+Fjöldatölur!P25 -> 1801.854057
J29: =+Niðurstaða!T27 -> 1968 | M29: =(Niðurstaða!Y27)*(1+(Ealdur!$M$6*Ealdur!$M$5)) -> 4989161.551 | O29: =+IF($C$21="Töku lífeyris",Niðurstaða!Z27,IF($C$21="55 ára aldur",Niðurstaða!AA27,"")) -> 6747001.786 | P29: 0.7394634995 | R29: =+'Séreignarsparnaður samantekt'!AA29/AH29 -> 10886461.93 | U29: =(Niðurstaða!AG27)*(1+(Ealdur!$M$6*Ealdur!$M$5)) -> 3736105.337 | W29: =+IF($C$21="Töku lífeyris",Niðurstaða!AH27,IF($C$21="55 ára aldur",Niðurstaða!AI27,"")) -> 5802381.355 | X29: 0.6438917244 | Z29: =+'Séreignarsparnaður samantekt'!AC29/AI29 -> 6233055.675 | AB29: 1075681.642 | AE29: 1639556.938 | AH29: =+Fjöldatölur!O26 -> 1299.557248 | AI29: =+Fjöldatölur!P26 -> 1713.771222
J30: =+Niðurstaða!T28 -> 1969 | M30: =(Niðurstaða!Y28)*(1+(Ealdur!$M$6*Ealdur!$M$5)) -> 4954410.166 | O30: =+IF($C$21="Töku lífeyris",Niðurstaða!Z28,IF($C$21="55 ára aldur",Niðurstaða!AA28,"")) -> 6893521.922 | P30: 0.7187052166 | R30: =+'Séreignarsparnaður samantekt'!AA30/AH30 -> 11842188 | U30: =(Niðurstaða!AG28)*(1+(Ealdur!$M$6*Ealdur!$M$5)) -> 3877703.431 | W30: =+IF($C$21="Töku lífeyris",Niðurstaða!AH28,IF($C$21="55 ára aldur",Niðurstaða!AI28,"")) -> 5955083.45 | X30: 0.6511585376 | Z30: =+'Séreignarsparnaður samantekt'!AC30/AI30 -> 7193692.005 | AB30: 1091319.765 | AE30: 1575837.796 | AH30: =+Fjöldatölur!O27 -> 1253.349079 | AI30: =+Fjöldatölur!P27 -> 1831.987394
J31: =+Niðurstaða!T29 -> 1970 | M31: =(Niðurstaða!Y29)*(1+(Ealdur!$M$6*Ealdur!$M$5)) -> 5085979.081 | O31: =+IF($C$21="Töku lífeyris",Niðurstaða!Z29,IF($C$21="55 ára aldur",Niðurstaða!AA29,"")) -> 7130525.664 | P31: 0.7132684629 | R31: =+'Séreignarsparnaður samantekt'!AA31/AH31 -> 11228199.22 | U31: =(Niðurstaða!AG29)*(1+(Ealdur!$M$6*Ealdur!$M$5)) -> 4058314.794 | W31: =+IF($C$21="Töku lífeyris",Niðurstaða!AH29,IF($C$21="55 ára aldur",Niðurstaða!AI29,"")) -> 6104681.29 | X31: 0.6647873329 | Z31: =+'Séreignarsparnaður samantekt'!AC31/AI31 -> 7355299.325 | AB31: 1032113.754 | AE31: 1494562.683 | AH31: =+Fjöldatölur!O28 -> 1279.095074 | AI31: =+Fjöldatölur!P28 -> 1653.301622
J32: =+Niðurstaða!T30 -> 1971 | M32: =(Niðurstaða!Y30)*(1+(Ealdur!$M$6*Ealdur!$M$5)) -> 5274054.872 | O32: =+IF($C$21="Töku lífeyris",Niðurstaða!Z30,IF($C$21="55 ára aldur",Niðurstaða!AA30,"")) -> 7343940.917 | P32: 0.7181505042 | R32: =+'Séreignarsparnaður samantekt'!AA32/AH32 -> 11818665.75 | U32: =(Niðurstaða!AG30)*(1+(Ealdur!$M$6*Ealdur!$M$5)) -> 4078275.662 | W32: =+IF($C$21="Töku lífeyris",Niðurstaða!AH30,IF($C$21="55 ára aldur",Niðurstaða!AI30,"")) -> 6105394.784 | X32: 0.6679790261 | Z32: =+'Séreignarsparnaður samantekt'!AC32/AI32 -> 7574662.359 | AB32: 947479.6474 | AE32: 1485580.292 | AH32: =+Fjöldatölur!O29 -> 1404.188091 | AI32: =+Fjöldatölur!P29 -> 1786.326865
J33: =+Niðurstaða!T31 -> 1972 | M33: =(Niðurstaða!Y31)*(1+(Ealdur!$M$6*Ealdur!$M$5)) -> 5518051.035 | O33: =+IF($C$21="Töku lífeyris",Niðurstaða!Z31,IF($C$21="55 ára aldur",Niðurstaða!AA31,"")) -> 7587155.392 | P33: 0.7272885225 | R33: =+'Séreignarsparnaður samantekt'!AA33/AH33 -> 13250134.75 | U33: =(Niðurstaða!AG31)*(1+(Ealdur!$M$6*Ealdur!$M$5)) -> 4096804.355 | W33: =+IF($C$21="Töku lífeyris",Niðurstaða!AH31,IF($C$21="55 ára aldur",Niðurstaða!AI31,"")) -> 6227820.01 | X33: 0.6578231786 | Z33: =+'Séreignarsparnaður samantekt'!AC33/AI33 -> 7278611.955 | AB33: 837681.3743 | AE33: 1477242.38 | AH33: =+Fjöldatölur!O30 -> 1460.406418 | AI33: =+Fjöldatölur!P30 -> 1995.433194
J34: =+Niðurstaða!T32 -> 1973 | M34: =(Niðurstaða!Y32)*(1+(Ealdur!$M$6*Ealdur!$M$5)) -> 5502968.293 | O34: =+IF($C$21="Töku lífeyris",Niðurstaða!Z32,IF($C$21="55 ára aldur",Niðurstaða!AA32,"")) -> 7593898.506 | P34: 0.7246565501 | R34: =+'Séreignarsparnaður samantekt'!AA34/AH34 -> 11970920.65 | U34: =(Niðurstaða!AG32)*(1+(Ealdur!$M$6*Ealdur!$M$5)) -> 4052350.707 | W34: =+IF($C$21="Töku lífeyris",Niðurstaða!AH32,IF($C$21="55 ára aldur",Niðurstaða!AI32,"")) -> 6243208.293 | X34: 0.6490814525 | Z34: =+'Séreignarsparnaður samantekt'!AC34/AI34 -> 8202123.747 | AB34: 844468.6082 | AE34: 1497246.522 | AH34: =+Fjöldatölur!O31 -> 1496.466807 | AI34: =+Fjöldatölur!P31 -> 1929.040708
J35: =+Niðurstaða!T33 -> 1974 | M35: =(Niðurstaða!Y33)*(1+(Ealdur!$M$6*Ealdur!$M$5)) -> 5483156.522 | O35: =+IF($C$21="Töku lífeyris",Niðurstaða!Z33,IF($C$21="55 ára aldur",Niðurstaða!AA33,"")) -> 7533735.817 | P35: 0.7278137507 | R35: =+'Séreignarsparnaður samantekt'!AA35/AH35 -> 12160345.02 | U35: =(Niðurstaða!AG33)*(1+(Ealdur!$M$6*Ealdur!$M$5)) -> 4132662.099 | W35: =+IF($C$21="Töku lífeyris",Niðurstaða!AH33,IF($C$21="55 ára aldur",Niðurstaða!AI33,"")) -> 6454666.09 | X35: 0.6402596264 | Z35: =+'Séreignarsparnaður samantekt'!AC35/AI35 -> 8202267.405 | AB35: 853383.9052 | AE35: 1461106.395 | AH35: =+Fjöldatölur!O32 -> 1420.18598 | AI35: =+Fjöldatölur!P32 -> 1796.435238
J36: =+Niðurstaða!T34 -> 1975 | M36: =(Niðurstaða!Y34)*(1+(Ealdur!$M$6*Ealdur!$M$5)) -> 5381220.17 | O36: =+IF($C$21="Töku lífeyris",Niðurstaða!Z34,IF($C$21="55 ára aldur",Niðurstaða!AA34,"")) -> 7404499.182 | P36: 0.7267500525 | R36: =+'Séreignarsparnaður samantekt'!AA36/AH36 -> 11162586.94 | U36: =(Niðurstaða!AG34)*(1+(Ealdur!$M$6*Ealdur!$M$5)) -> 4247596.243 | W36: =+IF($C$21="Töku lífeyris",Niðurstaða!AH34,IF($C$21="55 ára aldur",Niðurstaða!AI34,"")) -> 6530095.413 | X36: 0.6504646523 | Z36: =+'Séreignarsparnaður samantekt'!AC36/AI36 -> 8549990.257 | AB36: 899255.2637 | AE36: 1409386.031 | AH36: =+Fjöldatölur!O33 -> 1522.047166 | AI36: =+Fjöldatölur!P33 -> 1911.082399
J37: =+Niðurstaða!T35 -> 1976 | M37: =(Niðurstaða!Y35)*(1+(Ealdur!$M$6*Ealdur!$M$5)) -> 5493383.453 | O37: =+IF($C$21="Töku lífeyris",Niðurstaða!Z35,IF($C$21="55 ára aldur",Niðurstaða!AA35,"")) -> 7465025.42 | P37: 0.7358827525 | R37: =+'Séreignarsparnaður samantekt'!AA37/AH37 -> 11784213.09 | U37: =(Niðurstaða!AG35)*(1+(Ealdur!$M$6*Ealdur!$M$5)) -> 4341653.446 | W37: =+IF($C$21="Töku lífeyris",Niðurstaða!AH35,IF($C$21="55 ára aldur",Niðurstaða!AI35,"")) -> 6638784.316 | X37: 0.6539832052 | Z37: =+'Séreignarsparnaður samantekt'!AC37/AI37 -> 9510386.595 | AB37: 848781.7861 | AE37: 1367060.289 | AH37: =+Fjöldatölur!O34 -> 1563.009247 | AI37: =+Fjöldatölur!P34 -> 1858.545813
J38: =+Niðurstaða!T36 -> 1977 | M38: =(Niðurstaða!Y36)*(1+(Ealdur!$M$6*Ealdur!$M$5)) -> 5601830.327 | O38: =+IF($C$21="Töku lífeyris",Niðurstaða!Z36,IF($C$21="55 ára aldur",Niðurstaða!AA36,"")) -> 7667755.63 | P38: =+M38/O38 -> 0.7305697516 | R38: =+'Séreignarsparnaður samantekt'!AA38/AH38 -> 11942540.55 | U38: =(Niðurstaða!AG36)*(1+(Ealdur!$M$6*Ealdur!$M$5)) -> 4336208.912 | W38: =+IF($C$21="Töku lífeyris",Niðurstaða!AH36,IF($C$21="55 ára aldur",Niðurstaða!AI36,"")) -> 6609546.716 | X38: =+U38/W38 -> 0.6560523888 | Z38: =+'Séreignarsparnaður samantekt'!AC38/AI38 -> 8951276.966 | AB38: 799980.693 | AE38: 1369510.33 | AH38: =+Fjöldatölur!O35 -> 1470.177497 | AI38: =+Fjöldatölur!P35 -> 1855.435427 | AM38: Með | AN38: já | AO38: 3 | AP38: 55 ára aldur | AR38: Q1. 25%
J39: =+Niðurstaða!T37 -> 1978 | M39: =(Niðurstaða!Y37)*(1+(Ealdur!$M$6*Ealdur!$M$5)) -> 5785097.631 | O39: =+IF($C$21="Töku lífeyris",Niðurstaða!Z37,IF($C$21="55 ára aldur",Niðurstaða!AA37,"")) -> 7990635.45 | P39: 0.7239846777 | R39: =+'Séreignarsparnaður samantekt'!AA39/AH39 -> 12354882.17 | U39: =(Niðurstaða!AG37)*(1+(Ealdur!$M$6*Ealdur!$M$5)) -> 4229612.156 | W39: =+IF($C$21="Töku lífeyris",Niðurstaða!AH37,IF($C$21="55 ára aldur",Niðurstaða!AI37,"")) -> 6575929.322 | X39: 0.6431961095 | Z39: =+'Séreignarsparnaður samantekt'!AC39/AI39 -> 9358355.375 | AB39: 717510.4061 | AE39: 1417478.87 | AH39: =+Fjöldatölur!O36 -> 1614.48332 | AI39: =+Fjöldatölur!P36 -> 1934.117386 | AM39: Án | AN39: nei | AO39: =+AO38-1 -> 2 | AP39: Töku lífeyris | AR39: Q2. Miðgildi
J40: =+Niðurstaða!T38 -> 1979 | M40: =(Niðurstaða!Y38)*(1+(Ealdur!$M$6*Ealdur!$M$5)) -> 5870421.834 | O40: =+IF($C$21="Töku lífeyris",Niðurstaða!Z38,IF($C$21="55 ára aldur",Niðurstaða!AA38,"")) -> 8203101.86 | P40: 0.7156343947 | R40: =+'Séreignarsparnaður samantekt'!AA40/AH40 -> 13455675.92 | U40: =(Niðurstaða!AG38)*(1+(Ealdur!$M$6*Ealdur!$M$5)) -> 4249187.431 | W40: =+IF($C$21="Töku lífeyris",Niðurstaða!AH38,IF($C$21="55 ára aldur",Niðurstaða!AI38,"")) -> 6643341.575 | X40: 0.6396159798 | Z40: =+'Séreignarsparnaður samantekt'!AC40/AI40 -> 9339854.754 | AB40: 679114.5145 | AE40: 1408669.996 | AH40: =+Fjöldatölur!O37 -> 1713.203675 | AI40: =+Fjöldatölur!P37 -> 2133.651465 | AO40: 1 | AR40: Q3. 75%
J41: =+Niðurstaða!T39 -> 1980 | M41: =(Niðurstaða!Y39)*(1+(Ealdur!$M$6*Ealdur!$M$5)) -> 5864334.107 | O41: =+IF($C$21="Töku lífeyris",Niðurstaða!Z39,IF($C$21="55 ára aldur",Niðurstaða!AA39,"")) -> 8244293.801 | P41: 0.7113203688 | R41: =+'Séreignarsparnaður samantekt'!AA41/AH41 -> 13216344.39 | U41: =(Niðurstaða!AG39)*(1+(Ealdur!$M$6*Ealdur!$M$5)) -> 4304536.327 | W41: =+IF($C$21="Töku lífeyris",Niðurstaða!AH39,IF($C$21="55 ára aldur",Niðurstaða!AI39,"")) -> 6818233.233 | X41: 0.6313272338 | Z41: =+'Séreignarsparnaður samantekt'!AC41/AI41 -> 10361191.02 | AB41: 681853.9919 | AE41: 1383762.993 | AH41: =+Fjöldatölur!O38 -> 1803.90674 | AI41: =+Fjöldatölur!P38 -> 2106.368397 | AO41: 0 | AR41: Meðaltal
J42: =+Niðurstaða!T40 -> 1981 | M42: =(Niðurstaða!Y40)*(1+(Ealdur!$M$6*Ealdur!$M$5)) -> 5755805.538 | O42: =+IF($C$21="Töku lífeyris",Niðurstaða!Z40,IF($C$21="55 ára aldur",Niðurstaða!AA40,"")) -> 8118874.551 | P42: 0.7089413073 | R42: =+'Séreignarsparnaður samantekt'!AA42/AH42 -> 12781751.54 | U42: =(Niðurstaða!AG40)*(1+(Ealdur!$M$6*Ealdur!$M$5)) -> 4395216.65 | W42: =+IF($C$21="Töku lífeyris",Niðurstaða!AH40,IF($C$21="55 ára aldur",Niðurstaða!AI40,"")) -> 6964741.742 | X42: 0.631066709 | Z42: =+'Séreignarsparnaður samantekt'!AC42/AI42 -> 10823091.65 | AB42: 730691.8477 | AE42: 1342956.847 | AH42: =+Fjöldatölur!O39 -> 1803.45565 | AI42: =+Fjöldatölur!P39 -> 2006.922664 | AO42: -1
J43: =+Niðurstaða!T41 -> 1982 | M43: =(Niðurstaða!Y41)*(1+(Ealdur!$M$6*Ealdur!$M$5)) -> 5718821.712 | O43: =+IF($C$21="Töku lífeyris",Niðurstaða!Z41,IF($C$21="55 ára aldur",Niðurstaða!AA41,"")) -> 8101396.109 | P43: 0.7059057025 | R43: =+'Séreignarsparnaður samantekt'!AA43/AH43 -> 12510578.61 | U43: =(Niðurstaða!AG41)*(1+(Ealdur!$M$6*Ealdur!$M$5)) -> 4281519.713 | W43: =+IF($C$21="Töku lífeyris",Niðurstaða!AH41,IF($C$21="55 ára aldur",Niðurstaða!AI41,"")) -> 6883015.196 | X43: 0.6220412989 | Z43: =+'Séreignarsparnaður samantekt'!AC43/AI43 -> 10767532.2 | AB43: =MAX(Tr_eftirl*(1+5.5%*$C$19)*12-(M43-25000*12)*45%,0)+IF($C$4="já",1,0)*MAX(TR_uppbót*(1+5.5%*$C$19)*12-(M43-25000*12)*11.9%,0) -> 747334.5698 | AE43: =MAX(Tr_eftirl*(1+5.5%*$C$19)*12-(U43-25000*12)*45%,0)+IF($C$4="já",1,0)*MAX(TR_uppbót*(1+5.5%*$C$19)*12-(U43-25000*12)*11.9%,0) -> 1394120.469 | AH43: =+Fjöldatölur!O40 -> 1872.186191 | AI43: =+Fjöldatölur!P40 -> 2051.19915 | AO43: -2
J44: =+Niðurstaða!T42 -> 1983 | M44: =(Niðurstaða!Y42)*(1+(Ealdur!$M$6*Ealdur!$M$5)) -> 5781507.658 | O44: =+IF($C$21="Töku lífeyris",Niðurstaða!Z42,IF($C$21="55 ára aldur",Niðurstaða!AA42,"")) -> 8188464.169 | P44: 0.7060551941 | R44: =+'Séreignarsparnaður samantekt'!AA44/AH44 -> 13178113.46 | U44: =(Niðurstaða!AG42)*(1+(Ealdur!$M$6*Ealdur!$M$5)) -> 4420593.329 | W44: =+IF($C$21="Töku lífeyris",Niðurstaða!AH42,IF($C$21="55 ára aldur",Niðurstaða!AI42,"")) -> 6961314.589 | X44: 0.6350227781 | Z44: =+'Séreignarsparnaður samantekt'!AC44/AI44 -> 10452542.01 | AB44: 719125.8938 | AE44: 1331537.342 | AH44: =+Fjöldatölur!O41 -> 1821.844111 | AI44: =+Fjöldatölur!P41 -> 2076.268864 | AO44: -3
J45: =+Niðurstaða!T43 -> 1984 | M45: =(Niðurstaða!Y43)*(1+(Ealdur!$M$6*Ealdur!$M$5)) -> 5840001.428 | O45: =+IF($C$21="Töku lífeyris",Niðurstaða!Z43,IF($C$21="55 ára aldur",Niðurstaða!AA43,"")) -> 8279735.932 | P45: 0.7053366769 | R45: =+'Séreignarsparnaður samantekt'!AA45/AH45 -> 13561187.7 | U45: =(Niðurstaða!AG43)*(1+(Ealdur!$M$6*Ealdur!$M$5)) -> 4403479.678 | W45: =+IF($C$21="Töku lífeyris",Niðurstaða!AH43,IF($C$21="55 ára aldur",Niðurstaða!AI43,"")) -> 6974861.855 | X45: 0.6313357553 | Z45: =+'Séreignarsparnaður samantekt'!AC45/AI45 -> 11461015.2 | AB45: 692803.6973 | AE45: 1339238.485 | AH45: =+Fjöldatölur!O42 -> 1853.616966 | AI45: =+Fjöldatölur!P42 -> 2066.56023
J46: =+Niðurstaða!T44 -> 1985 | M46: =(Niðurstaða!Y44)*(1+(Ealdur!$M$6*Ealdur!$M$5)) -> 6023427.559 | O46: =+IF($C$21="Töku lífeyris",Niðurstaða!Z44,IF($C$21="55 ára aldur",Niðurstaða!AA44,"")) -> 8434096.59 | P46: 0.7141757857 | R46: =+'Séreignarsparnaður samantekt'!AA46/AH46 -> 13357054 | U46: =(Niðurstaða!AG44)*(1+(Ealdur!$M$6*Ealdur!$M$5)) -> 4536510.413 | W46: =+IF($C$21="Töku lífeyris",Niðurstaða!AH44,IF($C$21="55 ára aldur",Niðurstaða!AI44,"")) -> 7005337.97 | X46: 0.6475790937 | Z46: =+'Séreignarsparnaður samantekt'!AC46/AI46 -> 11367642.45 | AB46: 610261.9385 | AE46: 1279374.654 | AH46: =+Fjöldatölur!O43 -> 1811.335691 | AI46: =+Fjöldatölur!P43 -> 2066.998226
J47: =+Niðurstaða!T45 -> 1986 | M47: =(Niðurstaða!Y45)*(1+(Ealdur!$M$6*Ealdur!$M$5)) -> 5946926.168 | O47: =+IF($C$21="Töku lífeyris",Niðurstaða!Z45,IF($C$21="55 ára aldur",Niðurstaða!AA45,"")) -> 8203538.195 | P47: 0.7249221039 | R47: =+'Séreignarsparnaður samantekt'!AA47/AH47 -> 14494605.17 | U47: =(Niðurstaða!AG45)*(1+(Ealdur!$M$6*Ealdur!$M$5)) -> 4417442.717 | W47: =+IF($C$21="Töku lífeyris",Niðurstaða!AH45,IF($C$21="55 ára aldur",Niðurstaða!AI45,"")) -> 6851569.825 | X47: 0.6447343937 | Z47: =+'Séreignarsparnaður samantekt'!AC47/AI47 -> 11119515.48 | AB47: 644687.5646 | AE47: 1332955.117 | AH47: =+Fjöldatölur!O44 -> 1748.934713 | AI47: =+Fjöldatölur!P44 -> 2030.192366
J48: =+Niðurstaða!T46 -> 1987 | M48: =(Niðurstaða!Y46)*(1+(Ealdur!$M$6*Ealdur!$M$5)) -> 5913756.319 | O48: =+IF($C$21="Töku lífeyris",Niðurstaða!Z46,IF($C$21="55 ára aldur",Niðurstaða!AA46,"")) -> 8031516.285 | P48: 0.7363187857 | R48: =+'Séreignarsparnaður samantekt'!AA48/AH48 -> 12934671.18 | U48: =(Niðurstaða!AG46)*(1+(Ealdur!$M$6*Ealdur!$M$5)) -> 4394325.704 | W48: =+IF($C$21="Töku lífeyris",Niðurstaða!AH46,IF($C$21="55 ára aldur",Niðurstaða!AI46,"")) -> 6602538.643 | X48: 0.6655509254 | Z48: =+'Séreignarsparnaður samantekt'!AC48/AI48 -> 11114986.72 | AB48: 659613.9966 | AE48: 1343357.773 | AH48: =+Fjöldatölur!O45 -> 1992.589415 | AI48: =+Fjöldatölur!P45 -> 2142.481816
J49: =+Niðurstaða!T47 -> 1988 | M49: =(Niðurstaða!Y47)*(1+(Ealdur!$M$6*Ealdur!$M$5)) -> 5677123.975 | O49: =+IF($C$21="Töku lífeyris",Niðurstaða!Z47,IF($C$21="55 ára aldur",Niðurstaða!AA47,"")) -> 7669710.289 | P49: 0.7402005763 | R49: =+'Séreignarsparnaður samantekt'!AA49/AH49 -> 13119264.62 | U49: =(Niðurstaða!AG47)*(1+(Ealdur!$M$6*Ealdur!$M$5)) -> 4369842.734 | W49: =+IF($C$21="Töku lífeyris",Niðurstaða!AH47,IF($C$21="55 ára aldur",Niðurstaða!AI47,"")) -> 6532486.998 | X49: 0.6689401349 | Z49: =+'Séreignarsparnaður samantekt'!AC49/AI49 -> 10466883.1 | AB49: 766098.5511 | AE49: 1354375.11 | AH49: =+Fjöldatölur!O46 -> 2237.518429 | AI49: =+Fjöldatölur!P46 -> 2310.278818
J50: =+Niðurstaða!T48 -> 1989 | M50: =(Niðurstaða!Y48)*(1+(Ealdur!$M$6*Ealdur!$M$5)) -> 5605682.048 | O50: =+IF($C$21="Töku lífeyris",Niðurstaða!Z48,IF($C$21="55 ára aldur",Niðurstaða!AA48,"")) -> 7509571.994 | P50: 0.7464715769 | R50: =+'Séreignarsparnaður samantekt'!AA50/AH50 -> 13043558.3 | U50: =(Niðurstaða!AG48)*(1+(Ealdur!$M$6*Ealdur!$M$5)) -> 4306848.626 | W50: =+IF($C$21="Töku lífeyris",Niðurstaða!AH48,IF($C$21="55 ára aldur",Niðurstaða!AI48,"")) -> 6381653.56 | X50: 0.6748797292 | Z50: =+'Séreignarsparnaður samantekt'!AC50/AI50 -> 11026700.11 | AB50: 798247.4184 | AE50: 1382722.458 | AH50: =+Fjöldatölur!O47 -> 2195.94514 | AI50: =+Fjöldatölur!P47 -> 2544.74531
J51: =+Niðurstaða!T49 -> 1990 | M51: =(Niðurstaða!Y49)*(1+(Ealdur!$M$6*Ealdur!$M$5)) -> 5549091.522 | O51: =+IF($C$21="Töku lífeyris",Niðurstaða!Z49,IF($C$21="55 ára aldur",Niðurstaða!AA49,"")) -> 7402123.137 | P51: 0.7496621468 | R51: =+'Séreignarsparnaður samantekt'!AA51/AH51 -> 12637655.02 | U51: =(Niðurstaða!AG49)*(1+(Ealdur!$M$6*Ealdur!$M$5)) -> 4320943.657 | W51: =+IF($C$21="Töku lífeyris",Niðurstaða!AH49,IF($C$21="55 ára aldur",Niðurstaða!AI49,"")) -> 6331862.186 | X51: 0.6824127769 | Z51: =+'Séreignarsparnaður samantekt'!AC51/AI51 -> 10704721.34 | AB51: 823713.1552 | AE51: 1376379.694 | AH51: =+Fjöldatölur!O48 -> 2358.127949 | AI51: =+Fjöldatölur!P48 -> 2816.072086
J52: =+Niðurstaða!T50 -> 1991 | M52: =(Niðurstaða!Y50)*(1+(Ealdur!$M$6*Ealdur!$M$5)) -> 5552470.207 | O52: =+IF($C$21="Töku lífeyris",Niðurstaða!Z50,IF($C$21="55 ára aldur",Niðurstaða!AA50,"")) -> 7362573.532 | P52: 0.754148014 | R52: =+'Séreignarsparnaður samantekt'!AA52/AH52 -> 12938593.62 | U52: =(Niðurstaða!AG50)*(1+(Ealdur!$M$6*Ealdur!$M$5)) -> 4182538.064 | W52: =+IF($C$21="Töku lífeyris",Niðurstaða!AH50,IF($C$21="55 ára aldur",Niðurstaða!AI50,"")) -> 6013124.576 | X52: 0.6955681712 | Z52: =+'Séreignarsparnaður samantekt'!AC52/AI52 -> 10564233.79 | AB52: 822192.7469 | AE52: 1438662.211 | AH52: =+Fjöldatölur!O49 -> 2428.868538 | AI52: =+Fjöldatölur!P49 -> 2699.701819
J53: =+Niðurstaða!T51 -> 1992 | M53: =(Niðurstaða!Y51)*(1+(Ealdur!$M$6*Ealdur!$M$5)) -> 5629277.174 | O53: =+IF($C$21="Töku lífeyris",Niðurstaða!Z51,IF($C$21="55 ára aldur",Niðurstaða!AA51,"")) -> 7428882.624 | P53: 0.7577555682 | R53: =+'Séreignarsparnaður samantekt'!AA53/AH53 -> 13335359.13 | U53: =(Niðurstaða!AG51)*(1+(Ealdur!$M$6*Ealdur!$M$5)) -> 4278091.568 | W53: =+IF($C$21="Töku lífeyris",Niðurstaða!AH51,IF($C$21="55 ára aldur",Niðurstaða!AI51,"")) -> 6011776.136 | X53: 0.7116185752 | Z53: =+'Séreignarsparnaður samantekt'!AC53/AI53 -> 9765222.397 | AB53: 787629.6117 | AE53: 1395663.134 | AH53: =+Fjöldatölur!O50 -> 2542.506996 | AI53: =+Fjöldatölur!P50 -> 2894.258995
J54: =+Niðurstaða!T52 -> 1993 | M54: =(Niðurstaða!Y52)*(1+(Ealdur!$M$6*Ealdur!$M$5)) -> 5875975.093 | O54: =+IF($C$21="Töku lífeyris",Niðurstaða!Z52,IF($C$21="55 ára aldur",Niðurstaða!AA52,"")) -> 7704238.605 | P54: 0.7626938098 | R54: =+'Séreignarsparnaður samantekt'!AA54/AH54 -> 13419490.35 | U54: =(Niðurstaða!AG52)*(1+(Ealdur!$M$6*Ealdur!$M$5)) -> 4568752.78 | W54: =+IF($C$21="Töku lífeyris",Niðurstaða!AH52,IF($C$21="55 ára aldur",Niðurstaða!AI52,"")) -> 6357968.2 | X54: 0.718586919 | Z54: =+'Séreignarsparnaður samantekt'!AC54/AI54 -> 11237801.27 | AB54: 676615.548 | AE54: 1264865.589 | AH54: =+Fjöldatölur!O51 -> 2579.704228 | AI54: =+Fjöldatölur!P51 -> 3089.717269
J55: =+Niðurstaða!T53 -> 1994 | M55: =(Niðurstaða!Y53)*(1+(Ealdur!$M$6*Ealdur!$M$5)) -> 6056071.204 | O55: =+IF($C$21="Töku lífeyris",Niðurstaða!Z53,IF($C$21="55 ára aldur",Niðurstaða!AA53,"")) -> 7836906.809 | P55: 0.7727629474 | R55: =+'Séreignarsparnaður samantekt'!AA55/AH55 -> 14875083.69 | U55: =(Niðurstaða!AG53)*(1+(Ealdur!$M$6*Ealdur!$M$5)) -> 5000308.82 | W55: =+IF($C$21="Töku lífeyris",Niðurstaða!AH53,IF($C$21="55 ára aldur",Niðurstaða!AI53,"")) -> 6868254.702 | X55: 0.7280319436 | Z55: =+'Séreignarsparnaður samantekt'!AC55/AI55 -> 12939219.43 | AB55: 595572.2982 | AE55: 1070665.371 | AH55: =+Fjöldatölur!O52 -> 2661.575015 | AI55: =+Fjöldatölur!P52 -> 3067.774105
J56: =+Niðurstaða!T54 -> 1995 | M56: =(Niðurstaða!Y54)*(1+(Ealdur!$M$6*Ealdur!$M$5)) -> 6323131.31 | O56: =+IF($C$21="Töku lífeyris",Niðurstaða!Z54,IF($C$21="55 ára aldur",Niðurstaða!AA54,"")) -> 8129538.115 | P56: 0.7777971172 | R56: =+'Séreignarsparnaður samantekt'!AA56/AH56 -> 14612337.98 | U56: =(Niðurstaða!AG54)*(1+(Ealdur!$M$6*Ealdur!$M$5)) -> 5350392.095 | W56: =+IF($C$21="Töku lífeyris",Niðurstaða!AH54,IF($C$21="55 ára aldur",Niðurstaða!AI54,"")) -> 7238098.063 | X56: 0.7391986193 | Z56: =+'Séreignarsparnaður samantekt'!AC56/AI56 -> 13002105.35 | AB56: 475395.2505 | AE56: 913127.8972 | AH56: =+Fjöldatölur!O53 -> 2631.669173 | AI56: =+Fjöldatölur!P53 -> 2982.433337
J57: =+Niðurstaða!T55 -> 1996 | M57: =(Niðurstaða!Y55)*(1+(Ealdur!$M$6*Ealdur!$M$5)) -> 6639021.365 | O57: =+IF($C$21="Töku lífeyris",Niðurstaða!Z55,IF($C$21="55 ára aldur",Niðurstaða!AA55,"")) -> 8468123.872 | P57: 0.7840014465 | R57: =+'Séreignarsparnaður samantekt'!AA57/AH57 -> 15474535.89 | U57: =(Niðurstaða!AG55)*(1+(Ealdur!$M$6*Ealdur!$M$5)) -> 5528227.557 | W57: =+IF($C$21="Töku lífeyris",Niðurstaða!AH55,IF($C$21="55 ára aldur",Niðurstaða!AI55,"")) -> 7381410.026 | X57: 0.7489392322 | Z57: =+'Séreignarsparnaður samantekt'!AC57/AI57 -> 13757154.79 | AB57: 333244.7256 | AE57: 833101.9394 | AH57: =+Fjöldatölur!O54 -> 2568.456428 | AI57: =+Fjöldatölur!P54 -> 2980.035406
J58: =+Niðurstaða!T56 -> 1997 | M58: =(Niðurstaða!Y56)*(1+(Ealdur!$M$6*Ealdur!$M$5)) -> 6963435.108 | O58: =+IF($C$21="Töku lífeyris",Niðurstaða!Z56,IF($C$21="55 ára aldur",Niðurstaða!AA56,"")) -> 8826225.305 | P58: 0.7889482612 | R58: =+'Séreignarsparnaður samantekt'!AA58/AH58 -> 17317752.71 | U58: =(Niðurstaða!AG56)*(1+(Ealdur!$M$6*Ealdur!$M$5)) -> 5710788.785 | W58: =+IF($C$21="Töku lífeyris",Niðurstaða!AH56,IF($C$21="55 ára aldur",Niðurstaða!AI56,"")) -> 7529169.553 | X58: 0.7584885351 | Z58: =+'Séreignarsparnaður samantekt'!AC58/AI58 -> 14217641.19 | AB58: 187258.5415 | AE58: 750949.3868 | AH58: =+Fjöldatölur!O55 -> 2334.32903 | AI58: =+Fjöldatölur!P55 -> 2804.246979
J59: =+Niðurstaða!T57 -> 1998 | M59: =(Niðurstaða!Y57)*(1+(Ealdur!$M$6*Ealdur!$M$5)) -> 7187662.569 | O59: =+IF($C$21="Töku lífeyris",Niðurstaða!Z57,IF($C$21="55 ára aldur",Niðurstaða!AA57,"")) -> 8946282.34 | P59: 0.803424517 | R59: =+'Séreignarsparnaður samantekt'!AA59/AH59 -> 17011087.37 | U59: =(Niðurstaða!AG57)*(1+(Ealdur!$M$6*Ealdur!$M$5)) -> 5420221.842 | W59: =+IF($C$21="Töku lífeyris",Niðurstaða!AH57,IF($C$21="55 ára aldur",Niðurstaða!AI57,"")) -> 7029439.419 | X59: 0.7710745508 | Z59: =+'Séreignarsparnaður samantekt'!AC59/AI59 -> 14251864.8 | AB59: 86356.18411 | AE59: 881704.511 | AH59: =+Fjöldatölur!O56 -> 2136.76948 | AI59: =+Fjöldatölur!P56 -> 2574.143465
J60: =+Niðurstaða!T58 -> 1999 | M60: =(Niðurstaða!Y58)*(1+(Ealdur!$M$6*Ealdur!$M$5)) -> 7184334.742 | O60: =+IF($C$21="Töku lífeyris",Niðurstaða!Z58,IF($C$21="55 ára aldur",Niðurstaða!AA58,"")) -> 8823544.536 | P60: 0.8142232084 | R60: =+'Séreignarsparnaður samantekt'!AA60/AH60 -> 16856319.03 | U60: =(Niðurstaða!AG58)*(1+(Ealdur!$M$6*Ealdur!$M$5)) -> 5255393.497 | W60: =+IF($C$21="Töku lífeyris",Niðurstaða!AH58,IF($C$21="55 ára aldur",Niðurstaða!AI58,"")) -> 6741728.15 | X60: 0.7795320991 | Z60: =+'Séreignarsparnaður samantekt'!AC60/AI60 -> 11297591.47 | AB60: 87853.70599 | AE60: 955877.2666 | AH60: =+Fjöldatölur!O57 -> 1044.358583 | AI60: =+Fjöldatölur!P57 -> 1446.595736

Sheet Leiðbeiningar
B2: TR eftirlaun | C2: 227883 | E2: Eftirlaun frá TR. Haft óbreytt að raunvirði út allt líkanið. Væntar nafnverðsbreytingar á næstu árum eru ekki teknar inn. Skerðist um 45 aura fyrir hverja krónu í lífeyri umfram 25.000 kr.
B3: TR uppbót ef býr einn | C3: 52117 | E3: Heimilisuppbót frá TR til þeirra sem búa einir. Haldið sama að raunvirði út allt líkanið. 11,9 aura skerðing fyrir hverja krónu umfram 25.000 kr í lífeyri.
B4: Einstæð/ur | C4: nei | E4: Ákveðið hvort heimilisuppbót frá TR sé greidd.
B6: Viðb. launahækkanir á ári: | E6: Launahækkanir umfram launaþróun yfir starfsævi.
B7: Karla | C7: 0.01
B8: Kvenna | C8: 0.015
B10: Hækkun á mótframlagi | E10: Hækkanir mótframlaga hjá þeim sem greiddu 12,0% iðgjald á árinu 2015.
B11: Hækkun1 | C11: 0.005 | E11: Hækkun á miðju ári 2016
B12: Hækkun2 | C12: 0.015 | E12: Hækkun á miðju ári 2017
B13: Hækkun3 | C13: 0.015 | E13: Hækkun á miðju ári 2018
B15: Viðbótarlífeyrissparnaður | E15: Forsendur um séreignarsparnað. Séreignarsparnaður hefur ekki áhrif á geiðslur frá almannatryggingum í þessu líkani.
B16: af launum | C16: 0.03
B17: Raunávxt. séreignarsparnaðar | C17: 0.03
B19: Frestun/snemmtaka lífeyris í árum | C19: 3 | E19: Frestun eða snemmtaka í lífeyristöku frá samþykktum sjóða á árinu 2016.
B21: Viðmiðunarlaun á mynd, við: | C21: Töku lífeyris | E21: Laun sem eru notuð til viðmiðunar þegar lífeyrir á ársgrunni er borinn saman við laun á starfsævinni. 55 ára laun tákna hæstu laun yfir starfsævina
B23: Örorkulíkur yfir starfsævi | C23: Með | E23: Örorkulíkur hafa áhrif á framtíðaréttindi sjóðfélaga. Ef örorkulíkur eru ekki hafðar með er gert ráð fyrir að sjóðfélagar haldi fullri starfsgetu út starfsævina.
B25: Tekjur, meðaltal/fjórðungsmörk | C25: Q2. Miðgildi | E25: Laun og áunnin réttindi í árslok 2015. Hægt að velja um meðaltal auk fyrsta, annars (miðgildi) og þriðja fjórðungsmarks (Q).
E28: Eftir að forsendum hefur verið breytt þarf að láta skjalið reikna með því að smella á hnappinn.

Sheet Stikkprufur (hidden)
I1: 1 | J1: 1 | K1: 4
F2: Áunnið | I2: 0 | J2: 1 | K2: 0
B3: Stikkprufur | E3: Sjóður | F3: Fjöldi | G3: Réttindi | I3: Virkir ALM | J3: Virki Rík | K3: Geymd a | M3: Virkir ALM | N3: Virki Rík | O3: Geymd v | P3: Fjöldi | Q3: Fj G
D4: ALM | E4: ALM | F4: 98 | G4: =1429827+207428 -> 1637255 | I4: =+$D4&"_"&$C$6&"_"&I$1&"_"&$C$5&"_"&I$2 -> ALM_1_1_1970_0 | J4: =+$D4&"_"&$C$6&"_"&J$1&"_"&$C$5&"_"&J$2 -> ALM_1_1_1970_1 | K4: ALM_1_4_1970_0 | M4: =+VLOOKUP(I4,'Access gögn'!$B:$N,8,FALSE) -> 1429827.276 | O4: =+VLOOKUP(K4,'Access gögn'!$B:$N,8,FALSE) -> 207427.8231 | P4: =+SUMIF('Access gögn'!B:B,I4,'Access gögn'!H:H) -> 98 | R4: =+M4+O4 -> 1637255.099
B5: Árgangur | C5: 1970 | D5: FESTA | E5: Festa | F5: 103 | G5: =824696+91393 -> 916089 | I5: =+$D5&"_"&$C$6&"_"&I$1&"_"&$C$5&"_"&I$2 -> FESTA_1_1_1970_0 | J5: FESTA_1_1_1970_1 | K5: FESTA_1_4_1970_0 | M5: =+VLOOKUP(I5,'Access gögn'!$B:$N,8,FALSE) -> 824696.1553 | O5: =+VLOOKUP(K5,'Access gögn'!$B:$N,8,FALSE) -> 91392.89011 | P5: =+SUMIF('Access gögn'!B:B,I5,'Access gögn'!H:H) -> 103 | R5: =+M5+O5 -> 916089.0454
B6: Kyn | C6: 1 | D6: FESTA | E6: Festa-r | F6: 6 | G6: 636458 | I6: FESTA_1_1_1970_0 | J6: FESTA_1_1_1970_1 | K6: FESTA_1_4_1970_0 | N6: =+VLOOKUP(J5,'Access gögn'!$B:$N,8,FALSE) -> 636458 | P6: =+SUMIF('Access gögn'!B:B,J6,'Access gögn'!H:H) -> 6 | R6: =+N6 -> 636458
D7: GILDI | E7: Gildi | F7: 291 | G7: =1219051+171537 -> 1390588 | I7: GILDI_1_1_1970_0 | J7: GILDI_1_1_1970_1 | K7: GILDI_1_4_1970_0 | M7: =+VLOOKUP(I7,'Access gögn'!$B:$N,8,FALSE) -> 1219051.01 | O7: =+VLOOKUP(K7,'Access gögn'!$B:$N,8,FALSE) -> 171536.6606 | P7: =+SUMIF('Access gögn'!B:B,I7,'Access gögn'!H:H) -> 291 | R7: 1390587.671
D8: GILDI | E8: Gildi-r | F8: 19 | G8: 869309 | I8: GILDI_1_1_1970_0 | J8: GILDI_1_1_1970_1 | K8: GILDI_1_4_1970_0 | N8: =+VLOOKUP(J7,'Access gögn'!$B:$N,8,FALSE) -> 869309.0526 | P8: =+SUMIF('Access gögn'!B:B,J8,'Access gögn'!H:H) -> 19 | R8: =+N8 -> 869309.0526
D9: LIVE | E9: LIVE | F9: 320 | G9: =1642091+235503 -> 1877594 | I9: LIVE_1_1_1970_0 | J9: LIVE_1_1_1970_1 | K9: LIVE_1_4_1970_0 | M9: =+VLOOKUP(I9,'Access gögn'!$B:$N,8,FALSE) -> 1642090.625 | O9: =+VLOOKUP(K9,'Access gögn'!$B:$N,8,FALSE) -> 235502.9516 | P9: =+SUMIF('Access gögn'!B:B,I9,'Access gögn'!H:H) -> 320 | R9: 1877593.577
D10: LSRA | E10: LSRA | F10: 169 | G10: =1465564+328267 -> 1793831 | I10: LSRA_1_1_1970_0 | J10: LSRA_1_1_1970_1 | K10: LSRA_1_4_1970_0 | N10: =+VLOOKUP(J10,'Access gögn'!$B:$N,8,FALSE) -> 1465564.194 | P10: =+SUMIF('Access gögn'!B:B,J10,'Access gögn'!H:H) -> 169 | R10: =+N10 -> 1465564.194
D11: SL | E11: SL | F11: 103 | G11: =586482+66108 -> 652590 | I11: SL_1_1_1970_0 | J11: SL_1_1_1970_1 | K11: SL_1_4_1970_0 | M11: =+VLOOKUP(I11,'Access gögn'!$B:$N,8,FALSE) -> 586482.4078 | O11: =+VLOOKUP(K11,'Access gögn'!$B:$N,8,FALSE) -> 66108.07047 | P11: =+SUMIF('Access gögn'!B:B,I11,'Access gögn'!H:H) -> 103 | R11: 652590.4782
O14: =+SUMPRODUCT(P4:P11,R4:R11) -> 1595531916
O15: =+O14/SUM(P4:P11) -> 1438712.278
E18: Framreikningur

Sheet Líftafla (hidden)
K1: Ötafla IS9802Ö
B2: IS1014L | K2: ALM | M2: Festa | O2: Gildi | Q2: Live | S2: LSRA | U2: SL
B3: 1 | C3: 2 | F3: =+B3 -> 1 | G3: 2 | K3: 1 | L3: 2 | M3: 1 | N3: 2 | O3: 1 | P3: 2 | Q3: 1 | R3: 2 | S3: 1 | T3: 2 | U3: 1 | V3: 2
A4: 16 | B4: 99175.44443 | C4: 99788.9135 | E4: =+A4+0.5 -> 16.5 | F4: =+AVERAGE(B4:B5) -> 99148.24031 | G4: =+AVERAGE(C4:C5) -> 99780.93695 | J4: =+A4 -> 16 | K4: 0.9984026544 | L4: 0.9980858949 | M4: 0.9983996819 | N4: 0.9972582951 | O4: 0.9983960261 | P4: 0.9969979679 | Q4: 0.9984044718 | R4: 0.9977536179 | S4: 0.9984062891 | T4: 0.9979529708 | U4: 0.9984084154 | V4: 0.9977270405
A5: 17 | B5: 99121.03618 | C5: 99772.9604 | E5: =+A5+0.5 -> 17.5 | F5: =+AVERAGE(B5:B6) -> 99093.54677 | G5: =+AVERAGE(C5:C6) -> 99764.72597 | J5: =+A5 -> 17 | K5: 0.9983013271 | L5: 0.99776667 | M5: 0.9983021392 | N5: 0.9965567172 | O5: 0.9983052654 | P5: 0.9961818465 | Q5: 0.9982992412 | R5: 0.9972749783 | S5: 0.9982971553 | T5: 0.9975699642 | U5: 0.9982946711 | V5: 0.9972356534
A6: 18 | B6: 99066.05736 | C6: 99756.49154 | E6: 18.5 | F6: =+AVERAGE(B6:B7) -> 99038.25318 | G6: =+AVERAGE(C6:C7) -> 99747.9755 | J6: 18 | K6: 0.9982013945 | L6: 0.9973897771 | M6: 0.9981781198 | N6: 0.995728746 | O6: 0.9981661076 | P6: 0.995218817 | Q6: 0.9982032128 | R6: 0.9967099709 | S6: 0.9982050311 | T6: 0.997117799 | U6: 0.998206816 | V6: 0.9966556064
A7: 19 | B7: 99010.44901 | C7: 99739.45945 | E7: 19.5 | F7: 98982.29749 | G7: 99730.63566 | J7: 19 | K7: 0.9980925879 | L7: 0.9969552771 | M7: 0.9979557712 | N7: 0.9947746873 | O7: 0.9979073826 | P7: 0.9941092951 | Q7: 0.9980866759 | R7: 0.9960587359 | S7: 0.9980807639 | T7: 0.9965965638 | U7: 0.9980713757 | V7: 0.9959870475
A8: 20 | B8: 98954.14597 | C8: 99721.81187 | E8: 20.5 | F8: =+AVERAGE(B8:B9) -> 98925.61109 | G8: 99712.6516 | J8: 20 | K8: 0.9979400148 | L8: 0.9964632383 | M8: 0.9976201872 | N8: 0.9936948895 | O8: 0.9975169145 | P8: 0.9928537551 | Q8: 0.9979188478 | R8: 0.9953214325 | S8: 0.9978976812 | T8: 0.9960063589 | U8: 0.9978669374 | V8: 0.9952301446
A9: 21 | B9: 98897.07621 | C9: 99703.49134 | E9: 21.5 | F9: =+AVERAGE(B9:B10) -> 98868.11814 | G9: 99693.96295 | J9: 21 | K9: 0.9977359629 | L9: 0.9959137356 | M9: 0.9971714718 | N9: 0.992489741 | O9: 0.9969948463 | P9: 0.9914527267 | Q9: 0.9976943977 | R9: 0.9944982365 | S9: 0.9976528342 | T9: 0.9953472943 | U9: 0.9975935373 | V9: 0.9943850835
A10: 22 | B10: 98839.16007 | C10: 99684.43457 | E10: 22.5 | F10: =+AVERAGE(B10:B11) -> 98809.73475 | G10: 99674.50321 | J10: 22 | K10: 0.9974804569 | L10: 0.9953068484 | M10: 0.996609763 | N10: 0.9911596661 | O10: 0.9963413673 | P10: 0.9899067898 | Q10: 0.9974133564 | R10: 0.9935893381 | S10: 0.9973462604 | T10: 0.9946194883 | U10: 0.9972512231 | V10: 0.9934520654
A11: 23 | B11: 98780.30942 | C11: 99664.57185 | E11: 23.5 | F11: =+AVERAGE(B11:B12) -> 98750.36807 | G11: 99654.19911 | J11: 23 | K11: 0.9971735266 | L11: 0.9946426585 | M11: 0.9959352303 | N11: 0.9897051192 | O11: 0.9955567114 | P11: 0.9882165688 | Q11: 0.997075761 | R11: 0.9925949383 | S11: 0.9969780049 | T11: 0.9938230639 | U11: 0.9968400525 | V11: 0.9924313029
A12: 24 | B12: 98720.42672 | C12: 99643.82636 | E12: 24.5 | F12: 98689.91534 | G12: 99632.96985 | J12: 24 | K12: 0.9968152055 | L12: 0.993921246 | M12: 0.9951480726 | N12: 0.9881265777 | O12: 0.9946411535 | P12: 0.9863827226 | Q12: 0.9966816535 | R12: 0.9915152432 | S12: 0.9965481194 | T12: 0.9929581451 | U12: 0.9963600922 | V12: 0.9913230148
A13: 25 | B13: 98659.40396 | C13: 99622.11335 | E13: 25.5 | F13: 98628.26272 | G13: 99610.72633 | J13: 25 | K13: 0.9964055292 | L13: 0.9931426853 | M13: 0.9942485139 | N13: 0.9864245304 | O13: 0.9935950048 | P13: 0.9844059326 | Q13: 0.9962310792 | R13: 0.9903504574 | S13: 0.9960566597 | T13: 0.9920248507 | U13: 0.9958114149 | V13: 0.9901274186
A14: 26 | B14: 98597.12148 | C14: 99599.33932 | E14: 26.5 | F14: 98565.28407 | G14: 99587.37019 | J14: 26 | K14: 0.9959445328 | L14: 0.9923070378 | M14: 0.9932367983 | N14: 0.9845994637 | O14: 0.9924186076 | P14: 0.9822868854 | Q14: 0.9957240837 | R14: 0.9891007731 | S14: 0.9955036833 | T14: 0.9910232866 | U14: 0.9951940966 | V14: 0.98884472
A15: 27 | B15: 98533.44667 | C15: 99575.40105 | E15: 27.5 | F15: 98500.83959 | G15: 99562.79278 | J15: 27 | K15: 0.9954322482 | L15: 0.9914143426 | M15: 0.9921131833 | N15: 0.9826518406 | O15: 0.9911123263 | P15: 0.9800262496 | Q15: 0.9951607099 | R15: 0.9877663572 | S15: 0.9948892456 | T15: 0.9899535345 | U15: 0.9945082125 | V15: 0.9874750989
A16: 28 | B16: 98468.23252 | C16: 99550.18451 | E16: 28.5 | F16: 98434.77425 | G16: 99536.87409 | J16: 28 | K16: 0.9948686998 | L16: 0.9904646046 | M16: 0.9908779303 | N16: 0.9805820744 | O16: 0.9896765374 | P16: 0.9776246439 | Q16: 0.9945409933 | R16: 0.9863473322 | S16: 0.9942133947 | T16: 0.9888156373 | U16: 0.9937538313 | V16: 0.9860186907
A17: 29 | B17: 98401.31597 | C17: 99523.56366 | E17: 29.5 | F17: 98366.91604 | G17: 99509.4814 | J17: 29 | K17: 0.9942538988 | L17: 0.9894577774 | M17: 0.9895312933 | N17: 0.9783904926 | O17: 0.9881116156 | P17: 0.9750825962 | Q17: 0.9938649559 | R17: 0.9848437516 | S17: 0.993476165 | T17: 0.9876095787 | U17: 0.9929310076 | V17: 0.9844755603
A18: 30 | B18: 98332.5161 | C18: 99495.39914 | E18: 30.5 | F18: 98297.07409 | G18: 99480.46793 | J18: 30 | K18: 0.9935878365 | L18: 0.988393741 | M18: 0.9880735024 | N18: 0.9760772892 | O18: 0.9864179151 | P18: 0.9724004885 | Q18: 0.9931325984 | R18: 0.9832555668 | S18: 0.9926775689 | T18: 0.9863352571 | U18: 0.9920397731 | V18: 0.9828456687
A19: 31 | B19: 98261.63208 | C19: 99465.53673 | E19: 31.5 | F19: 98225.03649 | G19: 99449.67122 | J19: 31 | K19: 0.9928704743 | L19: 0.9872722732 | M19: 0.9865047443 | N19: 0.973642463 | O19: 0.9845957466 | P19: 0.9695784853 | Q19: 0.99234389 | R19: 0.9815825849 | S19: 0.991817585 | T19: 0.984992451 | U19: 0.9910801232 | V19: 0.9811288289
A20: 32 | B20: 98188.4409 | C20: 99433.80572 | E20: 32.5 | F20: 98150.56788 | G20: 99416.91137 | J20: 32 | K20: 0.9921017323 | L20: 0.9860930119 | M20: 0.9848251358 | N20: 0.9710857383 | O20: 0.9826453471 | P20: 0.9666164425 | Q20: 0.991498755 | R20: 0.9798244124 | S20: 0.9908961443 | T20: 0.9835807739 | U20: 0.9900520019 | V20: 0.9793246493
A21: 33 | B21: 98112.69485 | C21: 99400.01702 | E21: 33.5 | F21: 98073.40674 | G21: 99381.98905 | J21: 33 | K21: 0.9912814738 | L21: 0.984855407 | M21: 0.9830346914 | N21: 0.9684064635 | O21: 0.9805668417 | P21: 0.9635137908 | Q21: 0.9905970564 | R21: 0.9779803851 | S21: 0.9899131115 | T21: 0.9820996176 | U21: 0.9889552807 | V21: 0.9774324611
A22: 34 | B22: 98034.11863 | C22: 99363.96109 | E22: 34.5 | F22: 97993.26243 | G22: 99344.68333 | J22: 34 | K22: 0.9904094859 | L22: 0.98355866 | M22: 0.9811332815 | N22: 0.965603484 | O22: 0.9783601959 | P22: 0.9602693898 | Q22: 0.9896385741 | R22: 0.976049479 | S22: 0.9888682624 | T22: 0.9805480798 | U22: 0.9877897332 | V22: 0.975451227
A23: 35 | B23: 97952.40623 | C23: 99325.40558 | E23: 35.5 | F23: 97909.81178 | G23: 99304.74916 | J23: 35 | K23: 0.9894854552 | L23: 0.9822016487 | M23: 0.9791205811 | N23: 0.962674985 | O23: 0.9760251562 | P23: 0.9568813481 | Q23: 0.9886229789 | R23: 0.9740301995 | S23: 0.9877612543 | T23: 0.9789248747 | U23: 0.9865550031 | V23: 0.9733794279
A24: 36 | B24: 97867.21734 | C24: 99284.09274 | E24: 36.5 | F24: 97822.69537 | G24: 99261.91462 | J24: 36 | K24: 0.9885089381 | L24: 0.9807828343 | M24: 0.9769960062 | N24: 0.9596182994 | O24: 0.9735611772 | P24: 0.9533468031 | Q24: 0.9875497994 | R24: 0.971920446 | S24: 0.9865915913 | T24: 0.9772282227 | U24: 0.9852505645 | V24: 0.971214924
A25: 37 | B25: 97778.1734 | C25: 99239.7365 | E25: 37.5 | F25: 97731.51329 | G25: 99215.87784 | J25: 37 | K25: 0.9874793245 | L25: 0.9793001494 | M25: 0.9747586369 | N25: 0.9564296766 | O25: 0.9709673325 | P25: 0.9496616577 | Q25: 0.9864183823 | R25: 0.9697173482 | S25: 0.9853585799 | T25: 0.9754557173 | U25: 0.9838756736 | V25: 0.9689547872
A26: 38 | B26: 97684.85319 | C26: 99192.01919 | E26: 38.5 | F26: 97635.8205 | G26: 99166.30353 | J26: 38 | K26: 0.9863957931 | L26: 0.9777508645 | M26: 0.9724071244 | N26: 0.9531040093 | O26: 0.9682422082 | P26: 0.945820269 | Q26: 0.9852278436 | R26: 0.9674170717 | S26: 0.984061277 | T26: 0.9736041669 | U26: 0.98242931 | V26: 0.9665951018
A27: 39 | B27: 97586.78781 | C27: 99140.58788 | E27: 39.5 | F27: 97535.12151 | G27: 99112.81909 | J27: 39 | K27: 0.9852572586 | L27: 0.9761314309 | M27: 0.9699395802 | N27: 0.9496345152 | O27: 0.9653837762 | P27: 0.941815087 | Q27: 0.9839770107 | R27: 0.9650145903 | S27: 0.9826984265 | T27: 0.971669409 | U27: 0.9809101069 | V27: 0.9641307317
A28: 40 | B28: 97483.45521 | C28: 99085.0503 | E28: 40.5 | F28: 97428.8646 | G28: 99055.01026 | J28: 40 | K28: 0.9840623096 | L28: 0.9744373004 | M28: 0.9673534465 | N28: 0.9460123745 | O28: 0.9623892457 | P28: 0.9376362439 | Q28: 0.9826643545 | R28: 0.9625034257 | S28: 0.9812683853 | T28: 0.9696460966 | U28: 0.9793162689 | V28: 0.9615550534
A29: 41 | B29: 97374.27399 | C29: 99024.97022 | E29: 41.5 | F29: 97316.43523 | G29: 98992.4163 | J29: 41 | K29: 0.9828091353 | L29: 0.9726627208 | M29: 0.964645346 | N29: 0.9422263247 | O29: 0.9592548914 | P29: 0.9332710978 | Q29: 0.9812879088 | R29: 0.9598753536 | S29: 0.9797690368 | T29: 0.9675274578 | U29: 0.9776454762 | V29: 0.9588596561
A30: 42 | B30: 97258.59646 | C30: 98959.86237 | E30: 42.5 | F30: 97197.14872 | G30: 98924.52449 | J30: 42 | K30: 0.9814954422 | L30: 0.970800511 | M30: 0.9618109097 | N30: 0.9382622197 | O30: 0.9559758581 | P30: 0.928703737 | Q30: 0.9798451795 | R30: 0.9571200817 | S30: 0.9781976915 | T30: 0.9653050298 | U30: 0.9758947743 | V30: 0.9560340119
A31: 43 | B31: 97135.70098 | C31: 98889.18661 | E31: 43.5 | F31: 97070.24215 | G31: 98850.7641 | J31: 43 | K31: 0.9801183585 | L31: 0.968841817 | M31: 0.9588445848 | N31: 0.9341025629 | O31: 0.9525459418 | P31: 0.9239144596 | Q31: 0.9783330405 | R31: 0.954224905 | S31: 0.9765509745 | T31: 0.9629683741 | U31: 0.9740604496 | V31: 0.9530651231
A32: 44 | B32: 97004.78332 | C32: 98812.34158 | E32: 44.5 | F32: 96934.86521 | G32: 98770.49951 | J32: 44 | K32: 0.9786743286 | L32: 0.9667758581 | M32: 0.9557394212 | N32: 0.9297260306 | O32: 0.948957348 | P32: 0.9188792462 | Q32: 0.9767476179 | R32: 0.9511743479 | S32: 0.9748247003 | T32: 0.9605047786 | U32: 0.9721378912 | V32: 0.9499371579
A33: 45 | B33: 96864.94711 | C33: 98728.65743 | E33: 45.5 | F33: 96790.07012 | G33: 98683.02262 | J33: 45 | K33: 0.9771589973 | L33: 0.9645896693 | M33: 0.9524868413 | N33: 0.9251070092 | O33: 0.9452004328 | P33: 0.9135692537 | Q33: 0.9750841639 | R33: 0.9479498093 | S33: 0.973013736 | T33: 0.9578989588 | U33: 0.9701214401 | V33: 0.9466310872
A34: 46 | B34: 96715.19313 | C34: 98637.3878 | E34: 46.5 | F34: 96634.80029 | G34: 98587.54428 | J34: 46 | K34: 0.9755670848 | L34: 0.9622678548 | M34: 0.949076397 | N34: 0.920215172 | O34: 0.9412634293 | P34: 0.9079503632 | Q34: 0.9733369206 | R34: 0.9445292274 | S34: 0.9711118547 | T34: 0.9551327737 | U34: 0.9680042272 | V34: 0.9431243441
A35: 47 | B35: 96554.40745 | C35: 98537.70076 | E35: 47.5 | F35: 96467.87782 | G35: 98483.18478 | J35: 47 | K35: 0.9738922562 | L35: 0.9597923654 | M35: 0.9454955188 | N35: 0.9150151353 | O35: 0.9371321685 | P35: 0.9019828245 | Q35: 0.9714989786 | R35: 0.940886789 | S35: 0.9691115823 | T35: 0.952184972 | U35: 0.9657780052 | V35: 0.9393905284
A36: 48 | B36: 96381.34819 | C36: 98428.66879 | E36: 48.5 | F36: 96287.98953 | G36: 98368.96311 | J36: 48 | K36: 0.9721269886 | L36: 0.9571423203 | M36: 0.9417292676 | N36: 0.9094662339 | O36: 0.9327898046 | P36: 0.8956210484 | Q36: 0.9695621317 | R36: 0.9369927115 | S36: 0.9670040419 | T36: 0.9490309949 | U36: 0.9634329782 | V36: 0.9353991871
A37: 49 | B37: 96194.63088 | C37: 98309.25743 | E37: 49.5 | F37: 96093.67154 | G37: 98243.78512 | J37: 49 | K37: 0.9702624396 | L37: 0.9542938925 | M37: 0.9377600991 | N37: 0.9035224647 | O37: 0.9282165584 | P37: 0.8888136021 | Q37: 0.9675167354 | R37: 0.9328131303 | S37: 0.9647788013 | T37: 0.9456428579 | U37: 0.960957635 | V37: 0.9311157033
A38: 50 | B38: 95992.7122 | C38: 98178.3128 | E38: 50.5 | F38: 95883.29209 | G38: 98106.43013 | J38: 50 | K38: 0.9682883239 | L38: 0.9512202838 | M38: 0.9335676541 | N38: 0.8971326513 | O38: 0.9233894936 | P38: 0.8815034682 | Q38: 0.9653515738 | R38: 0.9283101263 | S38: 0.9624237306 | T38: 0.9419891417 | U38: 0.9583385952 | V38: 0.9265013293
A39: 51 | B39: 95773.87198 | C39: 98034.54746 | E39: 51.5 | F39: 95655.03269 | G39: 97955.53618 | J39: 51 | K39: 0.9661928051 | L39: 0.9478918107 | M39: 0.9291285928 | N39: 0.8902408819 | O39: 0.9182823467 | P39: 0.873628628 | Q39: 0.963053743 | R39: 0.9234419312 | S39: 0.9599248794 | T39: 0.9380351209 | U39: 0.9555604767 | V39: 0.9215134035
A40: 52 | B40: 95536.19339 | C40: 97876.5249 | E40: 52.5 | F40: 95406.86724 | G40: 97789.58346 | J40: 52 | K40: 0.9639624091 | L40: 0.9442761294 | M40: 0.9244164893 | N40: 0.8827872705 | O40: 0.9128654318 | P40: 0.8651230262 | Q40: 0.9606085609 | R40: 0.918163345 | S40: 0.9572663814 | T40: 0.9337430602 | U40: 0.9526057957 | V40: 0.9161057858
A41: 53 | B41: 95277.54108 | C41: 97702.64203 | E41: 53.5 | F41: 95136.53916 | G41: 97606.87599 | J41: 53 | K41: 0.9615819716 | L41: 0.9403386184 | M41: 0.9194018094 | N41: 0.8747090837 | O41: 0.907105644 | P41: 0.8559179609 | Q41: 0.9579995123 | R41: 0.9124263999 | S41: 0.9544303998 | T41: 0.9290727032 | U41: 0.9494549129 | V41: 0.9102295451
A42: 54 | B42: 94995.53723 | C42: 97511.10995 | E42: 54.5 | F42: 94841.53631 | G42: 97405.52122 | J42: 54 | K42: 0.9590346254 | L42: 0.9360429389 | M42: 0.9140519919 | N42: 0.8659422601 | O42: 0.9009665876 | P42: 0.8459439284 | Q42: 0.9552082409 | R42: 0.9061812905 | S42: 0.9513971231 | T42: 0.9239819756 | U42: 0.9460860366 | V42: 0.9038339219
A43: 55 | B43: 94687.53538 | C43: 97299.9325 | E43: 55.5 | F43: 94519.06365 | G43: 97183.40756 | J43: 55 | K43: 0.9563018415 | L43: 0.9313517839 | M43: 0.9083316555 | N43: 0.8564233294 | O43: 0.8944088532 | P43: 0.8351329224 | Q43: 0.9522145993 | R43: 0.8993775864 | S43: 0.948144826 | T43: 0.9184279133 | U43: 0.9424752995 | V43: 0.896867579
A44: 56 | B44: 94350.59192 | C44: 97066.88261 | E44: 56.5 | F44: 94166.01363 | G44: 96938.17939 | J44: 56 | K44: 0.9533635319 | L44: 0.9262278171 | M44: 0.9022029538 | N44: 0.8460917127 | O44: 0.8873904691 | P44: 0.823421157 | Q44: 0.9489967678 | R44: 0.8919657199 | S44: 0.9446500051 | T44: 0.9123678169 | U44: 0.9385969202 | V44: 0.8892801357
A45: 57 | B45: 93981.43534 | C45: 96809.47616 | E45: 57.5 | F45: 93778.9342 | G45: 96667.20975 | J45: 57 | K45: 0.950198224 | L45: 0.9206347918 | M45: 0.8956260949 | N45: 0.8348923484 | O45: 0.8798675448 | P45: 0.8107521407 | Q45: 0.9455314532 | R45: 0.8838987283 | S45: 0.9408876026 | T45: 0.9057606175 | U45: 0.9344234629 | V45: 0.8810239593
A46: 58 | B46: 93576.43306 | C46: 96524.94334 | E46: 58.5 | F46: 93353.99466 | G46: 96367.57029 | J46: 58 | K46: 0.946783315 | L46: 0.9145388284 | M46: 0.888560039 | N46: 0.8227785581 | O46: 0.8717951227 | P46: 0.7970799853 | Q46: 0.9417941747 | R46: 0.8751342025 | S46: 0.9368313251 | T46: 0.8985684222 | U46: 0.9299262047 | V46: 0.8720561681
A47: 59 | B47: 93131.55625 | C47: 96210.19725 | E47: 59.5 | F47: 92886.9494 | G47: 96035.99849 | J47: 59 | K47: 0.9430954115 | L47: 0.9079098102 | M47: 0.8809633825 | N47: 0.8097150228 | O47: 0.8631282422 | P47: 0.782372789 | Q47: 0.9377596448 | R47: 0.8656363741 | S47: 0.9324540663 | T47: 0.8907581901 | U47: 0.9250756176 | V47: 0.8623407721
A48: 60 | B48: 92642.34254 | C48: 95861.79973 | E48: 60.5 | F48: 92373.09997 | G48: 95668.86209 | J48: 60 | K48: 0.9391107571 | L48: 0.9007228467 | M48: 0.8727954241 | N48: 0.7956807122 | O48: 0.8538232108 | P48: 0.7666158958 | Q48: 0.9334022453 | R48: 0.8553782479 | S48: 0.9277284334 | T48: 0.8823034716 | U48: 0.9198419671 | V48: 0.8518508556
A49: 61 | B49: 92103.85741 | C49: 95475.92445 | E49: 61.5 | F49: 91807.25595 | G49: 95262.12083 | J49: 61 | K49: 0.9348057466 | L49: 0.8929597379 | M49: 0.8640174004 | N49: 0.7806715783 | O49: 0.8438390629 | P49: 0.7498148021 | Q49: 0.9286965994 | R49: 0.8443436675 | S49: 0.9226273768 | T49: 0.8731861265 | U49: 0.9141960239 | V49: 0.8405706861
A50: 62 | B50: 91510.65449 | C50: 95048.31721 | E50: 62.5 | F50: 91183.69526 | G50: 94811.28546 | J50: 62 | K50: 0.9301575208 | L50: 0.8846103642 | M50: 0.8545938661 | N50: 0.7647028148 | O50: 0.8331391725 | P50: 0.731997474 | Q50: 0.9236182307 | R50: 0.8325291889 | S50: 0.9171249137 | T50: 0.863397927 | U50: 0.9081098788 | V50: 0.828497619
A51: 63 | B51: 90856.73603 | C51: 94574.25371 | E51: 63.5 | F51: 90496.12528 | G51: 94311.37448 | J51: 63 | K51: 0.9251446316 | L51: 0.8756739182 | M51: 0.844494178 | N51: 0.747810484 | O51: 0.821692968 | P51: 0.7132158465 | Q51: 0.9181442967 | R51: 0.8199456305 | S51: 0.9111969316 | T51: 0.8529419428 | U51: 0.9015578432 | V51: 0.8156436645
A52: 64 | B52: 90135.51453 | C52: 94048.49525 | E52: 64.5 | F52: 89737.64592 | G52: 93756.86903 | J52: 64 | K52: 0.9197477597 | L52: 0.8661598971 | M52: 0.8336940312 | N52: 0.7300523382 | O52: 0.8094776845 | P52: 0.6935463132 | Q52: 0.9122543796 | R52: 0.8066191758 | S52: 0.9048220496 | T52: 0.8418336087 | U52: 0.8945174095 | V52: 0.8020365864
A53: 65 | B53: 89339.77731 | C53: 93465.24281 | E53: 65.5 | F53: 88900.71683 | G53: 93141.66666 | J53: 65 | K53: 0.9139504642 | L53: 0.8560887779 | M53: 0.8221769824 | N53: 0.7115077035 | O53: 0.7964800707 | P53: 0.6730890745 | Q53: 0.9059313066 | R53: 0.7925919192 | S53: 0.8979825105 | T53: 0.8301013852 | U53: 0.8869702411 | V53: 0.787720426
A54: 66 | B54: 88461.65635 | C54: 92818.09052 | E54: 66.5 | F54: 87977.1313 | G54: 92459.03516 | J54: 66 | K54: 0.9077399361 | L54: 0.8454923138 | M54: 0.8099358847 | N54: 0.6922763545 | O54: 0.7826979621 | P54: 0.6519662917 | Q54: 0.8991619727 | R54: 0.7779217781 | S54: 0.8906650693 | T54: 0.8177869393 | U54: 0.8789031497 | V54: 0.7727553689
A55: 67 | B55: 87492.60625 | C55: 92099.9798 | E55: 67.5 | F55: 86958.00022 | G55: 91701.5679 | J55: 67 | K55: 0.9011077274 | L55: 0.8344134051 | M55: 0.7969741549 | N55: 0.6724763836 | O55: 0.7681416209 | P55: 0.63031909 | Q55: 0.8919381292 | R55: 0.7626817298 | S55: 0.8828618401 | T55: 0.8049448028 | U55: 0.8703090194 | V55: 0.7572169179
A56: 68 | B56: 86423.39419 | C56: 91303.15599 | E56: 68.5 | F56: 85833.75043 | G56: 90861.14296 | J56: 68 | K56: 0.894050419 | L56: 0.8229055272 | M56: 0.7833067905 | N56: 0.6522411456 | O56: 0.752834751 | P56: 0.6083035484 | Q56: 0.8842571021 | R56: 0.7469583786 | S56: 0.87457106 | T56: 0.7916414924 | U56: 0.8611876288 | V56: 0.7411943788
A57: 69 | B57: 85244.10667 | C57: 90419.12993 | E57: 69.5 | F57: 84594.14281 | G57: 89928.88884 | J57: 69 | K57: 0.8865701966 | L57: 0.8110317217 | M57: 0.7689610606 | N57: 0.6317154341 | O57: 0.7368150986 | P57: 0.5860859033 | Q57: 0.8761224017 | R57: 0.7308499062 | S57: 0.8657977289 | T57: 0.7779541159 | U57: 0.8515463245 | V57: 0.724788717
A58: 70 | B58: 83944.17894 | C58: 89438.64776 | E58: 70.5 | F58: 83228.31685 | G58: 88895.16054 | J58: 70 | K58: 0.8786752994 | L58: 0.7988631881 | M58: 0.753976807 | N58: 0.6110511105 | O58: 0.7201345703 | P58: 0.5638372577 | Q58: 0.8675441874 | R58: 0.7144635017 | S58: 0.8565540849 | T58: 0.763968522 | U58: 0.8414005039 | V58: 0.708109888
A59: 71 | B59: 82512.45476 | C59: 88351.67333 | E59: 71.5 | F59: 81724.86988 | G59: 87749.53093 | J59: 71 | K59: 0.8703803133 | L59: 0.7864775361 | M59: 0.7384063073 | N59: 0.5904024446 | O59: 0.7028588242 | P59: 0.5417281311 | Q59: 0.8585395566 | R59: 0.6979124052 | S59: 0.846859883 | T59: 0.7497770806 | U59: 0.8307738676 | V59: 0.6912737817
A60: 72 | B60: 80937.285 | C60: 87147.38854 | E60: 72.5 | F60: 80071.98051 | G60: 86480.80368 | J60: 72 | K60: 0.8617062838 | L60: 0.773956784 | M60: 0.7223136783 | N60: 0.5699214497 | O60: 0.6850663176 | P60: 0.5199231842 | Q60: 0.8491326308 | R60: 0.6813127261 | S60: 0.8367424472 | T60: 0.7354762063 | U60: 0.8196984162 | V60: 0.6743989482
A61: 73 | B61: 79206.67602 | C61: 85814.21883 | E61: 73.5 | F61: 78257.58784 | G61: 85077.05555 | J61: 73 | K61: 0.852680633 | L61: 0.7613851998 | M61: 0.7057738203 | N61: 0.5497534768 | O61: 0.66684683 | P61: 0.4985764314 | Q61: 0.839354423 | R61: 0.6647802061 | S61: 0.8262364831 | T61: 0.7211637531 | U61: 0.8082141733 | V61: 0.6576032816
A62: 74 | B62: 77308.49967 | C62: 84339.89227 | E62: 74.5 | F62: 76269.63921 | G62: 83525.71772 | J62: 74 | K62: 0.8433368721 | L62: 0.7488470908 | M62: 0.688870937 | N62: 0.5300333064 | O62: 0.6482995156 | P62: 0.4778271899 | Q62: 0.8292424808 | R62: 0.6484270959 | S62: 0.815383644 | T62: 0.7069364097 | U62: 0.7963686344 | V62: 0.6410008347
A63: 75 | B63: 75230.77876 | C63: 82711.54318 | E63: 75.5 | F63: 74096.42074 | G63: 81813.70795 | J63: 75 | K63: 0.833714114 | L63: 0.7364246475 | M63: 0.6716966856 | N63: 0.5108819181 | O63: 0.6295305685 | P63: 0.4577969454 | Q63: 0.8188403092 | R63: 0.6323592961 | S63: 0.8042318592 | T63: 0.692887222 | U63: 0.7842159546 | V63: 0.6246989194
A64: 76 | B64: 72962.06273 | C64: 80915.87272 | E64: 76.5 | F64: 71726.9856 | G64: 79927.62727
A65: 77 | B65: 70491.90847 | C65: 78939.38182 | E65: 77.5 | F65: 69151.69441 | G65: 77854.03747
A66: 78 | B66: 67811.48036 | C66: 76768.69311 | E66: 78.5 | F66: 66362.88046 | G66: 75579.837
A67: 79 | B67: 64914.28057 | C67: 74390.98088 | E67: 79.5 | F67: 63355.64759 | G67: 73092.7546
A68: 80 | B68: 61797.0146 | C68: 71794.52832 | E68: 80.5 | F68: 60128.80088 | G68: 70381.97942
A69: 81 | B69: 58460.58717 | C69: 68969.43053 | E69: =+A69+0.5 -> 81.5 | F69: =+AVERAGE(B69:B70) -> 56685.89791 | G69: =+AVERAGE(C69:C70) -> 67438.94448
A70: 82 | B70: 54911.20865 | C70: 65908.45843 | E70: 82.5 | F70: 53036.38972 | G70: 64258.27476
A71: 83 | B71: 51161.57079 | C71: 62608.09109 | E71: 83.5 | F71: 49196.7966 | G71: 60838.90135
A72: 84 | B72: 47232.0224 | C72: 59069.71161 | E72: 84.5 | F72: 45191.83164 | G72: 57185.32671
A73: 85 | B73: 43151.64087 | C73: 55300.94181 | E73: 85.5 | F73: 41055.3483 | G73: 53309.00221
A74: 86 | B74: 38959.05572 | C74: 51317.06261 | E74: 86.5 | F74: 36830.94788 | G74: 49229.74584
A75: 87 | B75: 34702.84005 | C75: 47142.42908 | E75: 87.5 | F75: 32572.04647 | G75: 44977.08526
A76: 88 | B76: 30441.2529 | C76: 42811.74145 | E76: 88.5 | F76: 28341.17746 | G76: 40591.36032
A77: 89 | B77: 26241.10201 | C77: 38370.9792 | E77: 89.5 | F77: 24208.30999 | G77: 36124.365
A78: 90 | B78: 22175.51796 | C78: 33877.75081 | E78: 90.5 | F78: 20248.01221 | G78: 31639.26004
A79: 91 | B79: 18320.50646 | C79: 29400.76928 | E79: 91.5 | F79: 16535.3987 | G79: 27209.46029
A80: 92 | B80: 14750.29094 | C80: 25018.15129 | E80: 92.5 | F80: 13140.98515 | G80: 22916.21611
A81: 93 | B81: 11531.67935 | C81: 20814.28093 | E81: 93.5 | F81: 10124.82575 | G81: 18844.69278
A82: 94 | B82: 8717.972148 | C82: 16875.10462 | E82: 94.5 | F82: 7530.598979 | G82: 15078.5293
A83: 95 | B83: 6343.225811 | C83: 13281.95398 | E83: 95.5 | F83: 5380.569207 | G83: 11693.14222
A84: 96 | B84: 4417.912603 | C84: 10104.33045 | E84: 96.5 | F84: 3672.485379 | G84: 8748.41223
A85: 97 | B85: 2927.058154 | C85: 7392.494006 | E85: 97.5 | F85: 2379.370733 | G85: 6281.790284
A86: 98 | B86: 1831.683312 | C86: 5171.086561 | E86: 98.5 | F86: 1452.730208 | G86: 4303.163662
A87: 99 | B87: 1073.777104 | C87: 3435.240763 | E87: 99.5 | F87: 828.9709892 | G87: 2792.869022
A88: 100 | B88: 584.1648748 | C88: 2150.497281 | E88: 100.5 | F88: 437.9604339 | G88: 1703.871179
A89: 101 | B89: 291.755993 | C89: 1257.245077
A90: 102 | B90: 132.1211985 | C90: 679.326886
A91: 103 | B91: 53.47999599 | C91: 335.1810393
A92: 104 | B92: 19.03453559 | C92: 148.9205038
A93: 105 | B93: 5.84541558 | C93: 58.62309422
A94: 106 | B94: 1.515508211 | C94: 20.06593628
A95: 107 | B95: 0.3235063504 | C95: 5.843183294
A96: 108 | B96: 0.05523837473 | C96: 1.411330946
A97: 109 | B97: 0.007297341168 | C97: 0.2745352175
A98: 110 | B98: 0.0007177358602 | C98: 0.04155927452
A99: 111 | B99: 5.027817901e-05 | C99: 0.004704433009
A100: 112 | B100: 2.383247381e-06 | C100: 0.0003801273205
A101: 113 | B101: 7.20512161e-08 | C101: 2.076848843e-05
A102: 114 | B102: 1.29748449e-09 | C102: 7.202676197e-07
A103: 115 | B103: 1.285926457e-11 | C103: 1.472894444e-08

Sheet Ealdur (hidden)
B4: Sjóður | C4: Ealdur óbreytt | D4: mótfrl. Óbreytt | F4: Ealdur | G4: Ö% KK | H4: Ö% KVK
B5: ALM | C5: 70 | D5: 0.04 | F5: =+C5+Forsíða!$C$19 -> 73 | G5: 0.5 | H5: 0.5 | J5: Hækkun vegna ellialdur | M5: 0.085 | N5: á ári
B6: Festa | C6: 67 | D6: 0.08 | F6: =+C6+Forsíða!$C$19 -> 70 | G6: 1.1 | H6: 1.1 | M6: =+Forsíða!C19 -> 3 | N6: ár
B7: Gildi | C7: 67 | D7: 0.08 | F7: =+C7+Forsíða!$C$19 -> 70 | G7: 1.28 | H7: 1.28
B8: Live | C8: 67 | D8: 0.08 | F8: =+C8+Forsíða!$C$19 -> 70 | G8: 0.55 | H8: 0.75
B9: LSRA | C9: 65 | D9: 0.115 | F9: =+C9+Forsíða!$C$19 -> 68 | G9: 0.6 | H9: 0.6
B10: SL | C10: 67 | D10: 0.08 | F10: =+C10+Forsíða!$C$19 -> 70 | G10: 0.67 | H10: 0.77

Sheet Access gögn (hidden)
B1: f. Stikkprufur | C1: Sjóður | D1: Kyn | E1: Staða | F1: Fár | G1: Ríkisstarfsmaður | H1: CountOfKennitala | I1: AvgOfÁunnin réttindi alls | J1: AvgOfIg ársins í jafna | K1: AvgOfIg ársins í AH | M1: SumofLaun ársins | N1: Total réttindi | P1: Kyn | Q1: Fár | S1: Réttindi G | T1: Fjöldi G | U1: Réttindi V | V1: Fjöldi V | X1: Kyn | Y1: Fár | Z1: Réttindi G | AA1: Fjöldi G | AB1: Réttindi V | AC1: Fjöldi V
B2: =+C2&"_"&D2&"_"&E2&"_"&F2&"_"&G2 -> ALM_1_1_1945_0 | C2: ALM | D2: 1 | E2: 1 | F2: 1945 | G2: 0 | H2: 25 | I2: 1514843.72 | J2: 0 | K2: 453358.9153 | M2: =+(J2+K2)/0.08*H2 -> 141674661 | N2: =+I2*H2 -> 37871093 | P2: 1 | Q2: 1945 | S2: =SUMPRODUCT(--(F:F=Q2),--(D:D=P2),--(E:E=4),H:H,I:I) -> 30999374.28 | T2: =+SUMIFS(H:H,D:D,1,F:F,Q2,E:E,4) -> 905 | U2: =SUMPRODUCT(--(F:F=Q2),--(D:D=P2),--(E:E=1),H:H,I:I) -> 45699173.98 | V2: =+SUMIFS(H:H,F:F,Q2,D:D,P2,E:E,1) -> 59 | X2: 2 | Y2: 1945 | Z2: =SUMPRODUCT(--(F:F=Y2),--(D:D=X2),--(E:E=4),H:H,I:I) -> 20667093.07 | AA2: =+SUMIFS(H:H,D:D,2,F:F,Y2,E:E,4) -> 863 | AB2: =SUMPRODUCT(--(F:F=Y2),--(D:D=X2),--(E:E=1),H:H,I:I) -> 9936406.21 | AC2: =+SUMIFS(H:H,D:D,2,F:F,Y2,E:E,1) -> 39 | AE2: =U2+S2 -> 76698548.26 | AF2: =V2 -> 59 | AG2: =+AE2/AF2 -> 1299975.394 | AH2: =+Niðurstaða!U4 -> 763286.1044
B3: =+C3&"_"&D3&"_"&E3&"_"&F3&"_"&G3 -> ALM_1_1_1946_0 | C3: ALM | D3: 1 | E3: 1 | F3: 1946 | G3: 0 | H3: 55 | I3: 2285877.655 | J3: 0 | K3: 616774.9173 | M3: =+(J3+K3)/0.08*H3 -> 424032755.6 | N3: =+I3*H3 -> 125723271 | P3: =+P2 -> 1 | Q3: =+Q2+1 -> 1946 | S3: =SUMPRODUCT(--(F:F=Q3),--(D:D=P3),--(E:E=4),H:H,I:I) -> 89026555.01 | T3: =+SUMIFS(H:H,D:D,1,F:F,Q3,E:E,4) -> 1166 | U3: =SUMPRODUCT(--(F:F=Q3),--(D:D=P3),--(E:E=1),H:H,I:I) -> 244273349.3 | V3: =+SUMIFS(H:H,F:F,Q3,D:D,P3,E:E,1) -> 176 | X3: =+X2 -> 2 | Y3: =+Y2+1 -> 1946 | Z3: =SUMPRODUCT(--(F:F=Y3),--(D:D=X3),--(E:E=4),H:H,I:I) -> 43763808.3 | AA3: =+SUMIFS(H:H,D:D,2,F:F,Y3,E:E,4) -> 1058 | AB3: 68627131.25 | AC3: =+SUMIFS(H:H,D:D,2,F:F,Y3,E:E,1) -> 103 | AE3: =U3+S3 -> 333299904.4 | AF3: =V3 -> 176 | AG3: =+AE3/AF3 -> 1893749.457 | AH3: =+Niðurstaða!U5 -> 1405642.927
B4: ALM_1_1_1947_0 | C4: ALM | D4: 1 | E4: 1 | F4: 1947 | G4: 0 | H4: 77 | I4: 2026526.234 | J4: 0 | K4: 654894.5929 | M4: 630336045.7 | N4: 156042520 | P4: =+P3 -> 1 | Q4: =+Q3+1 -> 1947 | S4: 90600534.55 | T4: 1368 | U4: 335232593.2 | V4: 255 | X4: 2 | Y4: 1947 | Z4: 50910954.31 | AA4: 1128 | AB4: 102492058 | AC4: 162 | AE4: 425833127.7 | AF4: 255 | AG4: 1669933.834 | AH4: =+Niðurstaða!U6 -> 984521.2008
B5: ALM_1_1_1948_0 | C5: ALM | D5: 1 | E5: 1 | F5: 1948 | G5: 0 | H5: 62 | I5: 1932650.919 | J5: 0 | K5: 669021.0978 | M5: 518491350.8 | N5: 119824357 | P5: 1 | Q5: 1948 | S5: 148646316.9 | T5: 1564 | U5: 419917425.5 | V5: 311 | X5: 2 | Y5: 1948 | Z5: 87437783.21 | AA5: 1484 | AB5: 182324603.7 | AC5: 266 | AE5: 568563742.4 | AF5: 311 | AG5: 1828179.236 | AH5: =+Niðurstaða!U7 -> 1561788.762
B6: ALM_1_1_1949_0 | C6: ALM | D6: 1 | E6: 1 | F6: 1949 | G6: 0 | H6: 96 | I6: 1778524.51 | J6: 0 | K6: 607014.0475 | M6: =+(J6+K6)/0.08*H6 -> 728416857 | N6: 170738353 | P6: 1 | Q6: 1949 | S6: 324439100.4 | T6: 2220 | U6: 688528629.4 | V6: 484 | X6: 2 | Y6: 1949 | Z6: 178603959.7 | AA6: 1974 | AB6: 410712839.5 | AC6: 474 | AE6: 1012967730 | AF6: 484 | AG6: 2092908.533 | AH6: =+Niðurstaða!U8 -> 1769102.646
B7: ALM_1_1_1950_0 | C7: ALM | D7: 1 | E7: 1 | F7: 1950 | G7: 0 | H7: 89 | I7: 1841968.371 | J7: 0 | K7: 752422.6164 | M7: 837070160.8 | N7: 163935185 | P7: 1 | Q7: 1950 | S7: 386239271.3 | T7: 2697 | U7: 863700971.1 | V7: 579 | X7: 2 | Y7: 1950 | Z7: 207343681.6 | AA7: 2248 | AB7: 543345720.4 | AC7: 567 | AE7: 1249940242 | AF7: 579 | AG7: 2158791.438 | AH7: =+Niðurstaða!U9 -> 1879201.249
B8: ALM_1_1_1951_0 | C8: ALM | D8: 1 | E8: 1 | F8: 1951 | G8: 0 | H8: 100 | I8: 2123779.61 | J8: 0 | K8: 714974.7831 | M8: 893718478.9 | N8: 212377961 | P8: 1 | Q8: 1951 | S8: 454554625.7 | T8: 2869 | U8: 1040088403 | V8: 648 | X8: 2 | Y8: 1951 | Z8: 330644227.1 | AA8: 2944 | AB8: =SUMPRODUCT(--(F:F=Y8),--(D:D=X8),--(E:E=1),H:H,I:I) -> 844744593.7 | AC8: 811 | AE8: 1494643029 | AF8: 648 | AG8: 2306547.884 | AH8: =+Niðurstaða!U10 -> 1920655.257
B9: ALM_1_1_1952_0 | C9: ALM | D9: 1 | E9: 1 | F9: 1952 | G9: 0 | H9: 94 | I9: 1904390.372 | J9: 0 | K9: 684522.7557 | M9: 804314237.9 | N9: 179012695 | P9: 1 | Q9: 1952 | S9: 502446468.3 | T9: 3259 | U9: 1149269125 | V9: 738 | X9: 2 | Y9: 1952 | Z9: 322302963.3 | AA9: 3003 | AB9: 841467821 | AC9: 834 | AE9: 1651715593 | AF9: 738 | AG9: 2238097.01 | AH9: =+Niðurstaða!U11 -> 1830699.29
B10: ALM_1_1_1953_0 | C10: ALM | D10: 1 | E10: 1 | F10: 1953 | G10: 0 | H10: 97 | I10: 1610050.907 | J10: 0 | K10: 603486.9737 | M10: 731727955.6 | N10: 156174938 | P10: 1 | Q10: 1953 | S10: 575311923.2 | T10: 3507 | U10: 1274636828 | V10: 745 | X10: 2 | Y10: 1953 | Z10: 363063427.5 | AA10: 3469 | AB10: 974913678 | AC10: 917 | AE10: 1849948751 | AF10: 745 | AG10: 2483152.686 | AH10: =+Niðurstaða!U12 -> 2345035.36
B11: ALM_1_1_1954_0 | C11: ALM | D11: 1 | E11: 1 | F11: 1954 | G11: 0 | H11: 86 | I11: 1708771.709 | J11: 0 | K11: 687356.5199 | M11: 738908258.9 | N11: 146954367 | P11: 1 | Q11: 1954 | S11: 587238800.5 | T11: 3795 | U11: 1292951625 | V11: 802 | X11: 2 | Y11: 1954 | Z11: 403853358.4 | AA11: 3555 | AB11: 1018133459 | AC11: 949 | AE11: 1880190425 | AF11: 802 | AG11: 2344377.089 | AH11: =+Niðurstaða!U13 -> 2294160.084
B12: ALM_1_1_1955_0 | C12: ALM | D12: 1 | E12: 1 | F12: 1955 | G12: 0 | H12: 105 | I12: 1449732.829 | J12: 0 | K12: 623503.815 | M12: 818348757.2 | N12: 152221947 | P12: 1 | Q12: 1955 | S12: 594620826.8 | T12: 3837 | U12: 1407986640 | V12: 840 | X12: 2 | Y12: 1955 | Z12: 437191859.7 | AA12: 4085 | AB12: 1145529608 | AC12: 1090 | AE12: 2002607467 | AF12: 840 | AG12: 2384056.508 | AH12: =+Niðurstaða!U14 -> 2201248.797
B13: ALM_1_1_1956_0 | C13: ALM | D13: 1 | E13: 1 | F13: 1956 | G13: 0 | H13: 108 | I13: 1687965.269 | J13: 0 | K13: 645021.9127 | M13: 870779582.2 | N13: 182300249 | P13: 1 | Q13: 1956 | S13: 707324669.1 | T13: 4306 | U13: 1546829953 | V13: 928 | X13: =+X12 -> 2 | Y13: =+Y12+1 -> 1956 | Z13: 487364700.8 | AA13: 4282 | AB13: 1222445628 | AC13: 1123 | AE13: 2254154622 | AF13: 928 | AG13: 2429045.929 | AH13: =+Niðurstaða!U15 -> 2342982.51
B14: ALM_1_1_1957_0 | C14: ALM | D14: 1 | E14: 1 | F14: 1957 | G14: 0 | H14: 129 | I14: 1752401.372 | J14: 0 | K14: 725431.4493 | M14: 1169758212 | N14: 226059777 | P14: 1 | Q14: 1957 | S14: 718089606.9 | T14: 4400 | U14: 1677931393 | V14: 990 | X14: 2 | Y14: 1957 | Z14: 492106232.1 | AA14: 4282 | AB14: 1270475309 | AC14: 1182 | AE14: 2396021000 | AF14: 990 | AG14: 2420223.232 | AH14: =+Niðurstaða!U16 -> 2041164.541
B15: ALM_1_1_1958_0 | C15: ALM | D15: 1 | E15: 1 | F15: 1958 | G15: 0 | H15: 110 | I15: 2093324.891 | J15: 0 | K15: 789922.024 | M15: 1086142783 | N15: 230265738 | P15: 1 | Q15: 1958 | S15: 714687161 | T15: 4432 | U15: 1684308671 | V15: 1008 | X15: 2 | Y15: 1958 | Z15: 535292146.6 | AA15: 4460 | AB15: 1389863904 | AC15: 1275 | AE15: 2398995832 | AF15: 1008 | AG15: 2379956.183 | AH15: =+Niðurstaða!U17 -> 2016269.828
B16: ALM_1_1_1959_0 | C16: ALM | D16: 1 | E16: 1 | F16: 1959 | G16: 0 | H16: 147 | I16: 1869065.98 | J16: 0 | K16: 773442.6003 | M16: 1421200778 | N16: 274752699 | P16: 1 | Q16: 1959 | S16: 791766531 | T16: 4775 | U16: 1851100013 | V16: 1093 | X16: 2 | Y16: 1959 | Z16: 515511420.9 | AA16: 4659 | AB16: 1455750883 | AC16: 1341 | AE16: 2642866544 | AF16: 1093 | AG16: 2417993.178 | AH16: =+Niðurstaða!U18 -> 2097118.99
B17: ALM_1_1_1960_0 | C17: ALM | D17: 1 | E17: 1 | F17: 1960 | G17: 0 | H17: 133 | I17: 1956580.82 | J17: 0 | K17: 797697.7713 | M17: 1326172545 | N17: 260225249 | P17: 1 | Q17: 1960 | S17: 822409402.3 | T17: 4833 | U17: 1750059246 | V17: 1090 | X17: 2 | Y17: 1960 | Z17: 582747731.3 | AA17: 4931 | AB17: 1474894947 | AC17: 1386 | AE17: 2572468648 | AF17: 1090 | AG17: 2360062.98 | AH17: =+Niðurstaða!U19 -> 1948997.248
B18: ALM_1_1_1961_0 | C18: ALM | D18: 1 | E18: 1 | F18: 1961 | G18: 0 | H18: 115 | I18: 1527980.783 | J18: 0 | K18: 680394.5817 | M18: 978067211.1 | N18: 175717790 | P18: 1 | Q18: 1961 | S18: 792400039 | T18: 4580 | U18: 1546955485 | V18: 968 | X18: 2 | Y18: 1961 | Z18: 539226277.5 | AA18: 4751 | AB18: 1409304965 | AC18: 1340 | AE18: 2339355524 | AF18: 968 | AG18: 2416689.59 | AH18: =+Niðurstaða!U20 -> 2246642.634
B19: ALM_1_1_1962_0 | C19: ALM | D19: 1 | E19: 1 | F19: 1962 | G19: 0 | H19: 124 | I19: 1497050.613 | J19: 0 | K19: 672826.4081 | M19: 1042880933 | N19: 185634276 | P19: 1 | Q19: 1962 | S19: 837501729.9 | T19: 4940 | U19: 1623346610 | V19: 1034 | X19: 2 | Y19: 1962 | Z19: 593212360.5 | AA19: 5131 | AB19: 1391764051 | AC19: 1417 | AE19: 2460848339 | AF19: 1034 | AG19: 2379930.696 | AH19: =+Niðurstaða!U21 -> 2302730.252
B20: ALM_1_1_1963_0 | C20: ALM | D20: 1 | E20: 1 | F20: 1963 | G20: 0 | H20: 116 | I20: 1755091.836 | J20: 0 | K20: 883787.4138 | M20: 1281491750 | N20: 203590653 | P20: 1 | Q20: 1963 | S20: 811887199.3 | T20: 5126 | U20: 1708059685 | V20: 1043 | X20: 2 | Y20: 1963 | Z20: 611980700.9 | AA20: 5392 | AB20: 1501220171 | AC20: 1534 | AE20: 2519946884 | AF20: 1043 | AG20: 2416056.457 | AH20: =+Niðurstaða!U22 -> 2320316.104
B21: ALM_1_1_1964_0 | C21: ALM | D21: 1 | E21: 1 | F21: 1964 | G21: 0 | H21: 128 | I21: 1514234.094 | J21: 0 | K21: 656999.7966 | M21: 1051199675 | N21: 193821964 | P21: 1 | Q21: 1964 | S21: 823881257.7 | T21: 4981 | U21: 1592837342 | V21: 1085 | X21: 2 | Y21: 1964 | Z21: 631069377.1 | AA21: 5499 | AB21: 1539478072 | AC21: 1570 | AE21: 2416718600 | AF21: 1085 | AG21: 2227390.415 | AH21: =+Niðurstaða!U23 -> 2103111.748
B22: ALM_1_1_1965_0 | C22: ALM | D22: 1 | E22: 1 | F22: 1965 | G22: 0 | H22: 114 | I22: 1696121.061 | J22: 0 | K22: 702446.0844 | M22: 1000985670 | N22: 193357801 | P22: 1 | Q22: 1965 | S22: 798692431.5 | T22: 5148 | U22: 1645389829 | V22: 1073 | X22: 2 | Y22: 1965 | Z22: 567868512.8 | AA22: 5339 | AB22: 1450724647 | AC22: 1545 | AE22: 2444082261 | AF22: 1073 | AG22: 2277802.666 | AH22: =+Niðurstaða!U24 -> 1846063.399
B23: ALM_1_1_1966_0 | C23: ALM | D23: 1 | E23: 1 | F23: 1966 | G23: 0 | H23: 109 | I23: 1525759.835 | J23: 0 | K23: 691558.5956 | M23: 942248586.5 | N23: 166307822 | P23: 1 | Q23: 1966 | S23: 868312976.4 | T23: 5242 | U23: 1653559204 | V23: 1094 | X23: 2 | Y23: 1966 | Z23: 625787446.6 | AA23: 5529 | AB23: 1501568973 | AC23: 1590 | AE23: 2521872180 | AF23: 1094 | AG23: 2305184.808 | AH23: =+Niðurstaða!U25 -> 1998032.859
B24: ALM_1_1_1967_0 | C24: ALM | D24: 1 | E24: 1 | F24: 1967 | G24: 0 | H24: 86 | I24: 1698473.64 | J24: 0 | K24: 773652.1334 | M24: 831676043.4 | N24: 146068733 | P24: 1 | Q24: 1967 | S24: 792478656.1 | T24: 4962 | U24: 1377157989 | V24: 1000 | X24: 2 | Y24: 1967 | Z24: 622740465.6 | AA24: 5378 | AB24: 1356062114 | AC24: 1482 | AE24: 2169636645 | AF24: 1000 | AG24: 2169636.645 | AH24: =+Niðurstaða!U26 -> 2077256.427
B25: ALM_1_1_1968_0 | C25: ALM | D25: 1 | E25: 1 | F25: 1968 | G25: 0 | H25: 103 | I25: 1495243.068 | J25: 0 | K25: 678447.1903 | M25: 873500757.5 | N25: 154010036 | P25: 1 | Q25: 1968 | S25: 780095291 | T25: 5020 | U25: 1558646484 | V25: 1123 | X25: 2 | Y25: 1968 | Z25: 552844436.3 | AA25: 5110 | AB25: 1310226703 | AC25: 1411 | AE25: 2338741775 | AF25: 1123 | AG25: 2082583.949 | AH25: =+Niðurstaða!U27 -> 1845238.711
B26: ALM_1_1_1969_0 | C26: ALM | D26: 1 | E26: 1 | F26: 1969 | G26: 0 | H26: 100 | I26: 1387483.27 | J26: 0 | K26: 643694.4589 | M26: 804618073.6 | N26: =+I26*H26 -> 138748327 | P26: 1 | Q26: 1969 | S26: 751997855.8 | T26: 4855 | U26: 1421979818 | V26: 1085 | X26: 2 | Y26: 1969 | Z26: 543729392.2 | AA26: 5333 | AB26: 1347405906 | AC26: 1511 | AE26: 2173977674 | AF26: 1085 | AG26: 2003666.059 | AH26: =+Niðurstaða!U28 -> 1646866.692
B27: ALM_1_1_1970_0 | C27: ALM | D27: 1 | E27: 1 | F27: 1970 | G27: 0 | H27: 98 | I27: 1429827.276 | J27: 0 | K27: 733218.0779 | M27: 898192145.4 | N27: 140123073 | P27: 1 | Q27: 1970 | S27: =SUMPRODUCT(--(F:F=Q27),--(D:D=P27),--(E:E=4),H:H,I:I) -> 753286135.1 | T27: 4901 | U27: 1433703278 | V27: 1109 | X27: 2 | Y27: 1970 | Z27: 578439185.2 | AA27: 5117 | AB27: 1160369961 | AC27: 1364 | AE27: 2186989413 | AF27: 1109 | AG27: 1972037.343 | AH27: =+Niðurstaða!U29 -> 1594916.035
B28: ALM_1_1_1971_0 | C28: ALM | D28: 1 | E28: 1 | F28: 1971 | G28: 0 | H28: 118 | I28: 1491737.119 | J28: 0 | K28: 747337.6212 | M28: 1102322991 | N28: 176024980 | P28: 1 | Q28: 1971 | S28: 811110414.4 | T28: 5190 | U28: 1538307651 | V28: 1220 | X28: 2 | Y28: 1971 | Z28: 599121163.6 | AA28: 5398 | AB28: 1232621976 | AC28: 1475 | AE28: 2349418065 | AF28: 1220 | AG28: 1925752.512 | AH28: =+Niðurstaða!U30 -> 1651870.647
B29: ALM_1_1_1972_0 | C29: ALM | D29: 1 | E29: 1 | F29: 1972 | G29: 0 | H29: 131 | I29: 1234514.176 | J29: 0 | K29: 634719.6221 | M29: 1039353381 | N29: 161721357 | P29: 1 | Q29: 1972 | S29: 826077790 | T29: 5426 | U29: 1517229859 | V29: 1271 | X29: 2 | Y29: 1972 | Z29: 669648951 | AA29: 6079 | AB29: 1302729688 | AC29: 1649 | AE29: 2343307649 | AF29: 1271 | AG29: 1843672.423 | AH29: =+Niðurstaða!U31 -> 1616324.685
B30: ALM_1_1_1973_0 | C30: ALM | D30: 1 | E30: 1 | F30: 1973 | G30: 0 | H30: 124 | I30: 1252118.984 | J30: 0 | K30: 698943.6728 | M30: 1083362693 | N30: 155262754 | P30: 1 | Q30: 1973 | S30: 846410386.7 | T30: 5615 | U30: 1458849639 | V30: 1304 | X30: 2 | Y30: 1973 | Z30: 621023515.7 | AA30: 5793 | AB30: 1207723460 | AC30: 1595 | AE30: 2305260025 | AF30: 1304 | AG30: 1767837.443 | AH30: =+Niðurstaða!U32 -> 1637121.621
B31: ALM_1_1_1974_0 | C31: ALM | D31: 1 | E31: 1 | F31: 1974 | G31: 0 | H31: 106 | I31: 1019373.651 | J31: 0 | K31: 583426.6395 | M31: 773040297.4 | N31: 108053607 | P31: 1 | Q31: 1974 | S31: 738777999.2 | T31: 5235 | U31: 1289419926 | V31: 1238 | X31: 2 | Y31: 1974 | Z31: 585113925.1 | AA31: 5417 | AB31: 1099805961 | AC31: 1488 | AE31: 2028197925 | AF31: 1238 | AG31: 1638285.885 | AH31: =+Niðurstaða!U33 -> 1372304.844
B32: ALM_1_1_1975_0 | C32: ALM | D32: 1 | E32: 1 | F32: 1975 | G32: 0 | H32: 102 | I32: 907666.3137 | J32: 0 | K32: 555383.8066 | M32: 708114353.4 | N32: 92581964 | P32: 1 | Q32: 1975 | S32: 723848004.5 | T32: 5366 | U32: 1296470433 | V32: 1328 | X32: 2 | Y32: 1975 | Z32: 593999335 | AA32: 5577 | AB32: 1107608145 | AC32: 1584 | AE32: 2020318437 | AF32: 1328 | AG32: 1521324.124 | AH32: =+Niðurstaða!U34 -> 1386662.976
B33: ALM_1_1_1976_0 | C33: ALM | D33: 1 | E33: 1 | F33: 1976 | G33: 0 | H33: 121 | I33: 876220.5785 | J33: 0 | K33: 510808.5641 | M33: 772597953.2 | N33: 106022690 | P33: 1 | Q33: 1976 | S33: 732250820.7 | T33: 5380 | U33: 1291493151 | V33: 1367 | X33: 2 | Y33: 1976 | Z33: 578611395.4 | AA33: 5627 | AB33: 1055474373 | AC33: 1542 | AE33: 2023743971 | AF33: 1367 | AG33: 1480427.192 | AH33: =+Niðurstaða!U35 -> 1316868.065
B34: ALM_1_1_1977_0 | C34: ALM | D34: 1 | E34: 1 | F34: 1977 | G34: 0 | H34: 107 | I34: 734984.7383 | J34: 0 | K34: 463755.5103 | M34: 620272995 | N34: 78643367 | P34: 1 | Q34: 1977 | S34: 659553341.7 | T34: 5008 | U34: 1137018028 | V34: 1287 | X34: 2 | Y34: 1977 | Z34: 581272282 | AA34: 5625 | AB34: 938200071.1 | AC34: 1540 | AE34: 1796571370 | AF34: 1287 | AG34: 1395937.35 | AH34: =+Niðurstaða!U36 -> 1305854.138
B35: ALM_1_1_1978_0 | C35: ALM | D35: 1 | E35: 1 | F35: 1978 | G35: 0 | H35: 118 | I35: 869786.7288 | J35: 0 | K35: 577936.5854 | M35: 852456463.4 | N35: =+I35*H35 -> 102634834 | P35: 1 | Q35: 1978 | S35: 691017182.8 | T35: 5366 | U35: 1195661336 | V35: 1414 | X35: 2 | Y35: 1978 | Z35: 574075081.4 | AA35: 5852 | AB35: 929008009.7 | AC35: 1607 | AE35: 1886678519 | AF35: 1414 | AG35: 1334284.667 | AH35: =+Niðurstaða!U37 -> 1201972.899
B36: ALM_1_1_1979_0 | C36: ALM | D36: 1 | E36: 1 | F36: 1979 | G36: 0 | H36: 136 | I36: 689893.9779 | J36: 0 | K36: 518579.0949 | M36: 881584461.3 | N36: 93825581 | P36: 1 | Q36: 1979 | S36: 723614384.3 | T36: 5761 | U36: 1183440032 | V36: 1502 | X36: 2 | Y36: 1979 | Z36: 591382311.1 | AA36: 6304 | AB36: 957701452.6 | AC36: 1773 | AE36: 1907054416 | AF36: 1502 | AG36: 1269676.708 | AH36: =+Niðurstaða!U38 -> 1170085.165
B37: ALM_1_1_1980_0 | C37: ALM | D37: 1 | E37: 1 | F37: 1980 | G37: 0 | H37: 109 | I37: 681606.2202 | J37: 0 | K37: 475868.8818 | M37: 648371351.5 | N37: 74295078 | P37: 1 | Q37: 1980 | S37: 702754048.6 | T37: 5965 | U37: 1217138157 | V37: 1581 | X37: 2 | Y37: 1980 | Z37: 584882746.2 | AA37: 6572 | AB37: 924217028.9 | AC37: 1752 | AE37: 1919892205 | AF37: 1581 | AG37: 1214353.071 | AH37: =+Niðurstaða!U39 -> 1127117.316
B38: ALM_1_1_1981_0 | C38: ALM | D38: 1 | E38: 1 | F38: 1981 | G38: 0 | H38: 102 | I38: 473262.5196 | J38: 0 | K38: 391294.3965 | M38: 498900355.5 | N38: 48272777 | P38: 1 | Q38: 1981 | S38: 678960348 | T38: 5694 | U38: 1137121391 | V38: 1582 | X38: 2 | Y38: 1981 | Z38: 569666823.4 | AA38: 6090 | AB38: 846114826.8 | AC38: 1671 | AE38: 1816081739 | AF38: 1582 | AG38: 1147965.701 | AH38: =+Niðurstaða!U40 -> 988336.313
B39: ALM_1_1_1982_0 | C39: ALM | D39: 1 | E39: 1 | F39: 1982 | G39: 0 | H39: 126 | I39: 521636.0476 | J39: 0 | K39: 418625.3237 | M39: 659334884.9 | N39: 65726142 | P39: 1 | Q39: 1982 | S39: 648654451.8 | T39: 5766 | U39: 1107333528 | V39: 1645 | X39: 2 | Y39: 1982 | Z39: 541073197 | AA39: 6159 | AB39: 771949586.8 | AC39: 1709 | AE39: 1755987980 | AF39: 1645 | AG39: 1067469.897 | AH39: =+Niðurstaða!U41 -> 975797.2991
B40: ALM_1_1_1983_0 | C40: ALM | D40: 1 | E40: 1 | F40: 1983 | G40: 0 | H40: 100 | I40: 463974.1 | J40: 0 | K40: 392715.6159 | M40: 490894519.9 | N40: 46397410 | P40: 1 | Q40: 1983 | S40: 579595836 | T40: 5340 | U40: 1010403635 | V40: 1601 | X40: 2 | Y40: 1983 | Z40: 509701619.1 | AA40: 6119 | AB40: 706202149.1 | AC40: 1731 | AE40: 1589999471 | AF40: 1601 | AG40: 993128.964 | AH40: =+Niðurstaða!U42 -> 898781.8066
B41: ALM_1_1_1984_0 | C41: ALM | D41: 1 | E41: 1 | F41: 1984 | G41: 0 | H41: 118 | I41: 404249.2119 | J41: 0 | K41: 363535.7007 | M41: 536215158.5 | N41: 47701407 | P41: 1 | Q41: 1984 | S41: 549744242.2 | T41: 5176 | U41: 918025031.9 | V41: 1632 | X41: 2 | Y41: 1984 | Z41: 489457917 | AA41: 5714 | AB41: 680664128.1 | AC41: 1724 | AE41: 1467769274 | AF41: 1632 | AG41: 899368.4278 | AH41: =+Niðurstaða!U43 -> 791878.0158
B42: ALM_1_1_1985_0 | C42: ALM | D42: 1 | E42: 1 | F42: 1985 | G42: 0 | H42: 112 | I42: 315678.9107 | J42: 0 | K42: 351582.2923 | M42: 492215209.2 | N42: 35356038 | P42: 1 | Q42: 1985 | S42: 468443410.7 | T42: 4645 | U42: 843559585.8 | V42: 1596 | X42: 2 | Y42: 1985 | Z42: 479852745.9 | AA42: 5430 | AB42: 603692513.1 | AC42: 1726 | AE42: 1312002997 | AF42: 1596 | AG42: 822057.0154 | AH42: =+Niðurstaða!U44 -> 718439.4951
B43: ALM_1_1_1986_0 | C43: ALM | D43: 1 | E43: 1 | F43: 1986 | G43: 0 | H43: 100 | I43: 242655.24 | J43: 0 | K43: 324784.6241 | M43: 405980780.1 | N43: 24265524 | P43: 1 | Q43: 1986 | S43: 455063163 | T43: 4633 | U43: 760190705.3 | V43: 1542 | X43: 2 | Y43: 1986 | Z43: 431504090.3 | AA43: 5098 | AB43: 573469987.1 | AC43: 1696 | AE43: 1215253868 | AF43: 1542 | AG43: 788102.3789 | AH43: =+Niðurstaða!U45 -> 660255.1275
B44: ALM_1_1_1987_0 | C44: ALM | D44: 1 | E44: 1 | F44: 1987 | G44: 0 | H44: 127 | I44: 156248.0551 | J44: 0 | K44: 256087.6393 | M44: 406539127.3 | N44: 19843503 | P44: 1 | Q44: 1987 | S44: 455935113.9 | T44: 4631 | U44: 744586368.3 | V44: 1759 | X44: 2 | Y44: 1987 | Z44: 425062658.1 | AA44: 5024 | AB44: 526304404.2 | AC44: 1791 | AE44: 1200521482 | AF44: 1759 | AG44: 682502.2639 | AH44: =+Niðurstaða!U46 -> 610245.6384
B45: ALM_1_1_1988_0 | C45: ALM | D45: 1 | E45: 1 | F45: 1988 | G45: 0 | H45: 130 | I45: 184473.5462 | J45: 0 | K45: 272274.6083 | M45: 442446238.6 | N45: 23981561 | P45: 1 | Q45: 1988 | S45: 428048882.3 | T45: 4744 | U45: 740019581.8 | V45: 1976 | X45: 2 | Y45: 1988 | Z45: 440162489.6 | AA45: 5263 | AB45: 530795591.2 | AC45: 1931 | AE45: 1168068464 | AF45: 1976 | AG45: 591127.7652 | AH45: =+Niðurstaða!U47 -> 495566.247
B46: ALM_1_1_1989_0 | C46: ALM | D46: 1 | E46: 1 | F46: 1989 | G46: 0 | H46: 101 | I46: 165560.1782 | J46: 0 | K46: 200319.0528 | M46: 252902804.1 | N46: 16721578 | P46: 1 | Q46: 1989 | S46: 361172307.7 | T46: 4080 | U46: 641682304.1 | V46: 1940 | X46: 2 | Y46: 1989 | Z46: 361072836 | AA46: 4514 | AB46: 528069309.8 | AC46: 2128 | AE46: 1002854612 | AF46: 1940 | AG46: 516935.3669 | AH46: =+Niðurstaða!U48 -> 420527.2185
B47: ALM_1_1_1990_0 | C47: ALM | D47: 1 | E47: 1 | F47: 1990 | G47: 0 | H47: 107 | I47: 90810.85047 | J47: 0 | K47: 151666.5422 | M47: 202854000.2 | N47: 9716761 | P47: 1 | Q47: 1990 | S47: 310885655.9 | T47: 3889 | U47: 606929864 | V47: 2085 | X47: 2 | Y47: 1990 | Z47: 321198802.5 | AA47: 4136 | AB47: 520532477.6 | AC47: 2355 | AE47: 917815519.9 | AF47: 2085 | AG47: 440199.2901 | AH47: =+Niðurstaða!U49 -> 374226.4097
B48: ALM_1_1_1991_0 | C48: ALM | D48: 1 | E48: 1 | F48: 1991 | G48: 0 | H48: 76 | I48: 68722.03947 | J48: 0 | K48: 94718.80086 | M48: 89982860.82 | N48: 5222875 | P48: 1 | Q48: 1991 | S48: 218538748.9 | T48: 3244 | U48: 519662383.9 | V48: 2147 | X48: 2 | Y48: 1991 | Z48: 236033044 | AA48: 3258 | AB48: 449484173.6 | AC48: 2259 | AE48: 738201132.9 | AF48: 2147 | AG48: 343829.1257 | AH48: =+Niðurstaða!U50 -> 292269.3104
B49: ALM_1_1_1992_0 | C49: ALM | D49: 1 | E49: 1 | F49: 1992 | G49: 0 | H49: 98 | I49: 54451.07143 | J49: 0 | K49: 82892.66172 | M49: 101543510.6 | N49: 5336205 | P49: 1 | Q49: 1992 | S49: 165100512.3 | T49: 2731 | U49: 462508694.1 | V49: 2250 | X49: 2 | Y49: 1992 | Z49: 185325225.4 | AA49: 2938 | AB49: 408624493.6 | AC49: 2423 | AE49: 627609206.4 | AF49: 2250 | AG49: 278937.4251 | AH49: =+Niðurstaða!U51 -> 248413.486
B50: ALM_1_1_1993_0 | C50: ALM | D50: 1 | E50: 1 | F50: 1993 | G50: 0 | H50: 73 | I50: 50514.68493 | J50: 0 | K50: 81397.5103 | M50: 74275228.15 | N50: 3687572 | P50: 1 | Q50: 1993 | S50: 114023521.2 | T50: 2237 | U50: 400753706.9 | V50: 2284 | X50: 2 | Y50: 1993 | Z50: 132693114.5 | AA50: 2545 | AB50: 394585056.6 | AC50: 2587 | AE50: 514777228.1 | AF50: 2284 | AG50: 225384.0753 | AH50: =+Niðurstaða!U52 -> 210886.1531
B51: ALM_1_1_1994_0 | C51: ALM | D51: 1 | E51: 1 | F51: 1994 | G51: 0 | H51: 61 | I51: 50317.96721 | J51: 0 | K51: 69529.13523 | M51: 53015965.61 | N51: 3069396 | P51: 1 | Q51: 1994 | S51: 68808937.27 | T51: 1728 | U51: 342080260.1 | V51: 2358 | X51: 2 | Y51: 1994 | Z51: 82039470.55 | AA51: 1968 | AB51: 342247121.9 | AC51: 2570 | AE51: 410889197.3 | AF51: 2358 | AG51: 174253.2644 | AH51: =+Niðurstaða!U53 -> 162482.4933
B52: ALM_1_1_1995_0 | C52: ALM | D52: 1 | E52: 1 | F52: 1995 | G52: 0 | H52: 37 | I52: 57217.94595 | J52: 0 | K52: 66222.00556 | M52: 30627677.57 | N52: 2117064 | P52: 1 | Q52: 1995 | S52: 38376049.46 | T52: 1296 | U52: 257343914.2 | V52: 2332 | X52: 2 | Y52: 1995 | Z52: 45145770.77 | AA52: 1392 | AB52: 257473216.4 | AC52: 2499 | AE52: 295719963.6 | AF52: 2332 | AG52: 126809.5899 | AH52: =+Niðurstaða!U54 -> 120046.0627
B53: ALM_1_1_1996_0 | C53: ALM | D53: 1 | E53: 1 | F53: 1996 | G53: 0 | H53: 22 | I53: 55760.27273 | J53: 0 | K53: 97318.29968 | M53: 26762532.41 | N53: 1226726 | P53: 1 | Q53: 1996 | S53: =SUMPRODUCT(--(F:F=Q53),--(D:D=P53),--(E:E=4),H:H,I:I) -> 22212999.28 | T53: 987 | U53: 189282042.1 | V53: 2277 | X53: 2 | Y53: 1996 | Z53: 21636633.52 | AA53: 1001 | AB53: 198122409.2 | AC53: 2497 | AE53: 211495041.4 | AF53: 2277 | AG53: 92883.1978 | AH53: =+Niðurstaða!U55 -> 90358.93362
B54: ALM_1_1_1997_0 | C54: ALM | D54: 1 | E54: 1 | F54: 1997 | G54: 0 | H54: 11 | I54: 20990.90909 | J54: 0 | K54: 36218.09045 | M54: 4979987.437 | N54: 230900 | P54: 1 | Q54: 1997 | S54: 9047823.932 | T54: 681 | U54: 115707929 | V54: 2070 | X54: 2 | Y54: 1997 | Z54: 8328108.062 | AA54: 621 | AB54: 127888019.2 | AC54: 2350 | AE54: 124755753 | AF54: 2070 | AG54: 60268.4797 | AH54: =+Niðurstaða!U56 -> 55187.32641
B55: ALM_1_1_1998_0 | C55: ALM | D55: 1 | E55: 1 | F55: 1998 | G55: 0 | H55: 9 | I55: 26120.22222 | J55: 0 | K55: 59123.78887 | M55: 6651426.247 | N55: 235082 | P55: 1 | Q55: 1998 | S55: 1185660.411 | T55: 214 | U55: 57635143 | V55: 1896 | X55: 2 | Y55: 1998 | Z55: 1134208 | AA55: 191 | AB55: 64190608.37 | AC55: 2158 | AE55: 58820803.41 | AF55: 1896 | AG55: 31023.63049 | AH55: =+Niðurstaða!U57 -> 30593.66886
B56: ALM_2_1_1945_0 | C56: ALM | D56: 2 | E56: 1 | F56: 1945 | G56: 0 | H56: 8 | I56: 226530.375 | J56: 0 | K56: 178503.6567 | M56: 17850365.67 | N56: 1812243 | P56: 1 | Q56: 1999 | S56: 0 | T56: 0 | U56: 10503384.07 | V56: 927 | X56: 2 | Y56: 1999 | Z56: 12 | AA56: 1 | AB56: 14487075.85 | AC56: 1213 | AE56: 10503384.07 | AF56: 927 | AG56: 11330.5114 | AH56: =+Niðurstaða!U58 -> 10947.34996
B57: ALM_2_1_1946_0 | C57: ALM | D57: 2 | E57: 1 | F57: 1946 | G57: 0 | H57: 8 | I57: 349538.125 | J57: 0 | K57: 221994.5321 | M57: 22199453.21 | N57: 2796305 | S57: =SUM(S2:S56) -> 2.857814678e+10 | T57: =SUM(T2:T56) -> 215716 | U57: =SUM(U2:U56) -> 5.682450743e+10 | V57: =SUM(V2:V56) -> 70771 | Z57: =SUM(Z2:Z56) -> 2.218592297e+10 | AA57: =SUM(AA2:AA56) -> 226710 | AB57: =SUM(AB2:AB56) -> 4.622377147e+10 | AC57: =SUM(AC2:AC56) -> 82306
B58: ALM_2_1_1947_0 | C58: ALM | D58: 2 | E58: 1 | F58: 1947 | G58: 0 | H58: 14 | I58: 411215.3571 | J58: 0 | K58: 167562.4548 | M58: 29323429.58 | N58: 5757015
B59: ALM_2_1_1948_0 | C59: ALM | D59: 2 | E59: 1 | F59: 1948 | G59: 0 | H59: 23 | I59: 599099.2174 | J59: 0 | K59: 278022.5885 | M59: 79931494.2 | N59: 13779282
B60: ALM_2_1_1949_0 | C60: ALM | D60: 2 | E60: 1 | F60: 1949 | G60: 0 | H60: 13 | I60: 166587.3077 | J60: 0 | K60: 156110.825 | M60: 25368009.07 | N60: 2165635
B61: ALM_2_1_1950_0 | C61: ALM | D61: 2 | E61: 1 | F61: 1950 | G61: 0 | H61: 21 | I61: 755902.9048 | J61: 0 | K61: 255340.5275 | M61: 67026888.46 | N61: 15873961
B62: ALM_2_1_1951_0 | C62: ALM | D62: 2 | E62: 1 | F62: 1951 | G62: 0 | H62: 31 | I62: 894136.7742 | J62: 0 | K62: 309951.7695 | M62: 120106310.7 | N62: 27718240 | V62: =+V57+AC57 -> 153077 | W62: =+T57+AA57 -> 442426
... 76 more rows

Sheet Iðgjaldatöflur (hidden)
D1: ALM | G1: Festa | J1: Gildi | M1: LIVE | P1: SL
C2: Aldur | D2: Réttindi | E2: AVG | G2: RÉTTINDI | H2: AVG | J2: RÉTTINDI | K2: AVG | M2: RÉTTINDI | N2: AVG | P2: RÉTTINDI | Q2: AVG
C3: 16.5 | D3: 4438 | E3: =+AVERAGE(D3:D4) -> 4360.5 | G3: 2980 | H3: =+AVERAGE(G3:G4) -> 2919 | J3: 3108 | K3: =+AVERAGE(J3:J4) -> 3056 | M3: 3171 | N3: =+AVERAGE(M3:M4) -> 3097.5 | P3: 3201 | Q3: =+AVERAGE(P3:P4) -> 3125
C4: =+C3+1 -> 17.5 | D4: 4283 | E4: =+AVERAGE(D4:D5) -> 4204.5 | G4: 2858 | H4: =+AVERAGE(G4:G5) -> 2788 | J4: 3004 | K4: =+AVERAGE(J4:J5) -> 2943 | M4: 3024 | N4: =+AVERAGE(M4:M5) -> 2956.5 | P4: 3049 | Q4: =+AVERAGE(P4:P5) -> 2979
C5: =+C4+1 -> 18.5 | D5: 4126 | E5: 4038.5 | G5: 2718 | H5: 2652.5 | J5: 2882 | K5: 2810.5 | M5: 2889 | N5: 2826.5 | P5: 2909 | Q5: 2844.5
C6: 19.5 | D6: 3951 | E6: 3866.5 | G6: 2587 | H6: 2526.5 | J6: 2739 | K6: 2670.5 | M6: 2764 | N6: 2706 | P6: 2780 | Q6: 2720.5
C7: 20.5 | D7: 3782 | E7: 3704 | G7: 2466 | H7: 2410.5 | J7: 2602 | K7: 2538 | M7: 2648 | N7: 2594.5 | P7: 2661 | Q7: 2605.5
C8: 21.5 | D8: 3626 | E8: 3552 | G8: 2355 | H8: 2303 | J8: 2474 | K8: 2414 | M8: 2541 | N8: 2490.5 | P8: 2550 | Q8: 2498.5
C9: 22.5 | D9: 3478 | E9: 3409 | G9: 2251 | H9: 2203.5 | J9: 2354 | K9: 2298.5 | M9: 2440 | N9: 2392.5 | P9: 2447 | Q9: 2398.5
C10: 23.5 | D10: 3340 | E10: 3275.5 | G10: 2156 | H10: 2111 | J10: 2243 | K10: 2190.5 | M10: 2345 | N10: 2300 | P10: 2350 | Q10: 2304.5
C11: 24.5 | D11: 3211 | E11: 3150.5 | G11: 2066 | H11: 2025 | J11: 2138 | K11: 2089.5 | M11: 2255 | N11: 2216 | P11: 2259 | Q11: 2215.5
C12: 25.5 | D12: 3090 | E12: 3034 | G12: 1984 | H12: 1945.5 | J12: 2041 | K12: 1995.5 | M12: 2177 | N12: 2137 | P12: 2172 | Q12: 2131.5
C13: 26.5 | D13: 2978 | E13: 2925 | G13: 1907 | H13: 1872 | J13: 1950 | K13: 1907.5 | M13: 2097 | N13: 2059 | P13: 2091 | Q13: 2053
C14: 27.5 | D14: 2872 | E14: 2822.5 | G14: 1837 | H14: 1805 | J14: 1865 | K14: 1826 | M14: 2021 | N14: 1985 | P14: 2015 | Q14: 1979
C15: 28.5 | D15: 2773 | E15: 2726 | G15: 1773 | H15: 1742.5 | J15: 1787 | K15: 1750.5 | M15: 1949 | N15: 1915 | P15: 1943 | Q15: 1907
C16: 29.5 | D16: 2679 | E16: 2635 | G16: 1712 | H16: 1685 | J16: 1714 | K16: 1680 | M16: 1881 | N16: 1850 | P16: 1871 | Q16: 1842
C17: 30.5 | D17: 2591 | E17: 2550 | G17: 1658 | H17: 1632.5 | J17: 1646 | K17: 1614 | M17: 1819 | N17: 1788.5 | P17: 1813 | Q17: 1783
C18: 31.5 | D18: 2509 | E18: 2470 | G18: 1607 | H18: 1584 | J18: 1582 | K18: 1553.5 | M18: 1758 | N18: 1730 | P18: 1753 | Q18: 1724.5
C19: 32.5 | D19: 2431 | E19: 2394.5 | G19: 1561 | H19: 1539.5 | J19: 1525 | K19: 1498 | M19: 1702 | N19: =+AVERAGE(M19:M20) -> 1675 | P19: 1696 | Q19: 1669.5
C20: 33.5 | D20: 2358 | E20: 2324 | G20: 1518 | H20: 1498 | J20: 1471 | K20: 1446 | M20: 1648 | N20: 1623 | P20: 1643 | Q20: 1619
C21: 34.5 | D21: 2290 | E21: 2257.5 | G21: 1478 | H21: 1459.5 | J21: 1421 | K21: 1398 | M21: 1598 | N21: 1577 | P21: 1595 | Q21: 1571.5
C22: 35.5 | D22: 2225 | E22: 2194 | G22: 1441 | H22: 1424 | J22: 1375 | K22: 1353.5 | M22: 1556 | N22: 1532.5 | P22: 1548 | Q22: 1526
C23: 36.5 | D23: 2163 | E23: 2135 | G23: 1407 | H23: 1391 | J23: 1332 | K23: 1312.5 | M23: 1509 | N23: 1488 | P23: 1504 | Q23: 1483
C24: 37.5 | D24: 2107 | E24: 2079 | G24: 1375 | H24: 1360 | J24: 1293 | K24: 1275 | M24: 1467 | N24: 1447.5 | P24: 1462 | Q24: 1442.5
C25: 38.5 | D25: 2051 | E25: 2024 | G25: 1345 | H25: 1330 | J25: 1257 | K25: 1240 | M25: 1428 | N25: 1409 | P25: 1423 | Q25: 1404.5
C26: 39.5 | D26: 1997 | E26: 1971.5 | G26: 1315 | H26: 1301.5 | J26: 1223 | K26: 1208 | M26: 1390 | N26: 1374 | P26: 1386 | Q26: 1369
C27: 40.5 | D27: 1946 | E27: 1921 | G27: 1288 | H27: 1275 | J27: 1193 | K27: 1178.5 | M27: 1358 | N27: 1341 | P27: 1352 | Q27: 1335.5
C28: 41.5 | D28: 1896 | E28: 1872 | G28: 1262 | H28: 1248.5 | J28: 1164 | K28: 1151 | M28: 1324 | N28: 1308 | P28: 1319 | Q28: 1303
C29: 42.5 | D29: 1848 | E29: 1824.5 | G29: 1235 | H29: 1223.5 | J29: 1138 | K29: 1126.5 | M29: 1292 | N29: 1276 | P29: 1287 | Q29: 1271.5
C30: 43.5 | D30: 1801 | E30: 1777.5 | G30: 1212 | H30: 1199.5 | J30: 1115 | K30: 1104 | M30: 1260 | N30: 1245 | P30: 1256 | Q30: 1242
C31: 44.5 | D31: 1754 | E31: 1731.5 | G31: 1187 | H31: 1174.5 | J31: 1093 | K31: 1082.5 | M31: 1230 | N31: 1216.5 | P31: 1228 | Q31: 1214.5
C32: 45.5 | D32: 1709 | E32: 1686.5 | G32: 1162 | H32: 1150 | J32: 1072 | K32: 1062.5 | M32: 1203 | N32: 1188.5 | P32: 1201 | Q32: 1187
C33: 46.5 | D33: 1664 | E33: 1642.5 | G33: 1138 | H33: 1125.5 | J33: 1053 | K33: 1044 | M33: 1174 | N33: 1159.5 | P33: 1173 | Q33: 1159
C34: 47.5 | D34: 1621 | E34: 1600.5 | G34: 1113 | H34: 1101 | J34: 1035 | K34: 1026.5 | M34: 1145 | N34: 1131.5 | P34: 1145 | Q34: 1131
C35: 48.5 | D35: 1580 | E35: 1558.5 | G35: 1089 | H35: 1077 | J35: 1018 | K35: 1010 | M35: 1118 | N35: 1104 | P35: 1117 | Q35: 1103.5
C36: 49.5 | D36: 1537 | E36: 1516 | G36: 1065 | H36: 1053 | J36: 1002 | K36: 994.5 | M36: 1090 | N36: 1076.5 | P36: 1090 | Q36: 1078.5
C37: 50.5 | D37: 1495 | E37: 1474.5 | G37: 1041 | H37: 1029.5 | J37: 987 | K37: 980 | M37: 1063 | N37: 1050 | P37: 1067 | Q37: 1053.5
C38: 51.5 | D38: 1454 | E38: 1434 | G38: 1018 | H38: 1006.5 | J38: 973 | K38: 967 | M38: 1037 | N38: 1024.5 | P38: 1040 | Q38: 1027.5
C39: 52.5 | D39: 1414 | E39: 1394.5 | G39: 995 | H39: 984 | J39: 961 | K39: 954.5 | M39: 1012 | N39: 999.5 | P39: 1015 | Q39: 1002.5
C40: 53.5 | D40: 1375 | E40: 1355.5 | G40: 973 | H40: 963 | J40: 948 | K40: 942.5 | M40: 987 | N40: 975 | P40: 990 | Q40: 978
C41: 54.5 | D41: 1336 | E41: 1317.5 | G41: 953 | H41: 942 | J41: 937 | K41: 931 | M41: 963 | N41: 950.5 | P41: 966 | Q41: 954
C42: 55.5 | D42: 1299 | E42: 1281 | G42: 931 | H42: 921 | J42: 925 | K42: 919 | M42: 938 | N42: 927 | P42: 942 | Q42: 930.5
C43: 56.5 | D43: 1263 | E43: 1245.5 | G43: 911 | H43: 901.5 | J43: 913 | K43: 907 | M43: 916 | N43: 905.5 | P43: 919 | Q43: 908
C44: 57.5 | D44: 1228 | E44: 1211 | G44: 892 | H44: 883 | J44: 901 | K44: 895 | M44: 895 | N44: 885 | P44: 897 | Q44: 886
C45: 58.5 | D45: 1194 | E45: 1178.5 | G45: 874 | H45: 865.5 | J45: 889 | K45: 883 | M45: 875 | N45: 865.5 | P45: 875 | Q45: 865
C46: 59.5 | D46: 1163 | E46: 1147 | G46: 857 | H46: 848.5 | J46: 877 | K46: 871.5 | M46: 856 | N46: 845 | P46: 855 | Q46: 844.5
C47: 60.5 | D47: 1131 | E47: 1115.5 | G47: 840 | H47: 833 | J47: 866 | K47: 859.5 | M47: 834 | N47: 824.5 | P47: 834 | Q47: 824
C48: 61.5 | D48: 1100 | E48: 1085 | G48: 826 | H48: 818 | J48: 853 | K48: 846 | M48: 815 | N48: 806.5 | P48: 814 | Q48: 805
C49: 62.5 | D49: 1070 | E49: 1055.5 | G49: 810 | H49: 803.5 | J49: 839 | K49: 832 | M49: 798 | N49: 789.5 | P49: 796 | Q49: 786.5
C50: 63.5 | D50: 1041 | E50: 1026.5 | G50: 797 | H50: 789.5 | J50: 825 | K50: 817.5 | M50: 781 | N50: 774 | P50: 777 | Q50: 767.5
C51: 64.5 | D51: 1012 | E51: 998 | G51: 782 | H51: 774.5 | J51: 810 | K51: 802.5 | M51: 767 | N51: 761 | P51: 758 | Q51: 750.5
C52: 65.5 | D52: 984 | E52: 969.5 | G52: 767 | H52: 759.5 | J52: 795 | K52: 784.5 | M52: 755 | N52: 750.5 | P52: 743 | Q52: 738
C53: 66.5 | D53: 955 | E53: 940.5 | G53: 752 | H53: 752 | J53: 774 | K53: 774 | M53: 746 | N53: =+AVERAGE(M53:M54) -> 746 | P53: 733 | Q53: 733
C54: 67.5 | D54: 926 | E54: 911 | G54: 752 | H54: =+AVERAGE(G54:G55) -> 752 | J54: 774 | K54: =+AVERAGE(J54:J55) -> 774 | M54: 746 | N54: =+AVERAGE(M54:M55) -> 746 | P54: 733 | Q54: =+AVERAGE(P54:P55) -> 733
C55: 68.5 | D55: 896 | E55: 880.5 | G55: 752 | H55: =+AVERAGE(G55:G56) -> 752 | J55: 774 | K55: =+AVERAGE(J55:J56) -> 774 | M55: 746 | N55: =+AVERAGE(M55:M56) -> 746 | P55: 733 | Q55: =+AVERAGE(P55:P56) -> 733
C56: 69.5 | D56: 865 | E56: =+AVERAGE(D56:D57) -> 865 | G56: 752 | H56: =+AVERAGE(G56:G57) -> 752 | J56: 774 | K56: =+AVERAGE(J56:J57) -> 774 | M56: 746 | N56: =+AVERAGE(M56:M57) -> 746 | P56: 733 | Q56: =+AVERAGE(P56:P57) -> 733
C57: 70.5 | D57: 865 | E57: =+AVERAGE(D57:D58) -> 865
C58: 71.5 | D58: 865 | E58: =+AVERAGE(D58:D59) -> 865
C59: 72.5 | D59: 865 | E59: =+AVERAGE(D59:D60) -> 865
C60: 73.5
AO66: =+AN66+1 -> 1 | AP66: 2 | AQ66: 3 | AR66: 4 | AS66: 5 | AT66: 6 | AU66: 7 | AV66: 8 | AW66: 9 | AX66: 10 | AY66: 11 | AZ66: 12 | BA66: 13 | BB66: 14 | BC66: 15 | BD66: 16 | BE66: 17 | BF66: 18 | BG66: 19 | BH66: 20 | BI66: 21 | BJ66: 22 | BK66: 23 | BL66: 24 | BM66: 25 | BN66: 26 | BO66: 27 | BP66: 28 | BQ66: 29 | BR66: 30 | BS66: 31 | BT66: 32
AO67: =+AN67*1.02 -> 0 | AP67: 0 | AQ67: 0 | AR67: 0 | AS67: 0 | AT67: 0 | AU67: 0 | AV67: 0 | AW67: 0 | AX67: 0 | AY67: 0 | AZ67: 0 | BA67: 0 | BB67: 0 | BC67: 0 | BD67: 0 | BE67: 0 | BF67: 0 | BG67: 0 | BH67: 0 | BI67: 0 | BJ67: 0 | BK67: 0 | BL67: 0 | BM67: 0 | BN67: 0 | BO67: 0 | BP67: 0 | BQ67: 0 | BR67: 0 | BS67: 0 | BT67: 0
AO69: 1345 | AP69: 1315 | AQ69: 1288 | AR69: 1262 | AS69: 1235 | AT69: 1212 | AU69: 1187 | AV69: 1162 | AW69: 1138 | AX69: 1113 | AY69: 1089 | AZ69: 1065 | BA69: 1041 | BB69: 1018 | BC69: 995 | BD69: 973 | BE69: 953 | BF69: 931 | BG69: 911 | BH69: 892 | BI69: 874 | BJ69: 857 | BK69: 840 | BL69: 826 | BM69: 810 | BN69: 797 | BO69: 782 | BP69: 767 | BQ69: 752 | BR69: 752 | BS69: 752 | BT69: 752
AO70: =+AO67*12*0.12 -> 0 | AP70: 0 | AQ70: 0 | AR70: 0 | AS70: 0 | AT70: 0 | AU70: 0 | AV70: 0 | AW70: 0 | AX70: 0 | AY70: 0 | AZ70: 0 | BA70: 0 | BB70: 0 | BC70: 0 | BD70: 0 | BE70: 0 | BF70: 0 | BG70: 0 | BH70: 0 | BI70: 0 | BJ70: 0 | BK70: 0 | BL70: 0 | BM70: 0 | BN70: 0 | BO70: 0 | BP70: 0 | BQ70: 0 | BR70: 0 | BS70: 0 | BT70: 0
AO71: =+AO70/10000*AO69*1.085 -> 0 | AP71: 0 | AQ71: 0 | AR71: 0 | AS71: 0 | AT71: 0 | AU71: 0 | AV71: 0 | AW71: 0 | AX71: 0 | AY71: 0 | AZ71: 0 | BA71: 0 | BB71: 0 | BC71: 0 | BD71: 0 | BE71: 0 | BF71: 0 | BG71: 0 | BH71: 0 | BI71: 0 | BJ71: 0 | BK71: 0 | BL71: 0 | BM71: 0 | BN71: 0 | BO71: 0 | BP71: 0 | BQ71: =+BQ70/10000*BQ69*1.085 -> 0 | BR71: 0 | BS71: 0 | BT71: =+BT70/10000*BT69*1.085 -> 0
AO75: =+AO71 -> 0 | AP75: 0 | AQ75: 0 | AR75: 0 | AS75: 0 | AT75: 0 | AU75: 0 | AV75: 0 | AW75: 0 | AX75: 0 | AY75: 0 | AZ75: 0 | BA75: 0 | BB75: 0 | BC75: 0 | BD75: 0 | BE75: 0 | BF75: 0 | BG75: 0 | BH75: 0 | BI75: 0 | BJ75: 0 | BK75: 0 | BL75: 0 | BM75: 0 | BN75: 0 | BO75: 0 | BP75: 0 | BQ75: 0 | BR75: 85245.49101 | BS75: 89967.95973 | BT75: 95187.219

Sheet Launakeðjur (hidden)
C1: ALM | F1: Festa | I1: Gildi | L1: LIVE | O1: LSRA | R1: SL | Y1: ALM | AA1: Festa | AC1: Gildi | AE1: LIVE | AG1: LSRA | AI1: SL
C2: ALM-KK | D2: ALM-KVK | F2: Festa-KK | G2: Festa-KVK | I2: Gildi-KK | J2: Gildi-KVK | L2: LIVE-KK | M2: LIVE-KVK | O2: LRSA-KK | P2: LSRA-KVK | R2: SL-KK | S2: SL-KVK | Y2: ALM-KK | Z2: ALM-KVK | AA2: Festa-KK | AB2: Festa-KVK | AC2: Gildi-KK | AD2: Gildi-KVK | AE2: LIVE-KK | AF2: LIVE-KVK | AG2: LRSA-KK | AH2: LSRA-KVK | AI2: SL-KK | AJ2: SL-KVK | AL2: =+launah -> 0.01
B3: 16.5 | U3: 100 | W3: 0 | X3: =+B3 -> 16.5 | Y3: =+PRODUCT(C4:C$41)*(1+$AL$2)^(55.5-$X3) -> 30.50778818 | Z3: =+PRODUCT(D4:D$41)*(1+$AL$3)^(55.5-$X3) -> 32.46600283 | AA3: =+PRODUCT(F4:F$41)*(1+$AL$2)^(55.5-$X3) -> 16.50657568 | AB3: =+PRODUCT(G4:G$41)*(1+$AL$3)^(55.5-$X3) -> 11.52372149 | AC3: =+PRODUCT(I4:I$41)*(1+$AL$2)^(55.5-$X3) -> 30.38826631 | AD3: =+PRODUCT(J4:J$41)*(1+$AL$3)^(55.5-$X3) -> 15.10398929 | AE3: =+PRODUCT(L4:L$41)*(1+$AL$2)^(55.5-$X3) -> 16.31346875 | AF3: =+PRODUCT(M4:M$41)*(1+$AL$3)^(55.5-$X3) -> 14.63785572 | AG3: =+PRODUCT(O4:O$41)*(1+$AL$2)^(55.5-$X3) -> 66.66003918 | AH3: =+PRODUCT(P4:P$41)*(1+$AL$3)^(55.5-$X3) -> 55.86950297 | AI3: =+PRODUCT(R4:R$41)*(1+$AL$2)^(55.5-$X3) -> 20.24355734 | AJ3: =+PRODUCT(S4:S$41)*(1+$AL$3)^(55.5-$X3) -> 17.84240133 | AL3: =+launahkvk -> 0.018
B4: =+B3+1 -> 17.5 | C4: 1.316219024 | D4: 1.371428571 | F4: 2.164189597 | G4: 1.482330185 | I4: 2.241274606 | J4: 1.504614161 | L4: 1.336234073 | M4: 1.218293467 | O4: 2.129913561 | P4: 1.692685322 | R4: 2.093206938 | S4: 1.862949 | U4: =+U3*C4*(1+$W$3) -> 131.6219024 | X4: =+B4 -> 17.5 | Y4: =+PRODUCT(C5:C$41)*(1+$AL$2)^(55.5-$X4) -> 22.94886362 | Z4: =+PRODUCT(D5:D$41)*(1+$AL$3)^(55.5-$X4) -> 23.25454525 | AA4: =+PRODUCT(F5:F$41)*(1+$AL$2)^(55.5-$X4) -> 7.55162314 | AB4: =+PRODUCT(G5:G$41)*(1+$AL$3)^(55.5-$X4) -> 7.636599649 | AC4: =+PRODUCT(I5:I$41)*(1+$AL$2)^(55.5-$X4) -> 13.42423294 | AD4: =+PRODUCT(J5:J$41)*(1+$AL$3)^(55.5-$X4) -> 9.860949755 | AE4: =+PRODUCT(L5:L$41)*(1+$AL$2)^(55.5-$X4) -> 12.08766457 | AF4: =+PRODUCT(M5:M$41)*(1+$AL$3)^(55.5-$X4) -> 11.80260218 | AG4: =+PRODUCT(O5:O$41)*(1+$AL$2)^(55.5-$X4) -> 30.98719121 | AH4: =+PRODUCT(P5:P$41)*(1+$AL$3)^(55.5-$X4) -> 32.42282121 | AI4: =+PRODUCT(R5:R$41)*(1+$AL$2)^(55.5-$X4) -> 9.575319915 | AJ4: =+PRODUCT(S5:S$41)*(1+$AL$3)^(55.5-$X4) -> 9.408157079
B5: =+B4+1 -> 18.5 | C5: 1.275410144 | D5: 1.208333333 | F5: 1.455027972 | G5: 1.295042493 | I5: 1.316724643 | J5: 1.308376 | L5: 1.264324561 | M5: 1.198337604 | O5: 1.278876534 | P5: 1.507094866 | R5: 1.18099125 | S5: 1.566829426 | U5: =+U4*C5*(1+$W$3) -> 167.8719094 | X5: 18.5 | Y5: =+PRODUCT(C6:C$41)*(1+$AL$2)^(55.5-$X5) -> 17.81516892 | Z5: =+PRODUCT(D6:D$41)*(1+$AL$3)^(55.5-$X5) -> 18.90485353 | AA5: =+PRODUCT(F6:F$41)*(1+$AL$2)^(55.5-$X5) -> 5.13863289 | AB5: =+PRODUCT(G6:G$41)*(1+$AL$3)^(55.5-$X5) -> 5.792529128 | AC5: =+PRODUCT(I6:I$41)*(1+$AL$2)^(55.5-$X5) -> 10.09422875 | AD5: =+PRODUCT(J6:J$41)*(1+$AL$3)^(55.5-$X5) -> 7.403522468 | AE5: =+PRODUCT(L6:L$41)*(1+$AL$2)^(55.5-$X5) -> 9.465911756 | AF5: =+PRODUCT(M6:M$41)*(1+$AL$3)^(55.5-$X5) -> 9.674996205 | AG5: =+PRODUCT(O6:O$41)*(1+$AL$2)^(55.5-$X5) -> 23.99010891 | AH5: =+PRODUCT(P6:P$41)*(1+$AL$3)^(55.5-$X5) -> 21.13306229 | AI5: =+PRODUCT(R6:R$41)*(1+$AL$2)^(55.5-$X5) -> 8.02759103 | AJ5: =+PRODUCT(S6:S$41)*(1+$AL$3)^(55.5-$X5) -> 5.898411431
B6: 19.5 | C6: 1.184210526 | D6: 1.15277 | F6: 1.266415153 | G6: 1.205293602 | I6: 1.249822023 | J6: 1.216553495 | L6: 1.218856952 | M6: 1.179137293 | O6: 1.370385455 | P6: 1.38950811 | R6: 1.218484065 | S6: 1.313283971 | U6: 198.7956822 | X6: 19.5 | Y6: =+PRODUCT(C7:C$41)*(1+$AL$2)^(55.5-$X6) -> 14.89497071 | Z6: =+PRODUCT(D7:D$41)*(1+$AL$3)^(55.5-$X6) -> 16.10953012 | AA6: =+PRODUCT(F7:F$41)*(1+$AL$2)^(55.5-$X6) -> 4.017446667 | AB6: =+PRODUCT(G7:G$41)*(1+$AL$3)^(55.5-$X6) -> 4.720930392 | AC6: =+PRODUCT(I7:I$41)*(1+$AL$2)^(55.5-$X6) -> 7.996567274 | AD6: =+PRODUCT(J7:J$41)*(1+$AL$3)^(55.5-$X6) -> 5.978048166 | AE6: =+PRODUCT(L7:L$41)*(1+$AL$2)^(55.5-$X6) -> 7.68932715 | AF6: =+PRODUCT(M7:M$41)*(1+$AL$3)^(55.5-$X6) -> 8.060066964 | AG6: =+PRODUCT(O7:O$41)*(1+$AL$2)^(55.5-$X6) -> 17.33277524 | AH6: =+PRODUCT(P7:P$41)*(1+$AL$3)^(55.5-$X6) -> 14.94010223 | AI6: =+PRODUCT(R7:R$41)*(1+$AL$2)^(55.5-$X6) -> 6.522949424 | AJ6: =+PRODUCT(S7:S$41)*(1+$AL$3)^(55.5-$X6) -> 4.411930279
B7: 20.5 | C7: 1.222222222 | D7: 1.317042787 | F7: 1.180923283 | G7: 1.152574766 | I7: 1.204643511 | J7: 1.163452819 | L7: 1.187234294 | M7: 1.161560965 | O7: 1.3613365 | P7: 1.310669199 | R7: 1.220999678 | S7: 1.205342895 | U7: 242.9725005 | W7: =+U3*E3 -> 0 | X7: 20.5 | Y7: =+PRODUCT(C8:C$41)*(1+$AL$2)^(55.5-$X7) -> 12.06613289 | Z7: =+PRODUCT(D8:D$41)*(1+$AL$3)^(55.5-$X7) -> 12.01531638 | AA7: =+PRODUCT(F8:F$41)*(1+$AL$2)^(55.5-$X7) -> 3.368271271 | AB7: =+PRODUCT(G8:G$41)*(1+$AL$3)^(55.5-$X7) -> 4.023562129 | AC7: =+PRODUCT(I8:I$41)*(1+$AL$2)^(55.5-$X7) -> 6.572395294 | AD7: =+PRODUCT(J8:J$41)*(1+$AL$3)^(55.5-$X7) -> 5.047343429 | AE7: =+PRODUCT(L8:L$41)*(1+$AL$2)^(55.5-$X7) -> 6.41254657 | AF7: =+PRODUCT(M8:M$41)*(1+$AL$3)^(55.5-$X7) -> 6.816302619 | AG7: =+PRODUCT(O8:O$41)*(1+$AL$2)^(55.5-$X7) -> 12.60611436 | AH7: =+PRODUCT(P8:P$41)*(1+$AL$3)^(55.5-$X7) -> 11.19728411 | AI7: =+PRODUCT(R8:R$41)*(1+$AL$2)^(55.5-$X7) -> 5.289408248 | AJ7: =+PRODUCT(S8:S$41)*(1+$AL$3)^(55.5-$X7) -> 3.595590716
B8: 21.5 | C8: 1.181818182 | D8: 1.244152088 | F8: 1.133311968 | G8: 1.117927289 | I8: 1.171883395 | J8: 1.128951956 | L8: 1.163747537 | M8: 1.145808699 | O8: 1.318917107 | P8: 1.254764828 | R8: 1.20640743 | S8: 1.145684155 | U8: 287.1493187 | X8: 21.5 | Y8: =+PRODUCT(C9:C$41)*(1+$AL$2)^(55.5-$X8) -> 10.10871758 | Z8: =+PRODUCT(D9:D$41)*(1+$AL$3)^(55.5-$X8) -> 9.48667364 | AA8: =+PRODUCT(F9:F$41)*(1+$AL$2)^(55.5-$X8) -> 2.942633754 | AB8: =+PRODUCT(G9:G$41)*(1+$AL$3)^(55.5-$X8) -> 3.53548807 | AC8: =+PRODUCT(I9:I$41)*(1+$AL$2)^(55.5-$X8) -> 5.552875058 | AD8: =+PRODUCT(J9:J$41)*(1+$AL$3)^(55.5-$X8) -> 4.391770301 | AE8: =+PRODUCT(L9:L$41)*(1+$AL$2)^(55.5-$X8) -> 5.455698775 | AF8: =+PRODUCT(M9:M$41)*(1+$AL$3)^(55.5-$X8) -> 5.843714237 | AG8: =+PRODUCT(O9:O$41)*(1+$AL$2)^(55.5-$X8) -> 9.463294756 | AH8: =+PRODUCT(P9:P$41)*(1+$AL$3)^(55.5-$X8) -> 8.766022541 | AI8: =+PRODUCT(R9:R$41)*(1+$AL$2)^(55.5-$X8) -> 4.341019242 | AJ8: =+PRODUCT(S9:S$41)*(1+$AL$3)^(55.5-$X8) -> 3.08288671
B9: 22.5 | C9: 1.192307692 | D9: 1.198407546 | F9: 1.10374394 | G9: 1.09350546 | I9: 1.146942317 | J9: 1.104824554 | L9: 1.145439594 | M9: 1.131803258 | O9: 1.27318613 | P9: 1.213267148 | R9: 1.185674913 | S9: 1.107955546 | U9: 342.3703416 | X9: 22.5 | Y9: =+PRODUCT(C10:C$41)*(1+$AL$2)^(55.5-$X9) -> 8.3943359 | Z9: =+PRODUCT(D10:D$41)*(1+$AL$3)^(55.5-$X9) -> 7.776096601 | AA9: =+PRODUCT(F10:F$41)*(1+$AL$2)^(55.5-$X9) -> 2.639650973 | AB9: =+PRODUCT(G10:G$41)*(1+$AL$3)^(55.5-$X9) -> 3.176001087 | AC9: =+PRODUCT(I10:I$41)*(1+$AL$2)^(55.5-$X9) -> 4.7935245 | AD9: =+PRODUCT(J10:J$41)*(1+$AL$3)^(55.5-$X9) -> 3.904797549 | AE9: =+PRODUCT(L10:L$41)*(1+$AL$2)^(55.5-$X9) -> 4.715815645 | AF9: =+PRODUCT(M10:M$41)*(1+$AL$3)^(55.5-$X9) -> 5.071894985 | AG9: =+PRODUCT(O10:O$41)*(1+$AL$2)^(55.5-$X9) -> 7.359174393 | AH9: =+PRODUCT(P10:P$41)*(1+$AL$3)^(55.5-$X9) -> 7.097385042 | AI9: =+PRODUCT(R10:R$41)*(1+$AL$2)^(55.5-$X9) -> 3.624972416 | AJ9: =+PRODUCT(S10:S$41)*(1+$AL$3)^(55.5-$X9) -> 2.733300947
B10: 23.5 | C10: 1.21755169 | D10: 1.166877426 | F10: 1.084103338 | G10: 1.075475544 | I10: 1.12727456 | J10: 1.087081083 | L10: 1.130628688 | M10: 1.119367733 | O10: 1.232756239 | P10: 1.181320281 | R10: 1.164047564 | S10: 1.082061178 | U10: 416.8535881 | X10: 23.5 | Y10: =+PRODUCT(C11:C$41)*(1+$AL$2)^(55.5-$X10) -> 6.826177262 | Z10: =+PRODUCT(D11:D$41)*(1+$AL$3)^(55.5-$X10) -> 6.546190371 | AA10: =+PRODUCT(F11:F$41)*(1+$AL$2)^(55.5-$X10) -> 2.41076263 | AB10: =+PRODUCT(G11:G$41)*(1+$AL$3)^(55.5-$X10) -> 2.90089711 | AC10: =+PRODUCT(I11:I$41)*(1+$AL$2)^(55.5-$X10) -> 4.210211098 | AD10: =+PRODUCT(J11:J$41)*(1+$AL$3)^(55.5-$X10) -> 3.528489307 | AE10: =+PRODUCT(L11:L$41)*(1+$AL$2)^(55.5-$X10) -> 4.129670908 | AF10: =+PRODUCT(M11:M$41)*(1+$AL$3)^(55.5-$X10) -> 4.450919002 | AG10: =+PRODUCT(O11:O$41)*(1+$AL$2)^(55.5-$X10) -> 5.910585604 | AH10: =+PRODUCT(P11:P$41)*(1+$AL$3)^(55.5-$X10) -> 5.901778813 | AI10: =+PRODUCT(R11:R$41)*(1+$AL$2)^(55.5-$X10) -> 3.083277446 | AJ10: =+PRODUCT(S11:S$41)*(1+$AL$3)^(55.5-$X10) -> 2.481349035
B11: 24.5 | C11: 1.167905951 | D11: 1.143720942 | F11: 1.070427319 | G11: 1.061741871 | I11: 1.11135143 | J11: 1.073552018 | L11: 1.118289485 | M11: 1.108303098 | O11: 1.198893693 | P11: 1.15599782 | R11: 1.143664934 | S11: 1.063302813 | U11: 486.8457861 | X11: 24.5 | Y11: =+PRODUCT(C12:C$41)*(1+$AL$2)^(55.5-$X11) -> 5.786931168 | Z11: =+PRODUCT(D12:D$41)*(1+$AL$3)^(55.5-$X11) -> 5.622387571 | AA11: =+PRODUCT(F12:F$41)*(1+$AL$2)^(55.5-$X11) -> 2.229851249 | AB11: =+PRODUCT(G12:G$41)*(1+$AL$3)^(55.5-$X11) -> 2.683895503 | AC11: =+PRODUCT(I12:I$41)*(1+$AL$2)^(55.5-$X11) -> 3.750861995 | AD11: =+PRODUCT(J12:J$41)*(1+$AL$3)^(55.5-$X11) -> 3.228627451 | AE11: =+PRODUCT(L12:L$41)*(1+$AL$2)^(55.5-$X11) -> 3.656283217 | AF11: =+PRODUCT(M12:M$41)*(1+$AL$3)^(55.5-$X11) -> 3.944966922 | AG11: =+PRODUCT(O12:O$41)*(1+$AL$2)^(55.5-$X11) -> 4.881220901 | AH11: =+PRODUCT(P12:P$41)*(1+$AL$3)^(55.5-$X11) -> 5.015083125 | AI11: =+PRODUCT(R12:R$41)*(1+$AL$2)^(55.5-$X11) -> 2.669269518 | AJ11: =+PRODUCT(S12:S$41)*(1+$AL$3)^(55.5-$X11) -> 2.29236156
B12: 25.5 | C12: 1.145119137 | D12: 1.125912981 | F12: 1.060536355 | G12: 1.051061047 | I12: 1.09819672 | J12: 1.062955786 | L12: 1.107762156 | M12: 1.098419996 | O12: 1.170868573 | P12: 1.135445703 | R12: 1.125226204 | S12: 1.049199005 | U12: 557.4964264 | X12: 25.5 | Y12: =+PRODUCT(C13:C$41)*(1+$AL$2)^(55.5-$X12) -> 5.003527263 | Z12: =+PRODUCT(D13:D$41)*(1+$AL$3)^(55.5-$X12) -> 4.905329392 | AA12: =+PRODUCT(F13:F$41)*(1+$AL$2)^(55.5-$X12) -> 2.081751846 | AB12: =+PRODUCT(G13:G$41)*(1+$AL$3)^(55.5-$X12) -> 2.508360098 | AC12: =+PRODUCT(I13:I$41)*(1+$AL$2)^(55.5-$X12) -> 3.381657111 | AD12: =+PRODUCT(J13:J$41)*(1+$AL$3)^(55.5-$X12) -> 2.983698642 | AE12: =+PRODUCT(L13:L$41)*(1+$AL$2)^(55.5-$X12) -> 3.267923871 | AF12: =+PRODUCT(M13:M$41)*(1+$AL$3)^(55.5-$X12) -> 3.527988474 | AG12: =+PRODUCT(O13:O$41)*(1+$AL$2)^(55.5-$X12) -> 4.127612692 | AH12: =+PRODUCT(P13:P$41)*(1+$AL$3)^(55.5-$X12) -> 4.338743605 | AI12: =+PRODUCT(R13:R$41)*(1+$AL$2)^(55.5-$X12) -> 2.348719837 | AJ12: =+PRODUCT(S13:S$41)*(1+$AL$3)^(55.5-$X12) -> 2.14623597
B13: 26.5 | C13: 1.127580977 | D13: 1.111729201 | F13: 1.05312638 | G13: 1.042646711 | I13: 1.087156338 | J13: 1.054486124 | L13: 1.098603219 | M13: 1.089550003 | O13: 1.147608469 | P13: 1.118438248 | R13: 1.108819509 | S13: 1.038316138 | U13: 628.6223651 | X13: 26.5 | Y13: =+PRODUCT(C14:C$41)*(1+$AL$2)^(55.5-$X13) -> 4.393464851 | Z13: =+PRODUCT(D14:D$41)*(1+$AL$3)^(55.5-$X13) -> 4.334324118 | AA13: =+PRODUCT(F14:F$41)*(1+$AL$2)^(55.5-$X13) -> 1.957163433 | AB13: =+PRODUCT(G14:G$41)*(1+$AL$3)^(55.5-$X13) -> 2.363224215 | AC13: =+PRODUCT(I14:I$41)*(1+$AL$2)^(55.5-$X13) -> 3.079755174 | AD13: =+PRODUCT(J14:J$41)*(1+$AL$3)^(55.5-$X13) -> 2.77949764 | AE13: =+PRODUCT(L14:L$41)*(1+$AL$2)^(55.5-$X13) -> 2.945165401 | AF13: =+PRODUCT(M14:M$41)*(1+$AL$3)^(55.5-$X13) -> 3.180769612 | AG13: =+PRODUCT(O14:O$41)*(1+$AL$2)^(55.5-$X13) -> 3.561097142 | AH13: =+PRODUCT(P14:P$41)*(1+$AL$3)^(55.5-$X13) -> 3.810695071 | AI13: =+PRODUCT(R14:R$41)*(1+$AL$2)^(55.5-$X13) -> 2.09724411 | AJ13: =+PRODUCT(S14:S$41)*(1+$AL$3)^(55.5-$X13) -> 2.03048641
B14: 27.5 | C14: 1.113610487 | D14: 1.100114198 | F14: 1.047369191 | G14: 1.035974483 | I14: 1.077774754 | J14: 1.047609833 | L14: 1.090503693 | M14: 1.081547931 | O14: 1.128146093 | P14: 1.104135545 | R14: 1.094298784 | S14: 1.029768231 | U14: =+U13*C14*(1+$W$3) -> 700.0404583 | X14: 27.5 | Y14: =+PRODUCT(C15:C$41)*(1+$AL$2)^(55.5-$X14) -> 3.906181963 | Z14: =+PRODUCT(D15:D$41)*(1+$AL$3)^(55.5-$X14) -> 3.870221639 | AA14: =+PRODUCT(F15:F$41)*(1+$AL$2)^(55.5-$X14) -> 1.850145674 | AB14: =+PRODUCT(G15:G$41)*(1+$AL$3)^(55.5-$X14) -> 2.240825777 | AC14: =+PRODUCT(I15:I$41)*(1+$AL$2)^(55.5-$X14) -> 2.82922061 | AD14: =+PRODUCT(J15:J$41)*(1+$AL$3)^(55.5-$X14) -> 2.606267362 | AE14: =+PRODUCT(L15:L$41)*(1+$AL$2)^(55.5-$X14) -> 2.673998598 | AF14: =+PRODUCT(M15:M$41)*(1+$AL$3)^(55.5-$X14) -> 2.888940948 | AG14: =+PRODUCT(O15:O$41)*(1+$AL$2)^(55.5-$X14) -> 3.125338799 | AH14: =+PRODUCT(P15:P$41)*(1+$AL$3)^(55.5-$X14) -> 3.390267991 | AI14: =+PRODUCT(R15:R$41)*(1+$AL$2)^(55.5-$X14) -> 1.897543292 | AJ14: =+PRODUCT(S15:S$41)*(1+$AL$3)^(55.5-$X14) -> 1.936925066
B15: 28.5 | C15: 1.102175672 | D15: 1.09038536 | F15: 1.042717243 | G15: 1.030677887 | I15: 1.069724457 | J15: 1.04195958 | L15: 1.083241659 | M15: 1.074290494 | O15: 1.111704349 | P15: 1.091944243 | R15: 1.081447017 | S15: 1.02297793 | U15: =+U14*C15*(1+$W$3) -> 771.5675622 | X15: 28.5 | Y15: =+PRODUCT(C16:C$41)*(1+$AL$2)^(55.5-$X15) -> 3.508975016 | Z15: =+PRODUCT(D16:D$41)*(1+$AL$3)^(55.5-$X15) -> 3.486647538 | AA15: =+PRODUCT(F16:F$41)*(1+$AL$2)^(55.5-$X15) -> 1.756782495 | AB15: =+PRODUCT(G16:G$41)*(1+$AL$3)^(55.5-$X15) -> 2.135685776 | AC15: =+PRODUCT(I16:I$41)*(1+$AL$2)^(55.5-$X15) -> 2.618626232 | AD15: =+PRODUCT(J16:J$41)*(1+$AL$3)^(55.5-$X15) -> 2.457085763 | AE15: =+PRODUCT(L16:L$41)*(1+$AL$2)^(55.5-$X15) -> 2.444074544 | AF15: =+PRODUCT(M16:M$41)*(1+$AL$3)^(55.5-$X15) -> 2.641612759 | AG15: =+PRODUCT(O16:O$41)*(1+$AL$2)^(55.5-$X15) -> 2.783469231 | AH15: =+PRODUCT(P16:P$41)*(1+$AL$3)^(55.5-$X15) -> 3.049901323 | AI15: =+PRODUCT(R16:R$41)*(1+$AL$2)^(55.5-$X15) -> 1.737261007 | AJ15: =+PRODUCT(S16:S$41)*(1+$AL$3)^(55.5-$X15) -> 1.859939326
B16: 29.5 | C16: 1.092607536 | D16: 1.08208125 | F16: 1.038799865 | G16: 1.026489278 | I16: 1.06276355 | J16: 1.037273401 | L16: 1.076653498 | M16: 1.067673686 | O16: 1.097681793 | P16: 1.081434133 | R16: 1.070043593 | S16: 1.017552257 | U16: 843.020533 | X16: 29.5 | Y16: =+PRODUCT(C17:C$41)*(1+$AL$2)^(55.5-$X16) -> 3.1797627 | Z16: =+PRODUCT(D17:D$41)*(1+$AL$3)^(55.5-$X16) -> 3.165194465 | AA16: =+PRODUCT(F17:F$41)*(1+$AL$2)^(55.5-$X16) -> 1.674421289 | AB16: =+PRODUCT(G17:G$41)*(1+$AL$3)^(55.5-$X16) -> 2.043784776 | AC16: =+PRODUCT(I17:I$41)*(1+$AL$2)^(55.5-$X16) -> 2.439582388 | AD16: =+PRODUCT(J17:J$41)*(1+$AL$3)^(55.5-$X16) -> 2.326908447 | AE16: =+PRODUCT(L17:L$41)*(1+$AL$2)^(55.5-$X16) -> 2.247590141 | AF16: =+PRODUCT(M17:M$41)*(1+$AL$3)^(55.5-$X16) -> 2.430428429 | AG16: =+PRODUCT(O17:O$41)*(1+$AL$2)^(55.5-$X16) -> 2.510663972 | AH16: =+PRODUCT(P17:P$41)*(1+$AL$3)^(55.5-$X16) -> 2.770371032 | AI16: =+PRODUCT(R17:R$41)*(1+$AL$2)^(55.5-$X16) -> 1.607467598 | AJ16: =+PRODUCT(S17:S$41)*(1+$AL$3)^(55.5-$X16) -> 1.795536662
B17: 30.5 | C17: 1.084453096 | D17: 1.074878414 | F17: 1.035363869 | G17: 1.023204611 | I17: 1.056709144 | J17: 1.033358796 | L17: 1.070615781 | M17: 1.061609941 | O17: 1.085617624 | P17: 1.072286237 | R17: 1.05988957 | S17: 1.013213554 | U17: 914.2162269 | X17: 30.5 | Y17: =+PRODUCT(C18:C$41)*(1+$AL$2)^(55.5-$X17) -> 2.903103798 | Z17: =+PRODUCT(D18:D$41)*(1+$AL$3)^(55.5-$X17) -> 2.892632611 | AA17: =+PRODUCT(F18:F$41)*(1+$AL$2)^(55.5-$X17) -> 1.60121761 | AB17: =+PRODUCT(G18:G$41)*(1+$AL$3)^(55.5-$X17) -> 1.962116966 | AC17: =+PRODUCT(I18:I$41)*(1+$AL$2)^(55.5-$X17) -> 2.28580222 | AD17: =+PRODUCT(J18:J$41)*(1+$AL$3)^(55.5-$X17) -> 2.211975833 | AE17: =+PRODUCT(L18:L$41)*(1+$AL$2)^(55.5-$X17) -> 2.078557791 | AF17: =+PRODUCT(M18:M$41)*(1+$AL$3)^(55.5-$X17) -> 2.248899677 | AG17: =+PRODUCT(O18:O$41)*(1+$AL$2)^(55.5-$X17) -> 2.289761937 | AH17: =+PRODUCT(P18:P$41)*(1+$AL$3)^(55.5-$X17) -> 2.537928763 | AI17: =+PRODUCT(R18:R$41)*(1+$AL$2)^(55.5-$X17) -> 1.501620661 | AJ17: =+PRODUCT(S18:S$41)*(1+$AL$3)^(55.5-$X17) -> 1.740786493
B18: 31.5 | C18: 1.077394462 | D18: 1.068543102 | F18: 1.032237236 | G18: 1.020661656 | I18: 1.051420026 | J18: 1.030070478 | L18: 1.065033505 | M18: 1.056025493 | O18: 1.07515848 | P18: 1.064259414 | R18: 1.050814961 | S18: 1.009758979 | U18: 984.9714999 | X18: 31.5 | Y18: =+PRODUCT(C19:C$41)*(1+$AL$2)^(55.5-$X18) -> 2.667880982 | Z18: =+PRODUCT(D19:D$41)*(1+$AL$3)^(55.5-$X18) -> 2.65921502 | AA18: =+PRODUCT(F19:F$41)*(1+$AL$2)^(55.5-$X18) -> 1.535852336 | AB18: =+PRODUCT(G19:G$41)*(1+$AL$3)^(55.5-$X18) -> 1.888405755 | AC18: =+PRODUCT(I19:I$41)*(1+$AL$2)^(55.5-$X18) -> 2.152489451 | AD18: =+PRODUCT(J19:J$41)*(1+$AL$3)^(55.5-$X18) -> 2.109432629 | AE18: =+PRODUCT(L19:L$41)*(1+$AL$2)^(55.5-$X18) -> 1.932312929 | AF18: =+PRODUCT(M19:M$41)*(1+$AL$3)^(55.5-$X18) -> 2.09193363 | AG18: =+PRODUCT(O19:O$41)*(1+$AL$2)^(55.5-$X18) -> 2.108611027 | AH18: =+PRODUCT(P19:P$41)*(1+$AL$3)^(55.5-$X18) -> 2.34252454 | AI18: =+PRODUCT(R19:R$41)*(1+$AL$2)^(55.5-$X18) -> 1.414857215 | AJ18: =+PRODUCT(S19:S$41)*(1+$AL$3)^(55.5-$X18) -> 1.693479744
B19: 32.5 | C19: 1.071201764 | D19: 1.062901912 | F19: 1.029305578 | G19: 1.018726177 | I19: 1.046785014 | J19: 1.027296101 | L19: 1.059832217 | M19: 1.050858076 | O19: 1.06603185 | P19: 1.057168237 | R19: 1.042678649 | S19: 1.007035656 | U19: 1055.103208 | X19: 32.5 | Y19: =+PRODUCT(C20:C$41)*(1+$AL$2)^(55.5-$X19) -> 2.465890561 | Z19: =+PRODUCT(D20:D$41)*(1+$AL$3)^(55.5-$X19) -> 2.457607304 | AA19: =+PRODUCT(F20:F$41)*(1+$AL$2)^(55.5-$X19) -> 1.477351245 | AB19: =+PRODUCT(G20:G$41)*(1+$AL$3)^(55.5-$X19) -> 1.820916668 | AC19: =+PRODUCT(I20:I$41)*(1+$AL$2)^(55.5-$X19) -> 2.03592681 | AD19: =+PRODUCT(J20:J$41)*(1+$AL$3)^(55.5-$X19) -> 2.017075904 | AE19: =+PRODUCT(L20:L$41)*(1+$AL$2)^(55.5-$X19) -> 1.80517358 | AF19: =+PRODUCT(M20:M$41)*(1+$AL$3)^(55.5-$X19) -> 1.955492062 | AG19: =+PRODUCT(O20:O$41)*(1+$AL$2)^(55.5-$X19) -> 1.958415867 | AH19: =+PRODUCT(P20:P$41)*(1+$AL$3)^(55.5-$X19) -> 2.176668364 | AI19: =+PRODUCT(R20:R$41)*(1+$AL$2)^(55.5-$X19) -> 1.343509555 | AJ19: =+PRODUCT(S20:S$41)*(1+$AL$3)^(55.5-$X19) -> 1.651913798
B20: 33.5 | C20: 1.065704473 | D20: 1.057823243 | F20: 1.026496136 | G20: 1.017283102 | I20: 1.042714892 | J20: 1.024946817 | L20: 1.054952641 | M20: 1.046054992 | O20: 1.058025972 | P20: 1.050867937 | R20: 1.035365623 | S20: 1.004924872 | U20: 1124.428208 | X20: 33.5 | Y20: =+PRODUCT(C21:C$41)*(1+$AL$2)^(55.5-$X20) -> 2.290950132 | Z20: =+PRODUCT(D21:D$41)*(1+$AL$3)^(55.5-$X20) -> 2.28218899 | AA20: =+PRODUCT(F21:F$41)*(1+$AL$2)^(55.5-$X20) -> 1.424967863 | AB20: =+PRODUCT(G21:G$41)*(1+$AL$3)^(55.5-$X20) -> 1.758330311 | AC20: =+PRODUCT(I21:I$41)*(1+$AL$2)^(55.5-$X20) -> 1.93319299 | AD20: =+PRODUCT(J21:J$41)*(1+$AL$3)^(55.5-$X20) -> 1.933183734 | AE20: =+PRODUCT(L21:L$41)*(1+$AL$2)^(55.5-$X20) -> 1.694199819 | AF20: =+PRODUCT(M21:M$41)*(1+$AL$3)^(55.5-$X20) -> 1.836342828 | AG20: =+PRODUCT(O21:O$41)*(1+$AL$2)^(55.5-$X20) -> 1.832682431 | AH20: =+PRODUCT(P21:P$41)*(1+$AL$3)^(55.5-$X20) -> 2.034681076 | AI20: =+PRODUCT(R21:R$41)*(1+$AL$2)^(55.5-$X20) -> 1.284770762 | AJ20: =+PRODUCT(S21:S$41)*(1+$AL$3)^(55.5-$X20) -> 1.614752656
B21: 34.5 | C21: 1.060773242 | D21: 1.053205166 | F21: 1.023766487 | G21: 1.016230929 | I21: 1.039136692 | J21: 1.022950864 | L21: 1.050346915 | M21: 1.04157151 | O21: 1.050974926 | P21: 1.045243925 | R21: 1.028783518 | S21: 1.003331735 | U21: 1192.763356 | X21: 34.5 | Y21: =+PRODUCT(C22:C$41)*(1+$AL$2)^(55.5-$X21) -> 2.138315116 | Z21: =+PRODUCT(D22:D$41)*(1+$AL$3)^(55.5-$X21) -> 2.128584264 | AA21: =+PRODUCT(F22:F$41)*(1+$AL$2)^(55.5-$X21) -> 1.37810652 | AB21: =+PRODUCT(G22:G$41)*(1+$AL$3)^(55.5-$X21) -> 1.699653044 | AC21: =+PRODUCT(I22:I$41)*(1+$AL$2)^(55.5-$X21) -> 1.841964083 | AD21: =+PRODUCT(J22:J$41)*(1+$AL$3)^(55.5-$X21) -> 1.856395816 | AE21: =+PRODUCT(L22:L$41)*(1+$AL$2)^(55.5-$X21) -> 1.597020507 | AF21: =+PRODUCT(M22:M$41)*(1+$AL$3)^(55.5-$X21) -> 1.731876395 | AG21: =+PRODUCT(O22:O$41)*(1+$AL$2)^(55.5-$X21) -> 1.726527451 | AH21: =+PRODUCT(P22:P$41)*(1+$AL$3)^(55.5-$X21) -> 1.912189441 | AI21: =+PRODUCT(R22:R$41)*(1+$AL$2)^(55.5-$X21) -> 1.236460574 | AJ21: =+PRODUCT(S22:S$41)*(1+$AL$3)^(55.5-$X21) -> 1.580933784
B22: 35.5 | C22: 1.056308027 | D22: 1.048967263 | F22: 1.021096402 | G22: 1.015478319 | I22: 1.035989544 | J22: 1.021249124 | L22: 1.045975922 | M22: 1.037369565 | O22: 1.04474759 | P22: 1.040204324 | R22: 1.022859264 | S22: 1.002178251 | U22: 1259.925508 | X22: 35.5 | Y22: =+PRODUCT(C23:C$41)*(1+$AL$2)^(55.5-$X22) -> 2.004286273 | Z22: =+PRODUCT(D23:D$41)*(1+$AL$3)^(55.5-$X22) -> 1.993338866 | AA22: =+PRODUCT(F23:F$41)*(1+$AL$2)^(55.5-$X22) -> 1.336271383 | AB22: =+PRODUCT(G23:G$41)*(1+$AL$3)^(55.5-$X22) -> 1.644151537 | AC22: =+PRODUCT(I23:I$41)*(1+$AL$2)^(55.5-$X22) -> 1.760371836 | AD22: =+PRODUCT(J23:J$41)*(1+$AL$3)^(55.5-$X22) -> 1.785628488 | AE22: =+PRODUCT(L23:L$41)*(1+$AL$2)^(55.5-$X22) -> 1.511706331 | AF22: =+PRODUCT(M23:M$41)*(1+$AL$3)^(55.5-$X22) -> 1.639968902 | AG22: =+PRODUCT(O23:O$41)*(1+$AL$2)^(55.5-$X22) -> 1.63621638 | AH22: =+PRODUCT(P23:P$41)*(1+$AL$3)^(55.5-$X22) -> 1.805778522 | AI22: =+PRODUCT(R23:R$41)*(1+$AL$2)^(55.5-$X22) -> 1.196859072 | AJ22: =+PRODUCT(S23:S$41)*(1+$AL$3)^(55.5-$X22) -> 1.549604713
B23: 36.5 | C23: 1.052230081 | D23: 1.045044995 | F23: 1.018481889 | G23: 1.014942185 | I23: 1.033221592 | J23: 1.019791983 | L23: 1.041807363 | M23: 1.033416697 | O23: 1.039239426 | P23: 1.035674541 | R23: 1.017536111 | S23: 1.001398634 | U23: 1325.731519 | X23: 36.5 | Y23: =+PRODUCT(C24:C$41)*(1+$AL$2)^(55.5-$X23) -> 1.885939102 | Z23: =+PRODUCT(D24:D$41)*(1+$AL$3)^(55.5-$X23) -> 1.87369271 | AA23: =+PRODUCT(F24:F$41)*(1+$AL$2)^(55.5-$X23) -> 1.2990324 | AB23: =+PRODUCT(G24:G$41)*(1+$AL$3)^(55.5-$X23) -> 1.591302558 | AC23: =+PRODUCT(I24:I$41)*(1+$AL$2)^(55.5-$X23) -> 1.686900879 | AD23: =+PRODUCT(J24:J$41)*(1+$AL$3)^(55.5-$X23) -> 1.72001302 | AE23: =+PRODUCT(L24:L$41)*(1+$AL$2)^(55.5-$X23) -> 1.436675334 | AF23: =+PRODUCT(M24:M$41)*(1+$AL$3)^(55.5-$X23) -> 1.558878836 | AG23: =+PRODUCT(O24:O$41)*(1+$AL$2)^(55.5-$X23) -> 1.55884792 | AH23: =+PRODUCT(P24:P$41)*(1+$AL$3)^(55.5-$X23) -> 1.712747745 | AI23: =+PRODUCT(R24:R$41)*(1+$AL$2)^(55.5-$X23) -> 1.164586662 | AJ23: =+PRODUCT(S24:S$41)*(1+$AL$3)^(55.5-$X23) -> 1.520078989
B24: 37.5 | C24: 1.048476427 | D24: 1.041385715 | F24: 1.015930825 | G24: 1.014546783 | I24: 1.030787683 | J24: 1.018537083 | L24: 1.037814359 | M24: 1.029685192 | O24: 1.034366281 | P24: 1.031593249 | R24: 1.012771064 | S24: 1.000936118 | U24: 1389.998247 | X24: 37.5 | Y24: =+PRODUCT(C25:C$41)*(1+$AL$2)^(55.5-$X24) -> 1.78093316 | Z24: =+PRODUCT(D25:D$41)*(1+$AL$3)^(55.5-$X24) -> 1.767416777 | AA24: =+PRODUCT(F25:F$41)*(1+$AL$2)^(55.5-$X24) -> 1.266002234 | AB24: =+PRODUCT(G25:G$41)*(1+$AL$3)^(55.5-$X24) -> 1.540752584 | AC24: =+PRODUCT(I25:I$41)*(1+$AL$2)^(55.5-$X24) -> 1.6203132 | AD24: =+PRODUCT(J25:J$41)*(1+$AL$3)^(55.5-$X24) -> 1.658849977 | AE24: =+PRODUCT(L25:L$41)*(1+$AL$2)^(55.5-$X24) -> 1.370621647 | AF24: =+PRODUCT(M25:M$41)*(1+$AL$3)^(55.5-$X24) -> 1.487168287 | AG24: =+PRODUCT(O25:O$41)*(1+$AL$2)^(55.5-$X24) -> 1.492134662 | AH24: =+PRODUCT(P25:P$41)*(1+$AL$3)^(55.5-$X24) -> 1.630936811 | AI24: =+PRODUCT(R25:R$41)*(1+$AL$2)^(55.5-$X24) -> 1.13851604 | AJ24: =+PRODUCT(S25:S$41)*(1+$AL$3)^(55.5-$X24) -> 1.491804859
B25: 38.5 | C25: 1.044995956 | D25: 1.037945799 | F25: 1.013459726 | G25: 1.014223475 | I25: 1.028647587 | J25: 1.017447676 | L25: 1.033974422 | M25: 1.026151394 | O25: 1.030059653 | P25: 1.027909338 | R25: 1.008532684 | S25: 1.000740813 | U25: 1452.542547 | X25: 38.5 | Y25: =+PRODUCT(C26:C$41)*(1+$AL$2)^(55.5-$X25) -> 1.687375103 | Z25: =+PRODUCT(D26:D$41)*(1+$AL$3)^(55.5-$X25) -> 1.67269408 | AA25: =+PRODUCT(F26:F$41)*(1+$AL$2)^(55.5-$X25) -> 1.236820296 | AB25: =+PRODUCT(G26:G$41)*(1+$AL$3)^(55.5-$X25) -> 1.492283951 | AC25: =+PRODUCT(I26:I$41)*(1+$AL$2)^(55.5-$X25) -> 1.55959195 | AD25: =+PRODUCT(J26:J$41)*(1+$AL$3)^(55.5-$X25) -> 1.601574882 | AE25: =+PRODUCT(L26:L$41)*(1+$AL$2)^(55.5-$X25) -> 1.312461031 | AF25: =+PRODUCT(M26:M$41)*(1+$AL$3)^(55.5-$X25) -> 1.423642349 | AG25: =+PRODUCT(O26:O$41)*(1+$AL$2)^(55.5-$X25) -> 1.434248053 | AH25: =+PRODUCT(P26:P$41)*(1+$AL$3)^(55.5-$X25) -> 1.558599546 | AI25: =+PRODUCT(R26:R$41)*(1+$AL$2)^(55.5-$X25) -> 1.117706566 | AJ25: =+PRODUCT(S26:S$41)*(1+$AL$3)^(55.5-$X25) -> 1.464342366
B26: 39.5 | C26: 1.041746611 | D26: 1.034688528 | F26: 1.011091367 | G26: 1.013910865 | I26: 1.026764622 | J26: 1.016491429 | L26: 1.030268699 | M26: 1.022795153 | O26: 1.02626299 | P26: 1.024579571 | R26: 1.004799137 | S26: 1.000768284 | U26: 1513.181276 | X26: 39.5 | Y26: =+PRODUCT(C27:C$41)*(1+$AL$2)^(55.5-$X26) -> 1.603718602 | Z26: =+PRODUCT(D27:D$41)*(1+$AL$3)^(55.5-$X26) -> 1.588031482 | AA26: =+PRODUCT(F27:F$41)*(1+$AL$2)^(55.5-$X26) -> 1.211141337 | AB26: =+PRODUCT(G27:G$41)*(1+$AL$3)^(55.5-$X26) -> 1.445785662 | AC26: =+PRODUCT(I27:I$41)*(1+$AL$2)^(55.5-$X26) -> 1.503899153 | AD26: =+PRODUCT(J27:J$41)*(1+$AL$3)^(55.5-$X26) -> 1.547731957 | AE26: =+PRODUCT(L27:L$41)*(1+$AL$2)^(55.5-$X26) -> 1.261288796 | AF26: =+PRODUCT(M27:M$41)*(1+$AL$3)^(55.5-$X26) -> 1.367302032 | AG26: =+PRODUCT(O27:O$41)*(1+$AL$2)^(55.5-$X26) -> 1.383707287 | AH26: =+PRODUCT(P27:P$41)*(1+$AL$3)^(55.5-$X26) -> 1.494311281 | AI26: =+PRODUCT(R27:R$41)*(1+$AL$2)^(55.5-$X26) -> 1.101354613 | AJ26: =+PRODUCT(S27:S$41)*(1+$AL$3)^(55.5-$X26) -> 1.437345972
B27: 40.5 | C27: 1.038693324 | D27: 1.031582499 | F27: 1.008852958 | G27: 1.013555115 | I27: 1.025104592 | J27: 1.015639525 | L27: 1.026681435 | M27: 1.019599387 | O27: 1.022928748 | P27: 1.02156674 | R27: 1.001556394 | S27: 1.000978666 | U27: 1571.731289 | X27: 40.5 | Y27: =+PRODUCT(C28:C$41)*(1+$AL$2)^(55.5-$X27) -> 1.528690099 | Z27: =+PRODUCT(D28:D$41)*(1+$AL$3)^(55.5-$X27) -> 1.512193491 | AA27: =+PRODUCT(F28:F$41)*(1+$AL$2)^(55.5-$X27) -> 1.188626973 | AB27: =+PRODUCT(G28:G$41)*(1+$AL$3)^(55.5-$X27) -> 1.401227866 | AC27: =+PRODUCT(I28:I$41)*(1+$AL$2)^(55.5-$X27) -> 1.45254355 | AD27: =+PRODUCT(J28:J$41)*(1+$AL$3)^(55.5-$X27) -> 1.496953735 | AE27: =+PRODUCT(L28:L$41)*(1+$AL$2)^(55.5-$X27) -> 1.216346907 | AF27: =+PRODUCT(M28:M$41)*(1+$AL$3)^(55.5-$X27) -> 1.317307352 | AG27: =+PRODUCT(O28:O$41)*(1+$AL$2)^(55.5-$X27) -> 1.33929877 | AH27: =+PRODUCT(P28:P$41)*(1+$AL$3)^(55.5-$X27) -> 1.436900025 | AI27: =+PRODUCT(R28:R$41)*(1+$AL$2)^(55.5-$X27) -> 1.088755579 | AJ27: =+PRODUCT(S28:S$41)*(1+$AL$3)^(55.5-$X27) -> 1.410550752
B28: 41.5 | C28: 1.035806473 | D28: 1.028600408 | F28: 1.006774689 | G28: 1.01311029 | I28: 1.023634945 | J28: 1.014865987 | L28: 1.023199585 | M28: 1.01654974 | O28: 1.020015998 | P28: 1.018838178 | R28: 0.9987964792 | S28: 1.001336153 | U28: 1628.009443 | X28: 41.5 | Y28: =+PRODUCT(C29:C$41)*(1+$AL$2)^(55.5-$X28) -> 1.461232955 | Z28: =+PRODUCT(D29:D$41)*(1+$AL$3)^(55.5-$X28) -> 1.444151961 | AA28: =+PRODUCT(F29:F$41)*(1+$AL$2)^(55.5-$X28) -> 1.168939189 | AB28: =+PRODUCT(G29:G$41)*(1+$AL$3)^(55.5-$X28) -> 1.358639576 | AC28: =+PRODUCT(I29:I$41)*(1+$AL$2)^(55.5-$X28) -> 1.404955876 | AD28: =+PRODUCT(J29:J$41)*(1+$AL$3)^(55.5-$X28) -> 1.448945006 | AE28: =+PRODUCT(L29:L$41)*(1+$AL$2)^(55.5-$X28) -> 1.176998003 | AF28: =+PRODUCT(M29:M$41)*(1+$AL$3)^(55.5-$X28) -> 1.272948121 | AG28: =+PRODUCT(O29:O$41)*(1+$AL$2)^(55.5-$X28) -> 1.300017244 | AH28: =+PRODUCT(P29:P$41)*(1+$AL$3)^(55.5-$X28) -> 1.385394833 | AI28: =+PRODUCT(R29:R$41)*(1+$AL$2)^(55.5-$X28) -> 1.07927475 | AJ28: =+PRODUCT(S29:S$41)*(1+$AL$3)^(55.5-$X28) -> 1.38376086
B29: 42.5 | C29: 1.033060712 | D29: 1.025718098 | F29: 1.004888445 | G29: 1.012538623 | I29: 1.022324129 | J29: 1.01414717 | L29: 1.019812562 | M29: 1.013634323 | O29: 1.01748842 | P29: 1.016364552 | R29: 0.9965156597 | S29: 1.001808743 | U29: 1681.832595 | X29: 42.5 | Y29: =+PRODUCT(C30:C$41)*(1+$AL$2)^(55.5-$X29) -> 1.400464934 | Z29: =+PRODUCT(D30:D$41)*(1+$AL$3)^(55.5-$X29) -> 1.383047506 | AA29: =+PRODUCT(F30:F$41)*(1+$AL$2)^(55.5-$X29) -> 1.151735339 | AB29: =+PRODUCT(G30:G$41)*(1+$AL$3)^(55.5-$X29) -> 1.318089452 | AC29: =+PRODUCT(I30:I$41)*(1+$AL$2)^(55.5-$X29) -> 1.360669657 | AD29: =+PRODUCT(J30:J$41)*(1+$AL$3)^(55.5-$X29) -> 1.403470025 | AE29: =+PRODUCT(L30:L$41)*(1+$AL$2)^(55.5-$X29) -> 1.142704651 | AF29: =+PRODUCT(M30:M$41)*(1+$AL$3)^(55.5-$X29) -> 1.233620615 | AG29: =+PRODUCT(O30:O$41)*(1+$AL$2)^(55.5-$X29) -> 1.265022541 | AH29: =+PRODUCT(P30:P$41)*(1+$AL$3)^(55.5-$X29) -> 1.33898674 | AI29: =+PRODUCT(R30:R$41)*(1+$AL$2)^(55.5-$X29) -> 1.072325207 | AJ29: =+PRODUCT(S30:S$41)*(1+$AL$3)^(55.5-$X29) -> 1.356839401
B30: 43.5 | C30: 1.030434066 | D30: 1.0229138 | F30: 1.00322653 | G30: 1.011810664 | I30: 1.021141083 | J30: 1.013461353 | L30: 1.016512101 | M30: 1.010843525 | O30: 1.015312605 | P30: 1.014118835 | R30: 0.9947124966 | S30: 1.002368164 | U30: 1733.017599 | X30: 43.5 | Y30: =+PRODUCT(C31:C$41)*(1+$AL$2)^(55.5-$X30) -> 1.345645481 | Z30: =+PRODUCT(D31:D$41)*(1+$AL$3)^(55.5-$X30) -> 1.328159651 | AA30: =+PRODUCT(F31:F$41)*(1+$AL$2)^(55.5-$X30) -> 1.136664536 | AB30: =+PRODUCT(G31:G$41)*(1+$AL$3)^(55.5-$X30) -> 1.279669603 | AC30: =+PRODUCT(I31:I$41)*(1+$AL$2)^(55.5-$X30) -> 1.31930612 | AD30: =+PRODUCT(J31:J$41)*(1+$AL$3)^(55.5-$X30) -> 1.360342201 | AE30: =+PRODUCT(L31:L$41)*(1+$AL$2)^(55.5-$X30) -> 1.113012567 | AF30: =+PRODUCT(M31:M$41)*(1+$AL$3)^(55.5-$X30) -> 1.198808757 | AG30: =+PRODUCT(O31:O$41)*(1+$AL$2)^(55.5-$X30) -> 1.233607815 | AH30: =+PRODUCT(P31:P$41)*(1+$AL$3)^(55.5-$X30) -> 1.296999023 | AI30: =+PRODUCT(R31:R$41)*(1+$AL$2)^(55.5-$X30) -> 1.067351752 | AJ30: =+PRODUCT(S31:S$41)*(1+$AL$3)^(55.5-$X30) -> 1.329699189
B31: 44.5 | C31: 1.027907226 | D31: 1.020167504 | F31: 1.001820256 | G31: 1.010905299 | I31: 1.020054848 | J31: 1.012788424 | L31: 1.013292219 | M31: 1.008169886 | O31: 1.013456592 | P31: 1.012075448 | R31: 0.9933856952 | S31: 1.002989905 | U31: 1781.381313 | X31: 44.5 | Y31: =+PRODUCT(C32:C$41)*(1+$AL$2)^(55.5-$X31) -> 1.296150299 | Z31: =+PRODUCT(D32:D$41)*(1+$AL$3)^(55.5-$X31) -> 1.278883602 | AA31: =+PRODUCT(F32:F$41)*(1+$AL$2)^(55.5-$X31) -> 1.123365619 | AB31: =+PRODUCT(G32:G$41)*(1+$AL$3)^(55.5-$X31) -> 1.243482286 | AC31: =+PRODUCT(I32:I$41)*(1+$AL$2)^(55.5-$X31) -> 1.280562203 | AD31: =+PRODUCT(J32:J$41)*(1+$AL$3)^(55.5-$X31) -> 1.319415751 | AE31: =+PRODUCT(L32:L$41)*(1+$AL$2)^(55.5-$X31) -> 1.087536863 | AF31: =+PRODUCT(M32:M$41)*(1+$AL$3)^(55.5-$X31) -> 1.168068757 | AG31: =+PRODUCT(O32:O$41)*(1+$AL$2)^(55.5-$X31) -> 1.20517631 | AH31: =+PRODUCT(P32:P$41)*(1+$AL$3)^(55.5-$X31) -> 1.258864486 | AI31: =+PRODUCT(R32:R$41)*(1+$AL$2)^(55.5-$X31) -> 1.063820345 | AJ31: =+PRODUCT(S32:S$41)*(1+$AL$3)^(55.5-$X31) -> 1.302294073
B32: 45.5 | C32: 1.025462981 | D32: 1.017460428 | F32: 1.000698274 | G32: 1.009809678 | I32: 1.019034269 | J32: 1.012109605 | L32: 1.010149268 | M32: 1.005608023 | O32: 1.011888583 | P32: 1.010209492 | R32: 0.9925317267 | S32: 1.003653294 | U32: 1826.740592 | X32: 45.5 | Y32: =+PRODUCT(C33:C$41)*(1+$AL$2)^(55.5-$X32) -> 1.251451443 | Z32: =+PRODUCT(D33:D$41)*(1+$AL$3)^(55.5-$X32) -> 1.234712127 | AA32: =+PRODUCT(F33:F$41)*(1+$AL$2)^(55.5-$X32) -> 1.111467078 | AB32: =+PRODUCT(G33:G$41)*(1+$AL$3)^(55.5-$X32) -> 1.209629295 | AC32: =+PRODUCT(I33:I$41)*(1+$AL$2)^(55.5-$X32) -> 1.244200914 | AD32: =+PRODUCT(J33:J$41)*(1+$AL$3)^(55.5-$X32) -> 1.280578895 | AE32: =+PRODUCT(L33:L$41)*(1+$AL$2)^(55.5-$X32) -> 1.065950554 | AF32: =+PRODUCT(M33:M$41)*(1+$AL$3)^(55.5-$X32) -> 1.141016436 | AG32: =+PRODUCT(O33:O$41)*(1+$AL$2)^(55.5-$X32) -> 1.179224563 | AH32: =+PRODUCT(P33:P$41)*(1+$AL$3)^(55.5-$X32) -> 1.224108064 | AI32: =+PRODUCT(R33:R$41)*(1+$AL$2)^(55.5-$X32) -> 1.061212898 | AJ32: =+PRODUCT(S33:S$41)*(1+$AL$3)^(55.5-$X32) -> 1.274610734
B33: 46.5 | C33: 1.023085763 | D33: 1.014774554 | F33: 0.9998845586 | G33: 1.008519112 | I33: 1.018047746 | J33: 1.011407223 | L33: 1.007082092 | M33: 1.003154617 | O33: 1.010575832 | P33: 1.008496089 | R33: 0.9921422378 | S33: 1.004341597 | U33: 1868.912293 | X33: 46.5 | Y33: =+PRODUCT(C34:C$41)*(1+$AL$2)^(55.5-$X33) -> 1.211101629 | Z33: =+PRODUCT(D34:D$41)*(1+$AL$3)^(55.5-$X33) -> 1.195221418 | AA33: =+PRODUCT(F34:F$41)*(1+$AL$2)^(55.5-$X33) -> 1.100589507 | AB33: =+PRODUCT(G34:G$41)*(1+$AL$3)^(55.5-$X33) -> 1.178203709 | AC33: =+PRODUCT(I34:I$41)*(1+$AL$2)^(55.5-$X33) -> 1.210043535 | AD33: =+PRODUCT(J34:J$41)*(1+$AL$3)^(55.5-$X33) -> 1.243748332 | AE33: =+PRODUCT(L34:L$41)*(1+$AL$2)^(55.5-$X33) -> 1.047974735 | AF33: =+PRODUCT(M34:M$41)*(1+$AL$3)^(55.5-$X33) -> 1.117316586 | AG33: =+PRODUCT(O34:O$41)*(1+$AL$2)^(55.5-$X33) -> 1.155330491 | AH33: =+PRODUCT(P34:P$41)*(1+$AL$3)^(55.5-$X33) -> 1.192333545 | AI33: =+PRODUCT(R34:R$41)*(1+$AL$2)^(55.5-$X33) -> 1.059027426 | AJ33: =+PRODUCT(S34:S$41)*(1+$AL$3)^(55.5-$X33) -> 1.246660913
B34: 47.5 | C34: 1.020761263 | D34: 1.012092193 | F34: 0.9993959853 | G34: 1.00703702 | I34: 1.017063033 | J34: 1.010664487 | L34: 1.004092277 | M34: 1.000808441 | O34: 1.009483691 | P34: 1.006909764 | R34: 0.9922013252 | S34: 1.005042089 | U34: 1907.713272 | X34: 47.5 | Y34: =+PRODUCT(C35:C$41)*(1+$AL$2)^(55.5-$X34) -> 1.174721816 | Z34: =+PRODUCT(D35:D$41)*(1+$AL$3)^(55.5-$X34) -> 1.160060165 | AA34: =+PRODUCT(F35:F$41)*(1+$AL$2)^(55.5-$X34) -> 1.090351169 | AB34: =+PRODUCT(G35:G$41)*(1+$AL$3)^(55.5-$X34) -> 1.149283499 | AC34: =+PRODUCT(I35:I$41)*(1+$AL$2)^(55.5-$X34) -> 1.177963279 | AD34: =+PRODUCT(J35:J$41)*(1+$AL$3)^(55.5-$X34) -> 1.208864788 | AE34: =+PRODUCT(L35:L$41)*(1+$AL$2)^(55.5-$X34) -> 1.033369912 | AF34: =+PRODUCT(M35:M$41)*(1+$AL$3)^(55.5-$X34) -> 1.096673901 | AG34: =+PRODUCT(O35:O$41)*(1+$AL$2)^(55.5-$X34) -> 1.133145177 | AH34: =+PRODUCT(P35:P$41)*(1+$AL$3)^(55.5-$X34) -> 1.163213497 | AI34: =+PRODUCT(R35:R$41)*(1+$AL$2)^(55.5-$X34) -> 1.056783517 | AJ34: =+PRODUCT(S35:S$41)*(1+$AL$3)^(55.5-$X34) -> 1.218474138
B35: 48.5 | C35: 1.018476106 | D35: 1.009395573 | F35: 0.9992395166 | G35: 1.005375027 | I35: 1.016047033 | J35: 1.009865279 | L35: 1.001184512 | M35: 0.998570437 | O35: 1.008574801 | P35: 1.005423894 | R35: 0.9926828173 | S35: 1.005746086 | U35: 1942.960385 | X35: 48.5 | Y35: =+PRODUCT(C36:C$41)*(1+$AL$2)^(55.5-$X35) -> 1.141991353 | Z35: =+PRODUCT(D36:D$41)*(1+$AL$3)^(55.5-$X35) -> 1.128941246 | AA35: =+PRODUCT(F36:F$41)*(1+$AL$2)^(55.5-$X35) -> 1.080377222 | AB35: =+PRODUCT(G36:G$41)*(1+$AL$3)^(55.5-$X35) -> 1.12292642 | AC35: =+PRODUCT(I36:I$41)*(1+$AL$2)^(55.5-$X35) -> 1.147880204 | AD35: =+PRODUCT(J36:J$41)*(1+$AL$3)^(55.5-$X35) -> 1.175889491 | AE35: =+PRODUCT(L36:L$41)*(1+$AL$2)^(55.5-$X35) -> 1.02192804 | AF35: =+PRODUCT(M36:M$41)*(1+$AL$3)^(55.5-$X35) -> 1.078825059 | AG35: =+PRODUCT(O36:O$41)*(1+$AL$2)^(55.5-$X35) -> 1.112387417 | AH35: =+PRODUCT(P36:P$41)*(1+$AL$3)^(55.5-$X35) -> 1.136481715 | AI35: =+PRODUCT(R36:R$41)*(1+$AL$2)^(55.5-$X35) -> 1.054032865 | AJ35: =+PRODUCT(S36:S$41)*(1+$AL$3)^(55.5-$X35) -> 1.190091044
B36: 49.5 | C36: 1.016217574 | D36: 1.00666642 | F36: 0.999409066 | G36: 1.003553306 | I36: 1.014965568 | J36: 1.008993924 | L36: 0.998367076 | M36: 0.9964438432 | O36: 1.007808436 | P36: 1.004010174 | R36: 0.9935477695 | S36: 1.006448936 | U36: 1974.470488 | X36: 49.5 | Y36: =+PRODUCT(C37:C$41)*(1+$AL$2)^(55.5-$X36) -> 1.112640184 | Z36: =+PRODUCT(D37:D$41)*(1+$AL$3)^(55.5-$X36) -> 1.101635647 | AA36: =+PRODUCT(F37:F$41)*(1+$AL$2)^(55.5-$X36) -> 1.070312902 | AB36: =+PRODUCT(G37:G$41)*(1+$AL$3)^(55.5-$X36) -> 1.099165469 | AC36: =+PRODUCT(I37:I$41)*(1+$AL$2)^(55.5-$X36) -> 1.119757251 | AD36: =+PRODUCT(J37:J$41)*(1+$AL$3)^(55.5-$X36) -> 1.144801475 | AE36: =+PRODUCT(L37:L$41)*(1+$AL$2)^(55.5-$X36) -> 1.013464852 | AF36: =+PRODUCT(M37:M$41)*(1+$AL$3)^(55.5-$X36) -> 1.063531652 | AG36: =+PRODUCT(O37:O$41)*(1+$AL$2)^(55.5-$X36) -> 1.092840307 | AH36: =+PRODUCT(P37:P$41)*(1+$AL$3)^(55.5-$X36) -> 1.11192773 | AI36: =+PRODUCT(R37:R$41)*(1+$AL$2)^(55.5-$X36) -> 1.050374152 | AJ36: =+PRODUCT(S37:S$41)*(1+$AL$3)^(55.5-$X36) -> 1.161557367
B37: 50.5 | C37: 1.013973341 | D37: 1.003885512 | F37: 0.999882204 | G37: 1.001601282 | I37: 1.013783086 | J37: 1.008034958 | L37: 0.995652451 | M37: 0.9944343603 | O37: 1.00713999 | P37: 1.002638105 | R37: 0.9947424286 | S37: 1.007149944 | U37: 2002.060437 | X37: 50.5 | Y37: =+PRODUCT(C38:C$41)*(1+$AL$2)^(55.5-$X37) -> 1.08644271 | Z37: =+PRODUCT(D38:D$41)*(1+$AL$3)^(55.5-$X37) -> 1.077968365 | AA37: =+PRODUCT(F38:F$41)*(1+$AL$2)^(55.5-$X37) -> 1.05984059 | AB37: =+PRODUCT(G38:G$41)*(1+$AL$3)^(55.5-$X37) -> 1.078004134 | AC37: =+PRODUCT(I38:I$41)*(1+$AL$2)^(55.5-$X37) -> 1.093597398 | AD37: =+PRODUCT(J38:J$41)*(1+$AL$3)^(55.5-$X37) -> 1.115595642 | AE37: =+PRODUCT(L38:L$41)*(1+$AL$2)^(55.5-$X37) -> 1.007812059 | AF37: =+PRODUCT(M38:M$41)*(1+$AL$3)^(55.5-$X37) -> 1.050573688 | AG37: =+PRODUCT(O38:O$41)*(1+$AL$2)^(55.5-$X37) -> 1.074349263 | AH37: =+PRODUCT(P38:P$41)*(1+$AL$3)^(55.5-$X37) -> 1.089392992 | AI37: =+PRODUCT(R38:R$41)*(1+$AL$2)^(55.5-$X37) -> 1.045471046 | AJ37: =+PRODUCT(S38:S$41)*(1+$AL$3)^(55.5-$X37) -> 1.132918719
B38: 51.5 | C38: 1.01173124 | D38: 1.001032183 | F38: 1.000616947 | G38: 0.9995588062 | I38: 1.012462266 | J38: 1.006972855 | L38: 0.9930580923 | M38: 0.9925503616 | O38: 1.006520585 | P38: 1.00127446 | R38: 0.9961969341 | S38: 1.007852248 | U38: 2025.547089 | X38: 51.5 | Y38: =+PRODUCT(C39:C$41)*(1+$AL$2)^(55.5-$X38) -> 1.063213044 | Z38: =+PRODUCT(D39:D$41)*(1+$AL$3)^(55.5-$X38) -> 1.057816161 | AA38: =+PRODUCT(F39:F$41)*(1+$AL$2)^(55.5-$X38) -> 1.048700127 | AB38: =+PRODUCT(G39:G$41)*(1+$AL$3)^(55.5-$X38) -> 1.059410563 | AC38: =+PRODUCT(I39:I$41)*(1+$AL$2)^(55.5-$X38) -> 1.06944203 | AD38: =+PRODUCT(J39:J$41)*(1+$AL$3)^(55.5-$X38) -> 1.088281553 | AE38: =+PRODUCT(L39:L$41)*(1+$AL$2)^(55.5-$X38) -> 1.004809013 | AF38: =+PRODUCT(M39:M$41)*(1+$AL$3)^(55.5-$X38) -> 1.039743442 | AG38: =+PRODUCT(O39:O$41)*(1+$AL$2)^(55.5-$X38) -> 1.05682105 | AH38: =+PRODUCT(P39:P$41)*(1+$AL$3)^(55.5-$X38) -> 1.068768538 | AI38: =+PRODUCT(R39:R$41)*(1+$AL$2)^(55.5-$X38) -> 1.039071505 | AJ38: =+PRODUCT(S39:S$41)*(1+$AL$3)^(55.5-$X38) -> 1.104216178
B39: 52.5 | C39: 1.009479025 | D39: 0.9980837492 | F39: 1.001548921 | G39: 0.997477899 | I39: 1.010963458 | J39: 1.005791723 | L39: 0.9906073557 | M39: 0.9908031405 | O39: 1.005896768 | P39: 0.9998827262 | R39: 0.9978249831 | S39: 1.008562635 | U39: 2044.747299 | X39: 52.5 | Y39: =+PRODUCT(C40:C$41)*(1+$AL$2)^(55.5-$X39) -> 1.042801442 | Z39: =+PRODUCT(D40:D$41)*(1+$AL$3)^(55.5-$X39) -> 1.041107165 | AA39: =+PRODUCT(F40:F$41)*(1+$AL$2)^(55.5-$X39) -> 1.036711173 | AB39: =+PRODUCT(G40:G$41)*(1+$AL$3)^(55.5-$X39) -> 1.043309685 | AC39: =+PRODUCT(I40:I$41)*(1+$AL$2)^(55.5-$X39) -> 1.047370691 | AD39: =+PRODUCT(J40:J$41)*(1+$AL$3)^(55.5-$X39) -> 1.062882929 | AE39: =+PRODUCT(L40:L$41)*(1+$AL$2)^(55.5-$X39) -> 1.004293379 | AF39: =+PRODUCT(M40:M$41)*(1+$AL$3)^(55.5-$X39) -> 1.030839466 | AG39: =+PRODUCT(O40:O$41)*(1+$AL$2)^(55.5-$X39) -> 1.040223518 | AH39: =+PRODUCT(P40:P$41)*(1+$AL$3)^(55.5-$X39) -> 1.049993999 | AI39: =+PRODUCT(R40:R$41)*(1+$AL$2)^(55.5-$X39) -> 1.031026168 | AJ39: =+PRODUCT(S40:S$41)*(1+$AL$3)^(55.5-$X39) -> 1.075482761
B40: 53.5 | C40: 1.00720413 | D40: 0.995014821 | F40: 1.002589207 | G40: 0.995425165 | I40: 1.009243909 | J40: 1.004474945 | L40: 0.9883305927 | M40: 0.9892071869 | O40: 1.005210243 | P40: 0.9984224515 | R40: 0.9995245792 | S40: 1.009291317 | U40: 2059.477925 | X40: 53.5 | Y40: =+PRODUCT(C41:C$41)*(1+$AL$2)^(55.5-$X40) -> 1.025091781 | Z40: =+PRODUCT(D41:D$41)*(1+$AL$3)^(55.5-$X40) -> 1.027822469 | AA40: =+PRODUCT(F41:F$41)*(1+$AL$2)^(55.5-$X40) -> 1.023795887 | AB40: =+PRODUCT(G41:G$41)*(1+$AL$3)^(55.5-$X40) -> 1.029572289 | AC40: =+PRODUCT(I41:I$41)*(1+$AL$2)^(55.5-$X40) -> 1.027502544 | AD40: =+PRODUCT(J41:J$41)*(1+$AL$3)^(55.5-$X40) -> 1.039437895 | AE40: =+PRODUCT(L41:L$41)*(1+$AL$2)^(55.5-$X40) -> 1.006090359 | AF40: =+PRODUCT(M41:M$41)*(1+$AL$3)^(55.5-$X40) -> 1.02366062 | AG40: =+PRODUCT(O41:O$41)*(1+$AL$2)^(55.5-$X40) -> 1.024585934 | AH40: =+PRODUCT(P41:P$41)*(1+$AL$3)^(55.5-$X40) -> 1.033057989 | AI40: =+PRODUCT(R41:R$41)*(1+$AL$2)^(55.5-$X40) -> 1.021303537 | AJ40: =+PRODUCT(S41:S$41)*(1+$AL$3)^(55.5-$X40) -> 1.046740766
B41: 54.5 | C41: 1.004893423 | D41: 0.9917964546 | F41: 1.003623064 | G41: 0.9934849422 | I41: 1.007256685 | J41: 1.00300475 | L41: 0.9862664041 | M41: 0.9877804817 | O41: 1.004397544 | P41: 0.9968484653 | R41: 1.001179823 | S41: 1.01005165 | U41: 2069.555821 | X41: 54.5 | Y41: =+PRODUCT(C$41:C42)*(1+$AL$2)^(55.5-$X41) -> 1.017513127 | Z41: =+PRODUCT(D$41:D42)*(1+$AL$3)^(55.5-$X41) -> 0.9979318974 | AA41: =+PRODUCT(F$41:F42)*(1+$AL$2)^(55.5-$X41) -> 1.018230469 | AB41: =+PRODUCT(G$41:G42)*(1+$AL$3)^(55.5-$X41) -> 1.003037218 | AC41: =+PRODUCT(I$41:I42)*(1+$AL$2)^(55.5-$X41) -> 1.022364192 | AD41: =+PRODUCT(J$41:J42)*(1+$AL$3)^(55.5-$X41) -> 1.022449218 | AE41: =+PRODUCT(L$41:L42)*(1+$AL$2)^(55.5-$X41) -> 0.9806522281 | AF41: =+PRODUCT(M$41:M42)*(1+$AL$3)^(55.5-$X41) -> 0.9920305009 | AG41: =+PRODUCT(O$41:O42)*(1+$AL$2)^(55.5-$X41) -> 1.017880007 | AH41: =+PRODUCT(P$41:P42)*(1+$AL$3)^(55.5-$X41) -> 1.009829283 | AI41: =+PRODUCT(R$41:R42)*(1+$AL$2)^(55.5-$X41) -> 1.01388492 | AJ41: =+PRODUCT(S$41:S42)*(1+$AL$3)^(55.5-$X41) -> 1.039398983
B42: 55.5 | C42: 1.002532922 | D42: 0.9883950801 | F42: 1.004509577 | G42: 0.9917631808 | I42: 1.004949175 | J42: 1.001361706 | L42: 0.9844630174 | M42: 0.9865447887 | O42: 1.003389538 | P42: 0.995109879 | R42: 1.00266349 | S42: 1.010859803 | U42: 2074.797844 | X42: 55.5 | Y42: 1 | Z42: 1 | AA42: 1 | AB42: 1 | AC42: 1 | AD42: 1 | AE42: 1 | AF42: 1 | AG42: 1 | AH42: 1 | AI42: 1 | AJ42: 1 | AK42: 1,58% launah á ári frá aldamótum
B43: 56.5 | C43: 1.000107484 | D43: 0.9847711142 | F43: 1.005081939 | G43: 0.9903919126 | I43: 1.002261027 | J43: 0.9995240862 | L43: 0.9829797133 | M43: 0.9855259172 | O43: 1.002110593 | P43: 0.9931487617 | R43: 1.003839945 | S43: 1.011734385 | U43: 2075.020851 | W43: =+U43/E43 ->  | X43: 56.5 | Y43: =1/PRODUCT(C$43:C43)*$AK43 -> 0.9843399566 | Z43: =1/PRODUCT(D$43:D43)*$AK43 -> 0.9996696114 | AA43: =1/PRODUCT(F$43:F43)*$AK43 -> 0.9794681601 | AB43: =1/PRODUCT(G$43:G43)*$AK43 -> 0.993996159 | AC43: =1/PRODUCT(I$43:I43)*$AK43 -> 0.9822249204 | AD43: =1/PRODUCT(J$43:J43)*$AK43 -> 0.9849144914 | AE43: =1/PRODUCT(L$43:L43)*$AK43 -> 1.001491428 | AF43: =1/PRODUCT(M$43:M43)*$AK43 -> 0.9989039759 | AG43: =1/PRODUCT(O$43:O43)*$AK43 -> 0.9823723689 | AH43: =1/PRODUCT(P$43:P43)*$AK43 -> 0.9912369576 | AI43: =1/PRODUCT(R$43:R43)*$AK43 -> 0.9806799997 | AJ43: =1/PRODUCT(S$43:S43)*$AK43 -> 0.9730278736 | AK43: =1/1.0158^($X43-$X$42) -> 0.984445757
B44: 57.5 | C44: 0.997600432 | D44: 0.9808771325 | F44: 1.005147689 | G44: 0.9895339249 | I44: 0.9991212748 | J44: 0.9974670902 | L44: 0.9818881626 | M44: 0.9847539122 | O44: 1.000477189 | P44: 0.9908983289 | R44: 1.00456774 | S44: 1.012695993 | U44: 2070.041697 | X44: 57.5 | Y44: =1/PRODUCT(C$43:C44)*$AK44 -> 0.9713601385 | Z44: =1/PRODUCT(D$43:D44)*$AK44 -> 1.003306607 | AA44: =1/PRODUCT(F$43:F44)*$AK44 -> 0.9592951211 | AB44: =1/PRODUCT(G$43:G44)*$AK44 -> 0.9888850464 | AC44: =1/PRODUCT(I$43:I44)*$AK44 -> 0.9677975834 | AD44: =1/PRODUCT(J$43:J44)*$AK44 -> 0.9720570249 | AE44: =1/PRODUCT(L$43:L44)*$AK44 -> 1.004100085 | AF44: =1/PRODUCT(M$43:M44)*$AK44 -> 0.9985913928 | AG44: =1/PRODUCT(O$43:O44)*$AK44 -> 0.9666310446 | AH44: =1/PRODUCT(P$43:P44)*$AK44 -> 0.9847821806 | AI44: =1/PRODUCT(R$43:R44)*$AK44 -> 0.9610365 | AJ44: =1/PRODUCT(S$43:S44)*$AK44 -> 0.9458842218 | AK44: =1/1.0158^($X44-$X$42) -> 0.9691334486
B45: 58.5 | C45: 0.9949931163 | D45: 0.9766554103 | F45: 1.004487778 | G45: 0.9893868416 | I45: 0.9954443261 | J45: 0.9951618566 | L45: 0.98127344 | M45: 0.9842631177 | O45: 0.998395698 | P45: 0.9882804138 | R45: 1.004701154 | S45: 1.013766708 | U45: 2059.677239 | W45: =+U45/E45 ->  | X45: 58.5 | Y45: =1/PRODUCT(C$43:C45)*$AK45 -> 0.9610632991 | Z45: =1/PRODUCT(D$43:D45)*$AK45 -> 1.011309538 | AA45: =1/PRODUCT(F$43:F45)*$AK45 -> 0.9401548053 | AB45: =1/PRODUCT(G$43:G45)*$AK45 -> 0.9839464679 | AC45: =1/PRODUCT(I$43:I45)*$AK45 -> 0.9571044805 | AD45: =1/PRODUCT(J$43:J45)*$AK45 -> 0.9615897227 | AE45: =1/PRODUCT(L$43:L45)*$AK45 -> 1.007346197 | AF45: =1/PRODUCT(M$43:M45)*$AK45 -> 0.9987766909 | AG45: =1/PRODUCT(O$43:O45)*$AK45 -> 0.9531249307 | AH45: =1/PRODUCT(P$43:P45)*$AK45 -> 0.9809610975 | AI45: =1/PRODUCT(R$43:R45)*$AK45 -> 0.9416614099 | AJ45: =1/PRODUCT(S$43:S45)*$AK45 -> 0.9185266212 | AK45: 0.9540593114
B46: 59.5 | C46: 0.9922643675 | D46: 0.9720345513 | F46: 1.002852698 | G46: 0.9901851788 | I46: 0.9911242536 | J46: 0.9925741949 | L46: 0.981234358 | M46: 0.9840920375 | O46: 0.995758908 | P46: 0.9852018756 | R46: 1.004089844 | S46: 1.014969487 | U46: 2043.744333 | X46: 59.5 | Y46: =1/PRODUCT(C$43:C46)*$AK46 -> 0.9534905395 | Z46: =1/PRODUCT(D$43:D46)*$AK46 -> 1.024222218 | AA46: =1/PRODUCT(F$43:F46)*$AK46 -> 0.9228986576 | AB46: =1/PRODUCT(G$43:G46)*$AK46 -> 0.9782432077 | AC46: =1/PRODUCT(I$43:I46)*$AK46 -> 0.9506552195 | AD46: =1/PRODUCT(J$43:J46)*$AK46 -> 0.9537150244 | AE46: =1/PRODUCT(L$43:L46)*$AK46 -> 1.010643055 | AF46: =1/PRODUCT(M$43:M46)*$AK46 -> 0.9991356887 | AG46: =1/PRODUCT(O$43:O46)*$AK46 -> 0.9422961587 | AH46: =1/PRODUCT(P$43:P46)*$AK46 -> 0.9802082336 | AI46: =1/PRODUCT(R$43:R46)*$AK46 -> 0.9232386772 | AJ46: =1/PRODUCT(S$43:S46)*$AK46 -> 0.8909032699 | AK46: 0.9392196411
B47: 60.5 | C47: 0.9893898185 | D47: 0.9669247696 | F47: 0.9999532279 | G47: 0.9921980794 | I47: 0.9860265463 | J47: 0.9896629292 | L47: 0.9818826079 | M47: 0.984282901 | O47: 0.9924407085 | P47: 0.9815494178 | R47: 1.002575737 | S47: 1.016327474 | U47: 2022.059835 | X47: 60.5 | Y47: =1/PRODUCT(C$43:C47)*$AK47 -> 0.9487258696 | Z47: =1/PRODUCT(D$43:D47)*$AK47 -> 1.042781453 | AA47: =1/PRODUCT(F$43:F47)*$AK47 -> 0.9085861641 | AB47: =1/PRODUCT(G$43:G47)*$AK47 -> 0.9705999186 | AC47: =1/PRODUCT(I$43:I47)*$AK47 -> 0.9491311373 | AD47: =1/PRODUCT(J$43:J47)*$AK47 -> 0.9486873576 | AE47: =1/PRODUCT(L$43:L47)*$AK47 -> 1.013281282 | AF47: =1/PRODUCT(M$43:M47)*$AK47 -> 0.9993010023 | AG47: =1/PRODUCT(O$43:O47)*$AK47 -> 0.9347051641 | AH47: =1/PRODUCT(P$43:P47)*$AK47 -> 0.9831006153 | AI47: =1/PRODUCT(R$43:R47)*$AK47 -> 0.9065433808 | AJ47: =1/PRODUCT(S$43:S47)*$AK47 -> 0.8629560517 | AK47: 0.9246107906
B48: 61.5 | C48: 0.9863410401 | D48: 0.9612111399 | F48: 0.9954420986 | G48: 0.9957194451 | I48: 0.9799758965 | J48: 0.9863776939 | L48: 0.9833400342 | M48: 0.9848808225 | O48: 0.988288018 | P48: 0.9771819852 | R48: 0.9999861446 | S48: 1.017863189 | U48: 1994.440601 | X48: 61.5 | Y48: =1/PRODUCT(C$43:C48)*$AK48 -> 0.9469028652 | Z48: =1/PRODUCT(D$43:D48)*$AK48 -> 1.067987807 | AA48: =1/PRODUCT(F$43:F48)*$AK48 -> 0.8985492932 | AB48: =1/PRODUCT(G$43:G48)*$AK48 -> 0.9596106377 | AC48: =1/PRODUCT(I$43:I48)*$AK48 -> 0.9534603089 | AD48: =1/PRODUCT(J$43:J48)*$AK48 -> 0.9468292417 | AE48: =1/PRODUCT(L$43:L48)*$AK48 -> 1.014420672 | AF48: =1/PRODUCT(M$43:M48)*$AK48 -> 0.9988595667 | AG48: =1/PRODUCT(O$43:O48)*$AK48 -> 0.9310712223 | AH48: =1/PRODUCT(P$43:P48)*$AK48 -> 0.9904083826 | AI48: =1/PRODUCT(R$43:R48)*$AK48 -> 0.8924551501 | AJ48: =1/PRODUCT(S$43:S48)*$AK48 -> 0.8346243712 | AK48: 0.9102291697
B49: 62.5 | C49: 0.9830844229 | D49: 0.9547437067 | F49: 0.9888806635 | G49: 1.001046469 | I49: 0.9727376148 | J49: 0.9826559448 | L49: 0.9857332418 | M49: 0.9859324352 | O49: 0.9831084775 | P49: 0.9719193918 | R49: 0.9961217358 | S49: 1.019597614 | U49: 1960.703487 | X49: 62.5 | Y49: =1/PRODUCT(C$43:C49)*$AK49 -> 0.9482140966 | Z49: =1/PRODUCT(D$43:D49)*$AK49 -> 1.101212878 | AA49: =1/PRODUCT(F$43:F49)*$AK49 -> 0.8945195025 | AB49: =1/PRODUCT(G$43:G49)*$AK49 -> 0.9436970715 | AC49: =1/PRODUCT(I$43:I49)*$AK49 -> 0.9649364241 | AD49: =1/PRODUCT(J$43:J49)*$AK49 -> 0.9485537991 | AE49: =1/PRODUCT(L$43:L49)*$AK49 -> 1.013095718 | AF49: =1/PRODUCT(M$43:M49)*$AK49 -> 0.9973533959 | AG49: =1/PRODUCT(O$43:O49)*$AK49 -> 0.9323377178 | AH49: =1/PRODUCT(P$43:P49)*$AK49 -> 1.003173039 | AI49: =1/PRODUCT(R$43:R49)*$AK49 -> 0.8819942927 | AJ49: =1/PRODUCT(S$43:S49)*$AK49 -> 0.8058496894 | AK49: 0.8960712441
B50: 63.5 | C50: 0.9795797082 | D50: 0.9473225889 | F50: 0.9796800051 | G50: 1.008442917 | I50: 0.9639884013 | J50: 0.9784188235 | L50: 0.9891847464 | M50: 0.9874838822 | O50: 0.9766514147 | P50: 0.9655248971 | R50: 0.9907371698 | S50: 1.021549176 | U50: 1920.665349 | X50: 63.5 | Y50: =1/PRODUCT(C$43:C50)*$AK50 -> 0.9529243372 | Z50: =1/PRODUCT(D$43:D50)*$AK50 -> 1.144366616 | AA50: =1/PRODUCT(F$43:F50)*$AK50 -> 0.8988709827 | AB50: =1/PRODUCT(G$43:G50)*$AK50 -> 0.92124062 | AC50: =1/PRODUCT(I$43:I50)*$AK50 -> 0.9854138983 | AD50: =1/PRODUCT(J$43:J50)*$AK50 -> 0.9543967679 | AE50: =1/PRODUCT(L$43:L50)*$AK50 -> 1.008242176 | AF50: =1/PRODUCT(M$43:M50)*$AK50 -> 0.9942849058 | AG50: =1/PRODUCT(O$43:O50)*$AK50 -> 0.9397784067 | AH50: =1/PRODUCT(P$43:P50)*$AK50 -> 1.022831669 | AI50: =1/PRODUCT(R$43:R50)*$AK50 -> 0.8763934227 | AJ50: =1/PRODUCT(S$43:S50)*$AK50 -> 0.7765806351 | AK50: 0.8821335342
B51: 64.5 | C51: 0.9757780268 | D51: 0.938674847 | F51: 0.966995807 | G51: 1.018086143 | I51: 0.9532685745 | J51: 0.9735653128 | L51: 0.9938001416 | M51: 0.9895780813 | O51: 0.9685776588 | P51: 0.9576777322 | R51: 0.9835104551 | S51: 1.023732634 | U51: 1874.143045 | X51: 64.5 | Y51: =1/PRODUCT(C$43:C51)*$AK51 -> 0.9613890607 | Z51: =1/PRODUCT(D$43:D51)*$AK51 -> 1.200167303 | AA51: =1/PRODUCT(F$43:F51)*$AK51 -> 0.9150915843 | AB51: =1/PRODUCT(G$43:G51)*$AK51 -> 0.8908002783 | AC51: =1/PRODUCT(I$43:I51)*$AK51 -> 1.017642412 | AD51: =1/PRODUCT(J$43:J51)*$AK51 -> 0.9650629869 | AE51: =1/PRODUCT(L$43:L51)*$AK51 -> 0.9987518526 | AF51: =1/PRODUCT(M$43:M51)*$AK51 -> 0.9891281702 | AG51: =1/PRODUCT(O$43:O51)*$AK51 -> 0.9551746901 | AH51: =1/PRODUCT(P$43:P51)*$AK51 -> 1.05142081 | AI51: =1/PRODUCT(R$43:R51)*$AK51 -> 0.8772268581 | AJ51: =1/PRODUCT(S$43:S51)*$AK51 -> 0.7467784907 | AK51: 0.8684126149
B52: 65.5 | C52: 0.9716192336 | D52: 0.9284172418 | F52: 0.9495329051 | G52: 1.030002812 | I52: 0.9399003312 | J52: 0.9679637746 | L52: 0.9996514339 | M52: 0.9922512424 | O52: 0.9584100083 | P52: 0.9479282141 | R52: 0.9739935908 | S52: 1.026157946 | U52: 1820.953429 | X52: 65.5 | Y52: =1/PRODUCT(C$43:C52)*$AK52 -> 0.9740805337 | Z52: =1/PRODUCT(D$43:D52)*$AK52 -> 1.272595506 | AA52: =1/PRODUCT(F$43:F52)*$AK52 -> 0.9487380822 | AB52: =1/PRODUCT(G$43:G52)*$AK52 -> 0.8514001552 | AC52: =1/PRODUCT(I$43:I52)*$AK52 -> 1.065872328 | AD52: =1/PRODUCT(J$43:J52)*$AK52 -> 0.9814955762 | AE52: =1/PRODUCT(L$43:L52)*$AK52 -> 0.9835598592 | AF52: =1/PRODUCT(M$43:M52)*$AK52 -> 0.9813472523 | AG52: =1/PRODUCT(O$43:O52)*$AK52 -> 0.9811225496 | AH52: =1/PRODUCT(P$43:P52)*$AK52 -> 1.091925253 | AI52: =1/PRODUCT(R$43:R52)*$AK52 -> 0.8866405966 | AJ52: =1/PRODUCT(S$43:S52)*$AK52 -> 0.7164227685 | AK52: 0.8549051141
B53: 66.5 | C53: 0.9670282227 | D53: 0.9159937023 | F53: 0.9251568614 | G53: 1.044007387 | I53: 0.9228399684 | J53: 0.9614393811 | L53: 1.006757863 | M53: 0.9955287305 | O53: 0.9454482917 | P53: 0.9356211916 | R53: 0.9615296959 | S53: 1.028829144 | U53: 1760.913358 | X53: 66.5 | Y53: =1/PRODUCT(C$43:C53)*$AK53 -> 0.9916250901 | Z53: =1/PRODUCT(D$43:D53)*$AK53 -> 1.367696353 | AA53: =1/PRODUCT(F$43:F53)*$AK53 -> 1.009538186 | AB53: =1/PRODUCT(G$43:G53)*$AK53 -> 0.8028269539 | AC53: =1/PRODUCT(I$43:I53)*$AK53 -> 1.137026491 | AD53: =1/PRODUCT(J$43:J53)*$AK53 -> 1.004981879 | AE53: =1/PRODUCT(L$43:L53)*$AK53 -> 0.9617618751 | AF53: =1/PRODUCT(M$43:M53)*$AK53 -> 0.9704221577 | AG53: =1/PRODUCT(O$43:O53)*$AK53 -> 1.021591492 | AH53: =1/PRODUCT(P$43:P53)*$AK53 -> 1.148906408 | AI53: =1/PRODUCT(R$43:R53)*$AK53 -> 0.9077718318 | AJ53: =1/PRODUCT(S$43:S53)*$AK53 -> 0.6855165008 | AK53: 0.8416077123
B54: 67.5 | C54: 0.9619097274 | D54: 0.900564893 | F54: =+F53 -> 0.9251568614 | G54: 1 | I54: 0.9003919773 | J54: 0.9537548805 | L54: 1 | M54: 0.99 | O54: 0.9286154837 | P54: 0.9197584033 | R54: 0.9451056437 | S54: 1.031743322 | U54: 1693.839688 | X54: 67.5 | Y54: =1/PRODUCT(C$43:C54)*$AK54 -> 1.014857304 | Z54: =1/PRODUCT(D$43:D54)*$AK54 -> 1.495087008 | AA54: =1/PRODUCT(F$43:F54)*$AK54 -> 1.074234679 | AB54: =1/PRODUCT(G$43:G54)*$AK54 -> 0.7903395884 | AC54: =1/PRODUCT(I$43:I54)*$AK54 -> 1.243170678 | AD54: =1/PRODUCT(J$43:J54)*$AK54 -> 1.037321189 | AE54: =1/PRODUCT(L$43:L54)*$AK54 -> 0.9468023973 | AF54: =1/PRODUCT(M$43:M54)*$AK54 -> 0.9649777533 | AG54: =1/PRODUCT(O$43:O54)*$AK54 -> 1.083011674 | AH54: =1/PRODUCT(P$43:P54)*$AK54 -> 1.229709926 | AI54: =1/PRODUCT(R$43:R54)*$AK54 -> 0.9455579217 | AJ54: =1/PRODUCT(S$43:S54)*$AK54 -> 0.654090796 | AK54: 0.8285171414
B55: 68.5 | C55: 0.9561408243 | D55: 0.9 | F55: 1 | G55: 1 | I55: 1 | J55: 1 | L55: 1 | M55: 1 | O55: 1 | P55: 1 | R55: 1 | S55: 1 | U55: 1619.549276 | X55: 68.5 | Y55: =1/PRODUCT(C$43:C55)*$AK55 -> 1.044900439 | Z55: =1/PRODUCT(D$43:D55)*$AK55 -> 1.635368958 | AA55: =1/PRODUCT(F$43:F55)*$AK55 -> 1.057525772 | AB55: =1/PRODUCT(G$43:G55)*$AK55 -> 0.7780464544 | AC55: =1/PRODUCT(I$43:I55)*$AK55 -> 1.223834099 | AD55: =1/PRODUCT(J$43:J55)*$AK55 -> 1.021186443 | AE55: =1/PRODUCT(L$43:L55)*$AK55 -> 0.9320756027 | AF55: =1/PRODUCT(M$43:M55)*$AK55 -> 0.9499682548 | AG55: =1/PRODUCT(O$43:O55)*$AK55 -> 1.066166248 | AH55: =1/PRODUCT(P$43:P55)*$AK55 -> 1.210582719 | AI55: =1/PRODUCT(R$43:R55)*$AK55 -> 0.930850484 | AJ55: =1/PRODUCT(S$43:S55)*$AK55 -> 0.6439169089 | AK55: 0.8156301845
B56: 69.5 | C56: 0.9495598558 | D56: 0.9 | F56: 1 | G56: 1 | I56: 1 | J56: 1 | L56: 1 | M56: 1 | O56: 1 | P56: 1 | R56: 1 | S56: 1 | U56: 1537.858977 | X56: 69.5 | Y56: =1/PRODUCT(C$43:C56)*$AK56 -> 1.08328906 | Z56: =1/PRODUCT(D$43:D56)*$AK56 -> 1.788813368 | AA56: =1/PRODUCT(F$43:F56)*$AK56 -> 1.041076759 | AB56: =1/PRODUCT(G$43:G56)*$AK56 -> 0.7659445309 | AC56: =1/PRODUCT(I$43:I56)*$AK56 -> 1.204798286 | AD56: =1/PRODUCT(J$43:J56)*$AK56 -> 1.005302661 | AE56: =1/PRODUCT(L$43:L56)*$AK56 -> 0.9175778724 | AF56: =1/PRODUCT(M$43:M56)*$AK56 -> 0.9351922178 | AG56: =1/PRODUCT(O$43:O56)*$AK56 -> 1.049582839 | AH56: =1/PRODUCT(P$43:P56)*$AK56 -> 1.191753022 | AI56: =1/PRODUCT(R$43:R56)*$AK56 -> 0.9163718094 | AJ56: =1/PRODUCT(S$43:S56)*$AK56 -> 0.6339012688 | AK56: 0.8029436745
B57: 70.5 | C57: 0.9419495996 | D57: 0.9 | F57: 1 | G57: 1 | I57: 1 | J57: 1 | L57: 1 | M57: 1 | O57: 1 | P57: 1 | R57: 1 | S57: 1 | U57: 1448.585647 | W57: =+U56/PRODUCT(C43:C56)/(1+W3)^14 -> 2074.797844 | X57: 70.5 | Y57: =1/PRODUCT(C$43:C57)*$AK57 -> 1.132161762 | Z57: =1/PRODUCT(D$43:D57)*$AK57 -> 1.956655256 | AA57: =1/PRODUCT(F$43:F57)*$AK57 -> 1.024883598 | AB57: =1/PRODUCT(G$43:G57)*$AK57 -> 0.7540308435 | AC57: =1/PRODUCT(I$43:I57)*$AK57 -> 1.186058561 | AD57: =1/PRODUCT(J$43:J57)*$AK57 -> 0.9896659391 | AE57: =1/PRODUCT(L$43:L57)*$AK57 -> 0.9033056432 | AF57: =1/PRODUCT(M$43:M57)*$AK57 -> 0.9206460108 | AG57: =1/PRODUCT(O$43:O57)*$AK57 -> 1.033257372 | AH57: =1/PRODUCT(P$43:P57)*$AK57 -> 1.173216205 | AI57: =1/PRODUCT(R$43:R57)*$AK57 -> 0.9021183397 | AJ57: =1/PRODUCT(S$43:S57)*$AK57 -> 0.6240414145 | AK57: =1/1.0158^($X57-$X$42) -> 0.7904544935
B58: =+B57+1 -> 71.5 | C58: 1 | D58: 1
B59: =+B58+1 -> 72.5 | C59: 1 | D59: 1
B60: =+B59+1 -> 73.5 | C60: 1 | D60: 1 | J60: =100000*I4 -> 224127.4606
J61: =+J60*I5 -> 295114.1504
J62: =+J61*I6 -> 368840.1646
J63: =+J62*I7 -> 444320.9107
J64: 520692.2971
A65: 25 | B65: 25.5 | C65: 2000000 | D65: 2000000 | F65: 2000000 | G65: 2000000 | H65: =+G65/D65 -> 1 | J65: 597204.0299
B66: =+B13 -> 26.5 | C66: =+C13*C65 -> 2255161.954 | D66: =+D13*D65 -> 2223458.401 | F66: =+C66*1.01^(B66-25.5) -> 2277713.573 | G66: =+D66*1.01^(B66-25.5) -> 2245692.986 | H66: =+G66/D66 -> 1.01 | J66: 673212.9097
B67: =+B14 -> 27.5 | C67: =C14*C66 -> 2511372.002 | D67: =D14*D66 -> 2446058.156 | F67: =+C67*1.01^(B67-25.5) -> 2561850.579 | G67: =+D67*1.01^(B67-25.5) -> 2495223.925 | H67: 1.0201 | J67: 748176.1296
B68: =+B15 -> 28.5 | C68: 2767973.123 | D68: 2667146.002 | F68: 2851845.476 | G68: =+D68*1.01^(B68-25.5) -> 2747963.193 | H68: 1.030301 | J68: 821644.5714
B69: 29.5 | C69: 3024308.294 | D69: 2886068.679 | F69: 3147107.338 | G69: 3003254.64 | H69: 1.04060401 | J69: 893256.1036
A70: =+A65+5 -> 30 | B70: 30.5 | C70: 3279720.492 | D70: 3102172.925 | F70: 3447019.198 | G70: 3260414.921 | H70: 1.05101005 | J70: 962728.8777
B71: 31.5 | C71: 3533552.695 | D71: 3314805.479 | F71: 3750937.389 | G71: 3518732.811 | H71: 1.061520151 | J71: 1029854.626
B72: 32.5 | C72: 3785147.88 | D72: 3523313.08 | F72: 4058190.855 | G72: =+D72*1.01^(B72-25.5) -> 3777468.51 | H72: 1.072135352 | J72: 1094491.959
B73: 33.5 | C73: 4033849.026 | D73: 3727042.468 | F73: 4368080.467 | G73: 4035852.928 | H73: 1.082856706 | J73: 1156559.661
B74: 34.5 | C74: 4278999.109 | D74: 3925340.38 | F74: 4679878.308 | G74: 4293086.963 | H74: 1.093685273 | J74: 1216029.989
A75: =+A70+5 -> 35 | B75: 35.5 | C75: 4519941.108 | D75: 4117553.555 | F75: 4992826.953 | G75: 4548340.76 | H75: 1.104622125 | J75: 1272921.968
B76: 36.5 | C76: 4756017.999 | D76: 4303028.733 | F76: 5306138.738 | G76: 4800752.952 | H76: 1.115668347 | J76: 1327294.693
B77: 37.5 | C77: 4986572.76 | D77: 4481112.653 | F77: 5618995.001 | G77: 5049429.9 | H77: 1.12682503 | J77: 1379240.617
B78: 38.5 | C78: 5210948.369 | D78: 4651152.052 | F78: 5930545.324 | G78: 5293444.897 | H78: 1.13809328 | J78: 1428878.857
B79: 39.5 | C79: 5428487.804 | D79: 4812493.67 | F79: 6239906.748 | G79: 5531837.375 | H79: 1.149474213 | J79: 1476348.488
A80: =+A75+5 -> 40 | B80: 40.5 | C80: 5638534.041 | D80: 4964484.247 | F80: =+C80*1.01^(B80-25.5) -> 6546162.976 | G80: 5763612.09 | H80: 1.160968955 | J80: 1521801.838
B81: 41.5 | C81: 5840430.059 | D81: 5106470.519 | F81: 6848363.565 | G81: 5987738.282 | H81: 1.172578645 | J81: 1565397.788
B82: 42.5 | C82: 6033518.835 | D82: 5237799.228 | F82: 7145523.093 | G82: 6203148.836 | H82: 1.184304431 | J82: 1607295.067
B83: 43.5 | C83: 6217143.346 | D83: 5357817.11 | F83: 7436620.32 | G83: 6408739.412 | H83: 1.196147476 | J83: 1647645.554
B84: 44.5 | C84: 6390646.571 | D84: 5465870.906 | F84: 7720597.321 | G84: 6603367.563 | H84: 1.20810895 | J84: 1686587.566
A85: =+A80+5 -> 45 | B85: 45.5 | C85: 6553371.485 | D85: 5561307.354 | F85: 7996358.615 | G85: 6785851.842 | H85: 1.22019004 | J85: 1724239.164
B86: 46.5 | C86: 6704661.069 | D86: 5643473.192 | F86: 8262770.264 | G86: 6954970.878 | H86: 1.23239194 | J86: 1760691.447
B87: 47.5 | C87: 6843858.297 | D87: 5711715.16 | F87: 8518658.965 | G87: 7109462.446 | H87: 1.24471586 | J87: 1796001.847
B88: 48.5 | C88: 6970306.149 | D88: 5765379.997 | F88: 8762811.117 | G88: 7248022.519 | H88: 1.257163018 | J88: 1830187.429
B89: 49.5 | C89: 7083347.602 | D89: 5803814.441 | F89: 8993971.878 | G89: =+D89*1.01^(B89-25.5) -> 7369304.289 | H89: 1.269734649 | J89: 1863218.186
A90: =+A85+5 -> 50 | B90: 50.5 | C90: 7182325.633 | D90: 5826365.231 | F90: 9210844.191 | G90: =+D90*1.01^(B90-25.5) -> 7471917.187 | H90: 1.282431995 | J90: 1895010.341
B91: 51.5 | C91: 7266583.22 | D91: 5832379.106 | F91: =+C91*1.01^(B91-25.5) -> 9412087.804 | G91: 7554425.869 | H91: 1.295256315 | J91: =+J90*I35 -> 1925419.635
B92: 52.5 | C92: 7335463.341 | D92: 5821202.805 | F92: 9596318.267 | G92: 7615349.191 | H92: 1.308208878 | J92: 1954234.633
B93: 53.5 | C93: 7388308.972 | D93: 5792183.067 | F93: =+C93*1.01^(B93-25.5) -> 9762105.905 | G93: 7653159.165 | H93: 1.321290967 | J93: 1981170.018
B94: 54.5 | C94: 7424463.092 | D94: 5744666.631 | F94: =+C94*1.01^(B94-25.5) -> 9907974.777 | G94: 7666279.888 | H94: 1.334503877 | J94: 2005859.886
A95: =+A90+5 -> 55 | B95: 55.5 | C95: 7443268.678 | D95: 5678000.234 | F95: =+C95*1.01^(B95-25.5) -> 10032401.61 | G95: 7653086.457 | H95: 1.347848915 | J95: 2027851.046
B96: 56.5 | C96: 7444068.707 | D96: 5591530.617 | F96: 10133814.73 | G96: 7611903.862 | H96: 1.361327404 | J96: 2046596.315
B97: 57.5 | C97: 7426206.158 | D97: 5484604.518 | F97: 10210592.93 | G97: 7541005.857 | H97: 1.374940679 | J97: 2061447.82
B98: 58.5 | C98: 7389024.007 | D98: 5356568.676 | F98: =+C98*1.01^(B98-25.5) -> 10261064.38 | G98: 7438613.811 | H98: 1.388690085 | J98: 2071650.286
B99: 59.5 | C99: 7331865.233 | D99: 5206769.829 | F99: =+C99*1.01^(B99-25.5) -> 10283505.44 | G99: 7302895.535 | H99: 1.402576986 | J99: 2076334.342
A100: =+A95+5 -> 60 | B100: 60.5 | C100: 7254072.812 | D100: 5034554.717 | F100: 10276139.54 | G100: 7131964.088 | H100: 1.416602756 | J100: 2074509.815
B101: 61.5 | C101: 7154989.722 | D101: 4839270.079 | F101: 10237135.94 | G101: 6923876.564 | H101: 1.430768784 | J101: 2065059.025
B102: 62.5 | C102: 7033958.942 | D102: 4620262.653 | F102: 10164608.57 | G102: 6676632.851 | H102: 1.445076471 | J102: 2046730.085
B103: 63.5 | C103: 6890323.448 | D103: 4376879.178 | F103: 10056614.74 | G103: 6388174.369 | H103: 1.459527236 | J103: 2018130.196
B104: 64.5 | C104: 6723426.218 | D104: 4108466.392 | F104: 9911153.921 | G104: 6056382.784 | H104: =+G104/D104 -> 1.474122509 | J104: 1977718.949
A105: =+A100+5 -> 65 | B105: 65.5 | C105: 6532610.229 | D105: 3814371.036 | F105: 9726166.455 | G105: 5679078.702 | H105: =+G105/D105 -> 1.488863734 | J105: 1923801.613
B106: 66.5 | C106: 6317218.459 | D106: 3493939.847 | F106: =+C106*1.01^(B106-25.5) -> 9499532.236 | G106: 5254020.329 | H106: 1.503752371 | J106: 1854522.441
B107: 67.5 | C107: 6076593.886 | D107: 3146519.565 | F107: =+C107*1.01^(B107-25.5) -> 9229069.388 | G107: 4778902.118 | H107: 1.518789895 | J107: 1767857.964
B108: 68.5 | C108: 5810079.487 | D108: 2831867.608 | F108: =+C108*1.01^(B108-25.5) -> 8912532.912 | G108: 4344022.025 | H108: 1.533977794 | J108: 1661610.286
B109: 69.5 | C109: 5517018.24 | D109: 2548680.847 | F109: =+C109*1.01^(B109-25.5) -> 8547613.301 | G109: 3948716.021 | H109: 1.549317572 | J109: 1533400.384
A110: =+A105+5 -> 70 | B110: 70.5 | C110: 5196753.122 | D110: 2293812.763 | F110: 8131935.136 | G110: =+D110*1.01^(B110-25.5) -> 3589382.863 | H110: 1.564810747 | J110: 1380661.403
J111: 1380661.403
J112: 1380661.403
J113: 1380661.403
J114: 0
J115: 0
J116: 0
J117: 0
J118: 0
J119: 0

Sheet Laun (hidden)
K1: 2015
G4: Deild með 1,21245 | L4: margfölduð með 1,11 | P4: 2016 | Q4: =+P4+1 -> 2017 | R4: =+Q4+1 -> 2018 | S4: 2019 | T4: 2020 | U4: 2021 | V4: 2022 | W4: 2023 | X4: 2024 | Y4: 2025 | Z4: 2026 | AA4: 2027 | AB4: 2028 | AC4: 2029 | AD4: 2030 | AE4: 2031 | AF4: 2032 | AG4: 2033 | AH4: 2034 | AI4: 2035 | AJ4: 2036 | AK4: 2037 | AL4: 2038 | AM4: 2039 | AN4: 2040 | AO4: 2041 | AP4: 2042 | AQ4: 2043 | AR4: 2044 | AS4: =+AR4+1 -> 2045 | AT4: 2046 | AU4: 2047 | AV4: 2048 | AW4: 2049 | AX4: 2050 | AY4: 2051 | AZ4: =+AY4+1 -> 2052 | BA4: 2053 | BB4: 2054 | BC4: 2055 | BD4: 2056 | BE4: 2057 | BF4: 2058 | BG4: 2059 | BH4: =+BG4+1 -> 2060 | BI4: 2061 | BJ4: 2062 | BK4: 2063 | BL4: 2064 | BM4: 2065 | BN4: 2066 | BO4: 2067 | BP4: 2068 | BQ4: 2069 | BR4: 2070 | BS4: 2071 | BT4: 2072 | BU4: 2073 | BV4: 2074 | BW4: 2075 | BX4: 2076
B5: Lykill | C5: =+'Access gögn'!D1 -> Kyn | D5: =+'Access gögn'!E1 -> Staða | E5: =+'Access gögn'!F1 -> Fár | F5: =+'Access gögn'!G1 -> Ríkisstarfsmaður | G5: =+'Access gögn'!H1 -> CountOfKennitala | H5: =+'Access gögn'!I1 -> AvgOfÁunnin réttindi alls | I5: =+'Access gögn'!J1 -> AvgOfIg ársins í jafna | J5: =+'Access gögn'!K1 -> AvgOfIg ársins í AH | K5: Aldur | L5: Árslaun | M5: Hæstu laun | N5: Lokalaun | O5: 55 ára laun | P5: 0 | Q5: =+P5+1 -> 1 | R5: =+Q5+1 -> 2 | S5: 3 | T5: 4 | U5: 5 | V5: 6 | W5: 7 | X5: 8 | Y5: 9 | Z5: 10 | AA5: 11 | AB5: 12 | AC5: 13 | AD5: 14 | AE5: 15 | AF5: 16 | AG5: 17 | AH5: 18 | AI5: 19 | AJ5: 20 | AK5: 21 | AL5: 22 | AM5: 23 | AN5: 24 | AO5: 25 | AP5: 26 | AQ5: 27 | AR5: 28 | AS5: 29 | AT5: 30 | AU5: 31 | AV5: 32 | AW5: 33 | AX5: 34 | AY5: 35 | AZ5: 36 | BA5: 37 | BB5: 38 | BC5: 39 | BD5: 40 | BE5: 41 | BF5: 42 | BG5: 43 | BH5: =+BG5+1 -> 44 | BI5: 45 | BJ5: 46 | BK5: 47 | BL5: 48 | BM5: 49 | BN5: 50 | BO5: 51 | BP5: 52 | BQ5: 53 | BR5: 54 | BS5: 55 | BT5: 56 | BU5: 57 | BV5: 58 | BW5: 59 | BX5: 60 | BZ5: Heildarlaun
A6: Alm | B6: =+A6&"_"&C6&"_"&E6&"_"&F6 -> Alm_1_1945_0 | C6: =+'Access gögn'!D2 -> 1 | D6: =+'Access gögn'!E2 -> 1 | E6: =+'Access gögn'!F2 -> 1945 | F6: =+'Access gögn'!G2 -> 0 | G6: =+'Access gögn'!H2/1.21245 -> 20.61940699 | H6: =+'Access gögn'!I2 -> 1514843.72 | I6: =+'Access gögn'!J2 -> 0 | J6: =+'Access gögn'!K2 -> 453358.9153 | K6: =+$K$1-E6+0.5 -> 70.5 | L6: =+VLOOKUP(B6,'Mismunandi laun'!$F$3:$J$112,'Mismunandi laun'!$A$3,FALSE)*1.11 -> 4427298.27 | M6: =IF(D6=1,MAX(P6:BS6,L6,N6),0) -> 4561449.835 | N6: =IF(P6=0,L6,INDEX(P6:BX6,1,Alm_ealdur+0.5-$K6)*2) -> 4561449.835 | O6: =IF(Kúrfa="já",L6*INDEX(Launakeðjur!$Y$1:$AJ$57,Laun!K6-13.5,MATCH(Laun!A6,Launakeðjur!$Y$1:$AI$1,0)+Laun!C6-1),L6*(1+IF(#REF!=1,launah,launahkvk))^(55-K6)) -> 5012417.811 | P6: =+IF($K6+P$5>Alm_ealdur,0,IF(K6=Alm_ealdur-0.5,0.5,1))*L6*(1+IF(C6=1,launah,launahkvk))*IF(Kúrfa="Já",IF(ISERROR(INDEX(Launakeðjur!$B$1:$S$60,INT($K6+P$5)-12,MATCH(Laun!$A6,Launakeðjur!$B$1:$S$1,0)+C6-1)),0,INDEX(Launakeðjur!$B$1:$S$60,INT($K6+P$5)-12,MATCH(Laun!$A6,Launakeðjur!$B$1:$S$1,0)+C6-1)),1) -> 4471571.253 | Q6: =+IF($K6+Q$5>Alm_ealdur,0,IF($K6+Q$5=Alm_ealdur-0.5,0.5,1))*P6*(1+IF($C6=1,launah,launahkvk))*IF(Kúrfa="já",IF(ISERROR(INDEX(Launakeðjur!$B$1:$S$60,INT($K6+Q$5)-12,MATCH(Laun!$A6,Launakeðjur!$B$1:$S$1,0)+$C6-1)),0,INDEX(Launakeðjur!$B$1:$S$60,INT($K6+Q$5)-12,MATCH(Laun!$A6,Launakeðjur!$B$1:$S$1,0)+$C6-1)),1) -> 4516286.965 | R6: =+IF($K6+R$5>Alm_ealdur,0,IF($K6+R$5=Alm_ealdur-0.5,0.5,1))*Q6*(1+IF($C6=1,launah,launahkvk))*IF(Kúrfa="já",IF(ISERROR(INDEX(Launakeðjur!$B$1:$S$60,INT($K6+R$5)-12,MATCH(Laun!$A6,Launakeðjur!$B$1:$S$1,0)+$C6-1)),0,INDEX(Launakeðjur!$B$1:$S$60,INT($K6+R$5)-12,MATCH(Laun!$A6,Launakeðjur!$B$1:$S$1,0)+$C6-1)),1) -> 2280724.917 | S6: =+IF($K6+S$5>Alm_ealdur,0,IF($K6+S$5=Alm_ealdur-0.5,0.5,1))*R6*(1+IF($C6=1,launah,launahkvk))*IF(Kúrfa="já",IF(ISERROR(INDEX(Launakeðjur!$B$1:$S$60,INT($K6+S$5)-12,MATCH(Laun!$A6,Launakeðjur!$B$1:$S$1,0)+$C6-1)),0,INDEX(Launakeðjur!$B$1:$S$60,INT($K6+S$5)-12,MATCH(Laun!$A6,Launakeðjur!$B$1:$S$1,0)+$C6-1)),1) -> 0 | T6: =+IF($K6+T$5>Alm_ealdur,0,IF($K6+T$5=Alm_ealdur-0.5,0.5,1))*S6*(1+IF($C6=1,launah,launahkvk))*IF(Kúrfa="já",IF(ISERROR(INDEX(Launakeðjur!$B$1:$S$60,INT($K6+T$5)-12,MATCH(Laun!$A6,Launakeðjur!$B$1:$S$1,0)+$C6-1)),0,INDEX(Launakeðjur!$B$1:$S$60,INT($K6+T$5)-12,MATCH(Laun!$A6,Launakeðjur!$B$1:$S$1,0)+$C6-1)),1) -> 0 | U6: =+IF($K6+U$5>Alm_ealdur,0,IF($K6+U$5=Alm_ealdur-0.5,0.5,1))*T6*(1+IF($C6=1,launah,launahkvk))*IF(Kúrfa="já",IF(ISERROR(INDEX(Launakeðjur!$B$1:$S$60,INT($K6+U$5)-12,MATCH(Laun!$A6,Launakeðjur!$B$1:$S$1,0)+$C6-1)),0,INDEX(Launakeðjur!$B$1:$S$60,INT($K6+U$5)-12,MATCH(Laun!$A6,Launakeðjur!$B$1:$S$1,0)+$C6-1)),1) -> 0 | V6: =+IF($K6+V$5>Alm_ealdur,0,IF($K6+V$5=Alm_ealdur-0.5,0.5,1))*U6*(1+IF($C6=1,launah,launahkvk))*IF(Kúrfa="já",IF(ISERROR(INDEX(Launakeðjur!$B$1:$S$60,INT($K6+V$5)-12,MATCH(Laun!$A6,Launakeðjur!$B$1:$S$1,0)+$C6-1)),0,INDEX(Launakeðjur!$B$1:$S$60,INT($K6+V$5)-12,MATCH(Laun!$A6,Launakeðjur!$B$1:$S$1,0)+$C6-1)),1) -> 0 | W6: =+IF($K6+W$5>Alm_ealdur,0,IF($K6+W$5=Alm_ealdur-0.5,0.5,1))*V6*(1+IF($C6=1,launah,launahkvk))*IF(Kúrfa="já",IF(ISERROR(INDEX(Launakeðjur!$B$1:$S$60,INT($K6+W$5)-12,MATCH(Laun!$A6,Launakeðjur!$B$1:$S$1,0)+$C6-1)),0,INDEX(Launakeðjur!$B$1:$S$60,INT($K6+W$5)-12,MATCH(Laun!$A6,Launakeðjur!$B$1:$S$1,0)+$C6-1)),1) -> 0 | X6: =+IF($K6+X$5>Alm_ealdur,0,IF($K6+X$5=Alm_ealdur-0.5,0.5,1))*W6*(1+IF($C6=1,launah,launahkvk))*IF(Kúrfa="já",IF(ISERROR(INDEX(Launakeðjur!$B$1:$S$60,INT($K6+X$5)-12,MATCH(Laun!$A6,Launakeðjur!$B$1:$S$1,0)+$C6-1)),0,INDEX(Launakeðjur!$B$1:$S$60,INT($K6+X$5)-12,MATCH(Laun!$A6,Launakeðjur!$B$1:$S$1,0)+$C6-1)),1) -> 0 | Y6: =+IF($K6+Y$5>Alm_ealdur,0,IF($K6+Y$5=Alm_ealdur-0.5,0.5,1))*X6*(1+IF($C6=1,launah,launahkvk))*IF(Kúrfa="já",IF(ISERROR(INDEX(Launakeðjur!$B$1:$S$60,INT($K6+Y$5)-12,MATCH(Laun!$A6,Launakeðjur!$B$1:$S$1,0)+$C6-1)),0,INDEX(Launakeðjur!$B$1:$S$60,INT($K6+Y$5)-12,MATCH(Laun!$A6,Launakeðjur!$B$1:$S$1,0)+$C6-1)),1) -> 0 | Z6: =+IF($K6+Z$5>Alm_ealdur,0,IF($K6+Z$5=Alm_ealdur-0.5,0.5,1))*Y6*(1+IF($C6=1,launah,launahkvk))*IF(Kúrfa="já",IF(ISERROR(INDEX(Launakeðjur!$B$1:$S$60,INT($K6+Z$5)-12,MATCH(Laun!$A6,Launakeðjur!$B$1:$S$1,0)+$C6-1)),0,INDEX(Launakeðjur!$B$1:$S$60,INT($K6+Z$5)-12,MATCH(Laun!$A6,Launakeðjur!$B$1:$S$1,0)+$C6-1)),1) -> 0 | AA6: =+IF($K6+AA$5>Alm_ealdur,0,IF($K6+AA$5=Alm_ealdur-0.5,0.5,1))*Z6*(1+IF($C6=1,launah,launahkvk))*IF(Kúrfa="já",IF(ISERROR(INDEX(Launakeðjur!$B$1:$S$60,INT($K6+AA$5)-12,MATCH(Laun!$A6,Launakeðjur!$B$1:$S$1,0)+$C6-1)),0,INDEX(Launakeðjur!$B$1:$S$60,INT($K6+AA$5)-12,MATCH(Laun!$A6,Launakeðjur!$B$1:$S$1,0)+$C6-1)),1) -> 0 | AB6: =+IF($K6+AB$5>Alm_ealdur,0,IF($K6+AB$5=Alm_ealdur-0.5,0.5,1))*AA6*(1+IF($C6=1,launah,launahkvk))*IF(Kúrfa="já",IF(ISERROR(INDEX(Launakeðjur!$B$1:$S$60,INT($K6+AB$5)-12,MATCH(Laun!$A6,Launakeðjur!$B$1:$S$1,0)+$C6-1)),0,INDEX(Launakeðjur!$B$1:$S$60,INT($K6+AB$5)-12,MATCH(Laun!$A6,Launakeðjur!$B$1:$S$1,0)+$C6-1)),1) -> 0 | AC6: =+IF($K6+AC$5>Alm_ealdur,0,IF($K6+AC$5=Alm_ealdur-0.5,0.5,1))*AB6*(1+IF($C6=1,launah,launahkvk))*IF(Kúrfa="já",IF(ISERROR(INDEX(Launakeðjur!$B$1:$S$60,INT($K6+AC$5)-12,MATCH(Laun!$A6,Launakeðjur!$B$1:$S$1,0)+$C6-1)),0,INDEX(Launakeðjur!$B$1:$S$60,INT($K6+AC$5)-12,MATCH(Laun!$A6,Launakeðjur!$B$1:$S$1,0)+$C6-1)),1) -> 0 | AD6: =+IF($K6+AD$5>Alm_ealdur,0,IF($K6+AD$5=Alm_ealdur-0.5,0.5,1))*AC6*(1+IF($C6=1,launah,launahkvk))*IF(Kúrfa="já",IF(ISERROR(INDEX(Launakeðjur!$B$1:$S$60,INT($K6+AD$5)-12,MATCH(Laun!$A6,Launakeðjur!$B$1:$S$1,0)+$C6-1)),0,INDEX(Launakeðjur!$B$1:$S$60,INT($K6+AD$5)-12,MATCH(Laun!$A6,Launakeðjur!$B$1:$S$1,0)+$C6-1)),1) -> 0 | AE6: =+IF($K6+AE$5>Alm_ealdur,0,IF($K6+AE$5=Alm_ealdur-0.5,0.5,1))*AD6*(1+IF($C6=1,launah,launahkvk))*IF(Kúrfa="já",IF(ISERROR(INDEX(Launakeðjur!$B$1:$S$60,INT($K6+AE$5)-12,MATCH(Laun!$A6,Launakeðjur!$B$1:$S$1,0)+$C6-1)),0,INDEX(Launakeðjur!$B$1:$S$60,INT($K6+AE$5)-12,MATCH(Laun!$A6,Launakeðjur!$B$1:$S$1,0)+$C6-1)),1) -> 0 | AF6: =+IF($K6+AF$5>Alm_ealdur,0,IF($K6+AF$5=Alm_ealdur-0.5,0.5,1))*AE6*(1+IF($C6=1,launah,launahkvk))*IF(Kúrfa="já",IF(ISERROR(INDEX(Launakeðjur!$B$1:$S$60,INT($K6+AF$5)-12,MATCH(Laun!$A6,Launakeðjur!$B$1:$S$1,0)+$C6-1)),0,INDEX(Launakeðjur!$B$1:$S$60,INT($K6+AF$5)-12,MATCH(Laun!$A6,Launakeðjur!$B$1:$S$1,0)+$C6-1)),1) -> 0 | AG6: =+IF($K6+AG$5>Alm_ealdur,0,IF($K6+AG$5=Alm_ealdur-0.5,0.5,1))*AF6*(1+IF($C6=1,launah,launahkvk))*IF(Kúrfa="já",IF(ISERROR(INDEX(Launakeðjur!$B$1:$S$60,INT($K6+AG$5)-12,MATCH(Laun!$A6,Launakeðjur!$B$1:$S$1,0)+$C6-1)),0,INDEX(Launakeðjur!$B$1:$S$60,INT($K6+AG$5)-12,MATCH(Laun!$A6,Launakeðjur!$B$1:$S$1,0)+$C6-1)),1) -> 0 | AH6: =+IF($K6+AH$5>Alm_ealdur,0,IF($K6+AH$5=Alm_ealdur-0.5,0.5,1))*AG6*(1+IF($C6=1,launah,launahkvk))*IF(Kúrfa="já",IF(ISERROR(INDEX(Launakeðjur!$B$1:$S$60,INT($K6+AH$5)-12,MATCH(Laun!$A6,Launakeðjur!$B$1:$S$1,0)+$C6-1)),0,INDEX(Launakeðjur!$B$1:$S$60,INT($K6+AH$5)-12,MATCH(Laun!$A6,Launakeðjur!$B$1:$S$1,0)+$C6-1)),1) -> 0 | AI6: =+IF($K6+AI$5>Alm_ealdur,0,IF($K6+AI$5=Alm_ealdur-0.5,0.5,1))*AH6*(1+IF($C6=1,launah,launahkvk))*IF(Kúrfa="já",IF(ISERROR(INDEX(Launakeðjur!$B$1:$S$60,INT($K6+AI$5)-12,MATCH(Laun!$A6,Launakeðjur!$B$1:$S$1,0)+$C6-1)),0,INDEX(Launakeðjur!$B$1:$S$60,INT($K6+AI$5)-12,MATCH(Laun!$A6,Launakeðjur!$B$1:$S$1,0)+$C6-1)),1) -> 0 | AJ6: =+IF($K6+AJ$5>Alm_ealdur,0,IF($K6+AJ$5=Alm_ealdur-0.5,0.5,1))*AI6*(1+IF($C6=1,launah,launahkvk))*IF(Kúrfa="já",IF(ISERROR(INDEX(Launakeðjur!$B$1:$S$60,INT($K6+AJ$5)-12,MATCH(Laun!$A6,Launakeðjur!$B$1:$S$1,0)+$C6-1)),0,INDEX(Launakeðjur!$B$1:$S$60,INT($K6+AJ$5)-12,MATCH(Laun!$A6,Launakeðjur!$B$1:$S$1,0)+$C6-1)),1) -> 0 | AK6: =+IF($K6+AK$5>Alm_ealdur,0,IF($K6+AK$5=Alm_ealdur-0.5,0.5,1))*AJ6*(1+IF($C6=1,launah,launahkvk))*IF(Kúrfa="já",IF(ISERROR(INDEX(Launakeðjur!$B$1:$S$60,INT($K6+AK$5)-12,MATCH(Laun!$A6,Launakeðjur!$B$1:$S$1,0)+$C6-1)),0,INDEX(Launakeðjur!$B$1:$S$60,INT($K6+AK$5)-12,MATCH(Laun!$A6,Launakeðjur!$B$1:$S$1,0)+$C6-1)),1) -> 0 | AL6: =+IF($K6+AL$5>Alm_ealdur,0,IF($K6+AL$5=Alm_ealdur-0.5,0.5,1))*AK6*(1+IF($C6=1,launah,launahkvk))*IF(Kúrfa="já",IF(ISERROR(INDEX(Launakeðjur!$B$1:$S$60,INT($K6+AL$5)-12,MATCH(Laun!$A6,Launakeðjur!$B$1:$S$1,0)+$C6-1)),0,INDEX(Launakeðjur!$B$1:$S$60,INT($K6+AL$5)-12,MATCH(Laun!$A6,Launakeðjur!$B$1:$S$1,0)+$C6-1)),1) -> 0 | AM6: =+IF($K6+AM$5>Alm_ealdur,0,IF($K6+AM$5=Alm_ealdur-0.5,0.5,1))*AL6*(1+IF($C6=1,launah,launahkvk))*IF(Kúrfa="já",IF(ISERROR(INDEX(Launakeðjur!$B$1:$S$60,INT($K6+AM$5)-12,MATCH(Laun!$A6,Launakeðjur!$B$1:$S$1,0)+$C6-1)),0,INDEX(Launakeðjur!$B$1:$S$60,INT($K6+AM$5)-12,MATCH(Laun!$A6,Launakeðjur!$B$1:$S$1,0)+$C6-1)),1) -> 0 | AN6: =+IF($K6+AN$5>Alm_ealdur,0,IF($K6+AN$5=Alm_ealdur-0.5,0.5,1))*AM6*(1+IF($C6=1,launah,launahkvk))*IF(Kúrfa="já",IF(ISERROR(INDEX(Launakeðjur!$B$1:$S$60,INT($K6+AN$5)-12,MATCH(Laun!$A6,Launakeðjur!$B$1:$S$1,0)+$C6-1)),0,INDEX(Launakeðjur!$B$1:$S$60,INT($K6+AN$5)-12,MATCH(Laun!$A6,Launakeðjur!$B$1:$S$1,0)+$C6-1)),1) -> 0 | AO6: =+IF($K6+AO$5>Alm_ealdur,0,IF($K6+AO$5=Alm_ealdur-0.5,0.5,1))*AN6*(1+IF($C6=1,launah,launahkvk))*IF(Kúrfa="já",IF(ISERROR(INDEX(Launakeðjur!$B$1:$S$60,INT($K6+AO$5)-12,MATCH(Laun!$A6,Launakeðjur!$B$1:$S$1,0)+$C6-1)),0,INDEX(Launakeðjur!$B$1:$S$60,INT($K6+AO$5)-12,MATCH(Laun!$A6,Launakeðjur!$B$1:$S$1,0)+$C6-1)),1) -> 0 | AP6: =+IF($K6+AP$5>Alm_ealdur,0,IF($K6+AP$5=Alm_ealdur-0.5,0.5,1))*AO6*(1+IF($C6=1,launah,launahkvk))*IF(Kúrfa="já",IF(ISERROR(INDEX(Launakeðjur!$B$1:$S$60,INT($K6+AP$5)-12,MATCH(Laun!$A6,Launakeðjur!$B$1:$S$1,0)+$C6-1)),0,INDEX(Launakeðjur!$B$1:$S$60,INT($K6+AP$5)-12,MATCH(Laun!$A6,Launakeðjur!$B$1:$S$1,0)+$C6-1)),1) -> 0 | AQ6: =+IF($K6+AQ$5>Alm_ealdur,0,IF($K6+AQ$5=Alm_ealdur-0.5,0.5,1))*AP6*(1+IF($C6=1,launah,launahkvk))*IF(Kúrfa="já",IF(ISERROR(INDEX(Launakeðjur!$B$1:$S$60,INT($K6+AQ$5)-12,MATCH(Laun!$A6,Launakeðjur!$B$1:$S$1,0)+$C6-1)),0,INDEX(Launakeðjur!$B$1:$S$60,INT($K6+AQ$5)-12,MATCH(Laun!$A6,Launakeðjur!$B$1:$S$1,0)+$C6-1)),1) -> 0 | AR6: =+IF($K6+AR$5>Alm_ealdur,0,IF($K6+AR$5=Alm_ealdur-0.5,0.5,1))*AQ6*(1+IF($C6=1,launah,launahkvk))*IF(Kúrfa="já",IF(ISERROR(INDEX(Launakeðjur!$B$1:$S$60,INT($K6+AR$5)-12,MATCH(Laun!$A6,Launakeðjur!$B$1:$S$1,0)+$C6-1)),0,INDEX(Launakeðjur!$B$1:$S$60,INT($K6+AR$5)-12,MATCH(Laun!$A6,Launakeðjur!$B$1:$S$1,0)+$C6-1)),1) -> 0 | AS6: =+IF($K6+AS$5>Alm_ealdur,0,IF($K6+AS$5=Alm_ealdur-0.5,0.5,1))*AR6*(1+IF($C6=1,launah,launahkvk))*IF(Kúrfa="já",IF(ISERROR(INDEX(Launakeðjur!$B$1:$S$60,INT($K6+AS$5)-12,MATCH(Laun!$A6,Launakeðjur!$B$1:$S$1,0)+$C6-1)),0,INDEX(Launakeðjur!$B$1:$S$60,INT($K6+AS$5)-12,MATCH(Laun!$A6,Launakeðjur!$B$1:$S$1,0)+$C6-1)),1) -> 0 | AT6: =+IF($K6+AT$5>Alm_ealdur,0,IF($K6+AT$5=Alm_ealdur-0.5,0.5,1))*AS6*(1+IF($C6=1,launah,launahkvk))*IF(Kúrfa="já",IF(ISERROR(INDEX(Launakeðjur!$B$1:$S$60,INT($K6+AT$5)-12,MATCH(Laun!$A6,Launakeðjur!$B$1:$S$1,0)+$C6-1)),0,INDEX(Launakeðjur!$B$1:$S$60,INT($K6+AT$5)-12,MATCH(Laun!$A6,Launakeðjur!$B$1:$S$1,0)+$C6-1)),1) -> 0 | AU6: =+IF($K6+AU$5>Alm_ealdur,0,IF($K6+AU$5=Alm_ealdur-0.5,0.5,1))*AT6*(1+IF($C6=1,launah,launahkvk))*IF(Kúrfa="já",IF(ISERROR(INDEX(Launakeðjur!$B$1:$S$60,INT($K6+AU$5)-12,MATCH(Laun!$A6,Launakeðjur!$B$1:$S$1,0)+$C6-1)),0,INDEX(Launakeðjur!$B$1:$S$60,INT($K6+AU$5)-12,MATCH(Laun!$A6,Launakeðjur!$B$1:$S$1,0)+$C6-1)),1) -> 0 | AV6: =+IF($K6+AV$5>Alm_ealdur,0,IF($K6+AV$5=Alm_ealdur-0.5,0.5,1))*AU6*(1+IF($C6=1,launah,launahkvk))*IF(Kúrfa="já",IF(ISERROR(INDEX(Launakeðjur!$B$1:$S$60,INT($K6+AV$5)-12,MATCH(Laun!$A6,Launakeðjur!$B$1:$S$1,0)+$C6-1)),0,INDEX(Launakeðjur!$B$1:$S$60,INT($K6+AV$5)-12,MATCH(Laun!$A6,Launakeðjur!$B$1:$S$1,0)+$C6-1)),1) -> 0 | AW6: =+IF($K6+AW$5>Alm_ealdur,0,IF($K6+AW$5=Alm_ealdur-0.5,0.5,1))*AV6*(1+IF($C6=1,launah,launahkvk))*IF(Kúrfa="já",IF(ISERROR(INDEX(Launakeðjur!$B$1:$S$60,INT($K6+AW$5)-12,MATCH(Laun!$A6,Launakeðjur!$B$1:$S$1,0)+$C6-1)),0,INDEX(Launakeðjur!$B$1:$S$60,INT($K6+AW$5)-12,MATCH(Laun!$A6,Launakeðjur!$B$1:$S$1,0)+$C6-1)),1) -> 0 | AX6: =+IF($K6+AX$5>Alm_ealdur,0,IF($K6+AX$5=Alm_ealdur-0.5,0.5,1))*AW6*(1+IF($C6=1,launah,launahkvk))*IF(Kúrfa="já",IF(ISERROR(INDEX(Launakeðjur!$B$1:$S$60,INT($K6+AX$5)-12,MATCH(Laun!$A6,Launakeðjur!$B$1:$S$1,0)+$C6-1)),0,INDEX(Launakeðjur!$B$1:$S$60,INT($K6+AX$5)-12,MATCH(Laun!$A6,Launakeðjur!$B$1:$S$1,0)+$C6-1)),1) -> 0 | AY6: =+IF($K6+AY$5>Alm_ealdur,0,IF($K6+AY$5=Alm_ealdur-0.5,0.5,1))*AX6*(1+IF($C6=1,launah,launahkvk))*IF(Kúrfa="já",IF(ISERROR(INDEX(Launakeðjur!$B$1:$S$60,INT($K6+AY$5)-12,MATCH(Laun!$A6,Launakeðjur!$B$1:$S$1,0)+$C6-1)),0,INDEX(Launakeðjur!$B$1:$S$60,INT($K6+AY$5)-12,MATCH(Laun!$A6,Launakeðjur!$B$1:$S$1,0)+$C6-1)),1) -> 0 | AZ6: =+IF($K6+AZ$5>Alm_ealdur,0,IF($K6+AZ$5=Alm_ealdur-0.5,0.5,1))*AY6*(1+IF($C6=1,launah,launahkvk))*IF(Kúrfa="já",IF(ISERROR(INDEX(Launakeðjur!$B$1:$S$60,INT($K6+AZ$5)-12,MATCH(Laun!$A6,Launakeðjur!$B$1:$S$1,0)+$C6-1)),0,INDEX(Launakeðjur!$B$1:$S$60,INT($K6+AZ$5)-12,MATCH(Laun!$A6,Launakeðjur!$B$1:$S$1,0)+$C6-1)),1) -> 0 | BA6: =+IF($K6+BA$5>Alm_ealdur,0,IF($K6+BA$5=Alm_ealdur-0.5,0.5,1))*AZ6*(1+IF($C6=1,launah,launahkvk))*IF(Kúrfa="já",IF(ISERROR(INDEX(Launakeðjur!$B$1:$S$60,INT($K6+BA$5)-12,MATCH(Laun!$A6,Launakeðjur!$B$1:$S$1,0)+$C6-1)),0,INDEX(Launakeðjur!$B$1:$S$60,INT($K6+BA$5)-12,MATCH(Laun!$A6,Launakeðjur!$B$1:$S$1,0)+$C6-1)),1) -> 0 | BB6: =+IF($K6+BB$5>Alm_ealdur,0,IF($K6+BB$5=Alm_ealdur-0.5,0.5,1))*BA6*(1+IF($C6=1,launah,launahkvk))*IF(Kúrfa="já",IF(ISERROR(INDEX(Launakeðjur!$B$1:$S$60,INT($K6+BB$5)-12,MATCH(Laun!$A6,Launakeðjur!$B$1:$S$1,0)+$C6-1)),0,INDEX(Launakeðjur!$B$1:$S$60,INT($K6+BB$5)-12,MATCH(Laun!$A6,Launakeðjur!$B$1:$S$1,0)+$C6-1)),1) -> 0 | BC6: =+IF($K6+BC$5>Alm_ealdur,0,IF($K6+BC$5=Alm_ealdur-0.5,0.5,1))*BB6*(1+IF($C6=1,launah,launahkvk))*IF(Kúrfa="já",IF(ISERROR(INDEX(Launakeðjur!$B$1:$S$60,INT($K6+BC$5)-12,MATCH(Laun!$A6,Launakeðjur!$B$1:$S$1,0)+$C6-1)),0,INDEX(Launakeðjur!$B$1:$S$60,INT($K6+BC$5)-12,MATCH(Laun!$A6,Launakeðjur!$B$1:$S$1,0)+$C6-1)),1) -> 0 | BD6: =+IF($K6+BD$5>Alm_ealdur,0,IF($K6+BD$5=Alm_ealdur-0.5,0.5,1))*BC6*(1+IF($C6=1,launah,launahkvk))*IF(Kúrfa="já",IF(ISERROR(INDEX(Launakeðjur!$B$1:$S$60,INT($K6+BD$5)-12,MATCH(Laun!$A6,Launakeðjur!$B$1:$S$1,0)+$C6-1)),0,INDEX(Launakeðjur!$B$1:$S$60,INT($K6+BD$5)-12,MATCH(Laun!$A6,Launakeðjur!$B$1:$S$1,0)+$C6-1)),1) -> 0 | BE6: =+IF($K6+BE$5>Alm_ealdur,0,IF($K6+BE$5=Alm_ealdur-0.5,0.5,1))*BD6*(1+IF($C6=1,launah,launahkvk))*IF(Kúrfa="já",IF(ISERROR(INDEX(Launakeðjur!$B$1:$S$60,INT($K6+BE$5)-12,MATCH(Laun!$A6,Launakeðjur!$B$1:$S$1,0)+$C6-1)),0,INDEX(Launakeðjur!$B$1:$S$60,INT($K6+BE$5)-12,MATCH(Laun!$A6,Launakeðjur!$B$1:$S$1,0)+$C6-1)),1) -> 0 | BF6: =+IF($K6+BF$5>Alm_ealdur,0,IF($K6+BF$5=Alm_ealdur-0.5,0.5,1))*BE6*(1+IF($C6=1,launah,launahkvk))*IF(Kúrfa="já",IF(ISERROR(INDEX(Launakeðjur!$B$1:$S$60,INT($K6+BF$5)-12,MATCH(Laun!$A6,Launakeðjur!$B$1:$S$1,0)+$C6-1)),0,INDEX(Launakeðjur!$B$1:$S$60,INT($K6+BF$5)-12,MATCH(Laun!$A6,Launakeðjur!$B$1:$S$1,0)+$C6-1)),1) -> 0 | BG6: =+IF($K6+BG$5>Alm_ealdur,0,IF($K6+BG$5=Alm_ealdur-0.5,0.5,1))*BF6*(1+IF($C6=1,launah,launahkvk))*IF(Kúrfa="já",IF(ISERROR(INDEX(Launakeðjur!$B$1:$S$60,INT($K6+BG$5)-12,MATCH(Laun!$A6,Launakeðjur!$B$1:$S$1,0)+$C6-1)),0,INDEX(Launakeðjur!$B$1:$S$60,INT($K6+BG$5)-12,MATCH(Laun!$A6,Launakeðjur!$B$1:$S$1,0)+$C6-1)),1) -> 0 | BH6: =+IF($K6+BH$5>Alm_ealdur,0,IF($K6+BH$5=Alm_ealdur-0.5,0.5,1))*BG6*(1+IF($C6=1,launah,launahkvk))*IF(Kúrfa="já",IF(ISERROR(INDEX(Launakeðjur!$B$1:$S$60,INT($K6+BH$5)-12,MATCH(Laun!$A6,Launakeðjur!$B$1:$S$1,0)+$C6-1)),0,INDEX(Launakeðjur!$B$1:$S$60,INT($K6+BH$5)-12,MATCH(Laun!$A6,Launakeðjur!$B$1:$S$1,0)+$C6-1)),1) -> 0 | BI6: =+IF($K6+BI$5>Alm_ealdur,0,IF($K6+BI$5=Alm_ealdur-0.5,0.5,1))*BH6*(1+IF($C6=1,launah,launahkvk))*IF(Kúrfa="já",IF(ISERROR(INDEX(Launakeðjur!$B$1:$S$60,INT($K6+BI$5)-12,MATCH(Laun!$A6,Launakeðjur!$B$1:$S$1,0)+$C6-1)),0,INDEX(Launakeðjur!$B$1:$S$60,INT($K6+BI$5)-12,MATCH(Laun!$A6,Launakeðjur!$B$1:$S$1,0)+$C6-1)),1) -> 0 | BJ6: =+IF($K6+BJ$5>Alm_ealdur,0,IF($K6+BJ$5=Alm_ealdur-0.5,0.5,1))*BI6*(1+IF($C6=1,launah,launahkvk))*IF(Kúrfa="já",IF(ISERROR(INDEX(Launakeðjur!$B$1:$S$60,INT($K6+BJ$5)-12,MATCH(Laun!$A6,Launakeðjur!$B$1:$S$1,0)+$C6-1)),0,INDEX(Launakeðjur!$B$1:$S$60,INT($K6+BJ$5)-12,MATCH(Laun!$A6,Launakeðjur!$B$1:$S$1,0)+$C6-1)),1) -> 0 | BK6: =+IF($K6+BK$5>Alm_ealdur,0,IF($K6+BK$5=Alm_ealdur-0.5,0.5,1))*BJ6*(1+IF($C6=1,launah,launahkvk))*IF(Kúrfa="já",IF(ISERROR(INDEX(Launakeðjur!$B$1:$S$60,INT($K6+BK$5)-12,MATCH(Laun!$A6,Launakeðjur!$B$1:$S$1,0)+$C6-1)),0,INDEX(Launakeðjur!$B$1:$S$60,INT($K6+BK$5)-12,MATCH(Laun!$A6,Launakeðjur!$B$1:$S$1,0)+$C6-1)),1) -> 0 | BL6: =+IF($K6+BL$5>Alm_ealdur,0,IF($K6+BL$5=Alm_ealdur-0.5,0.5,1))*BK6*(1+IF($C6=1,launah,launahkvk))*IF(Kúrfa="já",IF(ISERROR(INDEX(Launakeðjur!$B$1:$S$60,INT($K6+BL$5)-12,MATCH(Laun!$A6,Launakeðjur!$B$1:$S$1,0)+$C6-1)),0,INDEX(Launakeðjur!$B$1:$S$60,INT($K6+BL$5)-12,MATCH(Laun!$A6,Launakeðjur!$B$1:$S$1,0)+$C6-1)),1) -> 0 | BM6: =+IF($K6+BM$5>Alm_ealdur,0,IF($K6+BM$5=Alm_ealdur-0.5,0.5,1))*BL6*(1+IF($C6=1,launah,launahkvk))*IF(Kúrfa="já",IF(ISERROR(INDEX(Launakeðjur!$B$1:$S$60,INT($K6+BM$5)-12,MATCH(Laun!$A6,Launakeðjur!$B$1:$S$1,0)+$C6-1)),0,INDEX(Launakeðjur!$B$1:$S$60,INT($K6+BM$5)-12,MATCH(Laun!$A6,Launakeðjur!$B$1:$S$1,0)+$C6-1)),1) -> 0 | BN6: =+IF($K6+BN$5>Alm_ealdur,0,IF($K6+BN$5=Alm_ealdur-0.5,0.5,1))*BM6*(1+IF($C6=1,launah,launahkvk))*IF(Kúrfa="já",IF(ISERROR(INDEX(Launakeðjur!$B$1:$S$60,INT($K6+BN$5)-12,MATCH(Laun!$A6,Launakeðjur!$B$1:$S$1,0)+$C6-1)),0,INDEX(Launakeðjur!$B$1:$S$60,INT($K6+BN$5)-12,MATCH(Laun!$A6,Launakeðjur!$B$1:$S$1,0)+$C6-1)),1) -> 0 | BO6: =+IF($K6+BO$5>Alm_ealdur,0,IF($K6+BO$5=Alm_ealdur-0.5,0.5,1))*BN6*(1+IF($C6=1,launah,launahkvk))*IF(Kúrfa="já",IF(ISERROR(INDEX(Launakeðjur!$B$1:$S$60,INT($K6+BO$5)-12,MATCH(Laun!$A6,Launakeðjur!$B$1:$S$1,0)+$C6-1)),0,INDEX(Launakeðjur!$B$1:$S$60,INT($K6+BO$5)-12,MATCH(Laun!$A6,Launakeðjur!$B$1:$S$1,0)+$C6-1)),1) -> 0 | BP6: =+IF($K6+BP$5>Alm_ealdur,0,IF($K6+BP$5=Alm_ealdur-0.5,0.5,1))*BO6*(1+IF($C6=1,launah,launahkvk))*IF(Kúrfa="já",IF(ISERROR(INDEX(Launakeðjur!$B$1:$S$60,INT($K6+BP$5)-12,MATCH(Laun!$A6,Launakeðjur!$B$1:$S$1,0)+$C6-1)),0,INDEX(Launakeðjur!$B$1:$S$60,INT($K6+BP$5)-12,MATCH(Laun!$A6,Launakeðjur!$B$1:$S$1,0)+$C6-1)),1) -> 0 | BQ6: =+IF($K6+BQ$5>Alm_ealdur,0,IF($K6+BQ$5=Alm_ealdur-0.5,0.5,1))*BP6*(1+IF($C6=1,launah,launahkvk))*IF(Kúrfa="já",IF(ISERROR(INDEX(Launakeðjur!$B$1:$S$60,INT($K6+BQ$5)-12,MATCH(Laun!$A6,Launakeðjur!$B$1:$S$1,0)+$C6-1)),0,INDEX(Launakeðjur!$B$1:$S$60,INT($K6+BQ$5)-12,MATCH(Laun!$A6,Launakeðjur!$B$1:$S$1,0)+$C6-1)),1) -> 0 | BR6: =+IF($K6+BR$5>Alm_ealdur,0,IF($K6+BR$5=Alm_ealdur-0.5,0.5,1))*BQ6*(1+IF($C6=1,launah,launahkvk))*IF(Kúrfa="já",IF(ISERROR(INDEX(Launakeðjur!$B$1:$S$60,INT($K6+BR$5)-12,MATCH(Laun!$A6,Launakeðjur!$B$1:$S$1,0)+$C6-1)),0,INDEX(Launakeðjur!$B$1:$S$60,INT($K6+BR$5)-12,MATCH(Laun!$A6,Launakeðjur!$B$1:$S$1,0)+$C6-1)),1) -> 0 | BS6: =+IF($K6+BS$5>Alm_ealdur,0,IF($K6+BS$5=Alm_ealdur-0.5,0.5,1))*BR6*(1+IF($C6=1,launah,launahkvk))*IF(Kúrfa="já",IF(ISERROR(INDEX(Launakeðjur!$B$1:$S$60,INT($K6+BS$5)-12,MATCH(Laun!$A6,Launakeðjur!$B$1:$S$1,0)+$C6-1)),0,INDEX(Launakeðjur!$B$1:$S$60,INT($K6+BS$5)-12,MATCH(Laun!$A6,Launakeðjur!$B$1:$S$1,0)+$C6-1)),1) -> 0 | BT6: =+IF($K6+BT$5>Alm_ealdur,0,IF($K6+BT$5=Alm_ealdur-0.5,0.5,1))*BS6*(1+IF($C6=1,launah,launahkvk))*IF(Kúrfa="já",IF(ISERROR(INDEX(Launakeðjur!$B$1:$S$60,INT($K6+BT$5)-12,MATCH(Laun!$A6,Launakeðjur!$B$1:$S$1,0)+$C6-1)),0,INDEX(Launakeðjur!$B$1:$S$60,INT($K6+BT$5)-12,MATCH(Laun!$A6,Launakeðjur!$B$1:$S$1,0)+$C6-1)),1) -> 0 | BU6: =+IF($K6+BU$5>Alm_ealdur,0,IF($K6+BU$5=Alm_ealdur-0.5,0.5,1))*BT6*(1+IF($C6=1,launah,launahkvk))*IF(Kúrfa="já",IF(ISERROR(INDEX(Launakeðjur!$B$1:$S$60,INT($K6+BU$5)-12,MATCH(Laun!$A6,Launakeðjur!$B$1:$S$1,0)+$C6-1)),0,INDEX(Launakeðjur!$B$1:$S$60,INT($K6+BU$5)-12,MATCH(Laun!$A6,Launakeðjur!$B$1:$S$1,0)+$C6-1)),1) -> 0 | BV6: =+IF($K6+BV$5>Alm_ealdur,0,IF($K6+BV$5=Alm_ealdur-0.5,0.5,1))*BU6*(1+IF($C6=1,launah,launahkvk))*IF(Kúrfa="já",IF(ISERROR(INDEX(Launakeðjur!$B$1:$S$60,INT($K6+BV$5)-12,MATCH(Laun!$A6,Launakeðjur!$B$1:$S$1,0)+$C6-1)),0,INDEX(Launakeðjur!$B$1:$S$60,INT($K6+BV$5)-12,MATCH(Laun!$A6,Launakeðjur!$B$1:$S$1,0)+$C6-1)),1) -> 0 | BW6: =+IF($K6+BW$5>Alm_ealdur,0,IF($K6+BW$5=Alm_ealdur-0.5,0.5,1))*BV6*(1+IF($C6=1,launah,launahkvk))*IF(Kúrfa="já",IF(ISERROR(INDEX(Launakeðjur!$B$1:$S$60,INT($K6+BW$5)-12,MATCH(Laun!$A6,Launakeðjur!$B$1:$S$1,0)+$C6-1)),0,INDEX(Launakeðjur!$B$1:$S$60,INT($K6+BW$5)-12,MATCH(Laun!$A6,Launakeðjur!$B$1:$S$1,0)+$C6-1)),1) -> 0 | BX6: =+IF($K6+BX$5>Alm_ealdur,0,IF($K6+BX$5=Alm_ealdur-0.5,0.5,1))*BW6*(1+IF($C6=1,launah,launahkvk))*IF(Kúrfa="já",IF(ISERROR(INDEX(Launakeðjur!$B$1:$S$60,INT($K6+BX$5)-12,MATCH(Laun!$A6,Launakeðjur!$B$1:$S$1,0)+$C6-1)),0,INDEX(Launakeðjur!$B$1:$S$60,INT($K6+BX$5)-12,MATCH(Laun!$A6,Launakeðjur!$B$1:$S$1,0)+$C6-1)),1) -> 0 | BZ6: =+SUM(P6:BX6)*G6 -> 232351501.8
A7: Alm | B7: =+A7&"_"&C7&"_"&E7&"_"&F7 -> Alm_1_1946_0 | C7: =+'Access gögn'!D3 -> 1 | D7: =+'Access gögn'!E3 -> 1 | E7: =+'Access gögn'!F3 -> 1946 | F7: =+'Access gögn'!G3 -> 0 | G7: =+'Access gögn'!H3/1.21245 -> 45.36269537 | H7: =+'Access gögn'!I3 -> 2285877.655 | I7: =+'Access gögn'!J3 -> 0 | J7: =+'Access gögn'!K3 -> 616774.9173 | K7: =+$K$1-E7+0.5 -> 69.5 | L7: =+VLOOKUP(B7,'Mismunandi laun'!$F$3:$J$112,'Mismunandi laun'!$A$3,FALSE)*1.11 -> 7378830.45 | M7: =IF(D7=1,MAX(P7:BS7,L7,N7),0) -> 7378830.45 | N7: =IF(P7=0,L7,INDEX(P7:BX7,1,Alm_ealdur+0.5-$K7)*2) -> 7232704.006 | O7: =IF(Kúrfa="já",L7*INDEX(Launakeðjur!$Y$1:$AJ$57,Laun!K7-13.5,MATCH(Laun!A7,Launakeðjur!$Y$1:$AI$1,0)+Laun!C7-1),L7*(1+IF(C1=1,launah,launahkvk))^(55-K7)) -> 7993406.301 | P7: =+IF($K7+P$5>Alm_ealdur,0,IF(K7=Alm_ealdur-0.5,0.5,1))*L7*(1+IF(C7=1,launah,launahkvk))*IF(Kúrfa="Já",IF(ISERROR(INDEX(Launakeðjur!$B$1:$S$60,INT($K7+P$5)-12,MATCH(Laun!$A7,Launakeðjur!$B$1:$S$1,0)+C7-1)),0,INDEX(Launakeðjur!$B$1:$S$60,INT($K7+P$5)-12,MATCH(Laun!$A7,Launakeðjur!$B$1:$S$1,0)+C7-1)),1) -> 7019991.251 | Q7: =+IF($K7+Q$5>Alm_ealdur,0,IF($K7+Q$5=Alm_ealdur-0.5,0.5,1))*P7*(1+IF($C7=1,launah,launahkvk))*IF(Kúrfa="já",IF(ISERROR(INDEX(Launakeðjur!$B$1:$S$60,INT($K7+Q$5)-12,MATCH(Laun!$A7,Launakeðjur!$B$1:$S$1,0)+$C7-1)),0,INDEX(Launakeðjur!$B$1:$S$60,INT($K7+Q$5)-12,MATCH(Laun!$A7,Launakeðjur!$B$1:$S$1,0)+$C7-1)),1) -> 7090191.164 | R7: =+IF($K7+R$5>Alm_ealdur,0,IF($K7+R$5=Alm_ealdur-0.5,0.5,1))*Q7*(1+IF($C7=1,launah,launahkvk))*IF(Kúrfa="já",IF(ISERROR(INDEX(Launakeðjur!$B$1:$S$60,INT($K7+R$5)-12,MATCH(Laun!$A7,Launakeðjur!$B$1:$S$1,0)+$C7-1)),0,INDEX(Launakeðjur!$B$1:$S$60,INT($K7+R$5)-12,MATCH(Laun!$A7,Launakeðjur!$B$1:$S$1,0)+$C7-1)),1) -> 7161093.076 | S7: =+IF($K7+S$5>Alm_ealdur,0,IF($K7+S$5=Alm_ealdur-0.5,0.5,1))*R7*(1+IF($C7=1,launah,launahkvk))*IF(Kúrfa="já",IF(ISERROR(INDEX(Launakeðjur!$B$1:$S$60,INT($K7+S$5)-12,MATCH(Laun!$A7,Launakeðjur!$B$1:$S$1,0)+$C7-1)),0,INDEX(Launakeðjur!$B$1:$S$60,INT($K7+S$5)-12,MATCH(Laun!$A7,Launakeðjur!$B$1:$S$1,0)+$C7-1)),1) -> 3616352.003 | T7: =+IF($K7+T$5>Alm_ealdur,0,IF($K7+T$5=Alm_ealdur-0.5,0.5,1))*S7*(1+IF($C7=1,launah,launahkvk))*IF(Kúrfa="já",IF(ISERROR(INDEX(Launakeðjur!$B$1:$S$60,INT($K7+T$5)-12,MATCH(Laun!$A7,Launakeðjur!$B$1:$S$1,0)+$C7-1)),0,INDEX(Launakeðjur!$B$1:$S$60,INT($K7+T$5)-12,MATCH(Laun!$A7,Launakeðjur!$B$1:$S$1,0)+$C7-1)),1) -> 0 | U7: =+IF($K7+U$5>Alm_ealdur,0,IF($K7+U$5=Alm_ealdur-0.5,0.5,1))*T7*(1+IF($C7=1,launah,launahkvk))*IF(Kúrfa="já",IF(ISERROR(INDEX(Launakeðjur!$B$1:$S$60,INT($K7+U$5)-12,MATCH(Laun!$A7,Launakeðjur!$B$1:$S$1,0)+$C7-1)),0,INDEX(Launakeðjur!$B$1:$S$60,INT($K7+U$5)-12,MATCH(Laun!$A7,Launakeðjur!$B$1:$S$1,0)+$C7-1)),1) -> 0 | V7: =+IF($K7+V$5>Alm_ealdur,0,IF($K7+V$5=Alm_ealdur-0.5,0.5,1))*U7*(1+IF($C7=1,launah,launahkvk))*IF(Kúrfa="já",IF(ISERROR(INDEX(Launakeðjur!$B$1:$S$60,INT($K7+V$5)-12,MATCH(Laun!$A7,Launakeðjur!$B$1:$S$1,0)+$C7-1)),0,INDEX(Launakeðjur!$B$1:$S$60,INT($K7+V$5)-12,MATCH(Laun!$A7,Launakeðjur!$B$1:$S$1,0)+$C7-1)),1) -> 0 | W7: =+IF($K7+W$5>Alm_ealdur,0,IF($K7+W$5=Alm_ealdur-0.5,0.5,1))*V7*(1+IF($C7=1,launah,launahkvk))*IF(Kúrfa="já",IF(ISERROR(INDEX(Launakeðjur!$B$1:$S$60,INT($K7+W$5)-12,MATCH(Laun!$A7,Launakeðjur!$B$1:$S$1,0)+$C7-1)),0,INDEX(Launakeðjur!$B$1:$S$60,INT($K7+W$5)-12,MATCH(Laun!$A7,Launakeðjur!$B$1:$S$1,0)+$C7-1)),1) -> 0 | X7: =+IF($K7+X$5>Alm_ealdur,0,IF($K7+X$5=Alm_ealdur-0.5,0.5,1))*W7*(1+IF($C7=1,launah,launahkvk))*IF(Kúrfa="já",IF(ISERROR(INDEX(Launakeðjur!$B$1:$S$60,INT($K7+X$5)-12,MATCH(Laun!$A7,Launakeðjur!$B$1:$S$1,0)+$C7-1)),0,INDEX(Launakeðjur!$B$1:$S$60,INT($K7+X$5)-12,MATCH(Laun!$A7,Launakeðjur!$B$1:$S$1,0)+$C7-1)),1) -> 0 | Y7: =+IF($K7+Y$5>Alm_ealdur,0,IF($K7+Y$5=Alm_ealdur-0.5,0.5,1))*X7*(1+IF($C7=1,launah,launahkvk))*IF(Kúrfa="já",IF(ISERROR(INDEX(Launakeðjur!$B$1:$S$60,INT($K7+Y$5)-12,MATCH(Laun!$A7,Launakeðjur!$B$1:$S$1,0)+$C7-1)),0,INDEX(Launakeðjur!$B$1:$S$60,INT($K7+Y$5)-12,MATCH(Laun!$A7,Launakeðjur!$B$1:$S$1,0)+$C7-1)),1) -> 0 | Z7: =+IF($K7+Z$5>Alm_ealdur,0,IF($K7+Z$5=Alm_ealdur-0.5,0.5,1))*Y7*(1+IF($C7=1,launah,launahkvk))*IF(Kúrfa="já",IF(ISERROR(INDEX(Launakeðjur!$B$1:$S$60,INT($K7+Z$5)-12,MATCH(Laun!$A7,Launakeðjur!$B$1:$S$1,0)+$C7-1)),0,INDEX(Launakeðjur!$B$1:$S$60,INT($K7+Z$5)-12,MATCH(Laun!$A7,Launakeðjur!$B$1:$S$1,0)+$C7-1)),1) -> 0 | AA7: =+IF($K7+AA$5>Alm_ealdur,0,IF($K7+AA$5=Alm_ealdur-0.5,0.5,1))*Z7*(1+IF($C7=1,launah,launahkvk))*IF(Kúrfa="já",IF(ISERROR(INDEX(Launakeðjur!$B$1:$S$60,INT($K7+AA$5)-12,MATCH(Laun!$A7,Launakeðjur!$B$1:$S$1,0)+$C7-1)),0,INDEX(Launakeðjur!$B$1:$S$60,INT($K7+AA$5)-12,MATCH(Laun!$A7,Launakeðjur!$B$1:$S$1,0)+$C7-1)),1) -> 0 | AB7: =+IF($K7+AB$5>Alm_ealdur,0,IF($K7+AB$5=Alm_ealdur-0.5,0.5,1))*AA7*(1+IF($C7=1,launah,launahkvk))*IF(Kúrfa="já",IF(ISERROR(INDEX(Launakeðjur!$B$1:$S$60,INT($K7+AB$5)-12,MATCH(Laun!$A7,Launakeðjur!$B$1:$S$1,0)+$C7-1)),0,INDEX(Launakeðjur!$B$1:$S$60,INT($K7+AB$5)-12,MATCH(Laun!$A7,Launakeðjur!$B$1:$S$1,0)+$C7-1)),1) -> 0 | AC7: =+IF($K7+AC$5>Alm_ealdur,0,IF($K7+AC$5=Alm_ealdur-0.5,0.5,1))*AB7*(1+IF($C7=1,launah,launahkvk))*IF(Kúrfa="já",IF(ISERROR(INDEX(Launakeðjur!$B$1:$S$60,INT($K7+AC$5)-12,MATCH(Laun!$A7,Launakeðjur!$B$1:$S$1,0)+$C7-1)),0,INDEX(Launakeðjur!$B$1:$S$60,INT($K7+AC$5)-12,MATCH(Laun!$A7,Launakeðjur!$B$1:$S$1,0)+$C7-1)),1) -> 0 | AD7: =+IF($K7+AD$5>Alm_ealdur,0,IF($K7+AD$5=Alm_ealdur-0.5,0.5,1))*AC7*(1+IF($C7=1,launah,launahkvk))*IF(Kúrfa="já",IF(ISERROR(INDEX(Launakeðjur!$B$1:$S$60,INT($K7+AD$5)-12,MATCH(Laun!$A7,Launakeðjur!$B$1:$S$1,0)+$C7-1)),0,INDEX(Launakeðjur!$B$1:$S$60,INT($K7+AD$5)-12,MATCH(Laun!$A7,Launakeðjur!$B$1:$S$1,0)+$C7-1)),1) -> 0 | AE7: =+IF($K7+AE$5>Alm_ealdur,0,IF($K7+AE$5=Alm_ealdur-0.5,0.5,1))*AD7*(1+IF($C7=1,launah,launahkvk))*IF(Kúrfa="já",IF(ISERROR(INDEX(Launakeðjur!$B$1:$S$60,INT($K7+AE$5)-12,MATCH(Laun!$A7,Launakeðjur!$B$1:$S$1,0)+$C7-1)),0,INDEX(Launakeðjur!$B$1:$S$60,INT($K7+AE$5)-12,MATCH(Laun!$A7,Launakeðjur!$B$1:$S$1,0)+$C7-1)),1) -> 0 | AF7: =+IF($K7+AF$5>Alm_ealdur,0,IF($K7+AF$5=Alm_ealdur-0.5,0.5,1))*AE7*(1+IF($C7=1,launah,launahkvk))*IF(Kúrfa="já",IF(ISERROR(INDEX(Launakeðjur!$B$1:$S$60,INT($K7+AF$5)-12,MATCH(Laun!$A7,Launakeðjur!$B$1:$S$1,0)+$C7-1)),0,INDEX(Launakeðjur!$B$1:$S$60,INT($K7+AF$5)-12,MATCH(Laun!$A7,Launakeðjur!$B$1:$S$1,0)+$C7-1)),1) -> 0 | AG7: =+IF($K7+AG$5>Alm_ealdur,0,IF($K7+AG$5=Alm_ealdur-0.5,0.5,1))*AF7*(1+IF($C7=1,launah,launahkvk))*IF(Kúrfa="já",IF(ISERROR(INDEX(Launakeðjur!$B$1:$S$60,INT($K7+AG$5)-12,MATCH(Laun!$A7,Launakeðjur!$B$1:$S$1,0)+$C7-1)),0,INDEX(Launakeðjur!$B$1:$S$60,INT($K7+AG$5)-12,MATCH(Laun!$A7,Launakeðjur!$B$1:$S$1,0)+$C7-1)),1) -> 0 | AH7: =+IF($K7+AH$5>Alm_ealdur,0,IF($K7+AH$5=Alm_ealdur-0.5,0.5,1))*AG7*(1+IF($C7=1,launah,launahkvk))*IF(Kúrfa="já",IF(ISERROR(INDEX(Launakeðjur!$B$1:$S$60,INT($K7+AH$5)-12,MATCH(Laun!$A7,Launakeðjur!$B$1:$S$1,0)+$C7-1)),0,INDEX(Launakeðjur!$B$1:$S$60,INT($K7+AH$5)-12,MATCH(Laun!$A7,Launakeðjur!$B$1:$S$1,0)+$C7-1)),1) -> 0 | AI7: =+IF($K7+AI$5>Alm_ealdur,0,IF($K7+AI$5=Alm_ealdur-0.5,0.5,1))*AH7*(1+IF($C7=1,launah,launahkvk))*IF(Kúrfa="já",IF(ISERROR(INDEX(Launakeðjur!$B$1:$S$60,INT($K7+AI$5)-12,MATCH(Laun!$A7,Launakeðjur!$B$1:$S$1,0)+$C7-1)),0,INDEX(Launakeðjur!$B$1:$S$60,INT($K7+AI$5)-12,MATCH(Laun!$A7,Launakeðjur!$B$1:$S$1,0)+$C7-1)),1) -> 0 | AJ7: =+IF($K7+AJ$5>Alm_ealdur,0,IF($K7+AJ$5=Alm_ealdur-0.5,0.5,1))*AI7*(1+IF($C7=1,launah,launahkvk))*IF(Kúrfa="já",IF(ISERROR(INDEX(Launakeðjur!$B$1:$S$60,INT($K7+AJ$5)-12,MATCH(Laun!$A7,Launakeðjur!$B$1:$S$1,0)+$C7-1)),0,INDEX(Launakeðjur!$B$1:$S$60,INT($K7+AJ$5)-12,MATCH(Laun!$A7,Launakeðjur!$B$1:$S$1,0)+$C7-1)),1) -> 0 | AK7: =+IF($K7+AK$5>Alm_ealdur,0,IF($K7+AK$5=Alm_ealdur-0.5,0.5,1))*AJ7*(1+IF($C7=1,launah,launahkvk))*IF(Kúrfa="já",IF(ISERROR(INDEX(Launakeðjur!$B$1:$S$60,INT($K7+AK$5)-12,MATCH(Laun!$A7,Launakeðjur!$B$1:$S$1,0)+$C7-1)),0,INDEX(Launakeðjur!$B$1:$S$60,INT($K7+AK$5)-12,MATCH(Laun!$A7,Launakeðjur!$B$1:$S$1,0)+$C7-1)),1) -> 0 | AL7: =+IF($K7+AL$5>Alm_ealdur,0,IF($K7+AL$5=Alm_ealdur-0.5,0.5,1))*AK7*(1+IF($C7=1,launah,launahkvk))*IF(Kúrfa="já",IF(ISERROR(INDEX(Launakeðjur!$B$1:$S$60,INT($K7+AL$5)-12,MATCH(Laun!$A7,Launakeðjur!$B$1:$S$1,0)+$C7-1)),0,INDEX(Launakeðjur!$B$1:$S$60,INT($K7+AL$5)-12,MATCH(Laun!$A7,Launakeðjur!$B$1:$S$1,0)+$C7-1)),1) -> 0 | AM7: =+IF($K7+AM$5>Alm_ealdur,0,IF($K7+AM$5=Alm_ealdur-0.5,0.5,1))*AL7*(1+IF($C7=1,launah,launahkvk))*IF(Kúrfa="já",IF(ISERROR(INDEX(Launakeðjur!$B$1:$S$60,INT($K7+AM$5)-12,MATCH(Laun!$A7,Launakeðjur!$B$1:$S$1,0)+$C7-1)),0,INDEX(Launakeðjur!$B$1:$S$60,INT($K7+AM$5)-12,MATCH(Laun!$A7,Launakeðjur!$B$1:$S$1,0)+$C7-1)),1) -> 0 | AN7: =+IF($K7+AN$5>Alm_ealdur,0,IF($K7+AN$5=Alm_ealdur-0.5,0.5,1))*AM7*(1+IF($C7=1,launah,launahkvk))*IF(Kúrfa="já",IF(ISERROR(INDEX(Launakeðjur!$B$1:$S$60,INT($K7+AN$5)-12,MATCH(Laun!$A7,Launakeðjur!$B$1:$S$1,0)+$C7-1)),0,INDEX(Launakeðjur!$B$1:$S$60,INT($K7+AN$5)-12,MATCH(Laun!$A7,Launakeðjur!$B$1:$S$1,0)+$C7-1)),1) -> 0 | AO7: =+IF($K7+AO$5>Alm_ealdur,0,IF($K7+AO$5=Alm_ealdur-0.5,0.5,1))*AN7*(1+IF($C7=1,launah,launahkvk))*IF(Kúrfa="já",IF(ISERROR(INDEX(Launakeðjur!$B$1:$S$60,INT($K7+AO$5)-12,MATCH(Laun!$A7,Launakeðjur!$B$1:$S$1,0)+$C7-1)),0,INDEX(Launakeðjur!$B$1:$S$60,INT($K7+AO$5)-12,MATCH(Laun!$A7,Launakeðjur!$B$1:$S$1,0)+$C7-1)),1) -> 0 | AP7: =+IF($K7+AP$5>Alm_ealdur,0,IF($K7+AP$5=Alm_ealdur-0.5,0.5,1))*AO7*(1+IF($C7=1,launah,launahkvk))*IF(Kúrfa="já",IF(ISERROR(INDEX(Launakeðjur!$B$1:$S$60,INT($K7+AP$5)-12,MATCH(Laun!$A7,Launakeðjur!$B$1:$S$1,0)+$C7-1)),0,INDEX(Launakeðjur!$B$1:$S$60,INT($K7+AP$5)-12,MATCH(Laun!$A7,Launakeðjur!$B$1:$S$1,0)+$C7-1)),1) -> 0 | AQ7: =+IF($K7+AQ$5>Alm_ealdur,0,IF($K7+AQ$5=Alm_ealdur-0.5,0.5,1))*AP7*(1+IF($C7=1,launah,launahkvk))*IF(Kúrfa="já",IF(ISERROR(INDEX(Launakeðjur!$B$1:$S$60,INT($K7+AQ$5)-12,MATCH(Laun!$A7,Launakeðjur!$B$1:$S$1,0)+$C7-1)),0,INDEX(Launakeðjur!$B$1:$S$60,INT($K7+AQ$5)-12,MATCH(Laun!$A7,Launakeðjur!$B$1:$S$1,0)+$C7-1)),1) -> 0 | AR7: =+IF($K7+AR$5>Alm_ealdur,0,IF($K7+AR$5=Alm_ealdur-0.5,0.5,1))*AQ7*(1+IF($C7=1,launah,launahkvk))*IF(Kúrfa="já",IF(ISERROR(INDEX(Launakeðjur!$B$1:$S$60,INT($K7+AR$5)-12,MATCH(Laun!$A7,Launakeðjur!$B$1:$S$1,0)+$C7-1)),0,INDEX(Launakeðjur!$B$1:$S$60,INT($K7+AR$5)-12,MATCH(Laun!$A7,Launakeðjur!$B$1:$S$1,0)+$C7-1)),1) -> 0 | AS7: =+IF($K7+AS$5>Alm_ealdur,0,IF($K7+AS$5=Alm_ealdur-0.5,0.5,1))*AR7*(1+IF($C7=1,launah,launahkvk))*IF(Kúrfa="já",IF(ISERROR(INDEX(Launakeðjur!$B$1:$S$60,INT($K7+AS$5)-12,MATCH(Laun!$A7,Launakeðjur!$B$1:$S$1,0)+$C7-1)),0,INDEX(Launakeðjur!$B$1:$S$60,INT($K7+AS$5)-12,MATCH(Laun!$A7,Launakeðjur!$B$1:$S$1,0)+$C7-1)),1) -> 0 | AT7: =+IF($K7+AT$5>Alm_ealdur,0,IF($K7+AT$5=Alm_ealdur-0.5,0.5,1))*AS7*(1+IF($C7=1,launah,launahkvk))*IF(Kúrfa="já",IF(ISERROR(INDEX(Launakeðjur!$B$1:$S$60,INT($K7+AT$5)-12,MATCH(Laun!$A7,Launakeðjur!$B$1:$S$1,0)+$C7-1)),0,INDEX(Launakeðjur!$B$1:$S$60,INT($K7+AT$5)-12,MATCH(Laun!$A7,Launakeðjur!$B$1:$S$1,0)+$C7-1)),1) -> 0 | AU7: =+IF($K7+AU$5>Alm_ealdur,0,IF($K7+AU$5=Alm_ealdur-0.5,0.5,1))*AT7*(1+IF($C7=1,launah,launahkvk))*IF(Kúrfa="já",IF(ISERROR(INDEX(Launakeðjur!$B$1:$S$60,INT($K7+AU$5)-12,MATCH(Laun!$A7,Launakeðjur!$B$1:$S$1,0)+$C7-1)),0,INDEX(Launakeðjur!$B$1:$S$60,INT($K7+AU$5)-12,MATCH(Laun!$A7,Launakeðjur!$B$1:$S$1,0)+$C7-1)),1) -> 0 | AV7: =+IF($K7+AV$5>Alm_ealdur,0,IF($K7+AV$5=Alm_ealdur-0.5,0.5,1))*AU7*(1+IF($C7=1,launah,launahkvk))*IF(Kúrfa="já",IF(ISERROR(INDEX(Launakeðjur!$B$1:$S$60,INT($K7+AV$5)-12,MATCH(Laun!$A7,Launakeðjur!$B$1:$S$1,0)+$C7-1)),0,INDEX(Launakeðjur!$B$1:$S$60,INT($K7+AV$5)-12,MATCH(Laun!$A7,Launakeðjur!$B$1:$S$1,0)+$C7-1)),1) -> 0 | AW7: =+IF($K7+AW$5>Alm_ealdur,0,IF($K7+AW$5=Alm_ealdur-0.5,0.5,1))*AV7*(1+IF($C7=1,launah,launahkvk))*IF(Kúrfa="já",IF(ISERROR(INDEX(Launakeðjur!$B$1:$S$60,INT($K7+AW$5)-12,MATCH(Laun!$A7,Launakeðjur!$B$1:$S$1,0)+$C7-1)),0,INDEX(Launakeðjur!$B$1:$S$60,INT($K7+AW$5)-12,MATCH(Laun!$A7,Launakeðjur!$B$1:$S$1,0)+$C7-1)),1) -> 0 | AX7: =+IF($K7+AX$5>Alm_ealdur,0,IF($K7+AX$5=Alm_ealdur-0.5,0.5,1))*AW7*(1+IF($C7=1,launah,launahkvk))*IF(Kúrfa="já",IF(ISERROR(INDEX(Launakeðjur!$B$1:$S$60,INT($K7+AX$5)-12,MATCH(Laun!$A7,Launakeðjur!$B$1:$S$1,0)+$C7-1)),0,INDEX(Launakeðjur!$B$1:$S$60,INT($K7+AX$5)-12,MATCH(Laun!$A7,Launakeðjur!$B$1:$S$1,0)+$C7-1)),1) -> 0 | AY7: =+IF($K7+AY$5>Alm_ealdur,0,IF($K7+AY$5=Alm_ealdur-0.5,0.5,1))*AX7*(1+IF($C7=1,launah,launahkvk))*IF(Kúrfa="já",IF(ISERROR(INDEX(Launakeðjur!$B$1:$S$60,INT($K7+AY$5)-12,MATCH(Laun!$A7,Launakeðjur!$B$1:$S$1,0)+$C7-1)),0,INDEX(Launakeðjur!$B$1:$S$60,INT($K7+AY$5)-12,MATCH(Laun!$A7,Launakeðjur!$B$1:$S$1,0)+$C7-1)),1) -> 0 | AZ7: =+IF($K7+AZ$5>Alm_ealdur,0,IF($K7+AZ$5=Alm_ealdur-0.5,0.5,1))*AY7*(1+IF($C7=1,launah,launahkvk))*IF(Kúrfa="já",IF(ISERROR(INDEX(Launakeðjur!$B$1:$S$60,INT($K7+AZ$5)-12,MATCH(Laun!$A7,Launakeðjur!$B$1:$S$1,0)+$C7-1)),0,INDEX(Launakeðjur!$B$1:$S$60,INT($K7+AZ$5)-12,MATCH(Laun!$A7,Launakeðjur!$B$1:$S$1,0)+$C7-1)),1) -> 0 | BA7: =+IF($K7+BA$5>Alm_ealdur,0,IF($K7+BA$5=Alm_ealdur-0.5,0.5,1))*AZ7*(1+IF($C7=1,launah,launahkvk))*IF(Kúrfa="já",IF(ISERROR(INDEX(Launakeðjur!$B$1:$S$60,INT($K7+BA$5)-12,MATCH(Laun!$A7,Launakeðjur!$B$1:$S$1,0)+$C7-1)),0,INDEX(Launakeðjur!$B$1:$S$60,INT($K7+BA$5)-12,MATCH(Laun!$A7,Launakeðjur!$B$1:$S$1,0)+$C7-1)),1) -> 0 | BB7: =+IF($K7+BB$5>Alm_ealdur,0,IF($K7+BB$5=Alm_ealdur-0.5,0.5,1))*BA7*(1+IF($C7=1,launah,launahkvk))*IF(Kúrfa="já",IF(ISERROR(INDEX(Launakeðjur!$B$1:$S$60,INT($K7+BB$5)-12,MATCH(Laun!$A7,Launakeðjur!$B$1:$S$1,0)+$C7-1)),0,INDEX(Launakeðjur!$B$1:$S$60,INT($K7+BB$5)-12,MATCH(Laun!$A7,Launakeðjur!$B$1:$S$1,0)+$C7-1)),1) -> 0 | BC7: =+IF($K7+BC$5>Alm_ealdur,0,IF($K7+BC$5=Alm_ealdur-0.5,0.5,1))*BB7*(1+IF($C7=1,launah,launahkvk))*IF(Kúrfa="já",IF(ISERROR(INDEX(Launakeðjur!$B$1:$S$60,INT($K7+BC$5)-12,MATCH(Laun!$A7,Launakeðjur!$B$1:$S$1,0)+$C7-1)),0,INDEX(Launakeðjur!$B$1:$S$60,INT($K7+BC$5)-12,MATCH(Laun!$A7,Launakeðjur!$B$1:$S$1,0)+$C7-1)),1) -> 0 | BD7: =+IF($K7+BD$5>Alm_ealdur,0,IF($K7+BD$5=Alm_ealdur-0.5,0.5,1))*BC7*(1+IF($C7=1,launah,launahkvk))*IF(Kúrfa="já",IF(ISERROR(INDEX(Launakeðjur!$B$1:$S$60,INT($K7+BD$5)-12,MATCH(Laun!$A7,Launakeðjur!$B$1:$S$1,0)+$C7-1)),0,INDEX(Launakeðjur!$B$1:$S$60,INT($K7+BD$5)-12,MATCH(Laun!$A7,Launakeðjur!$B$1:$S$1,0)+$C7-1)),1) -> 0 | BE7: =+IF($K7+BE$5>Alm_ealdur,0,IF($K7+BE$5=Alm_ealdur-0.5,0.5,1))*BD7*(1+IF($C7=1,launah,launahkvk))*IF(Kúrfa="já",IF(ISERROR(INDEX(Launakeðjur!$B$1:$S$60,INT($K7+BE$5)-12,MATCH(Laun!$A7,Launakeðjur!$B$1:$S$1,0)+$C7-1)),0,INDEX(Launakeðjur!$B$1:$S$60,INT($K7+BE$5)-12,MATCH(Laun!$A7,Launakeðjur!$B$1:$S$1,0)+$C7-1)),1) -> 0 | BF7: =+IF($K7+BF$5>Alm_ealdur,0,IF($K7+BF$5=Alm_ealdur-0.5,0.5,1))*BE7*(1+IF($C7=1,launah,launahkvk))*IF(Kúrfa="já",IF(ISERROR(INDEX(Launakeðjur!$B$1:$S$60,INT($K7+BF$5)-12,MATCH(Laun!$A7,Launakeðjur!$B$1:$S$1,0)+$C7-1)),0,INDEX(Launakeðjur!$B$1:$S$60,INT($K7+BF$5)-12,MATCH(Laun!$A7,Launakeðjur!$B$1:$S$1,0)+$C7-1)),1) -> 0 | BG7: =+IF($K7+BG$5>Alm_ealdur,0,IF($K7+BG$5=Alm_ealdur-0.5,0.5,1))*BF7*(1+IF($C7=1,launah,launahkvk))*IF(Kúrfa="já",IF(ISERROR(INDEX(Launakeðjur!$B$1:$S$60,INT($K7+BG$5)-12,MATCH(Laun!$A7,Launakeðjur!$B$1:$S$1,0)+$C7-1)),0,INDEX(Launakeðjur!$B$1:$S$60,INT($K7+BG$5)-12,MATCH(Laun!$A7,Launakeðjur!$B$1:$S$1,0)+$C7-1)),1) -> 0 | BH7: =+IF($K7+BH$5>Alm_ealdur,0,IF($K7+BH$5=Alm_ealdur-0.5,0.5,1))*BG7*(1+IF($C7=1,launah,launahkvk))*IF(Kúrfa="já",IF(ISERROR(INDEX(Launakeðjur!$B$1:$S$60,INT($K7+BH$5)-12,MATCH(Laun!$A7,Launakeðjur!$B$1:$S$1,0)+$C7-1)),0,INDEX(Launakeðjur!$B$1:$S$60,INT($K7+BH$5)-12,MATCH(Laun!$A7,Launakeðjur!$B$1:$S$1,0)+$C7-1)),1) -> 0 | BI7: =+IF($K7+BI$5>Alm_ealdur,0,IF($K7+BI$5=Alm_ealdur-0.5,0.5,1))*BH7*(1+IF($C7=1,launah,launahkvk))*IF(Kúrfa="já",IF(ISERROR(INDEX(Launakeðjur!$B$1:$S$60,INT($K7+BI$5)-12,MATCH(Laun!$A7,Launakeðjur!$B$1:$S$1,0)+$C7-1)),0,INDEX(Launakeðjur!$B$1:$S$60,INT($K7+BI$5)-12,MATCH(Laun!$A7,Launakeðjur!$B$1:$S$1,0)+$C7-1)),1) -> 0 | BJ7: =+IF($K7+BJ$5>Alm_ealdur,0,IF($K7+BJ$5=Alm_ealdur-0.5,0.5,1))*BI7*(1+IF($C7=1,launah,launahkvk))*IF(Kúrfa="já",IF(ISERROR(INDEX(Launakeðjur!$B$1:$S$60,INT($K7+BJ$5)-12,MATCH(Laun!$A7,Launakeðjur!$B$1:$S$1,0)+$C7-1)),0,INDEX(Launakeðjur!$B$1:$S$60,INT($K7+BJ$5)-12,MATCH(Laun!$A7,Launakeðjur!$B$1:$S$1,0)+$C7-1)),1) -> 0 | BK7: =+IF($K7+BK$5>Alm_ealdur,0,IF($K7+BK$5=Alm_ealdur-0.5,0.5,1))*BJ7*(1+IF($C7=1,launah,launahkvk))*IF(Kúrfa="já",IF(ISERROR(INDEX(Launakeðjur!$B$1:$S$60,INT($K7+BK$5)-12,MATCH(Laun!$A7,Launakeðjur!$B$1:$S$1,0)+$C7-1)),0,INDEX(Launakeðjur!$B$1:$S$60,INT($K7+BK$5)-12,MATCH(Laun!$A7,Launakeðjur!$B$1:$S$1,0)+$C7-1)),1) -> 0 | BL7: =+IF($K7+BL$5>Alm_ealdur,0,IF($K7+BL$5=Alm_ealdur-0.5,0.5,1))*BK7*(1+IF($C7=1,launah,launahkvk))*IF(Kúrfa="já",IF(ISERROR(INDEX(Launakeðjur!$B$1:$S$60,INT($K7+BL$5)-12,MATCH(Laun!$A7,Launakeðjur!$B$1:$S$1,0)+$C7-1)),0,INDEX(Launakeðjur!$B$1:$S$60,INT($K7+BL$5)-12,MATCH(Laun!$A7,Launakeðjur!$B$1:$S$1,0)+$C7-1)),1) -> 0 | BM7: =+IF($K7+BM$5>Alm_ealdur,0,IF($K7+BM$5=Alm_ealdur-0.5,0.5,1))*BL7*(1+IF($C7=1,launah,launahkvk))*IF(Kúrfa="já",IF(ISERROR(INDEX(Launakeðjur!$B$1:$S$60,INT($K7+BM$5)-12,MATCH(Laun!$A7,Launakeðjur!$B$1:$S$1,0)+$C7-1)),0,INDEX(Launakeðjur!$B$1:$S$60,INT($K7+BM$5)-12,MATCH(Laun!$A7,Launakeðjur!$B$1:$S$1,0)+$C7-1)),1) -> 0 | BN7: =+IF($K7+BN$5>Alm_ealdur,0,IF($K7+BN$5=Alm_ealdur-0.5,0.5,1))*BM7*(1+IF($C7=1,launah,launahkvk))*IF(Kúrfa="já",IF(ISERROR(INDEX(Launakeðjur!$B$1:$S$60,INT($K7+BN$5)-12,MATCH(Laun!$A7,Launakeðjur!$B$1:$S$1,0)+$C7-1)),0,INDEX(Launakeðjur!$B$1:$S$60,INT($K7+BN$5)-12,MATCH(Laun!$A7,Launakeðjur!$B$1:$S$1,0)+$C7-1)),1) -> 0 | BO7: =+IF($K7+BO$5>Alm_ealdur,0,IF($K7+BO$5=Alm_ealdur-0.5,0.5,1))*BN7*(1+IF($C7=1,launah,launahkvk))*IF(Kúrfa="já",IF(ISERROR(INDEX(Launakeðjur!$B$1:$S$60,INT($K7+BO$5)-12,MATCH(Laun!$A7,Launakeðjur!$B$1:$S$1,0)+$C7-1)),0,INDEX(Launakeðjur!$B$1:$S$60,INT($K7+BO$5)-12,MATCH(Laun!$A7,Launakeðjur!$B$1:$S$1,0)+$C7-1)),1) -> 0 | BP7: =+IF($K7+BP$5>Alm_ealdur,0,IF($K7+BP$5=Alm_ealdur-0.5,0.5,1))*BO7*(1+IF($C7=1,launah,launahkvk))*IF(Kúrfa="já",IF(ISERROR(INDEX(Launakeðjur!$B$1:$S$60,INT($K7+BP$5)-12,MATCH(Laun!$A7,Launakeðjur!$B$1:$S$1,0)+$C7-1)),0,INDEX(Launakeðjur!$B$1:$S$60,INT($K7+BP$5)-12,MATCH(Laun!$A7,Launakeðjur!$B$1:$S$1,0)+$C7-1)),1) -> 0 | BQ7: =+IF($K7+BQ$5>Alm_ealdur,0,IF($K7+BQ$5=Alm_ealdur-0.5,0.5,1))*BP7*(1+IF($C7=1,launah,launahkvk))*IF(Kúrfa="já",IF(ISERROR(INDEX(Launakeðjur!$B$1:$S$60,INT($K7+BQ$5)-12,MATCH(Laun!$A7,Launakeðjur!$B$1:$S$1,0)+$C7-1)),0,INDEX(Launakeðjur!$B$1:$S$60,INT($K7+BQ$5)-12,MATCH(Laun!$A7,Launakeðjur!$B$1:$S$1,0)+$C7-1)),1) -> 0 | BR7: =+IF($K7+BR$5>Alm_ealdur,0,IF($K7+BR$5=Alm_ealdur-0.5,0.5,1))*BQ7*(1+IF($C7=1,launah,launahkvk))*IF(Kúrfa="já",IF(ISERROR(INDEX(Launakeðjur!$B$1:$S$60,INT($K7+BR$5)-12,MATCH(Laun!$A7,Launakeðjur!$B$1:$S$1,0)+$C7-1)),0,INDEX(Launakeðjur!$B$1:$S$60,INT($K7+BR$5)-12,MATCH(Laun!$A7,Launakeðjur!$B$1:$S$1,0)+$C7-1)),1) -> 0 | BS7: =+IF($K7+BS$5>Alm_ealdur,0,IF($K7+BS$5=Alm_ealdur-0.5,0.5,1))*BR7*(1+IF($C7=1,launah,launahkvk))*IF(Kúrfa="já",IF(ISERROR(INDEX(Launakeðjur!$B$1:$S$60,INT($K7+BS$5)-12,MATCH(Laun!$A7,Launakeðjur!$B$1:$S$1,0)+$C7-1)),0,INDEX(Launakeðjur!$B$1:$S$60,INT($K7+BS$5)-12,MATCH(Laun!$A7,Launakeðjur!$B$1:$S$1,0)+$C7-1)),1) -> 0 | BT7: =+IF($K7+BT$5>Alm_ealdur,0,IF($K7+BT$5=Alm_ealdur-0.5,0.5,1))*BS7*(1+IF($C7=1,launah,launahkvk))*IF(Kúrfa="já",IF(ISERROR(INDEX(Launakeðjur!$B$1:$S$60,INT($K7+BT$5)-12,MATCH(Laun!$A7,Launakeðjur!$B$1:$S$1,0)+$C7-1)),0,INDEX(Launakeðjur!$B$1:$S$60,INT($K7+BT$5)-12,MATCH(Laun!$A7,Launakeðjur!$B$1:$S$1,0)+$C7-1)),1) -> 0 | BU7: =+IF($K7+BU$5>Alm_ealdur,0,IF($K7+BU$5=Alm_ealdur-0.5,0.5,1))*BT7*(1+IF($C7=1,launah,launahkvk))*IF(Kúrfa="já",IF(ISERROR(INDEX(Launakeðjur!$B$1:$S$60,INT($K7+BU$5)-12,MATCH(Laun!$A7,Launakeðjur!$B$1:$S$1,0)+$C7-1)),0,INDEX(Launakeðjur!$B$1:$S$60,INT($K7+BU$5)-12,MATCH(Laun!$A7,Launakeðjur!$B$1:$S$1,0)+$C7-1)),1) -> 0 | BV7: =+IF($K7+BV$5>Alm_ealdur,0,IF($K7+BV$5=Alm_ealdur-0.5,0.5,1))*BU7*(1+IF($C7=1,launah,launahkvk))*IF(Kúrfa="já",IF(ISERROR(INDEX(Launakeðjur!$B$1:$S$60,INT($K7+BV$5)-12,MATCH(Laun!$A7,Launakeðjur!$B$1:$S$1,0)+$C7-1)),0,INDEX(Launakeðjur!$B$1:$S$60,INT($K7+BV$5)-12,MATCH(Laun!$A7,Launakeðjur!$B$1:$S$1,0)+$C7-1)),1) -> 0 | BW7: =+IF($K7+BW$5>Alm_ealdur,0,IF($K7+BW$5=Alm_ealdur-0.5,0.5,1))*BV7*(1+IF($C7=1,launah,launahkvk))*IF(Kúrfa="já",IF(ISERROR(INDEX(Launakeðjur!$B$1:$S$60,INT($K7+BW$5)-12,MATCH(Laun!$A7,Launakeðjur!$B$1:$S$1,0)+$C7-1)),0,INDEX(Launakeðjur!$B$1:$S$60,INT($K7+BW$5)-12,MATCH(Laun!$A7,Launakeðjur!$B$1:$S$1,0)+$C7-1)),1) -> 0 | BX7: =+IF($K7+BX$5>Alm_ealdur,0,IF($K7+BX$5=Alm_ealdur-0.5,0.5,1))*BW7*(1+IF($C7=1,launah,launahkvk))*IF(Kúrfa="já",IF(ISERROR(INDEX(Launakeðjur!$B$1:$S$60,INT($K7+BX$5)-12,MATCH(Laun!$A7,Launakeðjur!$B$1:$S$1,0)+$C7-1)),0,INDEX(Launakeðjur!$B$1:$S$60,INT($K7+BX$5)-12,MATCH(Laun!$A7,Launakeðjur!$B$1:$S$1,0)+$C7-1)),1) -> 0 | BZ7: =+SUM(P7:BX7)*G7 -> 1128969864
A8: Alm | B8: Alm_1_1947_0 | C8: =+'Access gögn'!D4 -> 1 | D8: =+'Access gögn'!E4 -> 1 | E8: =+'Access gögn'!F4 -> 1947 | F8: =+'Access gögn'!G4 -> 0 | G8: =+'Access gögn'!H4/1.21245 -> 63.50777352 | H8: =+'Access gögn'!I4 -> 2026526.234 | I8: =+'Access gögn'!J4 -> 0 | J8: =+'Access gögn'!K4 -> 654894.5929 | K8: 68.5 | L8: =+VLOOKUP(B8,'Mismunandi laun'!$F$3:$J$112,'Mismunandi laun'!$A$3,FALSE)*1.11 -> 7990259.52 | M8: 7990259.52 | N8: =IF(P8=0,L8,INDEX(P8:BX8,1,Alm_ealdur+0.5-$K8)*2) -> 7511345.968 | O8: =IF(Kúrfa="já",L8*INDEX(Launakeðjur!$Y$1:$AJ$57,Laun!K8-13.5,MATCH(Laun!A8,Launakeðjur!$Y$1:$AI$1,0)+Laun!C8-1),L8*(1+IF(C2=1,launah,launahkvk))^(55-K8)) -> 8349025.678 | P8: =+IF($K8+P$5>Alm_ealdur,0,IF(K8=Alm_ealdur-0.5,0.5,1))*L8*(1+IF(C8=1,launah,launahkvk))*IF(Kúrfa="Já",IF(ISERROR(INDEX(Launakeðjur!$B$1:$S$60,INT($K8+P$5)-12,MATCH(Laun!$A8,Launakeðjur!$B$1:$S$1,0)+C8-1)),0,INDEX(Launakeðjur!$B$1:$S$60,INT($K8+P$5)-12,MATCH(Laun!$A8,Launakeðjur!$B$1:$S$1,0)+C8-1)),1) -> 7663101.974 | Q8: =+IF($K8+Q$5>Alm_ealdur,0,IF($K8+Q$5=Alm_ealdur-0.5,0.5,1))*P8*(1+IF($C8=1,launah,launahkvk))*IF(Kúrfa="já",IF(ISERROR(INDEX(Launakeðjur!$B$1:$S$60,INT($K8+Q$5)-12,MATCH(Laun!$A8,Launakeðjur!$B$1:$S$1,0)+$C8-1)),0,INDEX(Launakeðjur!$B$1:$S$60,INT($K8+Q$5)-12,MATCH(Laun!$A8,Launakeðjur!$B$1:$S$1,0)+$C8-1)),1) -> 7290438.394 | R8: =+IF($K8+R$5>Alm_ealdur,0,IF($K8+R$5=Alm_ealdur-0.5,0.5,1))*Q8*(1+IF($C8=1,launah,launahkvk))*IF(Kúrfa="já",IF(ISERROR(INDEX(Launakeðjur!$B$1:$S$60,INT($K8+R$5)-12,MATCH(Laun!$A8,Launakeðjur!$B$1:$S$1,0)+$C8-1)),0,INDEX(Launakeðjur!$B$1:$S$60,INT($K8+R$5)-12,MATCH(Laun!$A8,Launakeðjur!$B$1:$S$1,0)+$C8-1)),1) -> 7363342.778 | S8: =+IF($K8+S$5>Alm_ealdur,0,IF($K8+S$5=Alm_ealdur-0.5,0.5,1))*R8*(1+IF($C8=1,launah,launahkvk))*IF(Kúrfa="já",IF(ISERROR(INDEX(Launakeðjur!$B$1:$S$60,INT($K8+S$5)-12,MATCH(Laun!$A8,Launakeðjur!$B$1:$S$1,0)+$C8-1)),0,INDEX(Launakeðjur!$B$1:$S$60,INT($K8+S$5)-12,MATCH(Laun!$A8,Launakeðjur!$B$1:$S$1,0)+$C8-1)),1) -> 7436976.206 | T8: =+IF($K8+T$5>Alm_ealdur,0,IF($K8+T$5=Alm_ealdur-0.5,0.5,1))*S8*(1+IF($C8=1,launah,launahkvk))*IF(Kúrfa="já",IF(ISERROR(INDEX(Launakeðjur!$B$1:$S$60,INT($K8+T$5)-12,MATCH(Laun!$A8,Launakeðjur!$B$1:$S$1,0)+$C8-1)),0,INDEX(Launakeðjur!$B$1:$S$60,INT($K8+T$5)-12,MATCH(Laun!$A8,Launakeðjur!$B$1:$S$1,0)+$C8-1)),1) -> 3755672.984 | U8: =+IF($K8+U$5>Alm_ealdur,0,IF($K8+U$5=Alm_ealdur-0.5,0.5,1))*T8*(1+IF($C8=1,launah,launahkvk))*IF(Kúrfa="já",IF(ISERROR(INDEX(Launakeðjur!$B$1:$S$60,INT($K8+U$5)-12,MATCH(Laun!$A8,Launakeðjur!$B$1:$S$1,0)+$C8-1)),0,INDEX(Launakeðjur!$B$1:$S$60,INT($K8+U$5)-12,MATCH(Laun!$A8,Launakeðjur!$B$1:$S$1,0)+$C8-1)),1) -> 0 | V8: =+IF($K8+V$5>Alm_ealdur,0,IF($K8+V$5=Alm_ealdur-0.5,0.5,1))*U8*(1+IF($C8=1,launah,launahkvk))*IF(Kúrfa="já",IF(ISERROR(INDEX(Launakeðjur!$B$1:$S$60,INT($K8+V$5)-12,MATCH(Laun!$A8,Launakeðjur!$B$1:$S$1,0)+$C8-1)),0,INDEX(Launakeðjur!$B$1:$S$60,INT($K8+V$5)-12,MATCH(Laun!$A8,Launakeðjur!$B$1:$S$1,0)+$C8-1)),1) -> 0 | W8: =+IF($K8+W$5>Alm_ealdur,0,IF($K8+W$5=Alm_ealdur-0.5,0.5,1))*V8*(1+IF($C8=1,launah,launahkvk))*IF(Kúrfa="já",IF(ISERROR(INDEX(Launakeðjur!$B$1:$S$60,INT($K8+W$5)-12,MATCH(Laun!$A8,Launakeðjur!$B$1:$S$1,0)+$C8-1)),0,INDEX(Launakeðjur!$B$1:$S$60,INT($K8+W$5)-12,MATCH(Laun!$A8,Launakeðjur!$B$1:$S$1,0)+$C8-1)),1) -> 0 | X8: =+IF($K8+X$5>Alm_ealdur,0,IF($K8+X$5=Alm_ealdur-0.5,0.5,1))*W8*(1+IF($C8=1,launah,launahkvk))*IF(Kúrfa="já",IF(ISERROR(INDEX(Launakeðjur!$B$1:$S$60,INT($K8+X$5)-12,MATCH(Laun!$A8,Launakeðjur!$B$1:$S$1,0)+$C8-1)),0,INDEX(Launakeðjur!$B$1:$S$60,INT($K8+X$5)-12,MATCH(Laun!$A8,Launakeðjur!$B$1:$S$1,0)+$C8-1)),1) -> 0 | Y8: =+IF($K8+Y$5>Alm_ealdur,0,IF($K8+Y$5=Alm_ealdur-0.5,0.5,1))*X8*(1+IF($C8=1,launah,launahkvk))*IF(Kúrfa="já",IF(ISERROR(INDEX(Launakeðjur!$B$1:$S$60,INT($K8+Y$5)-12,MATCH(Laun!$A8,Launakeðjur!$B$1:$S$1,0)+$C8-1)),0,INDEX(Launakeðjur!$B$1:$S$60,INT($K8+Y$5)-12,MATCH(Laun!$A8,Launakeðjur!$B$1:$S$1,0)+$C8-1)),1) -> 0 | Z8: =+IF($K8+Z$5>Alm_ealdur,0,IF($K8+Z$5=Alm_ealdur-0.5,0.5,1))*Y8*(1+IF($C8=1,launah,launahkvk))*IF(Kúrfa="já",IF(ISERROR(INDEX(Launakeðjur!$B$1:$S$60,INT($K8+Z$5)-12,MATCH(Laun!$A8,Launakeðjur!$B$1:$S$1,0)+$C8-1)),0,INDEX(Launakeðjur!$B$1:$S$60,INT($K8+Z$5)-12,MATCH(Laun!$A8,Launakeðjur!$B$1:$S$1,0)+$C8-1)),1) -> 0 | AA8: =+IF($K8+AA$5>Alm_ealdur,0,IF($K8+AA$5=Alm_ealdur-0.5,0.5,1))*Z8*(1+IF($C8=1,launah,launahkvk))*IF(Kúrfa="já",IF(ISERROR(INDEX(Launakeðjur!$B$1:$S$60,INT($K8+AA$5)-12,MATCH(Laun!$A8,Launakeðjur!$B$1:$S$1,0)+$C8-1)),0,INDEX(Launakeðjur!$B$1:$S$60,INT($K8+AA$5)-12,MATCH(Laun!$A8,Launakeðjur!$B$1:$S$1,0)+$C8-1)),1) -> 0 | AB8: =+IF($K8+AB$5>Alm_ealdur,0,IF($K8+AB$5=Alm_ealdur-0.5,0.5,1))*AA8*(1+IF($C8=1,launah,launahkvk))*IF(Kúrfa="já",IF(ISERROR(INDEX(Launakeðjur!$B$1:$S$60,INT($K8+AB$5)-12,MATCH(Laun!$A8,Launakeðjur!$B$1:$S$1,0)+$C8-1)),0,INDEX(Launakeðjur!$B$1:$S$60,INT($K8+AB$5)-12,MATCH(Laun!$A8,Launakeðjur!$B$1:$S$1,0)+$C8-1)),1) -> 0 | AC8: =+IF($K8+AC$5>Alm_ealdur,0,IF($K8+AC$5=Alm_ealdur-0.5,0.5,1))*AB8*(1+IF($C8=1,launah,launahkvk))*IF(Kúrfa="já",IF(ISERROR(INDEX(Launakeðjur!$B$1:$S$60,INT($K8+AC$5)-12,MATCH(Laun!$A8,Launakeðjur!$B$1:$S$1,0)+$C8-1)),0,INDEX(Launakeðjur!$B$1:$S$60,INT($K8+AC$5)-12,MATCH(Laun!$A8,Launakeðjur!$B$1:$S$1,0)+$C8-1)),1) -> 0 | AD8: =+IF($K8+AD$5>Alm_ealdur,0,IF($K8+AD$5=Alm_ealdur-0.5,0.5,1))*AC8*(1+IF($C8=1,launah,launahkvk))*IF(Kúrfa="já",IF(ISERROR(INDEX(Launakeðjur!$B$1:$S$60,INT($K8+AD$5)-12,MATCH(Laun!$A8,Launakeðjur!$B$1:$S$1,0)+$C8-1)),0,INDEX(Launakeðjur!$B$1:$S$60,INT($K8+AD$5)-12,MATCH(Laun!$A8,Launakeðjur!$B$1:$S$1,0)+$C8-1)),1) -> 0 | AE8: =+IF($K8+AE$5>Alm_ealdur,0,IF($K8+AE$5=Alm_ealdur-0.5,0.5,1))*AD8*(1+IF($C8=1,launah,launahkvk))*IF(Kúrfa="já",IF(ISERROR(INDEX(Launakeðjur!$B$1:$S$60,INT($K8+AE$5)-12,MATCH(Laun!$A8,Launakeðjur!$B$1:$S$1,0)+$C8-1)),0,INDEX(Launakeðjur!$B$1:$S$60,INT($K8+AE$5)-12,MATCH(Laun!$A8,Launakeðjur!$B$1:$S$1,0)+$C8-1)),1) -> 0 | AF8: =+IF($K8+AF$5>Alm_ealdur,0,IF($K8+AF$5=Alm_ealdur-0.5,0.5,1))*AE8*(1+IF($C8=1,launah,launahkvk))*IF(Kúrfa="já",IF(ISERROR(INDEX(Launakeðjur!$B$1:$S$60,INT($K8+AF$5)-12,MATCH(Laun!$A8,Launakeðjur!$B$1:$S$1,0)+$C8-1)),0,INDEX(Launakeðjur!$B$1:$S$60,INT($K8+AF$5)-12,MATCH(Laun!$A8,Launakeðjur!$B$1:$S$1,0)+$C8-1)),1) -> 0 | AG8: =+IF($K8+AG$5>Alm_ealdur,0,IF($K8+AG$5=Alm_ealdur-0.5,0.5,1))*AF8*(1+IF($C8=1,launah,launahkvk))*IF(Kúrfa="já",IF(ISERROR(INDEX(Launakeðjur!$B$1:$S$60,INT($K8+AG$5)-12,MATCH(Laun!$A8,Launakeðjur!$B$1:$S$1,0)+$C8-1)),0,INDEX(Launakeðjur!$B$1:$S$60,INT($K8+AG$5)-12,MATCH(Laun!$A8,Launakeðjur!$B$1:$S$1,0)+$C8-1)),1) -> 0 | AH8: =+IF($K8+AH$5>Alm_ealdur,0,IF($K8+AH$5=Alm_ealdur-0.5,0.5,1))*AG8*(1+IF($C8=1,launah,launahkvk))*IF(Kúrfa="já",IF(ISERROR(INDEX(Launakeðjur!$B$1:$S$60,INT($K8+AH$5)-12,MATCH(Laun!$A8,Launakeðjur!$B$1:$S$1,0)+$C8-1)),0,INDEX(Launakeðjur!$B$1:$S$60,INT($K8+AH$5)-12,MATCH(Laun!$A8,Launakeðjur!$B$1:$S$1,0)+$C8-1)),1) -> 0 | AI8: =+IF($K8+AI$5>Alm_ealdur,0,IF($K8+AI$5=Alm_ealdur-0.5,0.5,1))*AH8*(1+IF($C8=1,launah,launahkvk))*IF(Kúrfa="já",IF(ISERROR(INDEX(Launakeðjur!$B$1:$S$60,INT($K8+AI$5)-12,MATCH(Laun!$A8,Launakeðjur!$B$1:$S$1,0)+$C8-1)),0,INDEX(Launakeðjur!$B$1:$S$60,INT($K8+AI$5)-12,MATCH(Laun!$A8,Launakeðjur!$B$1:$S$1,0)+$C8-1)),1) -> 0 | AJ8: =+IF($K8+AJ$5>Alm_ealdur,0,IF($K8+AJ$5=Alm_ealdur-0.5,0.5,1))*AI8*(1+IF($C8=1,launah,launahkvk))*IF(Kúrfa="já",IF(ISERROR(INDEX(Launakeðjur!$B$1:$S$60,INT($K8+AJ$5)-12,MATCH(Laun!$A8,Launakeðjur!$B$1:$S$1,0)+$C8-1)),0,INDEX(Launakeðjur!$B$1:$S$60,INT($K8+AJ$5)-12,MATCH(Laun!$A8,Launakeðjur!$B$1:$S$1,0)+$C8-1)),1) -> 0 | AK8: =+IF($K8+AK$5>Alm_ealdur,0,IF($K8+AK$5=Alm_ealdur-0.5,0.5,1))*AJ8*(1+IF($C8=1,launah,launahkvk))*IF(Kúrfa="já",IF(ISERROR(INDEX(Launakeðjur!$B$1:$S$60,INT($K8+AK$5)-12,MATCH(Laun!$A8,Launakeðjur!$B$1:$S$1,0)+$C8-1)),0,INDEX(Launakeðjur!$B$1:$S$60,INT($K8+AK$5)-12,MATCH(Laun!$A8,Launakeðjur!$B$1:$S$1,0)+$C8-1)),1) -> 0 | AL8: =+IF($K8+AL$5>Alm_ealdur,0,IF($K8+AL$5=Alm_ealdur-0.5,0.5,1))*AK8*(1+IF($C8=1,launah,launahkvk))*IF(Kúrfa="já",IF(ISERROR(INDEX(Launakeðjur!$B$1:$S$60,INT($K8+AL$5)-12,MATCH(Laun!$A8,Launakeðjur!$B$1:$S$1,0)+$C8-1)),0,INDEX(Launakeðjur!$B$1:$S$60,INT($K8+AL$5)-12,MATCH(Laun!$A8,Launakeðjur!$B$1:$S$1,0)+$C8-1)),1) -> 0 | AM8: =+IF($K8+AM$5>Alm_ealdur,0,IF($K8+AM$5=Alm_ealdur-0.5,0.5,1))*AL8*(1+IF($C8=1,launah,launahkvk))*IF(Kúrfa="já",IF(ISERROR(INDEX(Launakeðjur!$B$1:$S$60,INT($K8+AM$5)-12,MATCH(Laun!$A8,Launakeðjur!$B$1:$S$1,0)+$C8-1)),0,INDEX(Launakeðjur!$B$1:$S$60,INT($K8+AM$5)-12,MATCH(Laun!$A8,Launakeðjur!$B$1:$S$1,0)+$C8-1)),1) -> 0 | AN8: =+IF($K8+AN$5>Alm_ealdur,0,IF($K8+AN$5=Alm_ealdur-0.5,0.5,1))*AM8*(1+IF($C8=1,launah,launahkvk))*IF(Kúrfa="já",IF(ISERROR(INDEX(Launakeðjur!$B$1:$S$60,INT($K8+AN$5)-12,MATCH(Laun!$A8,Launakeðjur!$B$1:$S$1,0)+$C8-1)),0,INDEX(Launakeðjur!$B$1:$S$60,INT($K8+AN$5)-12,MATCH(Laun!$A8,Launakeðjur!$B$1:$S$1,0)+$C8-1)),1) -> 0 | AO8: =+IF($K8+AO$5>Alm_ealdur,0,IF($K8+AO$5=Alm_ealdur-0.5,0.5,1))*AN8*(1+IF($C8=1,launah,launahkvk))*IF(Kúrfa="já",IF(ISERROR(INDEX(Launakeðjur!$B$1:$S$60,INT($K8+AO$5)-12,MATCH(Laun!$A8,Launakeðjur!$B$1:$S$1,0)+$C8-1)),0,INDEX(Launakeðjur!$B$1:$S$60,INT($K8+AO$5)-12,MATCH(Laun!$A8,Launakeðjur!$B$1:$S$1,0)+$C8-1)),1) -> 0 | AP8: =+IF($K8+AP$5>Alm_ealdur,0,IF($K8+AP$5=Alm_ealdur-0.5,0.5,1))*AO8*(1+IF($C8=1,launah,launahkvk))*IF(Kúrfa="já",IF(ISERROR(INDEX(Launakeðjur!$B$1:$S$60,INT($K8+AP$5)-12,MATCH(Laun!$A8,Launakeðjur!$B$1:$S$1,0)+$C8-1)),0,INDEX(Launakeðjur!$B$1:$S$60,INT($K8+AP$5)-12,MATCH(Laun!$A8,Launakeðjur!$B$1:$S$1,0)+$C8-1)),1) -> 0 | AQ8: =+IF($K8+AQ$5>Alm_ealdur,0,IF($K8+AQ$5=Alm_ealdur-0.5,0.5,1))*AP8*(1+IF($C8=1,launah,launahkvk))*IF(Kúrfa="já",IF(ISERROR(INDEX(Launakeðjur!$B$1:$S$60,INT($K8+AQ$5)-12,MATCH(Laun!$A8,Launakeðjur!$B$1:$S$1,0)+$C8-1)),0,INDEX(Launakeðjur!$B$1:$S$60,INT($K8+AQ$5)-12,MATCH(Laun!$A8,Launakeðjur!$B$1:$S$1,0)+$C8-1)),1) -> 0 | AR8: =+IF($K8+AR$5>Alm_ealdur,0,IF($K8+AR$5=Alm_ealdur-0.5,0.5,1))*AQ8*(1+IF($C8=1,launah,launahkvk))*IF(Kúrfa="já",IF(ISERROR(INDEX(Launakeðjur!$B$1:$S$60,INT($K8+AR$5)-12,MATCH(Laun!$A8,Launakeðjur!$B$1:$S$1,0)+$C8-1)),0,INDEX(Launakeðjur!$B$1:$S$60,INT($K8+AR$5)-12,MATCH(Laun!$A8,Launakeðjur!$B$1:$S$1,0)+$C8-1)),1) -> 0 | AS8: =+IF($K8+AS$5>Alm_ealdur,0,IF($K8+AS$5=Alm_ealdur-0.5,0.5,1))*AR8*(1+IF($C8=1,launah,launahkvk))*IF(Kúrfa="já",IF(ISERROR(INDEX(Launakeðjur!$B$1:$S$60,INT($K8+AS$5)-12,MATCH(Laun!$A8,Launakeðjur!$B$1:$S$1,0)+$C8-1)),0,INDEX(Launakeðjur!$B$1:$S$60,INT($K8+AS$5)-12,MATCH(Laun!$A8,Launakeðjur!$B$1:$S$1,0)+$C8-1)),1) -> 0 | AT8: =+IF($K8+AT$5>Alm_ealdur,0,IF($K8+AT$5=Alm_ealdur-0.5,0.5,1))*AS8*(1+IF($C8=1,launah,launahkvk))*IF(Kúrfa="já",IF(ISERROR(INDEX(Launakeðjur!$B$1:$S$60,INT($K8+AT$5)-12,MATCH(Laun!$A8,Launakeðjur!$B$1:$S$1,0)+$C8-1)),0,INDEX(Launakeðjur!$B$1:$S$60,INT($K8+AT$5)-12,MATCH(Laun!$A8,Launakeðjur!$B$1:$S$1,0)+$C8-1)),1) -> 0 | AU8: =+IF($K8+AU$5>Alm_ealdur,0,IF($K8+AU$5=Alm_ealdur-0.5,0.5,1))*AT8*(1+IF($C8=1,launah,launahkvk))*IF(Kúrfa="já",IF(ISERROR(INDEX(Launakeðjur!$B$1:$S$60,INT($K8+AU$5)-12,MATCH(Laun!$A8,Launakeðjur!$B$1:$S$1,0)+$C8-1)),0,INDEX(Launakeðjur!$B$1:$S$60,INT($K8+AU$5)-12,MATCH(Laun!$A8,Launakeðjur!$B$1:$S$1,0)+$C8-1)),1) -> 0 | AV8: =+IF($K8+AV$5>Alm_ealdur,0,IF($K8+AV$5=Alm_ealdur-0.5,0.5,1))*AU8*(1+IF($C8=1,launah,launahkvk))*IF(Kúrfa="já",IF(ISERROR(INDEX(Launakeðjur!$B$1:$S$60,INT($K8+AV$5)-12,MATCH(Laun!$A8,Launakeðjur!$B$1:$S$1,0)+$C8-1)),0,INDEX(Launakeðjur!$B$1:$S$60,INT($K8+AV$5)-12,MATCH(Laun!$A8,Launakeðjur!$B$1:$S$1,0)+$C8-1)),1) -> 0 | AW8: =+IF($K8+AW$5>Alm_ealdur,0,IF($K8+AW$5=Alm_ealdur-0.5,0.5,1))*AV8*(1+IF($C8=1,launah,launahkvk))*IF(Kúrfa="já",IF(ISERROR(INDEX(Launakeðjur!$B$1:$S$60,INT($K8+AW$5)-12,MATCH(Laun!$A8,Launakeðjur!$B$1:$S$1,0)+$C8-1)),0,INDEX(Launakeðjur!$B$1:$S$60,INT($K8+AW$5)-12,MATCH(Laun!$A8,Launakeðjur!$B$1:$S$1,0)+$C8-1)),1) -> 0 | AX8: =+IF($K8+AX$5>Alm_ealdur,0,IF($K8+AX$5=Alm_ealdur-0.5,0.5,1))*AW8*(1+IF($C8=1,launah,launahkvk))*IF(Kúrfa="já",IF(ISERROR(INDEX(Launakeðjur!$B$1:$S$60,INT($K8+AX$5)-12,MATCH(Laun!$A8,Launakeðjur!$B$1:$S$1,0)+$C8-1)),0,INDEX(Launakeðjur!$B$1:$S$60,INT($K8+AX$5)-12,MATCH(Laun!$A8,Launakeðjur!$B$1:$S$1,0)+$C8-1)),1) -> 0 | AY8: =+IF($K8+AY$5>Alm_ealdur,0,IF($K8+AY$5=Alm_ealdur-0.5,0.5,1))*AX8*(1+IF($C8=1,launah,launahkvk))*IF(Kúrfa="já",IF(ISERROR(INDEX(Launakeðjur!$B$1:$S$60,INT($K8+AY$5)-12,MATCH(Laun!$A8,Launakeðjur!$B$1:$S$1,0)+$C8-1)),0,INDEX(Launakeðjur!$B$1:$S$60,INT($K8+AY$5)-12,MATCH(Laun!$A8,Launakeðjur!$B$1:$S$1,0)+$C8-1)),1) -> 0 | AZ8: =+IF($K8+AZ$5>Alm_ealdur,0,IF($K8+AZ$5=Alm_ealdur-0.5,0.5,1))*AY8*(1+IF($C8=1,launah,launahkvk))*IF(Kúrfa="já",IF(ISERROR(INDEX(Launakeðjur!$B$1:$S$60,INT($K8+AZ$5)-12,MATCH(Laun!$A8,Launakeðjur!$B$1:$S$1,0)+$C8-1)),0,INDEX(Launakeðjur!$B$1:$S$60,INT($K8+AZ$5)-12,MATCH(Laun!$A8,Launakeðjur!$B$1:$S$1,0)+$C8-1)),1) -> 0 | BA8: =+IF($K8+BA$5>Alm_ealdur,0,IF($K8+BA$5=Alm_ealdur-0.5,0.5,1))*AZ8*(1+IF($C8=1,launah,launahkvk))*IF(Kúrfa="já",IF(ISERROR(INDEX(Launakeðjur!$B$1:$S$60,INT($K8+BA$5)-12,MATCH(Laun!$A8,Launakeðjur!$B$1:$S$1,0)+$C8-1)),0,INDEX(Launakeðjur!$B$1:$S$60,INT($K8+BA$5)-12,MATCH(Laun!$A8,Launakeðjur!$B$1:$S$1,0)+$C8-1)),1) -> 0 | BB8: =+IF($K8+BB$5>Alm_ealdur,0,IF($K8+BB$5=Alm_ealdur-0.5,0.5,1))*BA8*(1+IF($C8=1,launah,launahkvk))*IF(Kúrfa="já",IF(ISERROR(INDEX(Launakeðjur!$B$1:$S$60,INT($K8+BB$5)-12,MATCH(Laun!$A8,Launakeðjur!$B$1:$S$1,0)+$C8-1)),0,INDEX(Launakeðjur!$B$1:$S$60,INT($K8+BB$5)-12,MATCH(Laun!$A8,Launakeðjur!$B$1:$S$1,0)+$C8-1)),1) -> 0 | BC8: =+IF($K8+BC$5>Alm_ealdur,0,IF($K8+BC$5=Alm_ealdur-0.5,0.5,1))*BB8*(1+IF($C8=1,launah,launahkvk))*IF(Kúrfa="já",IF(ISERROR(INDEX(Launakeðjur!$B$1:$S$60,INT($K8+BC$5)-12,MATCH(Laun!$A8,Launakeðjur!$B$1:$S$1,0)+$C8-1)),0,INDEX(Launakeðjur!$B$1:$S$60,INT($K8+BC$5)-12,MATCH(Laun!$A8,Launakeðjur!$B$1:$S$1,0)+$C8-1)),1) -> 0 | BD8: =+IF($K8+BD$5>Alm_ealdur,0,IF($K8+BD$5=Alm_ealdur-0.5,0.5,1))*BC8*(1+IF($C8=1,launah,launahkvk))*IF(Kúrfa="já",IF(ISERROR(INDEX(Launakeðjur!$B$1:$S$60,INT($K8+BD$5)-12,MATCH(Laun!$A8,Launakeðjur!$B$1:$S$1,0)+$C8-1)),0,INDEX(Launakeðjur!$B$1:$S$60,INT($K8+BD$5)-12,MATCH(Laun!$A8,Launakeðjur!$B$1:$S$1,0)+$C8-1)),1) -> 0 | BE8: =+IF($K8+BE$5>Alm_ealdur,0,IF($K8+BE$5=Alm_ealdur-0.5,0.5,1))*BD8*(1+IF($C8=1,launah,launahkvk))*IF(Kúrfa="já",IF(ISERROR(INDEX(Launakeðjur!$B$1:$S$60,INT($K8+BE$5)-12,MATCH(Laun!$A8,Launakeðjur!$B$1:$S$1,0)+$C8-1)),0,INDEX(Launakeðjur!$B$1:$S$60,INT($K8+BE$5)-12,MATCH(Laun!$A8,Launakeðjur!$B$1:$S$1,0)+$C8-1)),1) -> 0 | BF8: =+IF($K8+BF$5>Alm_ealdur,0,IF($K8+BF$5=Alm_ealdur-0.5,0.5,1))*BE8*(1+IF($C8=1,launah,launahkvk))*IF(Kúrfa="já",IF(ISERROR(INDEX(Launakeðjur!$B$1:$S$60,INT($K8+BF$5)-12,MATCH(Laun!$A8,Launakeðjur!$B$1:$S$1,0)+$C8-1)),0,INDEX(Launakeðjur!$B$1:$S$60,INT($K8+BF$5)-12,MATCH(Laun!$A8,Launakeðjur!$B$1:$S$1,0)+$C8-1)),1) -> 0 | BG8: =+IF($K8+BG$5>Alm_ealdur,0,IF($K8+BG$5=Alm_ealdur-0.5,0.5,1))*BF8*(1+IF($C8=1,launah,launahkvk))*IF(Kúrfa="já",IF(ISERROR(INDEX(Launakeðjur!$B$1:$S$60,INT($K8+BG$5)-12,MATCH(Laun!$A8,Launakeðjur!$B$1:$S$1,0)+$C8-1)),0,INDEX(Launakeðjur!$B$1:$S$60,INT($K8+BG$5)-12,MATCH(Laun!$A8,Launakeðjur!$B$1:$S$1,0)+$C8-1)),1) -> 0 | BH8: =+IF($K8+BH$5>Alm_ealdur,0,IF($K8+BH$5=Alm_ealdur-0.5,0.5,1))*BG8*(1+IF($C8=1,launah,launahkvk))*IF(Kúrfa="já",IF(ISERROR(INDEX(Launakeðjur!$B$1:$S$60,INT($K8+BH$5)-12,MATCH(Laun!$A8,Launakeðjur!$B$1:$S$1,0)+$C8-1)),0,INDEX(Launakeðjur!$B$1:$S$60,INT($K8+BH$5)-12,MATCH(Laun!$A8,Launakeðjur!$B$1:$S$1,0)+$C8-1)),1) -> 0 | BI8: =+IF($K8+BI$5>Alm_ealdur,0,IF($K8+BI$5=Alm_ealdur-0.5,0.5,1))*BH8*(1+IF($C8=1,launah,launahkvk))*IF(Kúrfa="já",IF(ISERROR(INDEX(Launakeðjur!$B$1:$S$60,INT($K8+BI$5)-12,MATCH(Laun!$A8,Launakeðjur!$B$1:$S$1,0)+$C8-1)),0,INDEX(Launakeðjur!$B$1:$S$60,INT($K8+BI$5)-12,MATCH(Laun!$A8,Launakeðjur!$B$1:$S$1,0)+$C8-1)),1) -> 0 | BJ8: =+IF($K8+BJ$5>Alm_ealdur,0,IF($K8+BJ$5=Alm_ealdur-0.5,0.5,1))*BI8*(1+IF($C8=1,launah,launahkvk))*IF(Kúrfa="já",IF(ISERROR(INDEX(Launakeðjur!$B$1:$S$60,INT($K8+BJ$5)-12,MATCH(Laun!$A8,Launakeðjur!$B$1:$S$1,0)+$C8-1)),0,INDEX(Launakeðjur!$B$1:$S$60,INT($K8+BJ$5)-12,MATCH(Laun!$A8,Launakeðjur!$B$1:$S$1,0)+$C8-1)),1) -> 0 | BK8: =+IF($K8+BK$5>Alm_ealdur,0,IF($K8+BK$5=Alm_ealdur-0.5,0.5,1))*BJ8*(1+IF($C8=1,launah,launahkvk))*IF(Kúrfa="já",IF(ISERROR(INDEX(Launakeðjur!$B$1:$S$60,INT($K8+BK$5)-12,MATCH(Laun!$A8,Launakeðjur!$B$1:$S$1,0)+$C8-1)),0,INDEX(Launakeðjur!$B$1:$S$60,INT($K8+BK$5)-12,MATCH(Laun!$A8,Launakeðjur!$B$1:$S$1,0)+$C8-1)),1) -> 0 | BL8: =+IF($K8+BL$5>Alm_ealdur,0,IF($K8+BL$5=Alm_ealdur-0.5,0.5,1))*BK8*(1+IF($C8=1,launah,launahkvk))*IF(Kúrfa="já",IF(ISERROR(INDEX(Launakeðjur!$B$1:$S$60,INT($K8+BL$5)-12,MATCH(Laun!$A8,Launakeðjur!$B$1:$S$1,0)+$C8-1)),0,INDEX(Launakeðjur!$B$1:$S$60,INT($K8+BL$5)-12,MATCH(Laun!$A8,Launakeðjur!$B$1:$S$1,0)+$C8-1)),1) -> 0 | BM8: =+IF($K8+BM$5>Alm_ealdur,0,IF($K8+BM$5=Alm_ealdur-0.5,0.5,1))*BL8*(1+IF($C8=1,launah,launahkvk))*IF(Kúrfa="já",IF(ISERROR(INDEX(Launakeðjur!$B$1:$S$60,INT($K8+BM$5)-12,MATCH(Laun!$A8,Launakeðjur!$B$1:$S$1,0)+$C8-1)),0,INDEX(Launakeðjur!$B$1:$S$60,INT($K8+BM$5)-12,MATCH(Laun!$A8,Launakeðjur!$B$1:$S$1,0)+$C8-1)),1) -> 0 | BN8: =+IF($K8+BN$5>Alm_ealdur,0,IF($K8+BN$5=Alm_ealdur-0.5,0.5,1))*BM8*(1+IF($C8=1,launah,launahkvk))*IF(Kúrfa="já",IF(ISERROR(INDEX(Launakeðjur!$B$1:$S$60,INT($K8+BN$5)-12,MATCH(Laun!$A8,Launakeðjur!$B$1:$S$1,0)+$C8-1)),0,INDEX(Launakeðjur!$B$1:$S$60,INT($K8+BN$5)-12,MATCH(Laun!$A8,Launakeðjur!$B$1:$S$1,0)+$C8-1)),1) -> 0 | BO8: =+IF($K8+BO$5>Alm_ealdur,0,IF($K8+BO$5=Alm_ealdur-0.5,0.5,1))*BN8*(1+IF($C8=1,launah,launahkvk))*IF(Kúrfa="já",IF(ISERROR(INDEX(Launakeðjur!$B$1:$S$60,INT($K8+BO$5)-12,MATCH(Laun!$A8,Launakeðjur!$B$1:$S$1,0)+$C8-1)),0,INDEX(Launakeðjur!$B$1:$S$60,INT($K8+BO$5)-12,MATCH(Laun!$A8,Launakeðjur!$B$1:$S$1,0)+$C8-1)),1) -> 0 | BP8: =+IF($K8+BP$5>Alm_ealdur,0,IF($K8+BP$5=Alm_ealdur-0.5,0.5,1))*BO8*(1+IF($C8=1,launah,launahkvk))*IF(Kúrfa="já",IF(ISERROR(INDEX(Launakeðjur!$B$1:$S$60,INT($K8+BP$5)-12,MATCH(Laun!$A8,Launakeðjur!$B$1:$S$1,0)+$C8-1)),0,INDEX(Launakeðjur!$B$1:$S$60,INT($K8+BP$5)-12,MATCH(Laun!$A8,Launakeðjur!$B$1:$S$1,0)+$C8-1)),1) -> 0 | BQ8: =+IF($K8+BQ$5>Alm_ealdur,0,IF($K8+BQ$5=Alm_ealdur-0.5,0.5,1))*BP8*(1+IF($C8=1,launah,launahkvk))*IF(Kúrfa="já",IF(ISERROR(INDEX(Launakeðjur!$B$1:$S$60,INT($K8+BQ$5)-12,MATCH(Laun!$A8,Launakeðjur!$B$1:$S$1,0)+$C8-1)),0,INDEX(Launakeðjur!$B$1:$S$60,INT($K8+BQ$5)-12,MATCH(Laun!$A8,Launakeðjur!$B$1:$S$1,0)+$C8-1)),1) -> 0 | BR8: =+IF($K8+BR$5>Alm_ealdur,0,IF($K8+BR$5=Alm_ealdur-0.5,0.5,1))*BQ8*(1+IF($C8=1,launah,launahkvk))*IF(Kúrfa="já",IF(ISERROR(INDEX(Launakeðjur!$B$1:$S$60,INT($K8+BR$5)-12,MATCH(Laun!$A8,Launakeðjur!$B$1:$S$1,0)+$C8-1)),0,INDEX(Launakeðjur!$B$1:$S$60,INT($K8+BR$5)-12,MATCH(Laun!$A8,Launakeðjur!$B$1:$S$1,0)+$C8-1)),1) -> 0 | BS8: =+IF($K8+BS$5>Alm_ealdur,0,IF($K8+BS$5=Alm_ealdur-0.5,0.5,1))*BR8*(1+IF($C8=1,launah,launahkvk))*IF(Kúrfa="já",IF(ISERROR(INDEX(Launakeðjur!$B$1:$S$60,INT($K8+BS$5)-12,MATCH(Laun!$A8,Launakeðjur!$B$1:$S$1,0)+$C8-1)),0,INDEX(Launakeðjur!$B$1:$S$60,INT($K8+BS$5)-12,MATCH(Laun!$A8,Launakeðjur!$B$1:$S$1,0)+$C8-1)),1) -> 0 | BT8: =+IF($K8+BT$5>Alm_ealdur,0,IF($K8+BT$5=Alm_ealdur-0.5,0.5,1))*BS8*(1+IF($C8=1,launah,launahkvk))*IF(Kúrfa="já",IF(ISERROR(INDEX(Launakeðjur!$B$1:$S$60,INT($K8+BT$5)-12,MATCH(Laun!$A8,Launakeðjur!$B$1:$S$1,0)+$C8-1)),0,INDEX(Launakeðjur!$B$1:$S$60,INT($K8+BT$5)-12,MATCH(Laun!$A8,Launakeðjur!$B$1:$S$1,0)+$C8-1)),1) -> 0 | BU8: =+IF($K8+BU$5>Alm_ealdur,0,IF($K8+BU$5=Alm_ealdur-0.5,0.5,1))*BT8*(1+IF($C8=1,launah,launahkvk))*IF(Kúrfa="já",IF(ISERROR(INDEX(Launakeðjur!$B$1:$S$60,INT($K8+BU$5)-12,MATCH(Laun!$A8,Launakeðjur!$B$1:$S$1,0)+$C8-1)),0,INDEX(Launakeðjur!$B$1:$S$60,INT($K8+BU$5)-12,MATCH(Laun!$A8,Launakeðjur!$B$1:$S$1,0)+$C8-1)),1) -> 0 | BV8: =+IF($K8+BV$5>Alm_ealdur,0,IF($K8+BV$5=Alm_ealdur-0.5,0.5,1))*BU8*(1+IF($C8=1,launah,launahkvk))*IF(Kúrfa="já",IF(ISERROR(INDEX(Launakeðjur!$B$1:$S$60,INT($K8+BV$5)-12,MATCH(Laun!$A8,Launakeðjur!$B$1:$S$1,0)+$C8-1)),0,INDEX(Launakeðjur!$B$1:$S$60,INT($K8+BV$5)-12,MATCH(Laun!$A8,Launakeðjur!$B$1:$S$1,0)+$C8-1)),1) -> 0 | BW8: =+IF($K8+BW$5>Alm_ealdur,0,IF($K8+BW$5=Alm_ealdur-0.5,0.5,1))*BV8*(1+IF($C8=1,launah,launahkvk))*IF(Kúrfa="já",IF(ISERROR(INDEX(Launakeðjur!$B$1:$S$60,INT($K8+BW$5)-12,MATCH(Laun!$A8,Launakeðjur!$B$1:$S$1,0)+$C8-1)),0,INDEX(Launakeðjur!$B$1:$S$60,INT($K8+BW$5)-12,MATCH(Laun!$A8,Launakeðjur!$B$1:$S$1,0)+$C8-1)),1) -> 0 | BX8: =+IF($K8+BX$5>Alm_ealdur,0,IF($K8+BX$5=Alm_ealdur-0.5,0.5,1))*BW8*(1+IF($C8=1,launah,launahkvk))*IF(Kúrfa="já",IF(ISERROR(INDEX(Launakeðjur!$B$1:$S$60,INT($K8+BX$5)-12,MATCH(Laun!$A8,Launakeðjur!$B$1:$S$1,0)+$C8-1)),0,INDEX(Launakeðjur!$B$1:$S$60,INT($K8+BX$5)-12,MATCH(Laun!$A8,Launakeðjur!$B$1:$S$1,0)+$C8-1)),1) -> 0 | BZ8: 2128115790
A9: Alm | B9: Alm_1_1948_0 | C9: =+'Access gögn'!D5 -> 1 | D9: =+'Access gögn'!E5 -> 1 | E9: =+'Access gögn'!F5 -> 1948 | F9: =+'Access gögn'!G5 -> 0 | G9: =+'Access gögn'!H5/1.21245 -> 51.13612932 | H9: =+'Access gögn'!I5 -> 1932650.919 | I9: =+'Access gögn'!J5 -> 0 | J9: =+'Access gögn'!K5 -> 669021.0978 | K9: 67.5 | L9: =+VLOOKUP(B9,'Mismunandi laun'!$F$3:$J$112,'Mismunandi laun'!$A$3,FALSE)*1.11 -> 5500044.45 | M9: 5500044.45 | N9: =IF(P9=0,L9,INDEX(P9:BX9,1,Alm_ealdur+0.5-$K9)*2) -> 4993054.602 | O9: =IF(Kúrfa="já",L9*INDEX(Launakeðjur!$Y$1:$AJ$57,Laun!K9-13.5,MATCH(Laun!A9,Launakeðjur!$Y$1:$AI$1,0)+Laun!C9-1),L9*(1+IF(C3=1,launah,launahkvk))^(55-K9)) -> 5581760.281 | P9: =+IF($K9+P$5>Alm_ealdur,0,IF(K9=Alm_ealdur-0.5,0.5,1))*L9*(1+IF(C9=1,launah,launahkvk))*IF(Kúrfa="Já",IF(ISERROR(INDEX(Launakeðjur!$B$1:$S$60,INT($K9+P$5)-12,MATCH(Laun!$A9,Launakeðjur!$B$1:$S$1,0)+C9-1)),0,INDEX(Launakeðjur!$B$1:$S$60,INT($K9+P$5)-12,MATCH(Laun!$A9,Launakeðjur!$B$1:$S$1,0)+C9-1)),1) -> 5311405.204 | Q9: =+IF($K9+Q$5>Alm_ealdur,0,IF($K9+Q$5=Alm_ealdur-0.5,0.5,1))*P9*(1+IF($C9=1,launah,launahkvk))*IF(Kúrfa="já",IF(ISERROR(INDEX(Launakeðjur!$B$1:$S$60,INT($K9+Q$5)-12,MATCH(Laun!$A9,Launakeðjur!$B$1:$S$1,0)+$C9-1)),0,INDEX(Launakeðjur!$B$1:$S$60,INT($K9+Q$5)-12,MATCH(Laun!$A9,Launakeðjur!$B$1:$S$1,0)+$C9-1)),1) -> 5093932.131 | R9: =+IF($K9+R$5>Alm_ealdur,0,IF($K9+R$5=Alm_ealdur-0.5,0.5,1))*Q9*(1+IF($C9=1,launah,launahkvk))*IF(Kúrfa="já",IF(ISERROR(INDEX(Launakeðjur!$B$1:$S$60,INT($K9+R$5)-12,MATCH(Laun!$A9,Launakeðjur!$B$1:$S$1,0)+$C9-1)),0,INDEX(Launakeðjur!$B$1:$S$60,INT($K9+R$5)-12,MATCH(Laun!$A9,Launakeðjur!$B$1:$S$1,0)+$C9-1)),1) -> 4846209.605 | S9: =+IF($K9+S$5>Alm_ealdur,0,IF($K9+S$5=Alm_ealdur-0.5,0.5,1))*R9*(1+IF($C9=1,launah,launahkvk))*IF(Kúrfa="já",IF(ISERROR(INDEX(Launakeðjur!$B$1:$S$60,INT($K9+S$5)-12,MATCH(Laun!$A9,Launakeðjur!$B$1:$S$1,0)+$C9-1)),0,INDEX(Launakeðjur!$B$1:$S$60,INT($K9+S$5)-12,MATCH(Laun!$A9,Launakeðjur!$B$1:$S$1,0)+$C9-1)),1) -> 4894671.701 | T9: =+IF($K9+T$5>Alm_ealdur,0,IF($K9+T$5=Alm_ealdur-0.5,0.5,1))*S9*(1+IF($C9=1,launah,launahkvk))*IF(Kúrfa="já",IF(ISERROR(INDEX(Launakeðjur!$B$1:$S$60,INT($K9+T$5)-12,MATCH(Laun!$A9,Launakeðjur!$B$1:$S$1,0)+$C9-1)),0,INDEX(Launakeðjur!$B$1:$S$60,INT($K9+T$5)-12,MATCH(Laun!$A9,Launakeðjur!$B$1:$S$1,0)+$C9-1)),1) -> 4943618.418 | U9: =+IF($K9+U$5>Alm_ealdur,0,IF($K9+U$5=Alm_ealdur-0.5,0.5,1))*T9*(1+IF($C9=1,launah,launahkvk))*IF(Kúrfa="já",IF(ISERROR(INDEX(Launakeðjur!$B$1:$S$60,INT($K9+U$5)-12,MATCH(Laun!$A9,Launakeðjur!$B$1:$S$1,0)+$C9-1)),0,INDEX(Launakeðjur!$B$1:$S$60,INT($K9+U$5)-12,MATCH(Laun!$A9,Launakeðjur!$B$1:$S$1,0)+$C9-1)),1) -> 2496527.301 | V9: =+IF($K9+V$5>Alm_ealdur,0,IF($K9+V$5=Alm_ealdur-0.5,0.5,1))*U9*(1+IF($C9=1,launah,launahkvk))*IF(Kúrfa="já",IF(ISERROR(INDEX(Launakeðjur!$B$1:$S$60,INT($K9+V$5)-12,MATCH(Laun!$A9,Launakeðjur!$B$1:$S$1,0)+$C9-1)),0,INDEX(Launakeðjur!$B$1:$S$60,INT($K9+V$5)-12,MATCH(Laun!$A9,Launakeðjur!$B$1:$S$1,0)+$C9-1)),1) -> 0 | W9: =+IF($K9+W$5>Alm_ealdur,0,IF($K9+W$5=Alm_ealdur-0.5,0.5,1))*V9*(1+IF($C9=1,launah,launahkvk))*IF(Kúrfa="já",IF(ISERROR(INDEX(Launakeðjur!$B$1:$S$60,INT($K9+W$5)-12,MATCH(Laun!$A9,Launakeðjur!$B$1:$S$1,0)+$C9-1)),0,INDEX(Launakeðjur!$B$1:$S$60,INT($K9+W$5)-12,MATCH(Laun!$A9,Launakeðjur!$B$1:$S$1,0)+$C9-1)),1) -> 0 | X9: =+IF($K9+X$5>Alm_ealdur,0,IF($K9+X$5=Alm_ealdur-0.5,0.5,1))*W9*(1+IF($C9=1,launah,launahkvk))*IF(Kúrfa="já",IF(ISERROR(INDEX(Launakeðjur!$B$1:$S$60,INT($K9+X$5)-12,MATCH(Laun!$A9,Launakeðjur!$B$1:$S$1,0)+$C9-1)),0,INDEX(Launakeðjur!$B$1:$S$60,INT($K9+X$5)-12,MATCH(Laun!$A9,Launakeðjur!$B$1:$S$1,0)+$C9-1)),1) -> 0 | Y9: =+IF($K9+Y$5>Alm_ealdur,0,IF($K9+Y$5=Alm_ealdur-0.5,0.5,1))*X9*(1+IF($C9=1,launah,launahkvk))*IF(Kúrfa="já",IF(ISERROR(INDEX(Launakeðjur!$B$1:$S$60,INT($K9+Y$5)-12,MATCH(Laun!$A9,Launakeðjur!$B$1:$S$1,0)+$C9-1)),0,INDEX(Launakeðjur!$B$1:$S$60,INT($K9+Y$5)-12,MATCH(Laun!$A9,Launakeðjur!$B$1:$S$1,0)+$C9-1)),1) -> 0 | Z9: =+IF($K9+Z$5>Alm_ealdur,0,IF($K9+Z$5=Alm_ealdur-0.5,0.5,1))*Y9*(1+IF($C9=1,launah,launahkvk))*IF(Kúrfa="já",IF(ISERROR(INDEX(Launakeðjur!$B$1:$S$60,INT($K9+Z$5)-12,MATCH(Laun!$A9,Launakeðjur!$B$1:$S$1,0)+$C9-1)),0,INDEX(Launakeðjur!$B$1:$S$60,INT($K9+Z$5)-12,MATCH(Laun!$A9,Launakeðjur!$B$1:$S$1,0)+$C9-1)),1) -> 0 | AA9: =+IF($K9+AA$5>Alm_ealdur,0,IF($K9+AA$5=Alm_ealdur-0.5,0.5,1))*Z9*(1+IF($C9=1,launah,launahkvk))*IF(Kúrfa="já",IF(ISERROR(INDEX(Launakeðjur!$B$1:$S$60,INT($K9+AA$5)-12,MATCH(Laun!$A9,Launakeðjur!$B$1:$S$1,0)+$C9-1)),0,INDEX(Launakeðjur!$B$1:$S$60,INT($K9+AA$5)-12,MATCH(Laun!$A9,Launakeðjur!$B$1:$S$1,0)+$C9-1)),1) -> 0 | AB9: =+IF($K9+AB$5>Alm_ealdur,0,IF($K9+AB$5=Alm_ealdur-0.5,0.5,1))*AA9*(1+IF($C9=1,launah,launahkvk))*IF(Kúrfa="já",IF(ISERROR(INDEX(Launakeðjur!$B$1:$S$60,INT($K9+AB$5)-12,MATCH(Laun!$A9,Launakeðjur!$B$1:$S$1,0)+$C9-1)),0,INDEX(Launakeðjur!$B$1:$S$60,INT($K9+AB$5)-12,MATCH(Laun!$A9,Launakeðjur!$B$1:$S$1,0)+$C9-1)),1) -> 0 | AC9: =+IF($K9+AC$5>Alm_ealdur,0,IF($K9+AC$5=Alm_ealdur-0.5,0.5,1))*AB9*(1+IF($C9=1,launah,launahkvk))*IF(Kúrfa="já",IF(ISERROR(INDEX(Launakeðjur!$B$1:$S$60,INT($K9+AC$5)-12,MATCH(Laun!$A9,Launakeðjur!$B$1:$S$1,0)+$C9-1)),0,INDEX(Launakeðjur!$B$1:$S$60,INT($K9+AC$5)-12,MATCH(Laun!$A9,Launakeðjur!$B$1:$S$1,0)+$C9-1)),1) -> 0 | AD9: =+IF($K9+AD$5>Alm_ealdur,0,IF($K9+AD$5=Alm_ealdur-0.5,0.5,1))*AC9*(1+IF($C9=1,launah,launahkvk))*IF(Kúrfa="já",IF(ISERROR(INDEX(Launakeðjur!$B$1:$S$60,INT($K9+AD$5)-12,MATCH(Laun!$A9,Launakeðjur!$B$1:$S$1,0)+$C9-1)),0,INDEX(Launakeðjur!$B$1:$S$60,INT($K9+AD$5)-12,MATCH(Laun!$A9,Launakeðjur!$B$1:$S$1,0)+$C9-1)),1) -> 0 | AE9: =+IF($K9+AE$5>Alm_ealdur,0,IF($K9+AE$5=Alm_ealdur-0.5,0.5,1))*AD9*(1+IF($C9=1,launah,launahkvk))*IF(Kúrfa="já",IF(ISERROR(INDEX(Launakeðjur!$B$1:$S$60,INT($K9+AE$5)-12,MATCH(Laun!$A9,Launakeðjur!$B$1:$S$1,0)+$C9-1)),0,INDEX(Launakeðjur!$B$1:$S$60,INT($K9+AE$5)-12,MATCH(Laun!$A9,Launakeðjur!$B$1:$S$1,0)+$C9-1)),1) -> 0 | AF9: =+IF($K9+AF$5>Alm_ealdur,0,IF($K9+AF$5=Alm_ealdur-0.5,0.5,1))*AE9*(1+IF($C9=1,launah,launahkvk))*IF(Kúrfa="já",IF(ISERROR(INDEX(Launakeðjur!$B$1:$S$60,INT($K9+AF$5)-12,MATCH(Laun!$A9,Launakeðjur!$B$1:$S$1,0)+$C9-1)),0,INDEX(Launakeðjur!$B$1:$S$60,INT($K9+AF$5)-12,MATCH(Laun!$A9,Launakeðjur!$B$1:$S$1,0)+$C9-1)),1) -> 0 | AG9: =+IF($K9+AG$5>Alm_ealdur,0,IF($K9+AG$5=Alm_ealdur-0.5,0.5,1))*AF9*(1+IF($C9=1,launah,launahkvk))*IF(Kúrfa="já",IF(ISERROR(INDEX(Launakeðjur!$B$1:$S$60,INT($K9+AG$5)-12,MATCH(Laun!$A9,Launakeðjur!$B$1:$S$1,0)+$C9-1)),0,INDEX(Launakeðjur!$B$1:$S$60,INT($K9+AG$5)-12,MATCH(Laun!$A9,Launakeðjur!$B$1:$S$1,0)+$C9-1)),1) -> 0 | AH9: =+IF($K9+AH$5>Alm_ealdur,0,IF($K9+AH$5=Alm_ealdur-0.5,0.5,1))*AG9*(1+IF($C9=1,launah,launahkvk))*IF(Kúrfa="já",IF(ISERROR(INDEX(Launakeðjur!$B$1:$S$60,INT($K9+AH$5)-12,MATCH(Laun!$A9,Launakeðjur!$B$1:$S$1,0)+$C9-1)),0,INDEX(Launakeðjur!$B$1:$S$60,INT($K9+AH$5)-12,MATCH(Laun!$A9,Launakeðjur!$B$1:$S$1,0)+$C9-1)),1) -> 0 | AI9: =+IF($K9+AI$5>Alm_ealdur,0,IF($K9+AI$5=Alm_ealdur-0.5,0.5,1))*AH9*(1+IF($C9=1,launah,launahkvk))*IF(Kúrfa="já",IF(ISERROR(INDEX(Launakeðjur!$B$1:$S$60,INT($K9+AI$5)-12,MATCH(Laun!$A9,Launakeðjur!$B$1:$S$1,0)+$C9-1)),0,INDEX(Launakeðjur!$B$1:$S$60,INT($K9+AI$5)-12,MATCH(Laun!$A9,Launakeðjur!$B$1:$S$1,0)+$C9-1)),1) -> 0 | AJ9: =+IF($K9+AJ$5>Alm_ealdur,0,IF($K9+AJ$5=Alm_ealdur-0.5,0.5,1))*AI9*(1+IF($C9=1,launah,launahkvk))*IF(Kúrfa="já",IF(ISERROR(INDEX(Launakeðjur!$B$1:$S$60,INT($K9+AJ$5)-12,MATCH(Laun!$A9,Launakeðjur!$B$1:$S$1,0)+$C9-1)),0,INDEX(Launakeðjur!$B$1:$S$60,INT($K9+AJ$5)-12,MATCH(Laun!$A9,Launakeðjur!$B$1:$S$1,0)+$C9-1)),1) -> 0 | AK9: =+IF($K9+AK$5>Alm_ealdur,0,IF($K9+AK$5=Alm_ealdur-0.5,0.5,1))*AJ9*(1+IF($C9=1,launah,launahkvk))*IF(Kúrfa="já",IF(ISERROR(INDEX(Launakeðjur!$B$1:$S$60,INT($K9+AK$5)-12,MATCH(Laun!$A9,Launakeðjur!$B$1:$S$1,0)+$C9-1)),0,INDEX(Launakeðjur!$B$1:$S$60,INT($K9+AK$5)-12,MATCH(Laun!$A9,Launakeðjur!$B$1:$S$1,0)+$C9-1)),1) -> 0 | AL9: =+IF($K9+AL$5>Alm_ealdur,0,IF($K9+AL$5=Alm_ealdur-0.5,0.5,1))*AK9*(1+IF($C9=1,launah,launahkvk))*IF(Kúrfa="já",IF(ISERROR(INDEX(Launakeðjur!$B$1:$S$60,INT($K9+AL$5)-12,MATCH(Laun!$A9,Launakeðjur!$B$1:$S$1,0)+$C9-1)),0,INDEX(Launakeðjur!$B$1:$S$60,INT($K9+AL$5)-12,MATCH(Laun!$A9,Launakeðjur!$B$1:$S$1,0)+$C9-1)),1) -> 0 | AM9: =+IF($K9+AM$5>Alm_ealdur,0,IF($K9+AM$5=Alm_ealdur-0.5,0.5,1))*AL9*(1+IF($C9=1,launah,launahkvk))*IF(Kúrfa="já",IF(ISERROR(INDEX(Launakeðjur!$B$1:$S$60,INT($K9+AM$5)-12,MATCH(Laun!$A9,Launakeðjur!$B$1:$S$1,0)+$C9-1)),0,INDEX(Launakeðjur!$B$1:$S$60,INT($K9+AM$5)-12,MATCH(Laun!$A9,Launakeðjur!$B$1:$S$1,0)+$C9-1)),1) -> 0 | AN9: =+IF($K9+AN$5>Alm_ealdur,0,IF($K9+AN$5=Alm_ealdur-0.5,0.5,1))*AM9*(1+IF($C9=1,launah,launahkvk))*IF(Kúrfa="já",IF(ISERROR(INDEX(Launakeðjur!$B$1:$S$60,INT($K9+AN$5)-12,MATCH(Laun!$A9,Launakeðjur!$B$1:$S$1,0)+$C9-1)),0,INDEX(Launakeðjur!$B$1:$S$60,INT($K9+AN$5)-12,MATCH(Laun!$A9,Launakeðjur!$B$1:$S$1,0)+$C9-1)),1) -> 0 | AO9: =+IF($K9+AO$5>Alm_ealdur,0,IF($K9+AO$5=Alm_ealdur-0.5,0.5,1))*AN9*(1+IF($C9=1,launah,launahkvk))*IF(Kúrfa="já",IF(ISERROR(INDEX(Launakeðjur!$B$1:$S$60,INT($K9+AO$5)-12,MATCH(Laun!$A9,Launakeðjur!$B$1:$S$1,0)+$C9-1)),0,INDEX(Launakeðjur!$B$1:$S$60,INT($K9+AO$5)-12,MATCH(Laun!$A9,Launakeðjur!$B$1:$S$1,0)+$C9-1)),1) -> 0 | AP9: =+IF($K9+AP$5>Alm_ealdur,0,IF($K9+AP$5=Alm_ealdur-0.5,0.5,1))*AO9*(1+IF($C9=1,launah,launahkvk))*IF(Kúrfa="já",IF(ISERROR(INDEX(Launakeðjur!$B$1:$S$60,INT($K9+AP$5)-12,MATCH(Laun!$A9,Launakeðjur!$B$1:$S$1,0)+$C9-1)),0,INDEX(Launakeðjur!$B$1:$S$60,INT($K9+AP$5)-12,MATCH(Laun!$A9,Launakeðjur!$B$1:$S$1,0)+$C9-1)),1) -> 0 | AQ9: =+IF($K9+AQ$5>Alm_ealdur,0,IF($K9+AQ$5=Alm_ealdur-0.5,0.5,1))*AP9*(1+IF($C9=1,launah,launahkvk))*IF(Kúrfa="já",IF(ISERROR(INDEX(Launakeðjur!$B$1:$S$60,INT($K9+AQ$5)-12,MATCH(Laun!$A9,Launakeðjur!$B$1:$S$1,0)+$C9-1)),0,INDEX(Launakeðjur!$B$1:$S$60,INT($K9+AQ$5)-12,MATCH(Laun!$A9,Launakeðjur!$B$1:$S$1,0)+$C9-1)),1) -> 0 | AR9: =+IF($K9+AR$5>Alm_ealdur,0,IF($K9+AR$5=Alm_ealdur-0.5,0.5,1))*AQ9*(1+IF($C9=1,launah,launahkvk))*IF(Kúrfa="já",IF(ISERROR(INDEX(Launakeðjur!$B$1:$S$60,INT($K9+AR$5)-12,MATCH(Laun!$A9,Launakeðjur!$B$1:$S$1,0)+$C9-1)),0,INDEX(Launakeðjur!$B$1:$S$60,INT($K9+AR$5)-12,MATCH(Laun!$A9,Launakeðjur!$B$1:$S$1,0)+$C9-1)),1) -> 0 | AS9: =+IF($K9+AS$5>Alm_ealdur,0,IF($K9+AS$5=Alm_ealdur-0.5,0.5,1))*AR9*(1+IF($C9=1,launah,launahkvk))*IF(Kúrfa="já",IF(ISERROR(INDEX(Launakeðjur!$B$1:$S$60,INT($K9+AS$5)-12,MATCH(Laun!$A9,Launakeðjur!$B$1:$S$1,0)+$C9-1)),0,INDEX(Launakeðjur!$B$1:$S$60,INT($K9+AS$5)-12,MATCH(Laun!$A9,Launakeðjur!$B$1:$S$1,0)+$C9-1)),1) -> 0 | AT9: =+IF($K9+AT$5>Alm_ealdur,0,IF($K9+AT$5=Alm_ealdur-0.5,0.5,1))*AS9*(1+IF($C9=1,launah,launahkvk))*IF(Kúrfa="já",IF(ISERROR(INDEX(Launakeðjur!$B$1:$S$60,INT($K9+AT$5)-12,MATCH(Laun!$A9,Launakeðjur!$B$1:$S$1,0)+$C9-1)),0,INDEX(Launakeðjur!$B$1:$S$60,INT($K9+AT$5)-12,MATCH(Laun!$A9,Launakeðjur!$B$1:$S$1,0)+$C9-1)),1) -> 0 | AU9: =+IF($K9+AU$5>Alm_ealdur,0,IF($K9+AU$5=Alm_ealdur-0.5,0.5,1))*AT9*(1+IF($C9=1,launah,launahkvk))*IF(Kúrfa="já",IF(ISERROR(INDEX(Launakeðjur!$B$1:$S$60,INT($K9+AU$5)-12,MATCH(Laun!$A9,Launakeðjur!$B$1:$S$1,0)+$C9-1)),0,INDEX(Launakeðjur!$B$1:$S$60,INT($K9+AU$5)-12,MATCH(Laun!$A9,Launakeðjur!$B$1:$S$1,0)+$C9-1)),1) -> 0 | AV9: =+IF($K9+AV$5>Alm_ealdur,0,IF($K9+AV$5=Alm_ealdur-0.5,0.5,1))*AU9*(1+IF($C9=1,launah,launahkvk))*IF(Kúrfa="já",IF(ISERROR(INDEX(Launakeðjur!$B$1:$S$60,INT($K9+AV$5)-12,MATCH(Laun!$A9,Launakeðjur!$B$1:$S$1,0)+$C9-1)),0,INDEX(Launakeðjur!$B$1:$S$60,INT($K9+AV$5)-12,MATCH(Laun!$A9,Launakeðjur!$B$1:$S$1,0)+$C9-1)),1) -> 0 | AW9: =+IF($K9+AW$5>Alm_ealdur,0,IF($K9+AW$5=Alm_ealdur-0.5,0.5,1))*AV9*(1+IF($C9=1,launah,launahkvk))*IF(Kúrfa="já",IF(ISERROR(INDEX(Launakeðjur!$B$1:$S$60,INT($K9+AW$5)-12,MATCH(Laun!$A9,Launakeðjur!$B$1:$S$1,0)+$C9-1)),0,INDEX(Launakeðjur!$B$1:$S$60,INT($K9+AW$5)-12,MATCH(Laun!$A9,Launakeðjur!$B$1:$S$1,0)+$C9-1)),1) -> 0 | AX9: =+IF($K9+AX$5>Alm_ealdur,0,IF($K9+AX$5=Alm_ealdur-0.5,0.5,1))*AW9*(1+IF($C9=1,launah,launahkvk))*IF(Kúrfa="já",IF(ISERROR(INDEX(Launakeðjur!$B$1:$S$60,INT($K9+AX$5)-12,MATCH(Laun!$A9,Launakeðjur!$B$1:$S$1,0)+$C9-1)),0,INDEX(Launakeðjur!$B$1:$S$60,INT($K9+AX$5)-12,MATCH(Laun!$A9,Launakeðjur!$B$1:$S$1,0)+$C9-1)),1) -> 0 | AY9: =+IF($K9+AY$5>Alm_ealdur,0,IF($K9+AY$5=Alm_ealdur-0.5,0.5,1))*AX9*(1+IF($C9=1,launah,launahkvk))*IF(Kúrfa="já",IF(ISERROR(INDEX(Launakeðjur!$B$1:$S$60,INT($K9+AY$5)-12,MATCH(Laun!$A9,Launakeðjur!$B$1:$S$1,0)+$C9-1)),0,INDEX(Launakeðjur!$B$1:$S$60,INT($K9+AY$5)-12,MATCH(Laun!$A9,Launakeðjur!$B$1:$S$1,0)+$C9-1)),1) -> 0 | AZ9: =+IF($K9+AZ$5>Alm_ealdur,0,IF($K9+AZ$5=Alm_ealdur-0.5,0.5,1))*AY9*(1+IF($C9=1,launah,launahkvk))*IF(Kúrfa="já",IF(ISERROR(INDEX(Launakeðjur!$B$1:$S$60,INT($K9+AZ$5)-12,MATCH(Laun!$A9,Launakeðjur!$B$1:$S$1,0)+$C9-1)),0,INDEX(Launakeðjur!$B$1:$S$60,INT($K9+AZ$5)-12,MATCH(Laun!$A9,Launakeðjur!$B$1:$S$1,0)+$C9-1)),1) -> 0 | BA9: =+IF($K9+BA$5>Alm_ealdur,0,IF($K9+BA$5=Alm_ealdur-0.5,0.5,1))*AZ9*(1+IF($C9=1,launah,launahkvk))*IF(Kúrfa="já",IF(ISERROR(INDEX(Launakeðjur!$B$1:$S$60,INT($K9+BA$5)-12,MATCH(Laun!$A9,Launakeðjur!$B$1:$S$1,0)+$C9-1)),0,INDEX(Launakeðjur!$B$1:$S$60,INT($K9+BA$5)-12,MATCH(Laun!$A9,Launakeðjur!$B$1:$S$1,0)+$C9-1)),1) -> 0 | BB9: =+IF($K9+BB$5>Alm_ealdur,0,IF($K9+BB$5=Alm_ealdur-0.5,0.5,1))*BA9*(1+IF($C9=1,launah,launahkvk))*IF(Kúrfa="já",IF(ISERROR(INDEX(Launakeðjur!$B$1:$S$60,INT($K9+BB$5)-12,MATCH(Laun!$A9,Launakeðjur!$B$1:$S$1,0)+$C9-1)),0,INDEX(Launakeðjur!$B$1:$S$60,INT($K9+BB$5)-12,MATCH(Laun!$A9,Launakeðjur!$B$1:$S$1,0)+$C9-1)),1) -> 0 | BC9: =+IF($K9+BC$5>Alm_ealdur,0,IF($K9+BC$5=Alm_ealdur-0.5,0.5,1))*BB9*(1+IF($C9=1,launah,launahkvk))*IF(Kúrfa="já",IF(ISERROR(INDEX(Launakeðjur!$B$1:$S$60,INT($K9+BC$5)-12,MATCH(Laun!$A9,Launakeðjur!$B$1:$S$1,0)+$C9-1)),0,INDEX(Launakeðjur!$B$1:$S$60,INT($K9+BC$5)-12,MATCH(Laun!$A9,Launakeðjur!$B$1:$S$1,0)+$C9-1)),1) -> 0 | BD9: =+IF($K9+BD$5>Alm_ealdur,0,IF($K9+BD$5=Alm_ealdur-0.5,0.5,1))*BC9*(1+IF($C9=1,launah,launahkvk))*IF(Kúrfa="já",IF(ISERROR(INDEX(Launakeðjur!$B$1:$S$60,INT($K9+BD$5)-12,MATCH(Laun!$A9,Launakeðjur!$B$1:$S$1,0)+$C9-1)),0,INDEX(Launakeðjur!$B$1:$S$60,INT($K9+BD$5)-12,MATCH(Laun!$A9,Launakeðjur!$B$1:$S$1,0)+$C9-1)),1) -> 0 | BE9: =+IF($K9+BE$5>Alm_ealdur,0,IF($K9+BE$5=Alm_ealdur-0.5,0.5,1))*BD9*(1+IF($C9=1,launah,launahkvk))*IF(Kúrfa="já",IF(ISERROR(INDEX(Launakeðjur!$B$1:$S$60,INT($K9+BE$5)-12,MATCH(Laun!$A9,Launakeðjur!$B$1:$S$1,0)+$C9-1)),0,INDEX(Launakeðjur!$B$1:$S$60,INT($K9+BE$5)-12,MATCH(Laun!$A9,Launakeðjur!$B$1:$S$1,0)+$C9-1)),1) -> 0 | BF9: =+IF($K9+BF$5>Alm_ealdur,0,IF($K9+BF$5=Alm_ealdur-0.5,0.5,1))*BE9*(1+IF($C9=1,launah,launahkvk))*IF(Kúrfa="já",IF(ISERROR(INDEX(Launakeðjur!$B$1:$S$60,INT($K9+BF$5)-12,MATCH(Laun!$A9,Launakeðjur!$B$1:$S$1,0)+$C9-1)),0,INDEX(Launakeðjur!$B$1:$S$60,INT($K9+BF$5)-12,MATCH(Laun!$A9,Launakeðjur!$B$1:$S$1,0)+$C9-1)),1) -> 0 | BG9: =+IF($K9+BG$5>Alm_ealdur,0,IF($K9+BG$5=Alm_ealdur-0.5,0.5,1))*BF9*(1+IF($C9=1,launah,launahkvk))*IF(Kúrfa="já",IF(ISERROR(INDEX(Launakeðjur!$B$1:$S$60,INT($K9+BG$5)-12,MATCH(Laun!$A9,Launakeðjur!$B$1:$S$1,0)+$C9-1)),0,INDEX(Launakeðjur!$B$1:$S$60,INT($K9+BG$5)-12,MATCH(Laun!$A9,Launakeðjur!$B$1:$S$1,0)+$C9-1)),1) -> 0 | BH9: =+IF($K9+BH$5>Alm_ealdur,0,IF($K9+BH$5=Alm_ealdur-0.5,0.5,1))*BG9*(1+IF($C9=1,launah,launahkvk))*IF(Kúrfa="já",IF(ISERROR(INDEX(Launakeðjur!$B$1:$S$60,INT($K9+BH$5)-12,MATCH(Laun!$A9,Launakeðjur!$B$1:$S$1,0)+$C9-1)),0,INDEX(Launakeðjur!$B$1:$S$60,INT($K9+BH$5)-12,MATCH(Laun!$A9,Launakeðjur!$B$1:$S$1,0)+$C9-1)),1) -> 0 | BI9: =+IF($K9+BI$5>Alm_ealdur,0,IF($K9+BI$5=Alm_ealdur-0.5,0.5,1))*BH9*(1+IF($C9=1,launah,launahkvk))*IF(Kúrfa="já",IF(ISERROR(INDEX(Launakeðjur!$B$1:$S$60,INT($K9+BI$5)-12,MATCH(Laun!$A9,Launakeðjur!$B$1:$S$1,0)+$C9-1)),0,INDEX(Launakeðjur!$B$1:$S$60,INT($K9+BI$5)-12,MATCH(Laun!$A9,Launakeðjur!$B$1:$S$1,0)+$C9-1)),1) -> 0 | BJ9: =+IF($K9+BJ$5>Alm_ealdur,0,IF($K9+BJ$5=Alm_ealdur-0.5,0.5,1))*BI9*(1+IF($C9=1,launah,launahkvk))*IF(Kúrfa="já",IF(ISERROR(INDEX(Launakeðjur!$B$1:$S$60,INT($K9+BJ$5)-12,MATCH(Laun!$A9,Launakeðjur!$B$1:$S$1,0)+$C9-1)),0,INDEX(Launakeðjur!$B$1:$S$60,INT($K9+BJ$5)-12,MATCH(Laun!$A9,Launakeðjur!$B$1:$S$1,0)+$C9-1)),1) -> 0 | BK9: =+IF($K9+BK$5>Alm_ealdur,0,IF($K9+BK$5=Alm_ealdur-0.5,0.5,1))*BJ9*(1+IF($C9=1,launah,launahkvk))*IF(Kúrfa="já",IF(ISERROR(INDEX(Launakeðjur!$B$1:$S$60,INT($K9+BK$5)-12,MATCH(Laun!$A9,Launakeðjur!$B$1:$S$1,0)+$C9-1)),0,INDEX(Launakeðjur!$B$1:$S$60,INT($K9+BK$5)-12,MATCH(Laun!$A9,Launakeðjur!$B$1:$S$1,0)+$C9-1)),1) -> 0 | BL9: =+IF($K9+BL$5>Alm_ealdur,0,IF($K9+BL$5=Alm_ealdur-0.5,0.5,1))*BK9*(1+IF($C9=1,launah,launahkvk))*IF(Kúrfa="já",IF(ISERROR(INDEX(Launakeðjur!$B$1:$S$60,INT($K9+BL$5)-12,MATCH(Laun!$A9,Launakeðjur!$B$1:$S$1,0)+$C9-1)),0,INDEX(Launakeðjur!$B$1:$S$60,INT($K9+BL$5)-12,MATCH(Laun!$A9,Launakeðjur!$B$1:$S$1,0)+$C9-1)),1) -> 0 | BM9: =+IF($K9+BM$5>Alm_ealdur,0,IF($K9+BM$5=Alm_ealdur-0.5,0.5,1))*BL9*(1+IF($C9=1,launah,launahkvk))*IF(Kúrfa="já",IF(ISERROR(INDEX(Launakeðjur!$B$1:$S$60,INT($K9+BM$5)-12,MATCH(Laun!$A9,Launakeðjur!$B$1:$S$1,0)+$C9-1)),0,INDEX(Launakeðjur!$B$1:$S$60,INT($K9+BM$5)-12,MATCH(Laun!$A9,Launakeðjur!$B$1:$S$1,0)+$C9-1)),1) -> 0 | BN9: =+IF($K9+BN$5>Alm_ealdur,0,IF($K9+BN$5=Alm_ealdur-0.5,0.5,1))*BM9*(1+IF($C9=1,launah,launahkvk))*IF(Kúrfa="já",IF(ISERROR(INDEX(Launakeðjur!$B$1:$S$60,INT($K9+BN$5)-12,MATCH(Laun!$A9,Launakeðjur!$B$1:$S$1,0)+$C9-1)),0,INDEX(Launakeðjur!$B$1:$S$60,INT($K9+BN$5)-12,MATCH(Laun!$A9,Launakeðjur!$B$1:$S$1,0)+$C9-1)),1) -> 0 | BO9: =+IF($K9+BO$5>Alm_ealdur,0,IF($K9+BO$5=Alm_ealdur-0.5,0.5,1))*BN9*(1+IF($C9=1,launah,launahkvk))*IF(Kúrfa="já",IF(ISERROR(INDEX(Launakeðjur!$B$1:$S$60,INT($K9+BO$5)-12,MATCH(Laun!$A9,Launakeðjur!$B$1:$S$1,0)+$C9-1)),0,INDEX(Launakeðjur!$B$1:$S$60,INT($K9+BO$5)-12,MATCH(Laun!$A9,Launakeðjur!$B$1:$S$1,0)+$C9-1)),1) -> 0 | BP9: =+IF($K9+BP$5>Alm_ealdur,0,IF($K9+BP$5=Alm_ealdur-0.5,0.5,1))*BO9*(1+IF($C9=1,launah,launahkvk))*IF(Kúrfa="já",IF(ISERROR(INDEX(Launakeðjur!$B$1:$S$60,INT($K9+BP$5)-12,MATCH(Laun!$A9,Launakeðjur!$B$1:$S$1,0)+$C9-1)),0,INDEX(Launakeðjur!$B$1:$S$60,INT($K9+BP$5)-12,MATCH(Laun!$A9,Launakeðjur!$B$1:$S$1,0)+$C9-1)),1) -> 0 | BQ9: =+IF($K9+BQ$5>Alm_ealdur,0,IF($K9+BQ$5=Alm_ealdur-0.5,0.5,1))*BP9*(1+IF($C9=1,launah,launahkvk))*IF(Kúrfa="já",IF(ISERROR(INDEX(Launakeðjur!$B$1:$S$60,INT($K9+BQ$5)-12,MATCH(Laun!$A9,Launakeðjur!$B$1:$S$1,0)+$C9-1)),0,INDEX(Launakeðjur!$B$1:$S$60,INT($K9+BQ$5)-12,MATCH(Laun!$A9,Launakeðjur!$B$1:$S$1,0)+$C9-1)),1) -> 0 | BR9: =+IF($K9+BR$5>Alm_ealdur,0,IF($K9+BR$5=Alm_ealdur-0.5,0.5,1))*BQ9*(1+IF($C9=1,launah,launahkvk))*IF(Kúrfa="já",IF(ISERROR(INDEX(Launakeðjur!$B$1:$S$60,INT($K9+BR$5)-12,MATCH(Laun!$A9,Launakeðjur!$B$1:$S$1,0)+$C9-1)),0,INDEX(Launakeðjur!$B$1:$S$60,INT($K9+BR$5)-12,MATCH(Laun!$A9,Launakeðjur!$B$1:$S$1,0)+$C9-1)),1) -> 0 | BS9: =+IF($K9+BS$5>Alm_ealdur,0,IF($K9+BS$5=Alm_ealdur-0.5,0.5,1))*BR9*(1+IF($C9=1,launah,launahkvk))*IF(Kúrfa="já",IF(ISERROR(INDEX(Launakeðjur!$B$1:$S$60,INT($K9+BS$5)-12,MATCH(Laun!$A9,Launakeðjur!$B$1:$S$1,0)+$C9-1)),0,INDEX(Launakeðjur!$B$1:$S$60,INT($K9+BS$5)-12,MATCH(Laun!$A9,Launakeðjur!$B$1:$S$1,0)+$C9-1)),1) -> 0 | BT9: =+IF($K9+BT$5>Alm_ealdur,0,IF($K9+BT$5=Alm_ealdur-0.5,0.5,1))*BS9*(1+IF($C9=1,launah,launahkvk))*IF(Kúrfa="já",IF(ISERROR(INDEX(Launakeðjur!$B$1:$S$60,INT($K9+BT$5)-12,MATCH(Laun!$A9,Launakeðjur!$B$1:$S$1,0)+$C9-1)),0,INDEX(Launakeðjur!$B$1:$S$60,INT($K9+BT$5)-12,MATCH(Laun!$A9,Launakeðjur!$B$1:$S$1,0)+$C9-1)),1) -> 0 | BU9: =+IF($K9+BU$5>Alm_ealdur,0,IF($K9+BU$5=Alm_ealdur-0.5,0.5,1))*BT9*(1+IF($C9=1,launah,launahkvk))*IF(Kúrfa="já",IF(ISERROR(INDEX(Launakeðjur!$B$1:$S$60,INT($K9+BU$5)-12,MATCH(Laun!$A9,Launakeðjur!$B$1:$S$1,0)+$C9-1)),0,INDEX(Launakeðjur!$B$1:$S$60,INT($K9+BU$5)-12,MATCH(Laun!$A9,Launakeðjur!$B$1:$S$1,0)+$C9-1)),1) -> 0 | BV9: =+IF($K9+BV$5>Alm_ealdur,0,IF($K9+BV$5=Alm_ealdur-0.5,0.5,1))*BU9*(1+IF($C9=1,launah,launahkvk))*IF(Kúrfa="já",IF(ISERROR(INDEX(Launakeðjur!$B$1:$S$60,INT($K9+BV$5)-12,MATCH(Laun!$A9,Launakeðjur!$B$1:$S$1,0)+$C9-1)),0,INDEX(Launakeðjur!$B$1:$S$60,INT($K9+BV$5)-12,MATCH(Laun!$A9,Launakeðjur!$B$1:$S$1,0)+$C9-1)),1) -> 0 | BW9: =+IF($K9+BW$5>Alm_ealdur,0,IF($K9+BW$5=Alm_ealdur-0.5,0.5,1))*BV9*(1+IF($C9=1,launah,launahkvk))*IF(Kúrfa="já",IF(ISERROR(INDEX(Launakeðjur!$B$1:$S$60,INT($K9+BW$5)-12,MATCH(Laun!$A9,Launakeðjur!$B$1:$S$1,0)+$C9-1)),0,INDEX(Launakeðjur!$B$1:$S$60,INT($K9+BW$5)-12,MATCH(Laun!$A9,Launakeðjur!$B$1:$S$1,0)+$C9-1)),1) -> 0 | BX9: =+IF($K9+BX$5>Alm_ealdur,0,IF($K9+BX$5=Alm_ealdur-0.5,0.5,1))*BW9*(1+IF($C9=1,launah,launahkvk))*IF(Kúrfa="já",IF(ISERROR(INDEX(Launakeðjur!$B$1:$S$60,INT($K9+BX$5)-12,MATCH(Laun!$A9,Launakeðjur!$B$1:$S$1,0)+$C9-1)),0,INDEX(Launakeðjur!$B$1:$S$60,INT($K9+BX$5)-12,MATCH(Laun!$A9,Launakeðjur!$B$1:$S$1,0)+$C9-1)),1) -> 0 | BZ9: 1410659896
A10: Alm | B10: Alm_1_1949_0 | C10: =+'Access gögn'!D6 -> 1 | D10: =+'Access gögn'!E6 -> 1 | E10: =+'Access gögn'!F6 -> 1949 | F10: =+'Access gögn'!G6 -> 0 | G10: =+'Access gögn'!H6/1.21245 -> 79.17852283 | H10: =+'Access gögn'!I6 -> 1778524.51 | I10: =+'Access gögn'!J6 -> 0 | J10: =+'Access gögn'!K6 -> 607014.0475 | K10: 66.5 | L10: =+VLOOKUP(B10,'Mismunandi laun'!$F$3:$J$112,'Mismunandi laun'!$A$3,FALSE)*1.11 -> 7125935.82 | M10: 7125935.82 | N10: 6284890.463 | O10: =IF(Kúrfa="já",L10*INDEX(Launakeðjur!$Y$1:$AJ$57,Laun!K10-13.5,MATCH(Laun!A10,Launakeðjur!$Y$1:$AI$1,0)+Laun!C10-1),L10*(1+IF(C4=1,launah,launahkvk))^(55-K10)) -> 7066256.749 | P10: =+IF($K10+P$5>Alm_ealdur,0,IF(K10=Alm_ealdur-0.5,0.5,1))*L10*(1+IF(C10=1,launah,launahkvk))*IF(Kúrfa="Já",IF(ISERROR(INDEX(Launakeðjur!$B$1:$S$60,INT($K10+P$5)-12,MATCH(Laun!$A10,Launakeðjur!$B$1:$S$1,0)+C10-1)),0,INDEX(Launakeðjur!$B$1:$S$60,INT($K10+P$5)-12,MATCH(Laun!$A10,Launakeðjur!$B$1:$S$1,0)+C10-1)),1) -> 6923052.052 | Q10: =+IF($K10+Q$5>Alm_ealdur,0,IF($K10+Q$5=Alm_ealdur-0.5,0.5,1))*P10*(1+IF($C10=1,launah,launahkvk))*IF(Kúrfa="já",IF(ISERROR(INDEX(Launakeðjur!$B$1:$S$60,INT($K10+Q$5)-12,MATCH(Laun!$A10,Launakeðjur!$B$1:$S$1,0)+$C10-1)),0,INDEX(Launakeðjur!$B$1:$S$60,INT($K10+Q$5)-12,MATCH(Laun!$A10,Launakeðjur!$B$1:$S$1,0)+$C10-1)),1) -> 6685606.823 | R10: =+IF($K10+R$5>Alm_ealdur,0,IF($K10+R$5=Alm_ealdur-0.5,0.5,1))*Q10*(1+IF($C10=1,launah,launahkvk))*IF(Kúrfa="já",IF(ISERROR(INDEX(Launakeðjur!$B$1:$S$60,INT($K10+R$5)-12,MATCH(Laun!$A10,Launakeðjur!$B$1:$S$1,0)+$C10-1)),0,INDEX(Launakeðjur!$B$1:$S$60,INT($K10+R$5)-12,MATCH(Laun!$A10,Launakeðjur!$B$1:$S$1,0)+$C10-1)),1) -> 6411867.689 | S10: =+IF($K10+S$5>Alm_ealdur,0,IF($K10+S$5=Alm_ealdur-0.5,0.5,1))*R10*(1+IF($C10=1,launah,launahkvk))*IF(Kúrfa="já",IF(ISERROR(INDEX(Launakeðjur!$B$1:$S$60,INT($K10+S$5)-12,MATCH(Laun!$A10,Launakeðjur!$B$1:$S$1,0)+$C10-1)),0,INDEX(Launakeðjur!$B$1:$S$60,INT($K10+S$5)-12,MATCH(Laun!$A10,Launakeðjur!$B$1:$S$1,0)+$C10-1)),1) -> 6100052.764 | T10: =+IF($K10+T$5>Alm_ealdur,0,IF($K10+T$5=Alm_ealdur-0.5,0.5,1))*S10*(1+IF($C10=1,launah,launahkvk))*IF(Kúrfa="já",IF(ISERROR(INDEX(Launakeðjur!$B$1:$S$60,INT($K10+T$5)-12,MATCH(Laun!$A10,Launakeðjur!$B$1:$S$1,0)+$C10-1)),0,INDEX(Launakeðjur!$B$1:$S$60,INT($K10+T$5)-12,MATCH(Laun!$A10,Launakeðjur!$B$1:$S$1,0)+$C10-1)),1) -> 6161053.291 | U10: =+IF($K10+U$5>Alm_ealdur,0,IF($K10+U$5=Alm_ealdur-0.5,0.5,1))*T10*(1+IF($C10=1,launah,launahkvk))*IF(Kúrfa="já",IF(ISERROR(INDEX(Launakeðjur!$B$1:$S$60,INT($K10+U$5)-12,MATCH(Laun!$A10,Launakeðjur!$B$1:$S$1,0)+$C10-1)),0,INDEX(Launakeðjur!$B$1:$S$60,INT($K10+U$5)-12,MATCH(Laun!$A10,Launakeðjur!$B$1:$S$1,0)+$C10-1)),1) -> 6222663.824 | V10: =+IF($K10+V$5>Alm_ealdur,0,IF($K10+V$5=Alm_ealdur-0.5,0.5,1))*U10*(1+IF($C10=1,launah,launahkvk))*IF(Kúrfa="já",IF(ISERROR(INDEX(Launakeðjur!$B$1:$S$60,INT($K10+V$5)-12,MATCH(Laun!$A10,Launakeðjur!$B$1:$S$1,0)+$C10-1)),0,INDEX(Launakeðjur!$B$1:$S$60,INT($K10+V$5)-12,MATCH(Laun!$A10,Launakeðjur!$B$1:$S$1,0)+$C10-1)),1) -> 3142445.231 | W10: =+IF($K10+W$5>Alm_ealdur,0,IF($K10+W$5=Alm_ealdur-0.5,0.5,1))*V10*(1+IF($C10=1,launah,launahkvk))*IF(Kúrfa="já",IF(ISERROR(INDEX(Launakeðjur!$B$1:$S$60,INT($K10+W$5)-12,MATCH(Laun!$A10,Launakeðjur!$B$1:$S$1,0)+$C10-1)),0,INDEX(Launakeðjur!$B$1:$S$60,INT($K10+W$5)-12,MATCH(Laun!$A10,Launakeðjur!$B$1:$S$1,0)+$C10-1)),1) -> 0 | X10: =+IF($K10+X$5>Alm_ealdur,0,IF($K10+X$5=Alm_ealdur-0.5,0.5,1))*W10*(1+IF($C10=1,launah,launahkvk))*IF(Kúrfa="já",IF(ISERROR(INDEX(Launakeðjur!$B$1:$S$60,INT($K10+X$5)-12,MATCH(Laun!$A10,Launakeðjur!$B$1:$S$1,0)+$C10-1)),0,INDEX(Launakeðjur!$B$1:$S$60,INT($K10+X$5)-12,MATCH(Laun!$A10,Launakeðjur!$B$1:$S$1,0)+$C10-1)),1) -> 0 | Y10: =+IF($K10+Y$5>Alm_ealdur,0,IF($K10+Y$5=Alm_ealdur-0.5,0.5,1))*X10*(1+IF($C10=1,launah,launahkvk))*IF(Kúrfa="já",IF(ISERROR(INDEX(Launakeðjur!$B$1:$S$60,INT($K10+Y$5)-12,MATCH(Laun!$A10,Launakeðjur!$B$1:$S$1,0)+$C10-1)),0,INDEX(Launakeðjur!$B$1:$S$60,INT($K10+Y$5)-12,MATCH(Laun!$A10,Launakeðjur!$B$1:$S$1,0)+$C10-1)),1) -> 0 | Z10: =+IF($K10+Z$5>Alm_ealdur,0,IF($K10+Z$5=Alm_ealdur-0.5,0.5,1))*Y10*(1+IF($C10=1,launah,launahkvk))*IF(Kúrfa="já",IF(ISERROR(INDEX(Launakeðjur!$B$1:$S$60,INT($K10+Z$5)-12,MATCH(Laun!$A10,Launakeðjur!$B$1:$S$1,0)+$C10-1)),0,INDEX(Launakeðjur!$B$1:$S$60,INT($K10+Z$5)-12,MATCH(Laun!$A10,Launakeðjur!$B$1:$S$1,0)+$C10-1)),1) -> 0 | AA10: =+IF($K10+AA$5>Alm_ealdur,0,IF($K10+AA$5=Alm_ealdur-0.5,0.5,1))*Z10*(1+IF($C10=1,launah,launahkvk))*IF(Kúrfa="já",IF(ISERROR(INDEX(Launakeðjur!$B$1:$S$60,INT($K10+AA$5)-12,MATCH(Laun!$A10,Launakeðjur!$B$1:$S$1,0)+$C10-1)),0,INDEX(Launakeðjur!$B$1:$S$60,INT($K10+AA$5)-12,MATCH(Laun!$A10,Launakeðjur!$B$1:$S$1,0)+$C10-1)),1) -> 0 | AB10: =+IF($K10+AB$5>Alm_ealdur,0,IF($K10+AB$5=Alm_ealdur-0.5,0.5,1))*AA10*(1+IF($C10=1,launah,launahkvk))*IF(Kúrfa="já",IF(ISERROR(INDEX(Launakeðjur!$B$1:$S$60,INT($K10+AB$5)-12,MATCH(Laun!$A10,Launakeðjur!$B$1:$S$1,0)+$C10-1)),0,INDEX(Launakeðjur!$B$1:$S$60,INT($K10+AB$5)-12,MATCH(Laun!$A10,Launakeðjur!$B$1:$S$1,0)+$C10-1)),1) -> 0 | AC10: =+IF($K10+AC$5>Alm_ealdur,0,IF($K10+AC$5=Alm_ealdur-0.5,0.5,1))*AB10*(1+IF($C10=1,launah,launahkvk))*IF(Kúrfa="já",IF(ISERROR(INDEX(Launakeðjur!$B$1:$S$60,INT($K10+AC$5)-12,MATCH(Laun!$A10,Launakeðjur!$B$1:$S$1,0)+$C10-1)),0,INDEX(Launakeðjur!$B$1:$S$60,INT($K10+AC$5)-12,MATCH(Laun!$A10,Launakeðjur!$B$1:$S$1,0)+$C10-1)),1) -> 0 | AD10: =+IF($K10+AD$5>Alm_ealdur,0,IF($K10+AD$5=Alm_ealdur-0.5,0.5,1))*AC10*(1+IF($C10=1,launah,launahkvk))*IF(Kúrfa="já",IF(ISERROR(INDEX(Launakeðjur!$B$1:$S$60,INT($K10+AD$5)-12,MATCH(Laun!$A10,Launakeðjur!$B$1:$S$1,0)+$C10-1)),0,INDEX(Launakeðjur!$B$1:$S$60,INT($K10+AD$5)-12,MATCH(Laun!$A10,Launakeðjur!$B$1:$S$1,0)+$C10-1)),1) -> 0 | AE10: =+IF($K10+AE$5>Alm_ealdur,0,IF($K10+AE$5=Alm_ealdur-0.5,0.5,1))*AD10*(1+IF($C10=1,launah,launahkvk))*IF(Kúrfa="já",IF(ISERROR(INDEX(Launakeðjur!$B$1:$S$60,INT($K10+AE$5)-12,MATCH(Laun!$A10,Launakeðjur!$B$1:$S$1,0)+$C10-1)),0,INDEX(Launakeðjur!$B$1:$S$60,INT($K10+AE$5)-12,MATCH(Laun!$A10,Launakeðjur!$B$1:$S$1,0)+$C10-1)),1) -> 0 | AF10: =+IF($K10+AF$5>Alm_ealdur,0,IF($K10+AF$5=Alm_ealdur-0.5,0.5,1))*AE10*(1+IF($C10=1,launah,launahkvk))*IF(Kúrfa="já",IF(ISERROR(INDEX(Launakeðjur!$B$1:$S$60,INT($K10+AF$5)-12,MATCH(Laun!$A10,Launakeðjur!$B$1:$S$1,0)+$C10-1)),0,INDEX(Launakeðjur!$B$1:$S$60,INT($K10+AF$5)-12,MATCH(Laun!$A10,Launakeðjur!$B$1:$S$1,0)+$C10-1)),1) -> 0 | AG10: =+IF($K10+AG$5>Alm_ealdur,0,IF($K10+AG$5=Alm_ealdur-0.5,0.5,1))*AF10*(1+IF($C10=1,launah,launahkvk))*IF(Kúrfa="já",IF(ISERROR(INDEX(Launakeðjur!$B$1:$S$60,INT($K10+AG$5)-12,MATCH(Laun!$A10,Launakeðjur!$B$1:$S$1,0)+$C10-1)),0,INDEX(Launakeðjur!$B$1:$S$60,INT($K10+AG$5)-12,MATCH(Laun!$A10,Launakeðjur!$B$1:$S$1,0)+$C10-1)),1) -> 0 | AH10: =+IF($K10+AH$5>Alm_ealdur,0,IF($K10+AH$5=Alm_ealdur-0.5,0.5,1))*AG10*(1+IF($C10=1,launah,launahkvk))*IF(Kúrfa="já",IF(ISERROR(INDEX(Launakeðjur!$B$1:$S$60,INT($K10+AH$5)-12,MATCH(Laun!$A10,Launakeðjur!$B$1:$S$1,0)+$C10-1)),0,INDEX(Launakeðjur!$B$1:$S$60,INT($K10+AH$5)-12,MATCH(Laun!$A10,Launakeðjur!$B$1:$S$1,0)+$C10-1)),1) -> 0 | AI10: =+IF($K10+AI$5>Alm_ealdur,0,IF($K10+AI$5=Alm_ealdur-0.5,0.5,1))*AH10*(1+IF($C10=1,launah,launahkvk))*IF(Kúrfa="já",IF(ISERROR(INDEX(Launakeðjur!$B$1:$S$60,INT($K10+AI$5)-12,MATCH(Laun!$A10,Launakeðjur!$B$1:$S$1,0)+$C10-1)),0,INDEX(Launakeðjur!$B$1:$S$60,INT($K10+AI$5)-12,MATCH(Laun!$A10,Launakeðjur!$B$1:$S$1,0)+$C10-1)),1) -> 0 | AJ10: =+IF($K10+AJ$5>Alm_ealdur,0,IF($K10+AJ$5=Alm_ealdur-0.5,0.5,1))*AI10*(1+IF($C10=1,launah,launahkvk))*IF(Kúrfa="já",IF(ISERROR(INDEX(Launakeðjur!$B$1:$S$60,INT($K10+AJ$5)-12,MATCH(Laun!$A10,Launakeðjur!$B$1:$S$1,0)+$C10-1)),0,INDEX(Launakeðjur!$B$1:$S$60,INT($K10+AJ$5)-12,MATCH(Laun!$A10,Launakeðjur!$B$1:$S$1,0)+$C10-1)),1) -> 0 | AK10: =+IF($K10+AK$5>Alm_ealdur,0,IF($K10+AK$5=Alm_ealdur-0.5,0.5,1))*AJ10*(1+IF($C10=1,launah,launahkvk))*IF(Kúrfa="já",IF(ISERROR(INDEX(Launakeðjur!$B$1:$S$60,INT($K10+AK$5)-12,MATCH(Laun!$A10,Launakeðjur!$B$1:$S$1,0)+$C10-1)),0,INDEX(Launakeðjur!$B$1:$S$60,INT($K10+AK$5)-12,MATCH(Laun!$A10,Launakeðjur!$B$1:$S$1,0)+$C10-1)),1) -> 0 | AL10: =+IF($K10+AL$5>Alm_ealdur,0,IF($K10+AL$5=Alm_ealdur-0.5,0.5,1))*AK10*(1+IF($C10=1,launah,launahkvk))*IF(Kúrfa="já",IF(ISERROR(INDEX(Launakeðjur!$B$1:$S$60,INT($K10+AL$5)-12,MATCH(Laun!$A10,Launakeðjur!$B$1:$S$1,0)+$C10-1)),0,INDEX(Launakeðjur!$B$1:$S$60,INT($K10+AL$5)-12,MATCH(Laun!$A10,Launakeðjur!$B$1:$S$1,0)+$C10-1)),1) -> 0 | AM10: =+IF($K10+AM$5>Alm_ealdur,0,IF($K10+AM$5=Alm_ealdur-0.5,0.5,1))*AL10*(1+IF($C10=1,launah,launahkvk))*IF(Kúrfa="já",IF(ISERROR(INDEX(Launakeðjur!$B$1:$S$60,INT($K10+AM$5)-12,MATCH(Laun!$A10,Launakeðjur!$B$1:$S$1,0)+$C10-1)),0,INDEX(Launakeðjur!$B$1:$S$60,INT($K10+AM$5)-12,MATCH(Laun!$A10,Launakeðjur!$B$1:$S$1,0)+$C10-1)),1) -> 0 | AN10: =+IF($K10+AN$5>Alm_ealdur,0,IF($K10+AN$5=Alm_ealdur-0.5,0.5,1))*AM10*(1+IF($C10=1,launah,launahkvk))*IF(Kúrfa="já",IF(ISERROR(INDEX(Launakeðjur!$B$1:$S$60,INT($K10+AN$5)-12,MATCH(Laun!$A10,Launakeðjur!$B$1:$S$1,0)+$C10-1)),0,INDEX(Launakeðjur!$B$1:$S$60,INT($K10+AN$5)-12,MATCH(Laun!$A10,Launakeðjur!$B$1:$S$1,0)+$C10-1)),1) -> 0 | AO10: =+IF($K10+AO$5>Alm_ealdur,0,IF($K10+AO$5=Alm_ealdur-0.5,0.5,1))*AN10*(1+IF($C10=1,launah,launahkvk))*IF(Kúrfa="já",IF(ISERROR(INDEX(Launakeðjur!$B$1:$S$60,INT($K10+AO$5)-12,MATCH(Laun!$A10,Launakeðjur!$B$1:$S$1,0)+$C10-1)),0,INDEX(Launakeðjur!$B$1:$S$60,INT($K10+AO$5)-12,MATCH(Laun!$A10,Launakeðjur!$B$1:$S$1,0)+$C10-1)),1) -> 0 | AP10: =+IF($K10+AP$5>Alm_ealdur,0,IF($K10+AP$5=Alm_ealdur-0.5,0.5,1))*AO10*(1+IF($C10=1,launah,launahkvk))*IF(Kúrfa="já",IF(ISERROR(INDEX(Launakeðjur!$B$1:$S$60,INT($K10+AP$5)-12,MATCH(Laun!$A10,Launakeðjur!$B$1:$S$1,0)+$C10-1)),0,INDEX(Launakeðjur!$B$1:$S$60,INT($K10+AP$5)-12,MATCH(Laun!$A10,Launakeðjur!$B$1:$S$1,0)+$C10-1)),1) -> 0 | AQ10: =+IF($K10+AQ$5>Alm_ealdur,0,IF($K10+AQ$5=Alm_ealdur-0.5,0.5,1))*AP10*(1+IF($C10=1,launah,launahkvk))*IF(Kúrfa="já",IF(ISERROR(INDEX(Launakeðjur!$B$1:$S$60,INT($K10+AQ$5)-12,MATCH(Laun!$A10,Launakeðjur!$B$1:$S$1,0)+$C10-1)),0,INDEX(Launakeðjur!$B$1:$S$60,INT($K10+AQ$5)-12,MATCH(Laun!$A10,Launakeðjur!$B$1:$S$1,0)+$C10-1)),1) -> 0 | AR10: =+IF($K10+AR$5>Alm_ealdur,0,IF($K10+AR$5=Alm_ealdur-0.5,0.5,1))*AQ10*(1+IF($C10=1,launah,launahkvk))*IF(Kúrfa="já",IF(ISERROR(INDEX(Launakeðjur!$B$1:$S$60,INT($K10+AR$5)-12,MATCH(Laun!$A10,Launakeðjur!$B$1:$S$1,0)+$C10-1)),0,INDEX(Launakeðjur!$B$1:$S$60,INT($K10+AR$5)-12,MATCH(Laun!$A10,Launakeðjur!$B$1:$S$1,0)+$C10-1)),1) -> 0 | AS10: =+IF($K10+AS$5>Alm_ealdur,0,IF($K10+AS$5=Alm_ealdur-0.5,0.5,1))*AR10*(1+IF($C10=1,launah,launahkvk))*IF(Kúrfa="já",IF(ISERROR(INDEX(Launakeðjur!$B$1:$S$60,INT($K10+AS$5)-12,MATCH(Laun!$A10,Launakeðjur!$B$1:$S$1,0)+$C10-1)),0,INDEX(Launakeðjur!$B$1:$S$60,INT($K10+AS$5)-12,MATCH(Laun!$A10,Launakeðjur!$B$1:$S$1,0)+$C10-1)),1) -> 0 | AT10: =+IF($K10+AT$5>Alm_ealdur,0,IF($K10+AT$5=Alm_ealdur-0.5,0.5,1))*AS10*(1+IF($C10=1,launah,launahkvk))*IF(Kúrfa="já",IF(ISERROR(INDEX(Launakeðjur!$B$1:$S$60,INT($K10+AT$5)-12,MATCH(Laun!$A10,Launakeðjur!$B$1:$S$1,0)+$C10-1)),0,INDEX(Launakeðjur!$B$1:$S$60,INT($K10+AT$5)-12,MATCH(Laun!$A10,Launakeðjur!$B$1:$S$1,0)+$C10-1)),1) -> 0 | AU10: =+IF($K10+AU$5>Alm_ealdur,0,IF($K10+AU$5=Alm_ealdur-0.5,0.5,1))*AT10*(1+IF($C10=1,launah,launahkvk))*IF(Kúrfa="já",IF(ISERROR(INDEX(Launakeðjur!$B$1:$S$60,INT($K10+AU$5)-12,MATCH(Laun!$A10,Launakeðjur!$B$1:$S$1,0)+$C10-1)),0,INDEX(Launakeðjur!$B$1:$S$60,INT($K10+AU$5)-12,MATCH(Laun!$A10,Launakeðjur!$B$1:$S$1,0)+$C10-1)),1) -> 0 | AV10: =+IF($K10+AV$5>Alm_ealdur,0,IF($K10+AV$5=Alm_ealdur-0.5,0.5,1))*AU10*(1+IF($C10=1,launah,launahkvk))*IF(Kúrfa="já",IF(ISERROR(INDEX(Launakeðjur!$B$1:$S$60,INT($K10+AV$5)-12,MATCH(Laun!$A10,Launakeðjur!$B$1:$S$1,0)+$C10-1)),0,INDEX(Launakeðjur!$B$1:$S$60,INT($K10+AV$5)-12,MATCH(Laun!$A10,Launakeðjur!$B$1:$S$1,0)+$C10-1)),1) -> 0 | AW10: =+IF($K10+AW$5>Alm_ealdur,0,IF($K10+AW$5=Alm_ealdur-0.5,0.5,1))*AV10*(1+IF($C10=1,launah,launahkvk))*IF(Kúrfa="já",IF(ISERROR(INDEX(Launakeðjur!$B$1:$S$60,INT($K10+AW$5)-12,MATCH(Laun!$A10,Launakeðjur!$B$1:$S$1,0)+$C10-1)),0,INDEX(Launakeðjur!$B$1:$S$60,INT($K10+AW$5)-12,MATCH(Laun!$A10,Launakeðjur!$B$1:$S$1,0)+$C10-1)),1) -> 0 | AX10: =+IF($K10+AX$5>Alm_ealdur,0,IF($K10+AX$5=Alm_ealdur-0.5,0.5,1))*AW10*(1+IF($C10=1,launah,launahkvk))*IF(Kúrfa="já",IF(ISERROR(INDEX(Launakeðjur!$B$1:$S$60,INT($K10+AX$5)-12,MATCH(Laun!$A10,Launakeðjur!$B$1:$S$1,0)+$C10-1)),0,INDEX(Launakeðjur!$B$1:$S$60,INT($K10+AX$5)-12,MATCH(Laun!$A10,Launakeðjur!$B$1:$S$1,0)+$C10-1)),1) -> 0 | AY10: =+IF($K10+AY$5>Alm_ealdur,0,IF($K10+AY$5=Alm_ealdur-0.5,0.5,1))*AX10*(1+IF($C10=1,launah,launahkvk))*IF(Kúrfa="já",IF(ISERROR(INDEX(Launakeðjur!$B$1:$S$60,INT($K10+AY$5)-12,MATCH(Laun!$A10,Launakeðjur!$B$1:$S$1,0)+$C10-1)),0,INDEX(Launakeðjur!$B$1:$S$60,INT($K10+AY$5)-12,MATCH(Laun!$A10,Launakeðjur!$B$1:$S$1,0)+$C10-1)),1) -> 0 | AZ10: =+IF($K10+AZ$5>Alm_ealdur,0,IF($K10+AZ$5=Alm_ealdur-0.5,0.5,1))*AY10*(1+IF($C10=1,launah,launahkvk))*IF(Kúrfa="já",IF(ISERROR(INDEX(Launakeðjur!$B$1:$S$60,INT($K10+AZ$5)-12,MATCH(Laun!$A10,Launakeðjur!$B$1:$S$1,0)+$C10-1)),0,INDEX(Launakeðjur!$B$1:$S$60,INT($K10+AZ$5)-12,MATCH(Laun!$A10,Launakeðjur!$B$1:$S$1,0)+$C10-1)),1) -> 0 | BA10: =+IF($K10+BA$5>Alm_ealdur,0,IF($K10+BA$5=Alm_ealdur-0.5,0.5,1))*AZ10*(1+IF($C10=1,launah,launahkvk))*IF(Kúrfa="já",IF(ISERROR(INDEX(Launakeðjur!$B$1:$S$60,INT($K10+BA$5)-12,MATCH(Laun!$A10,Launakeðjur!$B$1:$S$1,0)+$C10-1)),0,INDEX(Launakeðjur!$B$1:$S$60,INT($K10+BA$5)-12,MATCH(Laun!$A10,Launakeðjur!$B$1:$S$1,0)+$C10-1)),1) -> 0 | BB10: =+IF($K10+BB$5>Alm_ealdur,0,IF($K10+BB$5=Alm_ealdur-0.5,0.5,1))*BA10*(1+IF($C10=1,launah,launahkvk))*IF(Kúrfa="já",IF(ISERROR(INDEX(Launakeðjur!$B$1:$S$60,INT($K10+BB$5)-12,MATCH(Laun!$A10,Launakeðjur!$B$1:$S$1,0)+$C10-1)),0,INDEX(Launakeðjur!$B$1:$S$60,INT($K10+BB$5)-12,MATCH(Laun!$A10,Launakeðjur!$B$1:$S$1,0)+$C10-1)),1) -> 0 | BC10: =+IF($K10+BC$5>Alm_ealdur,0,IF($K10+BC$5=Alm_ealdur-0.5,0.5,1))*BB10*(1+IF($C10=1,launah,launahkvk))*IF(Kúrfa="já",IF(ISERROR(INDEX(Launakeðjur!$B$1:$S$60,INT($K10+BC$5)-12,MATCH(Laun!$A10,Launakeðjur!$B$1:$S$1,0)+$C10-1)),0,INDEX(Launakeðjur!$B$1:$S$60,INT($K10+BC$5)-12,MATCH(Laun!$A10,Launakeðjur!$B$1:$S$1,0)+$C10-1)),1) -> 0 | BD10: =+IF($K10+BD$5>Alm_ealdur,0,IF($K10+BD$5=Alm_ealdur-0.5,0.5,1))*BC10*(1+IF($C10=1,launah,launahkvk))*IF(Kúrfa="já",IF(ISERROR(INDEX(Launakeðjur!$B$1:$S$60,INT($K10+BD$5)-12,MATCH(Laun!$A10,Launakeðjur!$B$1:$S$1,0)+$C10-1)),0,INDEX(Launakeðjur!$B$1:$S$60,INT($K10+BD$5)-12,MATCH(Laun!$A10,Launakeðjur!$B$1:$S$1,0)+$C10-1)),1) -> 0 | BE10: =+IF($K10+BE$5>Alm_ealdur,0,IF($K10+BE$5=Alm_ealdur-0.5,0.5,1))*BD10*(1+IF($C10=1,launah,launahkvk))*IF(Kúrfa="já",IF(ISERROR(INDEX(Launakeðjur!$B$1:$S$60,INT($K10+BE$5)-12,MATCH(Laun!$A10,Launakeðjur!$B$1:$S$1,0)+$C10-1)),0,INDEX(Launakeðjur!$B$1:$S$60,INT($K10+BE$5)-12,MATCH(Laun!$A10,Launakeðjur!$B$1:$S$1,0)+$C10-1)),1) -> 0 | BF10: =+IF($K10+BF$5>Alm_ealdur,0,IF($K10+BF$5=Alm_ealdur-0.5,0.5,1))*BE10*(1+IF($C10=1,launah,launahkvk))*IF(Kúrfa="já",IF(ISERROR(INDEX(Launakeðjur!$B$1:$S$60,INT($K10+BF$5)-12,MATCH(Laun!$A10,Launakeðjur!$B$1:$S$1,0)+$C10-1)),0,INDEX(Launakeðjur!$B$1:$S$60,INT($K10+BF$5)-12,MATCH(Laun!$A10,Launakeðjur!$B$1:$S$1,0)+$C10-1)),1) -> 0 | BG10: =+IF($K10+BG$5>Alm_ealdur,0,IF($K10+BG$5=Alm_ealdur-0.5,0.5,1))*BF10*(1+IF($C10=1,launah,launahkvk))*IF(Kúrfa="já",IF(ISERROR(INDEX(Launakeðjur!$B$1:$S$60,INT($K10+BG$5)-12,MATCH(Laun!$A10,Launakeðjur!$B$1:$S$1,0)+$C10-1)),0,INDEX(Launakeðjur!$B$1:$S$60,INT($K10+BG$5)-12,MATCH(Laun!$A10,Launakeðjur!$B$1:$S$1,0)+$C10-1)),1) -> 0 | BH10: =+IF($K10+BH$5>Alm_ealdur,0,IF($K10+BH$5=Alm_ealdur-0.5,0.5,1))*BG10*(1+IF($C10=1,launah,launahkvk))*IF(Kúrfa="já",IF(ISERROR(INDEX(Launakeðjur!$B$1:$S$60,INT($K10+BH$5)-12,MATCH(Laun!$A10,Launakeðjur!$B$1:$S$1,0)+$C10-1)),0,INDEX(Launakeðjur!$B$1:$S$60,INT($K10+BH$5)-12,MATCH(Laun!$A10,Launakeðjur!$B$1:$S$1,0)+$C10-1)),1) -> 0 | BI10: =+IF($K10+BI$5>Alm_ealdur,0,IF($K10+BI$5=Alm_ealdur-0.5,0.5,1))*BH10*(1+IF($C10=1,launah,launahkvk))*IF(Kúrfa="já",IF(ISERROR(INDEX(Launakeðjur!$B$1:$S$60,INT($K10+BI$5)-12,MATCH(Laun!$A10,Launakeðjur!$B$1:$S$1,0)+$C10-1)),0,INDEX(Launakeðjur!$B$1:$S$60,INT($K10+BI$5)-12,MATCH(Laun!$A10,Launakeðjur!$B$1:$S$1,0)+$C10-1)),1) -> 0 | BJ10: =+IF($K10+BJ$5>Alm_ealdur,0,IF($K10+BJ$5=Alm_ealdur-0.5,0.5,1))*BI10*(1+IF($C10=1,launah,launahkvk))*IF(Kúrfa="já",IF(ISERROR(INDEX(Launakeðjur!$B$1:$S$60,INT($K10+BJ$5)-12,MATCH(Laun!$A10,Launakeðjur!$B$1:$S$1,0)+$C10-1)),0,INDEX(Launakeðjur!$B$1:$S$60,INT($K10+BJ$5)-12,MATCH(Laun!$A10,Launakeðjur!$B$1:$S$1,0)+$C10-1)),1) -> 0 | BK10: =+IF($K10+BK$5>Alm_ealdur,0,IF($K10+BK$5=Alm_ealdur-0.5,0.5,1))*BJ10*(1+IF($C10=1,launah,launahkvk))*IF(Kúrfa="já",IF(ISERROR(INDEX(Launakeðjur!$B$1:$S$60,INT($K10+BK$5)-12,MATCH(Laun!$A10,Launakeðjur!$B$1:$S$1,0)+$C10-1)),0,INDEX(Launakeðjur!$B$1:$S$60,INT($K10+BK$5)-12,MATCH(Laun!$A10,Launakeðjur!$B$1:$S$1,0)+$C10-1)),1) -> 0 | BL10: =+IF($K10+BL$5>Alm_ealdur,0,IF($K10+BL$5=Alm_ealdur-0.5,0.5,1))*BK10*(1+IF($C10=1,launah,launahkvk))*IF(Kúrfa="já",IF(ISERROR(INDEX(Launakeðjur!$B$1:$S$60,INT($K10+BL$5)-12,MATCH(Laun!$A10,Launakeðjur!$B$1:$S$1,0)+$C10-1)),0,INDEX(Launakeðjur!$B$1:$S$60,INT($K10+BL$5)-12,MATCH(Laun!$A10,Launakeðjur!$B$1:$S$1,0)+$C10-1)),1) -> 0 | BM10: =+IF($K10+BM$5>Alm_ealdur,0,IF($K10+BM$5=Alm_ealdur-0.5,0.5,1))*BL10*(1+IF($C10=1,launah,launahkvk))*IF(Kúrfa="já",IF(ISERROR(INDEX(Launakeðjur!$B$1:$S$60,INT($K10+BM$5)-12,MATCH(Laun!$A10,Launakeðjur!$B$1:$S$1,0)+$C10-1)),0,INDEX(Launakeðjur!$B$1:$S$60,INT($K10+BM$5)-12,MATCH(Laun!$A10,Launakeðjur!$B$1:$S$1,0)+$C10-1)),1) -> 0 | BN10: =+IF($K10+BN$5>Alm_ealdur,0,IF($K10+BN$5=Alm_ealdur-0.5,0.5,1))*BM10*(1+IF($C10=1,launah,launahkvk))*IF(Kúrfa="já",IF(ISERROR(INDEX(Launakeðjur!$B$1:$S$60,INT($K10+BN$5)-12,MATCH(Laun!$A10,Launakeðjur!$B$1:$S$1,0)+$C10-1)),0,INDEX(Launakeðjur!$B$1:$S$60,INT($K10+BN$5)-12,MATCH(Laun!$A10,Launakeðjur!$B$1:$S$1,0)+$C10-1)),1) -> 0 | BO10: =+IF($K10+BO$5>Alm_ealdur,0,IF($K10+BO$5=Alm_ealdur-0.5,0.5,1))*BN10*(1+IF($C10=1,launah,launahkvk))*IF(Kúrfa="já",IF(ISERROR(INDEX(Launakeðjur!$B$1:$S$60,INT($K10+BO$5)-12,MATCH(Laun!$A10,Launakeðjur!$B$1:$S$1,0)+$C10-1)),0,INDEX(Launakeðjur!$B$1:$S$60,INT($K10+BO$5)-12,MATCH(Laun!$A10,Launakeðjur!$B$1:$S$1,0)+$C10-1)),1) -> 0 | BP10: =+IF($K10+BP$5>Alm_ealdur,0,IF($K10+BP$5=Alm_ealdur-0.5,0.5,1))*BO10*(1+IF($C10=1,launah,launahkvk))*IF(Kúrfa="já",IF(ISERROR(INDEX(Launakeðjur!$B$1:$S$60,INT($K10+BP$5)-12,MATCH(Laun!$A10,Launakeðjur!$B$1:$S$1,0)+$C10-1)),0,INDEX(Launakeðjur!$B$1:$S$60,INT($K10+BP$5)-12,MATCH(Laun!$A10,Launakeðjur!$B$1:$S$1,0)+$C10-1)),1) -> 0 | BQ10: =+IF($K10+BQ$5>Alm_ealdur,0,IF($K10+BQ$5=Alm_ealdur-0.5,0.5,1))*BP10*(1+IF($C10=1,launah,launahkvk))*IF(Kúrfa="já",IF(ISERROR(INDEX(Launakeðjur!$B$1:$S$60,INT($K10+BQ$5)-12,MATCH(Laun!$A10,Launakeðjur!$B$1:$S$1,0)+$C10-1)),0,INDEX(Launakeðjur!$B$1:$S$60,INT($K10+BQ$5)-12,MATCH(Laun!$A10,Launakeðjur!$B$1:$S$1,0)+$C10-1)),1) -> 0 | BR10: =+IF($K10+BR$5>Alm_ealdur,0,IF($K10+BR$5=Alm_ealdur-0.5,0.5,1))*BQ10*(1+IF($C10=1,launah,launahkvk))*IF(Kúrfa="já",IF(ISERROR(INDEX(Launakeðjur!$B$1:$S$60,INT($K10+BR$5)-12,MATCH(Laun!$A10,Launakeðjur!$B$1:$S$1,0)+$C10-1)),0,INDEX(Launakeðjur!$B$1:$S$60,INT($K10+BR$5)-12,MATCH(Laun!$A10,Launakeðjur!$B$1:$S$1,0)+$C10-1)),1) -> 0 | BS10: =+IF($K10+BS$5>Alm_ealdur,0,IF($K10+BS$5=Alm_ealdur-0.5,0.5,1))*BR10*(1+IF($C10=1,launah,launahkvk))*IF(Kúrfa="já",IF(ISERROR(INDEX(Launakeðjur!$B$1:$S$60,INT($K10+BS$5)-12,MATCH(Laun!$A10,Launakeðjur!$B$1:$S$1,0)+$C10-1)),0,INDEX(Launakeðjur!$B$1:$S$60,INT($K10+BS$5)-12,MATCH(Laun!$A10,Launakeðjur!$B$1:$S$1,0)+$C10-1)),1) -> 0 | BT10: =+IF($K10+BT$5>Alm_ealdur,0,IF($K10+BT$5=Alm_ealdur-0.5,0.5,1))*BS10*(1+IF($C10=1,launah,launahkvk))*IF(Kúrfa="já",IF(ISERROR(INDEX(Launakeðjur!$B$1:$S$60,INT($K10+BT$5)-12,MATCH(Laun!$A10,Launakeðjur!$B$1:$S$1,0)+$C10-1)),0,INDEX(Launakeðjur!$B$1:$S$60,INT($K10+BT$5)-12,MATCH(Laun!$A10,Launakeðjur!$B$1:$S$1,0)+$C10-1)),1) -> 0 | BU10: =+IF($K10+BU$5>Alm_ealdur,0,IF($K10+BU$5=Alm_ealdur-0.5,0.5,1))*BT10*(1+IF($C10=1,launah,launahkvk))*IF(Kúrfa="já",IF(ISERROR(INDEX(Launakeðjur!$B$1:$S$60,INT($K10+BU$5)-12,MATCH(Laun!$A10,Launakeðjur!$B$1:$S$1,0)+$C10-1)),0,INDEX(Launakeðjur!$B$1:$S$60,INT($K10+BU$5)-12,MATCH(Laun!$A10,Launakeðjur!$B$1:$S$1,0)+$C10-1)),1) -> 0 | BV10: =+IF($K10+BV$5>Alm_ealdur,0,IF($K10+BV$5=Alm_ealdur-0.5,0.5,1))*BU10*(1+IF($C10=1,launah,launahkvk))*IF(Kúrfa="já",IF(ISERROR(INDEX(Launakeðjur!$B$1:$S$60,INT($K10+BV$5)-12,MATCH(Laun!$A10,Launakeðjur!$B$1:$S$1,0)+$C10-1)),0,INDEX(Launakeðjur!$B$1:$S$60,INT($K10+BV$5)-12,MATCH(Laun!$A10,Launakeðjur!$B$1:$S$1,0)+$C10-1)),1) -> 0 | BW10: =+IF($K10+BW$5>Alm_ealdur,0,IF($K10+BW$5=Alm_ealdur-0.5,0.5,1))*BV10*(1+IF($C10=1,launah,launahkvk))*IF(Kúrfa="já",IF(ISERROR(INDEX(Launakeðjur!$B$1:$S$60,INT($K10+BW$5)-12,MATCH(Laun!$A10,Launakeðjur!$B$1:$S$1,0)+$C10-1)),0,INDEX(Launakeðjur!$B$1:$S$60,INT($K10+BW$5)-12,MATCH(Laun!$A10,Launakeðjur!$B$1:$S$1,0)+$C10-1)),1) -> 0 | BX10: =+IF($K10+BX$5>Alm_ealdur,0,IF($K10+BX$5=Alm_ealdur-0.5,0.5,1))*BW10*(1+IF($C10=1,launah,launahkvk))*IF(Kúrfa="já",IF(ISERROR(INDEX(Launakeðjur!$B$1:$S$60,INT($K10+BX$5)-12,MATCH(Laun!$A10,Launakeðjur!$B$1:$S$1,0)+$C10-1)),0,INDEX(Launakeðjur!$B$1:$S$60,INT($K10+BX$5)-12,MATCH(Laun!$A10,Launakeðjur!$B$1:$S$1,0)+$C10-1)),1) -> 0 | BZ10: 3297527486
A11: Alm | B11: Alm_1_1950_0 | C11: =+'Access gögn'!D7 -> 1 | D11: =+'Access gögn'!E7 -> 1 | E11: =+'Access gögn'!F7 -> 1950 | F11: =+'Access gögn'!G7 -> 0 | G11: =+'Access gögn'!H7/1.21245 -> 73.40508887 | H11: =+'Access gögn'!I7 -> 1841968.371 | I11: =+'Access gögn'!J7 -> 0 | J11: =+'Access gögn'!K7 -> 752422.6164 | K11: 65.5 | L11: =+VLOOKUP(B11,'Mismunandi laun'!$F$3:$J$112,'Mismunandi laun'!$A$3,FALSE)*1.11 -> 9038503.56 | M11: 9038503.56 | N11: 7785972.451 | O11: =IF(Kúrfa="já",L11*INDEX(Launakeðjur!$Y$1:$AJ$57,Laun!K11-13.5,MATCH(Laun!A11,Launakeðjur!$Y$1:$AI$1,0)+Laun!C11-1),L11*(1+IF(C5=1,launah,launahkvk))^(55-K11)) -> 8804230.372 | P11: =+IF($K11+P$5>Alm_ealdur,0,IF(K11=Alm_ealdur-0.5,0.5,1))*L11*(1+IF(C11=1,launah,launahkvk))*IF(Kúrfa="Já",IF(ISERROR(INDEX(Launakeðjur!$B$1:$S$60,INT($K11+P$5)-12,MATCH(Laun!$A11,Launakeðjur!$B$1:$S$1,0)+C11-1)),0,INDEX(Launakeðjur!$B$1:$S$60,INT($K11+P$5)-12,MATCH(Laun!$A11,Launakeðjur!$B$1:$S$1,0)+C11-1)),1) -> 8827892.914 | Q11: =+IF($K11+Q$5>Alm_ealdur,0,IF($K11+Q$5=Alm_ealdur-0.5,0.5,1))*P11*(1+IF($C11=1,launah,launahkvk))*IF(Kúrfa="já",IF(ISERROR(INDEX(Launakeðjur!$B$1:$S$60,INT($K11+Q$5)-12,MATCH(Laun!$A11,Launakeðjur!$B$1:$S$1,0)+$C11-1)),0,INDEX(Launakeðjur!$B$1:$S$60,INT($K11+Q$5)-12,MATCH(Laun!$A11,Launakeðjur!$B$1:$S$1,0)+$C11-1)),1) -> 8576552.427 | R11: =+IF($K11+R$5>Alm_ealdur,0,IF($K11+R$5=Alm_ealdur-0.5,0.5,1))*Q11*(1+IF($C11=1,launah,launahkvk))*IF(Kúrfa="já",IF(ISERROR(INDEX(Launakeðjur!$B$1:$S$60,INT($K11+R$5)-12,MATCH(Laun!$A11,Launakeðjur!$B$1:$S$1,0)+$C11-1)),0,INDEX(Launakeðjur!$B$1:$S$60,INT($K11+R$5)-12,MATCH(Laun!$A11,Launakeðjur!$B$1:$S$1,0)+$C11-1)),1) -> 8282395.826 | S11: =+IF($K11+S$5>Alm_ealdur,0,IF($K11+S$5=Alm_ealdur-0.5,0.5,1))*R11*(1+IF($C11=1,launah,launahkvk))*IF(Kúrfa="já",IF(ISERROR(INDEX(Launakeðjur!$B$1:$S$60,INT($K11+S$5)-12,MATCH(Laun!$A11,Launakeðjur!$B$1:$S$1,0)+$C11-1)),0,INDEX(Launakeðjur!$B$1:$S$60,INT($K11+S$5)-12,MATCH(Laun!$A11,Launakeðjur!$B$1:$S$1,0)+$C11-1)),1) -> 7943276.892 | T11: =+IF($K11+T$5>Alm_ealdur,0,IF($K11+T$5=Alm_ealdur-0.5,0.5,1))*S11*(1+IF($C11=1,launah,launahkvk))*IF(Kúrfa="já",IF(ISERROR(INDEX(Launakeðjur!$B$1:$S$60,INT($K11+T$5)-12,MATCH(Laun!$A11,Launakeðjur!$B$1:$S$1,0)+$C11-1)),0,INDEX(Launakeðjur!$B$1:$S$60,INT($K11+T$5)-12,MATCH(Laun!$A11,Launakeðjur!$B$1:$S$1,0)+$C11-1)),1) -> 7556988.153 | U11: =+IF($K11+U$5>Alm_ealdur,0,IF($K11+U$5=Alm_ealdur-0.5,0.5,1))*T11*(1+IF($C11=1,launah,launahkvk))*IF(Kúrfa="já",IF(ISERROR(INDEX(Launakeðjur!$B$1:$S$60,INT($K11+U$5)-12,MATCH(Laun!$A11,Launakeðjur!$B$1:$S$1,0)+$C11-1)),0,INDEX(Launakeðjur!$B$1:$S$60,INT($K11+U$5)-12,MATCH(Laun!$A11,Launakeðjur!$B$1:$S$1,0)+$C11-1)),1) -> 7632558.034 | V11: =+IF($K11+V$5>Alm_ealdur,0,IF($K11+V$5=Alm_ealdur-0.5,0.5,1))*U11*(1+IF($C11=1,launah,launahkvk))*IF(Kúrfa="já",IF(ISERROR(INDEX(Launakeðjur!$B$1:$S$60,INT($K11+V$5)-12,MATCH(Laun!$A11,Launakeðjur!$B$1:$S$1,0)+$C11-1)),0,INDEX(Launakeðjur!$B$1:$S$60,INT($K11+V$5)-12,MATCH(Laun!$A11,Launakeðjur!$B$1:$S$1,0)+$C11-1)),1) -> 7708883.614 | W11: =+IF($K11+W$5>Alm_ealdur,0,IF($K11+W$5=Alm_ealdur-0.5,0.5,1))*V11*(1+IF($C11=1,launah,launahkvk))*IF(Kúrfa="já",IF(ISERROR(INDEX(Launakeðjur!$B$1:$S$60,INT($K11+W$5)-12,MATCH(Laun!$A11,Launakeðjur!$B$1:$S$1,0)+$C11-1)),0,INDEX(Launakeðjur!$B$1:$S$60,INT($K11+W$5)-12,MATCH(Laun!$A11,Launakeðjur!$B$1:$S$1,0)+$C11-1)),1) -> 3892986.225 | X11: =+IF($K11+X$5>Alm_ealdur,0,IF($K11+X$5=Alm_ealdur-0.5,0.5,1))*W11*(1+IF($C11=1,launah,launahkvk))*IF(Kúrfa="já",IF(ISERROR(INDEX(Launakeðjur!$B$1:$S$60,INT($K11+X$5)-12,MATCH(Laun!$A11,Launakeðjur!$B$1:$S$1,0)+$C11-1)),0,INDEX(Launakeðjur!$B$1:$S$60,INT($K11+X$5)-12,MATCH(Laun!$A11,Launakeðjur!$B$1:$S$1,0)+$C11-1)),1) -> 0 | Y11: =+IF($K11+Y$5>Alm_ealdur,0,IF($K11+Y$5=Alm_ealdur-0.5,0.5,1))*X11*(1+IF($C11=1,launah,launahkvk))*IF(Kúrfa="já",IF(ISERROR(INDEX(Launakeðjur!$B$1:$S$60,INT($K11+Y$5)-12,MATCH(Laun!$A11,Launakeðjur!$B$1:$S$1,0)+$C11-1)),0,INDEX(Launakeðjur!$B$1:$S$60,INT($K11+Y$5)-12,MATCH(Laun!$A11,Launakeðjur!$B$1:$S$1,0)+$C11-1)),1) -> 0 | Z11: =+IF($K11+Z$5>Alm_ealdur,0,IF($K11+Z$5=Alm_ealdur-0.5,0.5,1))*Y11*(1+IF($C11=1,launah,launahkvk))*IF(Kúrfa="já",IF(ISERROR(INDEX(Launakeðjur!$B$1:$S$60,INT($K11+Z$5)-12,MATCH(Laun!$A11,Launakeðjur!$B$1:$S$1,0)+$C11-1)),0,INDEX(Launakeðjur!$B$1:$S$60,INT($K11+Z$5)-12,MATCH(Laun!$A11,Launakeðjur!$B$1:$S$1,0)+$C11-1)),1) -> 0 | AA11: =+IF($K11+AA$5>Alm_ealdur,0,IF($K11+AA$5=Alm_ealdur-0.5,0.5,1))*Z11*(1+IF($C11=1,launah,launahkvk))*IF(Kúrfa="já",IF(ISERROR(INDEX(Launakeðjur!$B$1:$S$60,INT($K11+AA$5)-12,MATCH(Laun!$A11,Launakeðjur!$B$1:$S$1,0)+$C11-1)),0,INDEX(Launakeðjur!$B$1:$S$60,INT($K11+AA$5)-12,MATCH(Laun!$A11,Launakeðjur!$B$1:$S$1,0)+$C11-1)),1) -> 0 | AB11: =+IF($K11+AB$5>Alm_ealdur,0,IF($K11+AB$5=Alm_ealdur-0.5,0.5,1))*AA11*(1+IF($C11=1,launah,launahkvk))*IF(Kúrfa="já",IF(ISERROR(INDEX(Launakeðjur!$B$1:$S$60,INT($K11+AB$5)-12,MATCH(Laun!$A11,Launakeðjur!$B$1:$S$1,0)+$C11-1)),0,INDEX(Launakeðjur!$B$1:$S$60,INT($K11+AB$5)-12,MATCH(Laun!$A11,Launakeðjur!$B$1:$S$1,0)+$C11-1)),1) -> 0 | AC11: =+IF($K11+AC$5>Alm_ealdur,0,IF($K11+AC$5=Alm_ealdur-0.5,0.5,1))*AB11*(1+IF($C11=1,launah,launahkvk))*IF(Kúrfa="já",IF(ISERROR(INDEX(Launakeðjur!$B$1:$S$60,INT($K11+AC$5)-12,MATCH(Laun!$A11,Launakeðjur!$B$1:$S$1,0)+$C11-1)),0,INDEX(Launakeðjur!$B$1:$S$60,INT($K11+AC$5)-12,MATCH(Laun!$A11,Launakeðjur!$B$1:$S$1,0)+$C11-1)),1) -> 0 | AD11: =+IF($K11+AD$5>Alm_ealdur,0,IF($K11+AD$5=Alm_ealdur-0.5,0.5,1))*AC11*(1+IF($C11=1,launah,launahkvk))*IF(Kúrfa="já",IF(ISERROR(INDEX(Launakeðjur!$B$1:$S$60,INT($K11+AD$5)-12,MATCH(Laun!$A11,Launakeðjur!$B$1:$S$1,0)+$C11-1)),0,INDEX(Launakeðjur!$B$1:$S$60,INT($K11+AD$5)-12,MATCH(Laun!$A11,Launakeðjur!$B$1:$S$1,0)+$C11-1)),1) -> 0 | AE11: =+IF($K11+AE$5>Alm_ealdur,0,IF($K11+AE$5=Alm_ealdur-0.5,0.5,1))*AD11*(1+IF($C11=1,launah,launahkvk))*IF(Kúrfa="já",IF(ISERROR(INDEX(Launakeðjur!$B$1:$S$60,INT($K11+AE$5)-12,MATCH(Laun!$A11,Launakeðjur!$B$1:$S$1,0)+$C11-1)),0,INDEX(Launakeðjur!$B$1:$S$60,INT($K11+AE$5)-12,MATCH(Laun!$A11,Launakeðjur!$B$1:$S$1,0)+$C11-1)),1) -> 0 | AF11: =+IF($K11+AF$5>Alm_ealdur,0,IF($K11+AF$5=Alm_ealdur-0.5,0.5,1))*AE11*(1+IF($C11=1,launah,launahkvk))*IF(Kúrfa="já",IF(ISERROR(INDEX(Launakeðjur!$B$1:$S$60,INT($K11+AF$5)-12,MATCH(Laun!$A11,Launakeðjur!$B$1:$S$1,0)+$C11-1)),0,INDEX(Launakeðjur!$B$1:$S$60,INT($K11+AF$5)-12,MATCH(Laun!$A11,Launakeðjur!$B$1:$S$1,0)+$C11-1)),1) -> 0 | AG11: =+IF($K11+AG$5>Alm_ealdur,0,IF($K11+AG$5=Alm_ealdur-0.5,0.5,1))*AF11*(1+IF($C11=1,launah,launahkvk))*IF(Kúrfa="já",IF(ISERROR(INDEX(Launakeðjur!$B$1:$S$60,INT($K11+AG$5)-12,MATCH(Laun!$A11,Launakeðjur!$B$1:$S$1,0)+$C11-1)),0,INDEX(Launakeðjur!$B$1:$S$60,INT($K11+AG$5)-12,MATCH(Laun!$A11,Launakeðjur!$B$1:$S$1,0)+$C11-1)),1) -> 0 | AH11: =+IF($K11+AH$5>Alm_ealdur,0,IF($K11+AH$5=Alm_ealdur-0.5,0.5,1))*AG11*(1+IF($C11=1,launah,launahkvk))*IF(Kúrfa="já",IF(ISERROR(INDEX(Launakeðjur!$B$1:$S$60,INT($K11+AH$5)-12,MATCH(Laun!$A11,Launakeðjur!$B$1:$S$1,0)+$C11-1)),0,INDEX(Launakeðjur!$B$1:$S$60,INT($K11+AH$5)-12,MATCH(Laun!$A11,Launakeðjur!$B$1:$S$1,0)+$C11-1)),1) -> 0 | AI11: =+IF($K11+AI$5>Alm_ealdur,0,IF($K11+AI$5=Alm_ealdur-0.5,0.5,1))*AH11*(1+IF($C11=1,launah,launahkvk))*IF(Kúrfa="já",IF(ISERROR(INDEX(Launakeðjur!$B$1:$S$60,INT($K11+AI$5)-12,MATCH(Laun!$A11,Launakeðjur!$B$1:$S$1,0)+$C11-1)),0,INDEX(Launakeðjur!$B$1:$S$60,INT($K11+AI$5)-12,MATCH(Laun!$A11,Launakeðjur!$B$1:$S$1,0)+$C11-1)),1) -> 0 | AJ11: =+IF($K11+AJ$5>Alm_ealdur,0,IF($K11+AJ$5=Alm_ealdur-0.5,0.5,1))*AI11*(1+IF($C11=1,launah,launahkvk))*IF(Kúrfa="já",IF(ISERROR(INDEX(Launakeðjur!$B$1:$S$60,INT($K11+AJ$5)-12,MATCH(Laun!$A11,Launakeðjur!$B$1:$S$1,0)+$C11-1)),0,INDEX(Launakeðjur!$B$1:$S$60,INT($K11+AJ$5)-12,MATCH(Laun!$A11,Launakeðjur!$B$1:$S$1,0)+$C11-1)),1) -> 0 | AK11: =+IF($K11+AK$5>Alm_ealdur,0,IF($K11+AK$5=Alm_ealdur-0.5,0.5,1))*AJ11*(1+IF($C11=1,launah,launahkvk))*IF(Kúrfa="já",IF(ISERROR(INDEX(Launakeðjur!$B$1:$S$60,INT($K11+AK$5)-12,MATCH(Laun!$A11,Launakeðjur!$B$1:$S$1,0)+$C11-1)),0,INDEX(Launakeðjur!$B$1:$S$60,INT($K11+AK$5)-12,MATCH(Laun!$A11,Launakeðjur!$B$1:$S$1,0)+$C11-1)),1) -> 0 | AL11: =+IF($K11+AL$5>Alm_ealdur,0,IF($K11+AL$5=Alm_ealdur-0.5,0.5,1))*AK11*(1+IF($C11=1,launah,launahkvk))*IF(Kúrfa="já",IF(ISERROR(INDEX(Launakeðjur!$B$1:$S$60,INT($K11+AL$5)-12,MATCH(Laun!$A11,Launakeðjur!$B$1:$S$1,0)+$C11-1)),0,INDEX(Launakeðjur!$B$1:$S$60,INT($K11+AL$5)-12,MATCH(Laun!$A11,Launakeðjur!$B$1:$S$1,0)+$C11-1)),1) -> 0 | AM11: =+IF($K11+AM$5>Alm_ealdur,0,IF($K11+AM$5=Alm_ealdur-0.5,0.5,1))*AL11*(1+IF($C11=1,launah,launahkvk))*IF(Kúrfa="já",IF(ISERROR(INDEX(Launakeðjur!$B$1:$S$60,INT($K11+AM$5)-12,MATCH(Laun!$A11,Launakeðjur!$B$1:$S$1,0)+$C11-1)),0,INDEX(Launakeðjur!$B$1:$S$60,INT($K11+AM$5)-12,MATCH(Laun!$A11,Launakeðjur!$B$1:$S$1,0)+$C11-1)),1) -> 0 | AN11: =+IF($K11+AN$5>Alm_ealdur,0,IF($K11+AN$5=Alm_ealdur-0.5,0.5,1))*AM11*(1+IF($C11=1,launah,launahkvk))*IF(Kúrfa="já",IF(ISERROR(INDEX(Launakeðjur!$B$1:$S$60,INT($K11+AN$5)-12,MATCH(Laun!$A11,Launakeðjur!$B$1:$S$1,0)+$C11-1)),0,INDEX(Launakeðjur!$B$1:$S$60,INT($K11+AN$5)-12,MATCH(Laun!$A11,Launakeðjur!$B$1:$S$1,0)+$C11-1)),1) -> 0 | AO11: =+IF($K11+AO$5>Alm_ealdur,0,IF($K11+AO$5=Alm_ealdur-0.5,0.5,1))*AN11*(1+IF($C11=1,launah,launahkvk))*IF(Kúrfa="já",IF(ISERROR(INDEX(Launakeðjur!$B$1:$S$60,INT($K11+AO$5)-12,MATCH(Laun!$A11,Launakeðjur!$B$1:$S$1,0)+$C11-1)),0,INDEX(Launakeðjur!$B$1:$S$60,INT($K11+AO$5)-12,MATCH(Laun!$A11,Launakeðjur!$B$1:$S$1,0)+$C11-1)),1) -> 0 | AP11: =+IF($K11+AP$5>Alm_ealdur,0,IF($K11+AP$5=Alm_ealdur-0.5,0.5,1))*AO11*(1+IF($C11=1,launah,launahkvk))*IF(Kúrfa="já",IF(ISERROR(INDEX(Launakeðjur!$B$1:$S$60,INT($K11+AP$5)-12,MATCH(Laun!$A11,Launakeðjur!$B$1:$S$1,0)+$C11-1)),0,INDEX(Launakeðjur!$B$1:$S$60,INT($K11+AP$5)-12,MATCH(Laun!$A11,Launakeðjur!$B$1:$S$1,0)+$C11-1)),1) -> 0 | AQ11: =+IF($K11+AQ$5>Alm_ealdur,0,IF($K11+AQ$5=Alm_ealdur-0.5,0.5,1))*AP11*(1+IF($C11=1,launah,launahkvk))*IF(Kúrfa="já",IF(ISERROR(INDEX(Launakeðjur!$B$1:$S$60,INT($K11+AQ$5)-12,MATCH(Laun!$A11,Launakeðjur!$B$1:$S$1,0)+$C11-1)),0,INDEX(Launakeðjur!$B$1:$S$60,INT($K11+AQ$5)-12,MATCH(Laun!$A11,Launakeðjur!$B$1:$S$1,0)+$C11-1)),1) -> 0 | AR11: =+IF($K11+AR$5>Alm_ealdur,0,IF($K11+AR$5=Alm_ealdur-0.5,0.5,1))*AQ11*(1+IF($C11=1,launah,launahkvk))*IF(Kúrfa="já",IF(ISERROR(INDEX(Launakeðjur!$B$1:$S$60,INT($K11+AR$5)-12,MATCH(Laun!$A11,Launakeðjur!$B$1:$S$1,0)+$C11-1)),0,INDEX(Launakeðjur!$B$1:$S$60,INT($K11+AR$5)-12,MATCH(Laun!$A11,Launakeðjur!$B$1:$S$1,0)+$C11-1)),1) -> 0 | AS11: =+IF($K11+AS$5>Alm_ealdur,0,IF($K11+AS$5=Alm_ealdur-0.5,0.5,1))*AR11*(1+IF($C11=1,launah,launahkvk))*IF(Kúrfa="já",IF(ISERROR(INDEX(Launakeðjur!$B$1:$S$60,INT($K11+AS$5)-12,MATCH(Laun!$A11,Launakeðjur!$B$1:$S$1,0)+$C11-1)),0,INDEX(Launakeðjur!$B$1:$S$60,INT($K11+AS$5)-12,MATCH(Laun!$A11,Launakeðjur!$B$1:$S$1,0)+$C11-1)),1) -> 0 | AT11: =+IF($K11+AT$5>Alm_ealdur,0,IF($K11+AT$5=Alm_ealdur-0.5,0.5,1))*AS11*(1+IF($C11=1,launah,launahkvk))*IF(Kúrfa="já",IF(ISERROR(INDEX(Launakeðjur!$B$1:$S$60,INT($K11+AT$5)-12,MATCH(Laun!$A11,Launakeðjur!$B$1:$S$1,0)+$C11-1)),0,INDEX(Launakeðjur!$B$1:$S$60,INT($K11+AT$5)-12,MATCH(Laun!$A11,Launakeðjur!$B$1:$S$1,0)+$C11-1)),1) -> 0 | AU11: =+IF($K11+AU$5>Alm_ealdur,0,IF($K11+AU$5=Alm_ealdur-0.5,0.5,1))*AT11*(1+IF($C11=1,launah,launahkvk))*IF(Kúrfa="já",IF(ISERROR(INDEX(Launakeðjur!$B$1:$S$60,INT($K11+AU$5)-12,MATCH(Laun!$A11,Launakeðjur!$B$1:$S$1,0)+$C11-1)),0,INDEX(Launakeðjur!$B$1:$S$60,INT($K11+AU$5)-12,MATCH(Laun!$A11,Launakeðjur!$B$1:$S$1,0)+$C11-1)),1) -> 0 | AV11: =+IF($K11+AV$5>Alm_ealdur,0,IF($K11+AV$5=Alm_ealdur-0.5,0.5,1))*AU11*(1+IF($C11=1,launah,launahkvk))*IF(Kúrfa="já",IF(ISERROR(INDEX(Launakeðjur!$B$1:$S$60,INT($K11+AV$5)-12,MATCH(Laun!$A11,Launakeðjur!$B$1:$S$1,0)+$C11-1)),0,INDEX(Launakeðjur!$B$1:$S$60,INT($K11+AV$5)-12,MATCH(Laun!$A11,Launakeðjur!$B$1:$S$1,0)+$C11-1)),1) -> 0 | AW11: =+IF($K11+AW$5>Alm_ealdur,0,IF($K11+AW$5=Alm_ealdur-0.5,0.5,1))*AV11*(1+IF($C11=1,launah,launahkvk))*IF(Kúrfa="já",IF(ISERROR(INDEX(Launakeðjur!$B$1:$S$60,INT($K11+AW$5)-12,MATCH(Laun!$A11,Launakeðjur!$B$1:$S$1,0)+$C11-1)),0,INDEX(Launakeðjur!$B$1:$S$60,INT($K11+AW$5)-12,MATCH(Laun!$A11,Launakeðjur!$B$1:$S$1,0)+$C11-1)),1) -> 0 | AX11: =+IF($K11+AX$5>Alm_ealdur,0,IF($K11+AX$5=Alm_ealdur-0.5,0.5,1))*AW11*(1+IF($C11=1,launah,launahkvk))*IF(Kúrfa="já",IF(ISERROR(INDEX(Launakeðjur!$B$1:$S$60,INT($K11+AX$5)-12,MATCH(Laun!$A11,Launakeðjur!$B$1:$S$1,0)+$C11-1)),0,INDEX(Launakeðjur!$B$1:$S$60,INT($K11+AX$5)-12,MATCH(Laun!$A11,Launakeðjur!$B$1:$S$1,0)+$C11-1)),1) -> 0 | AY11: =+IF($K11+AY$5>Alm_ealdur,0,IF($K11+AY$5=Alm_ealdur-0.5,0.5,1))*AX11*(1+IF($C11=1,launah,launahkvk))*IF(Kúrfa="já",IF(ISERROR(INDEX(Launakeðjur!$B$1:$S$60,INT($K11+AY$5)-12,MATCH(Laun!$A11,Launakeðjur!$B$1:$S$1,0)+$C11-1)),0,INDEX(Launakeðjur!$B$1:$S$60,INT($K11+AY$5)-12,MATCH(Laun!$A11,Launakeðjur!$B$1:$S$1,0)+$C11-1)),1) -> 0 | AZ11: =+IF($K11+AZ$5>Alm_ealdur,0,IF($K11+AZ$5=Alm_ealdur-0.5,0.5,1))*AY11*(1+IF($C11=1,launah,launahkvk))*IF(Kúrfa="já",IF(ISERROR(INDEX(Launakeðjur!$B$1:$S$60,INT($K11+AZ$5)-12,MATCH(Laun!$A11,Launakeðjur!$B$1:$S$1,0)+$C11-1)),0,INDEX(Launakeðjur!$B$1:$S$60,INT($K11+AZ$5)-12,MATCH(Laun!$A11,Launakeðjur!$B$1:$S$1,0)+$C11-1)),1) -> 0 | BA11: =+IF($K11+BA$5>Alm_ealdur,0,IF($K11+BA$5=Alm_ealdur-0.5,0.5,1))*AZ11*(1+IF($C11=1,launah,launahkvk))*IF(Kúrfa="já",IF(ISERROR(INDEX(Launakeðjur!$B$1:$S$60,INT($K11+BA$5)-12,MATCH(Laun!$A11,Launakeðjur!$B$1:$S$1,0)+$C11-1)),0,INDEX(Launakeðjur!$B$1:$S$60,INT($K11+BA$5)-12,MATCH(Laun!$A11,Launakeðjur!$B$1:$S$1,0)+$C11-1)),1) -> 0 | BB11: =+IF($K11+BB$5>Alm_ealdur,0,IF($K11+BB$5=Alm_ealdur-0.5,0.5,1))*BA11*(1+IF($C11=1,launah,launahkvk))*IF(Kúrfa="já",IF(ISERROR(INDEX(Launakeðjur!$B$1:$S$60,INT($K11+BB$5)-12,MATCH(Laun!$A11,Launakeðjur!$B$1:$S$1,0)+$C11-1)),0,INDEX(Launakeðjur!$B$1:$S$60,INT($K11+BB$5)-12,MATCH(Laun!$A11,Launakeðjur!$B$1:$S$1,0)+$C11-1)),1) -> 0 | BC11: =+IF($K11+BC$5>Alm_ealdur,0,IF($K11+BC$5=Alm_ealdur-0.5,0.5,1))*BB11*(1+IF($C11=1,launah,launahkvk))*IF(Kúrfa="já",IF(ISERROR(INDEX(Launakeðjur!$B$1:$S$60,INT($K11+BC$5)-12,MATCH(Laun!$A11,Launakeðjur!$B$1:$S$1,0)+$C11-1)),0,INDEX(Launakeðjur!$B$1:$S$60,INT($K11+BC$5)-12,MATCH(Laun!$A11,Launakeðjur!$B$1:$S$1,0)+$C11-1)),1) -> 0 | BD11: =+IF($K11+BD$5>Alm_ealdur,0,IF($K11+BD$5=Alm_ealdur-0.5,0.5,1))*BC11*(1+IF($C11=1,launah,launahkvk))*IF(Kúrfa="já",IF(ISERROR(INDEX(Launakeðjur!$B$1:$S$60,INT($K11+BD$5)-12,MATCH(Laun!$A11,Launakeðjur!$B$1:$S$1,0)+$C11-1)),0,INDEX(Launakeðjur!$B$1:$S$60,INT($K11+BD$5)-12,MATCH(Laun!$A11,Launakeðjur!$B$1:$S$1,0)+$C11-1)),1) -> 0 | BE11: =+IF($K11+BE$5>Alm_ealdur,0,IF($K11+BE$5=Alm_ealdur-0.5,0.5,1))*BD11*(1+IF($C11=1,launah,launahkvk))*IF(Kúrfa="já",IF(ISERROR(INDEX(Launakeðjur!$B$1:$S$60,INT($K11+BE$5)-12,MATCH(Laun!$A11,Launakeðjur!$B$1:$S$1,0)+$C11-1)),0,INDEX(Launakeðjur!$B$1:$S$60,INT($K11+BE$5)-12,MATCH(Laun!$A11,Launakeðjur!$B$1:$S$1,0)+$C11-1)),1) -> 0 | BF11: =+IF($K11+BF$5>Alm_ealdur,0,IF($K11+BF$5=Alm_ealdur-0.5,0.5,1))*BE11*(1+IF($C11=1,launah,launahkvk))*IF(Kúrfa="já",IF(ISERROR(INDEX(Launakeðjur!$B$1:$S$60,INT($K11+BF$5)-12,MATCH(Laun!$A11,Launakeðjur!$B$1:$S$1,0)+$C11-1)),0,INDEX(Launakeðjur!$B$1:$S$60,INT($K11+BF$5)-12,MATCH(Laun!$A11,Launakeðjur!$B$1:$S$1,0)+$C11-1)),1) -> 0 | BG11: =+IF($K11+BG$5>Alm_ealdur,0,IF($K11+BG$5=Alm_ealdur-0.5,0.5,1))*BF11*(1+IF($C11=1,launah,launahkvk))*IF(Kúrfa="já",IF(ISERROR(INDEX(Launakeðjur!$B$1:$S$60,INT($K11+BG$5)-12,MATCH(Laun!$A11,Launakeðjur!$B$1:$S$1,0)+$C11-1)),0,INDEX(Launakeðjur!$B$1:$S$60,INT($K11+BG$5)-12,MATCH(Laun!$A11,Launakeðjur!$B$1:$S$1,0)+$C11-1)),1) -> 0 | BH11: =+IF($K11+BH$5>Alm_ealdur,0,IF($K11+BH$5=Alm_ealdur-0.5,0.5,1))*BG11*(1+IF($C11=1,launah,launahkvk))*IF(Kúrfa="já",IF(ISERROR(INDEX(Launakeðjur!$B$1:$S$60,INT($K11+BH$5)-12,MATCH(Laun!$A11,Launakeðjur!$B$1:$S$1,0)+$C11-1)),0,INDEX(Launakeðjur!$B$1:$S$60,INT($K11+BH$5)-12,MATCH(Laun!$A11,Launakeðjur!$B$1:$S$1,0)+$C11-1)),1) -> 0 | BI11: =+IF($K11+BI$5>Alm_ealdur,0,IF($K11+BI$5=Alm_ealdur-0.5,0.5,1))*BH11*(1+IF($C11=1,launah,launahkvk))*IF(Kúrfa="já",IF(ISERROR(INDEX(Launakeðjur!$B$1:$S$60,INT($K11+BI$5)-12,MATCH(Laun!$A11,Launakeðjur!$B$1:$S$1,0)+$C11-1)),0,INDEX(Launakeðjur!$B$1:$S$60,INT($K11+BI$5)-12,MATCH(Laun!$A11,Launakeðjur!$B$1:$S$1,0)+$C11-1)),1) -> 0 | BJ11: =+IF($K11+BJ$5>Alm_ealdur,0,IF($K11+BJ$5=Alm_ealdur-0.5,0.5,1))*BI11*(1+IF($C11=1,launah,launahkvk))*IF(Kúrfa="já",IF(ISERROR(INDEX(Launakeðjur!$B$1:$S$60,INT($K11+BJ$5)-12,MATCH(Laun!$A11,Launakeðjur!$B$1:$S$1,0)+$C11-1)),0,INDEX(Launakeðjur!$B$1:$S$60,INT($K11+BJ$5)-12,MATCH(Laun!$A11,Launakeðjur!$B$1:$S$1,0)+$C11-1)),1) -> 0 | BK11: =+IF($K11+BK$5>Alm_ealdur,0,IF($K11+BK$5=Alm_ealdur-0.5,0.5,1))*BJ11*(1+IF($C11=1,launah,launahkvk))*IF(Kúrfa="já",IF(ISERROR(INDEX(Launakeðjur!$B$1:$S$60,INT($K11+BK$5)-12,MATCH(Laun!$A11,Launakeðjur!$B$1:$S$1,0)+$C11-1)),0,INDEX(Launakeðjur!$B$1:$S$60,INT($K11+BK$5)-12,MATCH(Laun!$A11,Launakeðjur!$B$1:$S$1,0)+$C11-1)),1) -> 0 | BL11: =+IF($K11+BL$5>Alm_ealdur,0,IF($K11+BL$5=Alm_ealdur-0.5,0.5,1))*BK11*(1+IF($C11=1,launah,launahkvk))*IF(Kúrfa="já",IF(ISERROR(INDEX(Launakeðjur!$B$1:$S$60,INT($K11+BL$5)-12,MATCH(Laun!$A11,Launakeðjur!$B$1:$S$1,0)+$C11-1)),0,INDEX(Launakeðjur!$B$1:$S$60,INT($K11+BL$5)-12,MATCH(Laun!$A11,Launakeðjur!$B$1:$S$1,0)+$C11-1)),1) -> 0 | BM11: =+IF($K11+BM$5>Alm_ealdur,0,IF($K11+BM$5=Alm_ealdur-0.5,0.5,1))*BL11*(1+IF($C11=1,launah,launahkvk))*IF(Kúrfa="já",IF(ISERROR(INDEX(Launakeðjur!$B$1:$S$60,INT($K11+BM$5)-12,MATCH(Laun!$A11,Launakeðjur!$B$1:$S$1,0)+$C11-1)),0,INDEX(Launakeðjur!$B$1:$S$60,INT($K11+BM$5)-12,MATCH(Laun!$A11,Launakeðjur!$B$1:$S$1,0)+$C11-1)),1) -> 0 | BN11: =+IF($K11+BN$5>Alm_ealdur,0,IF($K11+BN$5=Alm_ealdur-0.5,0.5,1))*BM11*(1+IF($C11=1,launah,launahkvk))*IF(Kúrfa="já",IF(ISERROR(INDEX(Launakeðjur!$B$1:$S$60,INT($K11+BN$5)-12,MATCH(Laun!$A11,Launakeðjur!$B$1:$S$1,0)+$C11-1)),0,INDEX(Launakeðjur!$B$1:$S$60,INT($K11+BN$5)-12,MATCH(Laun!$A11,Launakeðjur!$B$1:$S$1,0)+$C11-1)),1) -> 0 | BO11: =+IF($K11+BO$5>Alm_ealdur,0,IF($K11+BO$5=Alm_ealdur-0.5,0.5,1))*BN11*(1+IF($C11=1,launah,launahkvk))*IF(Kúrfa="já",IF(ISERROR(INDEX(Launakeðjur!$B$1:$S$60,INT($K11+BO$5)-12,MATCH(Laun!$A11,Launakeðjur!$B$1:$S$1,0)+$C11-1)),0,INDEX(Launakeðjur!$B$1:$S$60,INT($K11+BO$5)-12,MATCH(Laun!$A11,Launakeðjur!$B$1:$S$1,0)+$C11-1)),1) -> 0 | BP11: =+IF($K11+BP$5>Alm_ealdur,0,IF($K11+BP$5=Alm_ealdur-0.5,0.5,1))*BO11*(1+IF($C11=1,launah,launahkvk))*IF(Kúrfa="já",IF(ISERROR(INDEX(Launakeðjur!$B$1:$S$60,INT($K11+BP$5)-12,MATCH(Laun!$A11,Launakeðjur!$B$1:$S$1,0)+$C11-1)),0,INDEX(Launakeðjur!$B$1:$S$60,INT($K11+BP$5)-12,MATCH(Laun!$A11,Launakeðjur!$B$1:$S$1,0)+$C11-1)),1) -> 0 | BQ11: =+IF($K11+BQ$5>Alm_ealdur,0,IF($K11+BQ$5=Alm_ealdur-0.5,0.5,1))*BP11*(1+IF($C11=1,launah,launahkvk))*IF(Kúrfa="já",IF(ISERROR(INDEX(Launakeðjur!$B$1:$S$60,INT($K11+BQ$5)-12,MATCH(Laun!$A11,Launakeðjur!$B$1:$S$1,0)+$C11-1)),0,INDEX(Launakeðjur!$B$1:$S$60,INT($K11+BQ$5)-12,MATCH(Laun!$A11,Launakeðjur!$B$1:$S$1,0)+$C11-1)),1) -> 0 | BR11: =+IF($K11+BR$5>Alm_ealdur,0,IF($K11+BR$5=Alm_ealdur-0.5,0.5,1))*BQ11*(1+IF($C11=1,launah,launahkvk))*IF(Kúrfa="já",IF(ISERROR(INDEX(Launakeðjur!$B$1:$S$60,INT($K11+BR$5)-12,MATCH(Laun!$A11,Launakeðjur!$B$1:$S$1,0)+$C11-1)),0,INDEX(Launakeðjur!$B$1:$S$60,INT($K11+BR$5)-12,MATCH(Laun!$A11,Launakeðjur!$B$1:$S$1,0)+$C11-1)),1) -> 0 | BS11: =+IF($K11+BS$5>Alm_ealdur,0,IF($K11+BS$5=Alm_ealdur-0.5,0.5,1))*BR11*(1+IF($C11=1,launah,launahkvk))*IF(Kúrfa="já",IF(ISERROR(INDEX(Launakeðjur!$B$1:$S$60,INT($K11+BS$5)-12,MATCH(Laun!$A11,Launakeðjur!$B$1:$S$1,0)+$C11-1)),0,INDEX(Launakeðjur!$B$1:$S$60,INT($K11+BS$5)-12,MATCH(Laun!$A11,Launakeðjur!$B$1:$S$1,0)+$C11-1)),1) -> 0 | BT11: =+IF($K11+BT$5>Alm_ealdur,0,IF($K11+BT$5=Alm_ealdur-0.5,0.5,1))*BS11*(1+IF($C11=1,launah,launahkvk))*IF(Kúrfa="já",IF(ISERROR(INDEX(Launakeðjur!$B$1:$S$60,INT($K11+BT$5)-12,MATCH(Laun!$A11,Launakeðjur!$B$1:$S$1,0)+$C11-1)),0,INDEX(Launakeðjur!$B$1:$S$60,INT($K11+BT$5)-12,MATCH(Laun!$A11,Launakeðjur!$B$1:$S$1,0)+$C11-1)),1) -> 0 | BU11: =+IF($K11+BU$5>Alm_ealdur,0,IF($K11+BU$5=Alm_ealdur-0.5,0.5,1))*BT11*(1+IF($C11=1,launah,launahkvk))*IF(Kúrfa="já",IF(ISERROR(INDEX(Launakeðjur!$B$1:$S$60,INT($K11+BU$5)-12,MATCH(Laun!$A11,Launakeðjur!$B$1:$S$1,0)+$C11-1)),0,INDEX(Launakeðjur!$B$1:$S$60,INT($K11+BU$5)-12,MATCH(Laun!$A11,Launakeðjur!$B$1:$S$1,0)+$C11-1)),1) -> 0 | BV11: =+IF($K11+BV$5>Alm_ealdur,0,IF($K11+BV$5=Alm_ealdur-0.5,0.5,1))*BU11*(1+IF($C11=1,launah,launahkvk))*IF(Kúrfa="já",IF(ISERROR(INDEX(Launakeðjur!$B$1:$S$60,INT($K11+BV$5)-12,MATCH(Laun!$A11,Launakeðjur!$B$1:$S$1,0)+$C11-1)),0,INDEX(Launakeðjur!$B$1:$S$60,INT($K11+BV$5)-12,MATCH(Laun!$A11,Launakeðjur!$B$1:$S$1,0)+$C11-1)),1) -> 0 | BW11: =+IF($K11+BW$5>Alm_ealdur,0,IF($K11+BW$5=Alm_ealdur-0.5,0.5,1))*BV11*(1+IF($C11=1,launah,launahkvk))*IF(Kúrfa="já",IF(ISERROR(INDEX(Launakeðjur!$B$1:$S$60,INT($K11+BW$5)-12,MATCH(Laun!$A11,Launakeðjur!$B$1:$S$1,0)+$C11-1)),0,INDEX(Launakeðjur!$B$1:$S$60,INT($K11+BW$5)-12,MATCH(Laun!$A11,Launakeðjur!$B$1:$S$1,0)+$C11-1)),1) -> 0 | BX11: =+IF($K11+BX$5>Alm_ealdur,0,IF($K11+BX$5=Alm_ealdur-0.5,0.5,1))*BW11*(1+IF($C11=1,launah,launahkvk))*IF(Kúrfa="já",IF(ISERROR(INDEX(Launakeðjur!$B$1:$S$60,INT($K11+BX$5)-12,MATCH(Laun!$A11,Launakeðjur!$B$1:$S$1,0)+$C11-1)),0,INDEX(Launakeðjur!$B$1:$S$60,INT($K11+BX$5)-12,MATCH(Laun!$A11,Launakeðjur!$B$1:$S$1,0)+$C11-1)),1) -> 0 | BZ11: 4435248079
